Workbook

Sheet START
A1: =muni -> LIM331 Greater Giyani

Sheet Instructions
D2: 2020
X4: Yes
X5: No
W7: Type of Entities Range: | X7: Parent Municipality
X8: Consolidated Information
W10: Date linked | X10: 4
W11: Date | X11: =VLOOKUP(X10,W39:X55,2) -> M04 October | Y11: 2013-08-01
W19: MTREF Range: | X19: 2008
X20: 2009
X21: 2010
X22: 2011
X23: 2012
X24: 2013
X25: 2014
X26: 2015
X27: 2016
X28: 2017
X29: 2018
X30: 2019
X31: 2020
X32: 2021
X33: 2022
W34: MTREF Linked:
W35: MTREF: | X35: 12
X36: =INDEX(X19:X33,X35,1) -> 2019
W37: Fin Year:
X38: =MTREF&"/"&RIGHT(MTREF,2)+1 -> 2019/20
V39: Date/type of report | W39: 1 | X39: M01 July
W40: 2 | X40: M02 August
W41: 3 | X41: M03 September
W42: 4 | X42: M04 October
W43: 5 | X43: M05 November
W44: 6 | X44: M06 December
W45: 7 | X45: M07 January
W46: 8 | X46: M08 February
W47: 9 | X47: M09 March
W48: 10 | X48: M10 April
W49: 11 | X49: M11 May
W50: 12 | X50: M12 June
W51: 13 | X51: Q1 First Quarter
W52: 14 | X52: Q2 Second Quarter
W53: 15 | X53: Q3 Third Quarter
W54: 16 | X54: Q4 Fourth Quarter
W55: 17 | X55: Mid-Year Assessment

Sheet Template names (hidden)
A1: Common sheet headings
A2: Head1 | B2: =HLOOKUP(MTREF,Headings,2) -> 2018/19 | C2: Prior year -1
A3: Head2 | B3: =HLOOKUP(MTREF,Headings,5) -> Budget Year 2019/20 | C3: Year of approved budget
A4: Head2A | B4: =HLOOKUP(MTREF,Headings,4) -> 2019/20 | C4: Approved budget year
A5: Head3 | B5: =HLOOKUP(MTREF,Headings,3) -> 2019/20 Medium Term Revenue & Expenditure Framework | C5: MTREF header name
A6: Head5 | B6: Audited Outcome
A7: Head5A | B7: Outcome
A8: Head5B | B8: Pre-audit outcome
A9: Head6 | B9: Original Budget
A10: Head7 | B10: Adjusted Budget
A11: Head8 | B11: Full Year Forecast
A12: Head9 | B12: =HLOOKUP(MTREF,Headings,5) -> Budget Year 2019/20 | C12: 1st year of MTREF | D12: Year1
A13: Head10 | B13: =HLOOKUP(MTREF,Headings,6) -> Budget Year +1 2020/21 | C13: 2nd year of MTREF | D13: Year2
A14: Head11 | B14: =HLOOKUP(MTREF,Headings,7) -> Budget Year +2 2021/22 | C14: 3rd year of MTREF | D14: Year3
A15: Head12 | B15: Forecast 2010/11 | D15: Year4
A16: Head13 | B16: Forecast 2011/12 | D16: Year5
A17: Head14 | B17: Forecast 2012/13 | D17: Year6
A18: Head15 | B18: Forecast 2013/14 | D18: Year7
A19: Head16 | B19: Forecast 2014/15 | D19: Year8
A20: Head17 | B20: Forecast 2015/16 | D20: Year9
A21: Head18 | B21: Forecast 2016/17 | D21: Year10
A22: Head19 | B22: Forecast 2017/18 | D22: Year11
A23: Head20 | B23: Forecast 2018/19 | D23: Year12
A24: Head21 | B24: Forecast 2019/20 | D24: Year13
A25: Head22 | B25: Forecast 2020/21 | D25: Year14
A26: Head23 | B26: Forecast 2021/22 | D26: Year15
A27: Head24 | B27: Description | D27: Desc
A28: Head25 | B28: Schedule of funding diligence | D28: fdil
A29: Head26 | B29: Vote Description | D29: VDesc
A30: Head27 | B30: Ref
A31: Head27a | B31: References
A32: Head28 | B32: Surplus/ (Deficit) for the year | D32: Result
A33: Head29 | B33: Annual target 2007/08
A34: Head30 | B34: Revised target 2007/08
A35: Head31 | B35: Quarter ended 30 September
A36: Head32 | B36: Quarter ended 31 December
A37: Head33 | B37: Quarter ended 31 March
A38: Head34 | B38: Quarter ended 30 June
A39: Head35 | B39: Variance explanation
A40: Head36 | B40: YTD Actual 31 Dec
A41: Head37 | B41: YTD Budget 31 Dec
A42: Head38 | B42: Monthly actual
A43: Head39 | B43: YearTD actual
A44: Head40 | B44: YearTD budget
A45: Head41 | B45: YTD variance
A46: Head42 | B46: Surplus/ (Deficit) for the yr/period
A47: Head43 | B47: =Head3&" Summary" -> 2019/20 Medium Term Revenue & Expenditure Framework Summary
A48: Head44 | B48: 1996 Census
A49: Head45 | B49: 2001 Census
A50: Head46 | B50: - Adjustments Budget - Month YYYY
A51: Head47 | B51: Previous target year to complete
A52: Head48 | B52: Present value
A53: Head49 | B53: Virement
A54: Head50 | B54: Other Adjusts.
A55: Head51 | B55: Accum. Funds
A56: Head52 | B56: Multi-year capital
A57: Head53 | B57: Unfore. Unavoid.
A58: Head54 | B58: Prior Adjusted
A59: Head55 | B59: Nat. or Prov. Govt
A60: Head56 | B60: Total Adjusts.
A61: Head57 | B61: =date -> M04 October
A62: Head58 | B62: Parent muni.
A63: Head59 | B63: Downward adjusts
A64: Head60 | B64: Month | C64: Report header part name | D64: =MONTH(date) -> 
A65: SFPerf1 | B65: Budgeted Financial Performance
A66: SFPerf2 | B66: Forecast Financial Performance
A67: SFPos1 | B67: Budgeted Financial Position
A68: SFPos2 | B68: Forecast Financial Position
A69: Cash1 | B69: Budget Cash Flow
A70: Cash2 | B70: Forecast Cash Flow
A71: RandM | B71: Expenditure includes repairs & maintenance of R'000
A72: Standard nomenclature
A73: Muni | B73: ='Lookup and lists'!B27 -> LIM331 Greater Giyani
A74: Municipal Entities | B74: 2 | C74: Type of report: | D74: 3
A75: =IF((MuniEntities=1)*(MuniType=2),"YES","NO") -> NO | B75: Does this municipality have entities (consolidated budget and entity budgets required)? YES/NO
A76: s71 (Monthly Mayor report) schedules and charts
A77: S71sum | B77: =IF(Consolques="YES",E77,F77) -> Table C1 Monthly Budget Statement Summary | D77: Table C1 | E77: =D77&"Consolidated Monthly Budget Statement Summary" -> Table C1 Consolidated Monthly Budget Statement Summary | F77: =D77&"Monthly Budget Statement Summary" -> Table C1 Monthly Budget Statement Summary
A78: S71C | B78: Table C3 Monthly Budget Statement - Financial Performance (revenue and expenditure by municipal vote) | D78: Table C3 | E78: =D78&"Consolidated Monthly Budget Statement - Financial Performance (revenue and expenditure by municipal vote) " -> Table C3 Consolidated Monthly Budget Statement - Financial Performance (revenue and expenditure by municipal vote) | F78: =D78&"Monthly Budget Statement - Financial Performance (revenue and expenditure by municipal vote)" -> Table C3 Monthly Budget Statement - Financial Performance (revenue and expenditure by municipal vote)
A79: S71A | B79: =IF(Consolques="YES",E79,F79) -> Table C2 Monthly Budget Statement - Financial Performance (functional classification) | D79: Table C2 | E79: =D79&"Consolidated Monthly Budget Statement - Financial Performance (functional classification) " -> Table C2 Consolidated Monthly Budget Statement - Financial Performance (functional classification) | F79: =D79&"Monthly Budget Statement - Financial Performance (functional classification)" -> Table C2 Monthly Budget Statement - Financial Performance (functional classification)
A80: S71B | B80: =IF(Consolques="YES",E80,F80) -> Table C4 Monthly Budget Statement - Financial Performance (revenue and expenditure) | D80: Table C4 | E80: =D80&"Consolidated Monthly Budget Statement - Financial Performance (revenue and expenditure) " -> Table C4 Consolidated Monthly Budget Statement - Financial Performance (revenue and expenditure) | F80: =D80&"Monthly Budget Statement - Financial Performance (revenue and expenditure)" -> Table C4 Monthly Budget Statement - Financial Performance (revenue and expenditure)
A81: S71D | B81: =IF(Consolques="YES",E81,F81) -> Table C5 Monthly Budget Statement - Capital Expenditure (municipal vote, functional classification and funding) | D81: Table C5 | E81: =D81&"Consolidated Monthly Budget Statement - Capital Expenditure (municipal vote, functional classification and funding " -> Table C5 Consolidated Monthly Budget Statement - Capital Expenditure (municipal vote, functional classification and funding | F81: =D81&"Monthly Budget Statement - Capital Expenditure (municipal vote, functional classification and funding)" -> Table C5 Monthly Budget Statement - Capital Expenditure (municipal vote, functional classification and funding)
A82: S71E | B82: Table C6 Monthly Budget Statement - Financial Position | D82: Table C6 | E82: =D82&"Consolidated Monthly Budget Statement - Financial Position " -> Table C6 Consolidated Monthly Budget Statement - Financial Position | F82: =D82&"Monthly Budget Statement - Financial Position" -> Table C6 Monthly Budget Statement - Financial Position
A83: S71F | B83: Table C7 Monthly Budget Statement - Cash Flow | D83: Table C7 | E83: =D83&"Consolidated Monthly Budget Statement - Cash Flow " -> Table C7 Consolidated Monthly Budget Statement - Cash Flow | F83: =D83&"Monthly Budget Statement - Cash Flow " -> Table C7 Monthly Budget Statement - Cash Flow
A84: S71G | B84: =D84&"Material variance explanations " -> Supporting Table SC1 Material variance explanations | D84: Supporting Table SC1
A85: S71H | B85: =D85&"Monthly Budget Statement - performance indicators " -> Supporting Table SC2 Monthly Budget Statement - performance indicators | D85: Supporting Table SC2
A86: S71I | B86: =D86&"Monthly Budget Statement - aged debtors" -> Supporting Table SC3 Monthly Budget Statement - aged debtors | D86: Supporting Table SC3
A87: S71J | B87: =D87&"Monthly Budget Statement - aged creditors " -> Supporting Table SC4 Monthly Budget Statement - aged creditors | D87: Supporting Table SC4
A88: S71K | B88: =D88&"Monthly Budget Statement - investment portfolio " -> Supporting Table SC5 Monthly Budget Statement - investment portfolio | D88: Supporting Table SC5
A89: S71L | B89: =D89&"Monthly Budget Statement - transfers and grant receipts " -> Supporting Table SC6 Monthly Budget Statement - transfers and grant receipts | D89: Supporting Table SC6
A90: S71M | B90: =D90&" Monthly Budget Statement - transfers and grant expenditure " -> Supporting Table SC7(1) Monthly Budget Statement - transfers and grant expenditure | D90: Supporting Table SC7(1)
A91: S71N | B91: =D91&"Monthly Budget Statement - councillor and staff benefits " -> Supporting Table SC8 Monthly Budget Statement - councillor and staff benefits | D91: Supporting Table SC8
A92: S71O | B92: =D92&"Monthly Budget Statement - actuals and revised targets for cash receipts" -> Supporting Table SC9 Monthly Budget Statement - actuals and revised targets for cash receipts | D92: Supporting Table SC9
A93: S71P | B93: =IF(Consolques="YES",E93,F93) -> NOT REQUIRED - municipality does not have entities or this is the parent municipality's budget | D93: Supporting Table SC10 | E93: =D93&"Monthly Budget Statement - Parent Municipality Financial Performance (revenue and expenditure) " -> Supporting Table SC10 Monthly Budget Statement - Parent Municipality Financial Performance (revenue and expenditure) | F93: NOT REQUIRED - municipality does not have entities or this is the parent municipality's budget
A94: S71Q | B94: NOT REQUIRED - municipality does not have entities or this is the parent municipality's budget | D94: Supporting Table SC11 | E94: =D94&"Monthly Budget Statement - summary of municipal entities" -> Supporting Table SC11 Monthly Budget Statement - summary of municipal entities | F94: NOT REQUIRED - municipality does not have entities or this is the parent municipality's budget
A95: S71R | B95: Supporting Table SC12 Monthly Budget Statement - capital expenditure trend | D95: Supporting Table SC12 | E95: =D95&"Consolidated Monthly Budget Statement - capital expenditure trend " -> Supporting Table SC12 Consolidated Monthly Budget Statement - capital expenditure trend | F95: =D95&"Monthly Budget Statement - capital expenditure trend" -> Supporting Table SC12 Monthly Budget Statement - capital expenditure trend
A96: S71Sa | B96: Supporting Table SC13a Monthly Budget Statement - capital expenditure on new assets by asset class | D96: Supporting Table SC13a | E96: =D96&"Consolidated Monthly Budget Statement - capital expenditure on new assets by asset class" -> Supporting Table SC13a Consolidated Monthly Budget Statement - capital expenditure on new assets by asset class | F96: =D96&"Monthly Budget Statement - capital expenditure on new assets by asset class" -> Supporting Table SC13a Monthly Budget Statement - capital expenditure on new assets by asset class
A97: S71Sb | B97: Supporting Table SC13b Monthly Budget Statement - capital expenditure on renewal of existing assets by asset class | D97: Supporting Table SC13b | E97: =D97&"Consolidated Monthly Budget Statement - capital expenditure on renewal of existing assets by asset class" -> Supporting Table SC13b Consolidated Monthly Budget Statement - capital expenditure on renewal of existing assets by asset class | F97: =D97&"Monthly Budget Statement - capital expenditure on renewal of existing assets by asset class" -> Supporting Table SC13b Monthly Budget Statement - capital expenditure on renewal of existing assets by asset class
A98: S71Sc | B98: Supporting Table SC13c Monthly Budget Statement - expenditure on repairs and maintenance by asset class | D98: Supporting Table SC13c | E98: =D98&"Consolidated Monthly Budget Statement - expenditure on repairs and maintenance by asset class" -> Supporting Table SC13c Consolidated Monthly Budget Statement - expenditure on repairs and maintenance by asset class | F98: =D98&"Monthly Budget Statement - expenditure on repairs and maintenance by asset class" -> Supporting Table SC13c Monthly Budget Statement - expenditure on repairs and maintenance by asset class
A99: S71Sd | B99: Supporting Table SC13d Monthly Budget Statement - depreciation by asset class | D99: Supporting Table SC13d | E99: =D99&"Consolidated Monthly Budget Statement - depreciation by asset class" -> Supporting Table SC13d Consolidated Monthly Budget Statement - depreciation by asset class | F99: =D99&"Monthly Budget Statement - depreciation by asset class" -> Supporting Table SC13d Monthly Budget Statement - depreciation by asset class
A100: S71Se | B100: =IF(Consolques="YES",E100,F100) -> Supporting Table SC13e Monthly Budget Statement - capital expenditure on upgrading of existing assets by asset class | D100: Supporting Table SC13e | E100: =D100&"Consolidated Monthly Budget Statement - capital expenditure on upgrading of existing assets by asset class" -> Supporting Table SC13e Consolidated Monthly Budget Statement - capital expenditure on upgrading of existing assets by asset class | F100: =D100&"Monthly Budget Statement - capital expenditure on upgrading of existing assets by asset class" -> Supporting Table SC13e Monthly Budget Statement - capital expenditure on upgrading of existing assets by asset class
B101: s71 charts listing
B102: =D102&Head2A&" Capital Expenditure Monthly Trend: actual v target" -> Chart C1 2019/20 Capital Expenditure Monthly Trend: actual v target | D102: Chart C1
B103: =D103&Head2A&" Capital Expenditure: YTD actual v YTD target" -> Chart C2 2019/20 Capital Expenditure: YTD actual v YTD target | D103: Chart C2
B104: =D104&"Aged Consumer Debtors Analysis" -> Chart C3 Aged Consumer Debtors Analysis | D104: Chart C3
B105: =D105&"Consumer Debtors (total by Debtor Customer Category)" -> Chart C4 Consumer Debtors (total by Debtor Customer Category) | D105: Chart C4
B106: =D106&"Aged Creditors Analysis" -> Chart C5 Aged Creditors Analysis | D106: Chart C5
A107: S71T | B107: =D107&" Monthly Budget Statement - Expenditure against approved rollovers" -> Supporting Table SC7(2) Monthly Budget Statement - Expenditure against approved rollovers | D107: Supporting Table SC7(2)

Sheet Lookup and lists (hidden)
A1: Description | B1: 2007 | C1: 2008 | D1: 2009 | E1: 2010 | F1: 2011 | G1: 2012 | H1: 2013 | I1: 2014 | J1: 2015 | K1: 2016 | L1: 2017 | M1: 2018 | N1: 2019 | O1: 2020 | Q1: Grants: | R1: National - opex | S1: Provincial - opex | T1: National - capex | U1: Provincial - capex | V1: YESNO
A2: ='Template names'!C2 -> Prior year -1 | B2: 2006/07 | C2: 2007/08 | D2: 2008/09 | E2: =E1-1&"/"&RIGHT(E1,2)-0 -> 2009/10 | F2: =F1-1&"/"&RIGHT(F1,2)-0 -> 2010/11 | G2: 2011/12 | H2: 2012/13 | I2: 2013/14 | J2: 2014/15 | K2: 2015/16 | L2: 2016/17 | M2: 2017/18 | N2: 2018/19 | O2: 2019/20 | R2: Local Government Equitable Share | S2: Health subsidy | T2: Municipal Infrastructure Grant (MIG) | U2: Agriculture | V2: Yes
A3: ='Template names'!C5 -> MTREF header name | B3: 2007/08 Medium Term Revenue & Expenditure Framework | C3: 2008/09 Medium Term Revenue & Expenditure Framework | D3: 2009/10 Medium Term Revenue & Expenditure Framework | E3: =E1&"/"&RIGHT(E1,2)+1&" Medium Term Revenue & Expenditure Framework" -> 2010/11 Medium Term Revenue & Expenditure Framework | F3: =F1&"/"&RIGHT(F1,2)+1&" Medium Term Revenue & Expenditure Framework" -> 2011/12 Medium Term Revenue & Expenditure Framework | G3: 2012/13 Medium Term Revenue & Expenditure Framework | H3: 2013/14 Medium Term Revenue & Expenditure Framework | I3: 2014/15 Medium Term Revenue & Expenditure Framework | J3: 2015/16 Medium Term Revenue & Expenditure Framework | K3: 2016/17 Medium Term Revenue & Expenditure Framework | L3: 2017/18 Medium Term Revenue & Expenditure Framework | M3: 2018/19 Medium Term Revenue & Expenditure Framework | N3: 2019/20 Medium Term Revenue & Expenditure Framework | O3: 2020/21 Medium Term Revenue & Expenditure Framework | R3: RSC Levy Replacement | S3: Ambulance subsidy | T3: Public Transport and Systems | U3: Education | V3: No
A4: ='Template names'!C4 -> Approved budget year | B4: 2007/08 | C4: 2008/09 | D4: 2009/10 | E4: =E1&"/"&RIGHT(E1,2)+1 -> 2010/11 | F4: =F1&"/"&RIGHT(F1,2)+1 -> 2011/12 | G4: 2012/13 | H4: 2013/14 | I4: 2014/15 | J4: 2015/16 | K4: 2016/17 | L4: 2017/18 | M4: 2018/19 | N4: 2019/20 | O4: 2020/21 | R4: Finance Management | S4: Housing | T4: Rural Transport Services and Infrastructure | U4: Health
A5: ='Template names'!C12 -> 1st year of MTREF | B5: Budget Year 2007/08 | C5: Budget Year 2008/09 | D5: Budget Year 2009/10 | E5: ="Budget Year "&E1&"/"&RIGHT(E1,2)+1 -> Budget Year 2010/11 | F5: ="Budget Year "&F1&"/"&RIGHT(F1,2)+1 -> Budget Year 2011/12 | G5: Budget Year 2012/13 | H5: Budget Year 2013/14 | I5: Budget Year 2014/15 | J5: Budget Year 2015/16 | K5: Budget Year 2016/17 | L5: Budget Year 2017/18 | M5: Budget Year 2018/19 | N5: Budget Year 2019/20 | O5: Budget Year 2020/21 | R5: Municipal Systems Improvement | S5: Sport and Recreation | T5: Regional Bulk Infrastructure | U5: Housing and Local Government
A6: ='Template names'!C13 -> 2nd year of MTREF | B6: Budget Year +1 2008/09 | C6: Budget Year +1 2009/10 | D6: Budget Year +1 2010/11 | E6: ="Budget Year +1 "&E1+1&"/"&RIGHT(E1,2)+2 -> Budget Year +1 2011/12 | F6: ="Budget Year +1 "&F1+1&"/"&RIGHT(F1,2)+2 -> Budget Year +1 2012/13 | G6: Budget Year +1 2013/14 | H6: Budget Year +1 2014/15 | I6: Budget Year +1 2015/16 | J6: Budget Year +1 2016/17 | K6: Budget Year +1 2017/18 | L6: Budget Year +1 2018/19 | M6: Budget Year +1 2019/20 | N6: Budget Year +1 2020/21 | O6: Budget Year +1 2021/22 | R6: Water Services Operating Subsidy | T6: Rural Households Infrastructure | U6: Other Departments
A7: ='Template names'!C14 -> 3rd year of MTREF | B7: Budget Year +2 2009/10 | C7: Budget Year +2 2010/11 | D7: Budget Year +2 2011/12 | E7: ="Budget Year +2 "&E1+2&"/"&RIGHT(E1,2)+3 -> Budget Year +2 2012/13 | F7: ="Budget Year +2 "&F1+2&"/"&RIGHT(F1,2)+3 -> Budget Year +2 2013/14 | G7: Budget Year +2 2014/15 | H7: Budget Year +2 2015/16 | I7: Budget Year +2 2016/17 | J7: Budget Year +2 2017/18 | K7: Budget Year +2 2018/19 | L7: Budget Year +2 2019/20 | M7: Budget Year +2 2020/21 | N7: Budget Year +2 2021/22 | O7: Budget Year +2 2022/23 | R7: Energy Efficiency and Demand Management | T7: Neighbourhood Development Partnership | U7: Public Works, Roads, Transport
A8: NOTE: This sheet should not be directly amended - select headings from sheet 'S' | R8: Integrated National Electrification Programme | T8: 2010 FIFA World Cup Stadiums Development | U8: Sport and Recreation
R9: Municipal Drought Relief
R10: 2010 FIFA World Cup Operating
R11: Electricity Demand Side Management
R12: EPWP Incentive
A26: Name link | B26: 129
A27: Name of Muni | B27: =INDEX(B28:B311,B26,1) -> LIM331 Greater Giyani
B28: Choose name from list | C28: Set name on 'Instructions' sheet
B29: BUF Buffalo City | C29: EC EASTERN CAPE
B30: NMA Nelson Mandela Bay | C30: EC EASTERN CAPE
B31: EC101 Dr Beyers Naude | C31: EC EASTERN CAPE
B32: EC102 Blue Crane Route | C32: EC EASTERN CAPE
B33: EC104 Makana | C33: EC EASTERN CAPE
B34: EC105 Ndlambe | C34: EC EASTERN CAPE
B35: EC106 Sundays River Valley | C35: EC EASTERN CAPE
B36: EC108 Kouga | C36: EC EASTERN CAPE
B37: EC109 Kou-Kamma | C37: EC EASTERN CAPE
B38: DC10 Sarah Baartman | C38: EC EASTERN CAPE
B39: EC121 Mbhashe | C39: EC EASTERN CAPE
B40: EC122 Mnquma | C40: EC EASTERN CAPE
B41: EC123 Great Kei | C41: EC EASTERN CAPE
B42: EC124 Amahlathi | C42: EC EASTERN CAPE
B43: EC126 Ngqushwa | C43: EC EASTERN CAPE
B44: EC129 Raymond Mhlaba | C44: EC EASTERN CAPE
B45: DC12 Amathole | C45: EC EASTERN CAPE
B46: EC131 Inxuba Yethemba | C46: EC EASTERN CAPE
B47: EC135 Intsika Yethu | C47: EC EASTERN CAPE
B48: EC136 Emalahleni (Ec) | C48: EC EASTERN CAPE
B49: EC137 Engcobo | C49: EC EASTERN CAPE
B50: EC138 Sakhisizwe | C50: EC EASTERN CAPE
B51: EC139 Enoch Mgijima | C51: EC EASTERN CAPE
B52: DC13 Chris Hani | C52: EC EASTERN CAPE
B53: EC141 Elundini | C53: EC EASTERN CAPE
B54: EC142 Senqu | C54: EC EASTERN CAPE
B55: EC145 Walter Sisulu | C55: EC EASTERN CAPE
B56: DC14 Joe Gqabi | C56: EC EASTERN CAPE
B57: EC153 Ngquza Hills | C57: EC EASTERN CAPE
B58: EC154 Port St Johns | C58: EC EASTERN CAPE
B59: EC155 Nyandeni | C59: EC EASTERN CAPE
B60: EC156 Mhlontlo | C60: EC EASTERN CAPE
B61: EC157 King Sabata Dalindyebo | C61: EC EASTERN CAPE
B62: DC15 O .R. Tambo | C62: EC EASTERN CAPE
B63: EC441 Matatiele | C63: EC EASTERN CAPE
B64: EC442 Umzimvubu | C64: EC EASTERN CAPE
B65: EC443 Mbizana | C65: EC EASTERN CAPE
B66: EC444 Ntabankulu | C66: EC EASTERN CAPE
B67: DC44 Alfred Nzo | C67: EC EASTERN CAPE
B68: MAN Mangaung | C68: FS FREE STATE
B69: FS161 Letsemeng | C69: FS FREE STATE
B70: FS162 Kopanong | C70: FS FREE STATE
B71: FS163 Mohokare | C71: FS FREE STATE
B72: DC16 Xhariep | C72: FS FREE STATE
B73: FS181 Masilonyana | C73: FS FREE STATE
B74: FS182 Tokologo | C74: FS FREE STATE
B75: FS183 Tswelopele | C75: FS FREE STATE
B76: FS184 Matjhabeng | C76: FS FREE STATE
B77: FS185 Nala | C77: FS FREE STATE
B78: DC18 Lejweleputswa | C78: FS FREE STATE
B79: FS191 Setsoto | C79: FS FREE STATE
B80: FS192 Dihlabeng | C80: FS FREE STATE
B81: FS193 Nketoana | C81: FS FREE STATE
B82: FS194 Maluti-a-Phofung | C82: FS FREE STATE
B83: FS195 Phumelela | C83: FS FREE STATE
B84: FS196 Mantsopa | C84: FS FREE STATE
B85: DC19 Thabo Mofutsanyana | C85: FS FREE STATE
B86: FS201 Moqhaka | C86: FS FREE STATE
B87: FS203 Ngwathe | C87: FS FREE STATE
B88: FS204 Metsimaholo | C88: FS FREE STATE
B89: FS205 Mafube | C89: FS FREE STATE
B90: DC20 Fezile Dabi | C90: FS FREE STATE
B91: EKU City of Ekurhuleni | C91: GT GAUTENG
B92: JHB City Of Johannesburg | C92: GT GAUTENG
B93: TSH City Of Tshwane | C93: GT GAUTENG
B94: GT421 Emfuleni | C94: GT GAUTENG
B95: GT422 Midvaal | C95: GT GAUTENG
B96: GT423 Lesedi | C96: GT GAUTENG
B97: DC42 Sedibeng | C97: GT GAUTENG
B98: GT481 Mogale City | C98: GT GAUTENG
B99: GT484 Merafong City | C99: GT GAUTENG
B100: GT485 Rand West City | C100: GT GAUTENG
B101: DC48 West Rand | C101: GT GAUTENG
B102: ETH eThekwini | C102: KZN KWAZULU-NATAL
B103: KZN212 Umdoni | C103: KZN KWAZULU-NATAL
B104: KZN213 Umzumbe | C104: KZN KWAZULU-NATAL
B105: KZN214 uMuziwabantu | C105: KZN KWAZULU-NATAL
B106: KZN216 Ray Nkonyeni | C106: KZN KWAZULU-NATAL
B107: DC21 Ugu | C107: KZN KWAZULU-NATAL
B108: KZN221 uMshwathi | C108: KZN KWAZULU-NATAL
B109: KZN222 uMngeni | C109: KZN KWAZULU-NATAL
B110: KZN223 Mpofana | C110: KZN KWAZULU-NATAL
B111: KZN224 Impendle | C111: KZN KWAZULU-NATAL
B112: KZN225 Msunduzi | C112: KZN KWAZULU-NATAL
B113: KZN226 Mkhambathini | C113: KZN KWAZULU-NATAL
B114: KZN227 Richmond | C114: KZN KWAZULU-NATAL
B115: DC22 uMgungundlovu | C115: KZN KWAZULU-NATAL
B116: KZN235 Okhahlamba | C116: KZN KWAZULU-NATAL
B117: KZN237 Inkosi Langalibalele | C117: KZN KWAZULU-NATAL
B118: KZN238 Alfred Duma | C118: KZN KWAZULU-NATAL
B119: DC23 Uthukela | C119: KZN KWAZULU-NATAL
B120: KZN241 Endumeni | C120: KZN KWAZULU-NATAL
B121: KZN242 Nquthu | C121: KZN KWAZULU-NATAL
B122: KZN244 Msinga | C122: KZN KWAZULU-NATAL
B123: KZN245 Umvoti | C123: KZN KWAZULU-NATAL
B124: DC24 Umzinyathi | C124: KZN KWAZULU-NATAL
B125: KZN252 Newcastle | C125: KZN KWAZULU-NATAL
B126: KZN253 Emadlangeni | C126: KZN KWAZULU-NATAL
B127: KZN254 Dannhauser | C127: KZN KWAZULU-NATAL
B128: DC25 Amajuba | C128: KZN KWAZULU-NATAL
B129: KZN261 eDumbe | C129: KZN KWAZULU-NATAL
B130: KZN262 uPhongolo | C130: KZN KWAZULU-NATAL
B131: KZN263 Abaqulusi | C131: KZN KWAZULU-NATAL
B132: KZN265 Nongoma | C132: KZN KWAZULU-NATAL
B133: KZN266 Ulundi | C133: KZN KWAZULU-NATAL
B134: DC26 Zululand | C134: KZN KWAZULU-NATAL
B135: KZN271 Umhlabuyalingana | C135: KZN KWAZULU-NATAL
B136: KZN272 Jozini | C136: KZN KWAZULU-NATAL
B137: KZN275 Mtubatuba | C137: KZN KWAZULU-NATAL
B138: KZN276 Hlabisa Big Five | C138: KZN KWAZULU-NATAL
B139: DC27 Umkhanyakude | C139: KZN KWAZULU-NATAL
B140: KZN281 Mfolozi | C140: KZN KWAZULU-NATAL
B141: KZN282 uMhlathuze | C141: KZN KWAZULU-NATAL
B142: KZN284 uMlalazi | C142: KZN KWAZULU-NATAL
B143: KZN285 Mthonjaneni | C143: KZN KWAZULU-NATAL
B144: KZN286 Nkandla | C144: KZN KWAZULU-NATAL
B145: DC28 King Cetshwayo | C145: KZN KWAZULU-NATAL
B146: KZN291 Mandeni | C146: KZN KWAZULU-NATAL
B147: KZN292 KwaDukuza | C147: KZN KWAZULU-NATAL
B148: KZN293 Ndwedwe | C148: KZN KWAZULU-NATAL
B149: KZN294 Maphumulo | C149: KZN KWAZULU-NATAL
B150: DC29 iLembe | C150: KZN KWAZULU-NATAL
B151: KZN433 Greater Kokstad | C151: KZN KWAZULU-NATAL
B152: KZN434 Ubuhlebezwe | C152: KZN KWAZULU-NATAL
B153: KZN435 Umzimkhulu | C153: KZN KWAZULU-NATAL
B154: KZN436 Dr Nkosazana Dlamini Zuma | C154: KZN KWAZULU-NATAL
B155: DC43 Harry Gwala | C155: KZN KWAZULU-NATAL
B156: LIM331 Greater Giyani | C156: LIM LIMPOPO
B157: LIM332 Greater Letaba | C157: LIM LIMPOPO
B158: LIM333 Greater Tzaneen | C158: LIM LIMPOPO
B159: LIM334 Ba-Phalaborwa | C159: LIM LIMPOPO
B160: LIM335 Maruleng | C160: LIM LIMPOPO
B161: DC33 Mopani | C161: LIM LIMPOPO
B162: LIM341 Musina | C162: LIM LIMPOPO
B163: LIM343 Thulamela | C163: LIM LIMPOPO
B164: LIM344 Makhado | C164: LIM LIMPOPO
B165: LIM345 Collins Chabane | C165: LIM LIMPOPO
B166: DC34 Vhembe | C166: LIM LIMPOPO
B167: LIM351 Blouberg | C167: LIM LIMPOPO
B168: LIM353 Molemole | C168: LIM LIMPOPO
B169: LIM354 Polokwane | C169: LIM LIMPOPO
B170: LIM355 Lepelle-Nkumpi | C170: LIM LIMPOPO
B171: DC35 Capricorn | C171: LIM LIMPOPO
B172: LIM361 Thabazimbi | C172: LIM LIMPOPO
B173: LIM362 Lephalale | C173: LIM LIMPOPO
B174: LIM366 Bela Bela | C174: LIM LIMPOPO
B175: LIM367 Mogalakwena | C175: LIM LIMPOPO
B176: LIM368 Modimolle-Mookgopong | C176: LIM LIMPOPO
B177: DC36 Waterberg | C177: LIM LIMPOPO
B178: LIM471 Ephraim Mogale | C178: LIM LIMPOPO
B179: LIM472 Elias Motsoaledi | C179: LIM LIMPOPO
B180: LIM473 Makhuduthamaga | C180: LIM LIMPOPO
B181: LIM476 Tubatse Fetakgomo | C181: LIM LIMPOPO
B182: DC47 Sekhukhune | C182: LIM LIMPOPO
B183: MP301 Albert Luthuli | C183: MP MPUMALANGA
B184: MP302 Msukaligwa | C184: MP MPUMALANGA
B185: MP303 Mkhondo | C185: MP MPUMALANGA
B186: MP304 Pixley Ka Seme (MP) | C186: MP MPUMALANGA
B187: MP305 Lekwa | C187: MP MPUMALANGA
B188: MP306 Dipaleseng | C188: MP MPUMALANGA
B189: MP307 Govan Mbeki | C189: MP MPUMALANGA
B190: DC30 Gert Sibande | C190: MP MPUMALANGA
B191: MP311 Victor Khanye | C191: MP MPUMALANGA
B192: MP312 Emalahleni (Mp) | C192: MP MPUMALANGA
B193: MP313 Steve Tshwete | C193: MP MPUMALANGA
B194: MP314 Emakhazeni | C194: MP MPUMALANGA
B195: MP315 Thembisile Hani | C195: MP MPUMALANGA
B196: MP316 Dr J.S. Moroka | C196: MP MPUMALANGA
B197: DC31 Nkangala | C197: MP MPUMALANGA
B198: MP321 Thaba Chweu | C198: MP MPUMALANGA
B199: MP324 Nkomazi | C199: MP MPUMALANGA
B200: MP325 Bushbuckridge | C200: MP MPUMALANGA
B201: MP326 City of Mbombela | C201: MP MPUMALANGA
B202: DC32 Ehlanzeni | C202: MP MPUMALANGA
B203: NC451 Joe Morolong | C203: NC NORTHERN CAPE
B204: NC452 Ga-Segonyana | C204: NC NORTHERN CAPE
B205: NC453 Gamagara | C205: NC NORTHERN CAPE
B206: DC45 John Taolo Gaetsewe | C206: NC NORTHERN CAPE
B207: NC061 Richtersveld | C207: NC NORTHERN CAPE
B208: NC062 Nama Khoi | C208: NC NORTHERN CAPE
B209: NC064 Kamiesberg | C209: NC NORTHERN CAPE
B210: NC065 Hantam | C210: NC NORTHERN CAPE
B211: NC066 Karoo Hoogland | C211: NC NORTHERN CAPE
B212: NC067 Khai-Ma | C212: NC NORTHERN CAPE
B213: DC6 Namakwa | C213: NC NORTHERN CAPE
... 73 more rows

Sheet Org structure
A1: Organisational Structure Votes | C1: Organisational Structure Sub-Votes
A2: =B2&" - "&C2 -> Vote 1 - Energy Sources | B2: Vote 1 | C2: Energy Sources
A3: =B13&" - "& C13 -> Vote 2 - Community and Social Services | B3: 1.1 | C3: Electricity | D3: =CONCATENATE(B3, " - ", C3) -> 1.1 - Electricity
A4: =B24&" - "&C24 -> Vote 3 - Finance & Administration | B4: 1.2 | C4: Street Lighting and Signal Systems | D4: =CONCATENATE(B4, " - ", C4) -> 1.2 - Street Lighting and Signal Systems
A5: =B35&" - "&C35 -> Vote 4 - Planning and Development | B5: 1.3 | C5: [Name of sub-vote] | D5: 1.3 - [Name of sub-vote]
A6: =B46&" - "&C46 -> Vote 5 - Executive & Council | B6: 1.4 | C6: [Name of sub-vote] | D6: 1.4 - [Name of sub-vote]
A7: =B57&" - "&C57 -> Vote 6 - Internal Audit | B7: 1.5 | C7: [Name of sub-vote] | D7: 1.5 - [Name of sub-vote]
A8: =B68&" - "&C68 -> Vote 7 - Road Transport | B8: 1.6 | C8: [Name of sub-vote] | D8: 1.6 - [Name of sub-vote]
A9: =B79&" - "&C79 -> Vote 8 - Public Safety | B9: 1.7 | C9: [Name of sub-vote] | D9: 1.7 - [Name of sub-vote]
A10: =B90&" - "&C90 -> Vote 9 - Waste Management | B10: 1.8 | C10: [Name of sub-vote] | D10: 1.8 - [Name of sub-vote]
A11: =B101&" - "&C101 -> Vote 10 - Sports & Recreation | B11: 1.9 | C11: [Name of sub-vote] | D11: 1.9 - [Name of sub-vote]
A12: =B112&" - "&C112 -> Vote 11 - Water Management | B12: 1.10 | C12: [Name of sub-vote] | D12: 1.10 - [Name of sub-vote]
A13: =B123&" - "&C123 -> Vote 12 - Waste Water Management | B13: Vote 2 | C13: Community and Social Services
A14: =B134&" - "&C134 -> Vote 13 - Housing | B14: 2.1 | C14: Animal Care and Diseases | D14: =CONCATENATE(B14, " - ", C14) -> 2.1 - Animal Care and Diseases
A15: =B145&" - "&C145 -> Vote 14 - Finance & Administration | B15: 2.2 | C15: Community Halls and Facilities | D15: =CONCATENATE(B15, " - ", C15) -> 2.2 - Community Halls and Facilities
A16: =B156&" - "&C156 -> Vote 15 - [NAME OF VOTE 5] | B16: 2.3 | C16: Libraries and Archives | D16: 2.3 - Libraries and Archives
B17: 2.4 | C17: Cemeteries, Funeral Parlours and Crematoriums | D17: 2.4 - Cemeteries, Funeral Parlours and Crematoriums
B18: 2.5 | C18: Disaster Management | D18: 2.5 - Disaster Management
B19: 2.6 | C19: [Name of sub-vote] | D19: 2.6 - [Name of sub-vote]
B20: 2.7 | C20: [Name of sub-vote] | D20: 2.7 - [Name of sub-vote]
B21: 2.8 | C21: [Name of sub-vote] | D21: 2.8 - [Name of sub-vote]
B22: 2.9 | C22: [Name of sub-vote] | D22: 2.9 - [Name of sub-vote]
B23: 2.10 | C23: [Name of sub-vote] | D23: 2.10 - [Name of sub-vote]
B24: Vote 3 | C24: Finance & Administration
B25: 3.1 | C25: Fleet Management | D25: =CONCATENATE(B25, " - ", C25) -> 3.1 - Fleet Management
B26: 3.2 | C26: Finance | D26: =CONCATENATE(B26, " - ", C26) -> 3.2 - Finance
B27: 3.3 | C27: Asset Management | D27: 3.3 - Asset Management
B28: 3.4 | C28: Human Resources | D28: 3.4 - Human Resources
B29: 3.5 | C29: Legal Services | D29: 3.5 - Legal Services
B30: 3.6 | C30: Property Services | D30: 3.6 - Property Services
B31: 3.7 | C31: Risk Management | D31: 3.7 - Risk Management
B32: 3.8 | C32: Supply Chain Management | D32: 3.8 - Supply Chain Management
B33: 3.9 | C33: [Name of sub-vote] | D33: 3.9 - [Name of sub-vote]
B34: 3.10 | C34: [Name of sub-vote] | D34: 3.10 - [Name of sub-vote]
B35: Vote 4 | C35: Planning and Development
B36: 4.1 | C36: Town Planning, Building Regulations and Enforcement, and City Engineer | D36: =CONCATENATE(B36, " - ", C36) -> 4.1 - Town Planning, Building Regulations and Enforcement, and City Engineer
B37: 4.2 | C37: Corporate Wide Strategic Planning (IDPs, LEDs) | D37: =CONCATENATE(B37, " - ", C37) -> 4.2 - Corporate Wide Strategic Planning (IDPs, LEDs)
B38: 4.3 | C38: Economic Development/Planning | D38: 4.3 - Economic Development/Planning
B39: 4.4 | C39: Project Management Unit | D39: 4.4 - Project Management Unit
B40: 4.5 | C40: [Name of sub-vote] | D40: 4.5 - [Name of sub-vote]
B41: 4.6 | C41: [Name of sub-vote] | D41: 4.6 - [Name of sub-vote]
B42: 4.7 | C42: [Name of sub-vote] | D42: 4.7 - [Name of sub-vote]
B43: 4.8 | C43: [Name of sub-vote] | D43: 4.8 - [Name of sub-vote]
B44: 4.9 | C44: [Name of sub-vote] | D44: 4.9 - [Name of sub-vote]
B45: 4.10 | C45: [Name of sub-vote] | D45: 4.10 - [Name of sub-vote]
B46: Vote 5 | C46: Executive & Council
B47: 5.1 | C47: Municipal Manager, Town Secretary and Chief Executive | D47: =CONCATENATE(B47, " - ", C47) -> 5.1 - Municipal Manager, Town Secretary and Chief Executive
B48: 5.2 | C48: Mayor and Council | D48: =CONCATENATE(B48, " - ", C48) -> 5.2 - Mayor and Council
B49: 5.3 | C49: [Name of sub-vote] | D49: 5.3 - [Name of sub-vote]
B50: 5.4 | C50: [Name of sub-vote] | D50: 5.4 - [Name of sub-vote]
B51: 5.5 | C51: [Name of sub-vote] | D51: 5.5 - [Name of sub-vote]
B52: 5.6 | C52: [Name of sub-vote] | D52: 5.6 - [Name of sub-vote]
B53: 5.7 | C53: [Name of sub-vote] | D53: 5.7 - [Name of sub-vote]
B54: 5.8 | C54: [Name of sub-vote] | D54: 5.8 - [Name of sub-vote]
B55: 5.9 | C55: [Name of sub-vote] | D55: 5.9 - [Name of sub-vote]
B56: 5.10 | C56: [Name of sub-vote] | D56: 5.10 - [Name of sub-vote]
B57: Vote 6 | C57: Internal Audit
B58: 6.1 | C58: Governance Function | D58: =CONCATENATE(B58, " - ", C58) -> 6.1 - Governance Function
B59: 6.2 | C59: [Name of sub-vote] | D59: =CONCATENATE(B59, " - ", C59) -> 6.2 - [Name of sub-vote]
B60: 6.3 | C60: [Name of sub-vote] | D60: 6.3 - [Name of sub-vote]
B61: 6.4 | C61: [Name of sub-vote] | D61: 6.4 - [Name of sub-vote]
B62: 6.5 | C62: [Name of sub-vote] | D62: 6.5 - [Name of sub-vote]
B63: 6.6 | C63: [Name of sub-vote] | D63: 6.6 - [Name of sub-vote]
B64: 6.7 | C64: [Name of sub-vote] | D64: 6.7 - [Name of sub-vote]
B65: 6.8 | C65: [Name of sub-vote] | D65: 6.8 - [Name of sub-vote]
B66: 6.9 | C66: [Name of sub-vote] | D66: 6.9 - [Name of sub-vote]
B67: 6.10 | C67: [Name of sub-vote] | D67: 6.10 - [Name of sub-vote]
B68: Vote 7 | C68: Road Transport
B69: 7.1 | C69: Taxi Ranks | D69: =CONCATENATE(B69, " - ", C69) -> 7.1 - Taxi Ranks
B70: 7.2 | C70: Road and Traffic Regulation | D70: =CONCATENATE(B70, " - ", C70) -> 7.2 - Road and Traffic Regulation
B71: 7.3 | C71: Public Transport | D71: 7.3 - Public Transport
B72: 7.4 | C72: Roads | D72: 7.4 - Roads
B73: 7.5 | C73: [Name of sub-vote] | D73: 7.5 - [Name of sub-vote]
B74: 7.6 | C74: [Name of sub-vote] | D74: 7.6 - [Name of sub-vote]
B75: 7.7 | C75: [Name of sub-vote] | D75: 7.7 - [Name of sub-vote]
B76: 7.8 | C76: [Name of sub-vote] | D76: 7.8 - [Name of sub-vote]
B77: 7.9 | C77: [Name of sub-vote] | D77: 7.9 - [Name of sub-vote]
B78: 7.10 | C78: [Name of sub-vote] | D78: 7.10 - [Name of sub-vote]
B79: Vote 8 | C79: Public Safety
B80: 8.1 | C80: Cleansing | D80: =CONCATENATE(B80, " - ", C80) -> 8.1 - Cleansing
B81: 8.2 | C81: Fencing and Fences | D81: =CONCATENATE(B81, " - ", C81) -> 8.2 - Fencing and Fences
B82: 8.3 | C82: [Name of sub-vote] | D82: 8.3 - [Name of sub-vote]
B83: 8.4 | C83: [Name of sub-vote] | D83: 8.4 - [Name of sub-vote]
B84: 8.5 | C84: [Name of sub-vote] | D84: 8.5 - [Name of sub-vote]
B85: 8.6 | C85: [Name of sub-vote] | D85: 8.6 - [Name of sub-vote]
B86: 8.7 | C86: [Name of sub-vote] | D86: 8.7 - [Name of sub-vote]
B87: 8.8 | C87: [Name of sub-vote] | D87: 8.8 - [Name of sub-vote]
B88: 8.9 | C88: [Name of sub-vote] | D88: 8.9 - [Name of sub-vote]
B89: 8.10 | C89: [Name of sub-vote] | D89: 8.10 - [Name of sub-vote]
B90: Vote 9 | C90: Waste Management
B91: 9.1 | C91: Recycling | D91: =CONCATENATE(B91, " - ", C91) -> 9.1 - Recycling
B92: 9.2 | C92: Solid Waste Disposal (Landfill Sites) | D92: =CONCATENATE(B92, " - ", C92) -> 9.2 - Solid Waste Disposal (Landfill Sites)
B93: 9.3 | C93: Solid Waste Removal | D93: 9.3 - Solid Waste Removal
B94: 9.4 | C94: [Name of sub-vote] | D94: 9.4 - [Name of sub-vote]
B95: 9.5 | C95: [Name of sub-vote] | D95: 9.5 - [Name of sub-vote]
B96: 9.6 | C96: [Name of sub-vote] | D96: 9.6 - [Name of sub-vote]
B97: 9.7 | C97: [Name of sub-vote] | D97: 9.7 - [Name of sub-vote]
B98: 9.8 | C98: [Name of sub-vote] | D98: 9.8 - [Name of sub-vote]
B99: 9.9 | C99: [Name of sub-vote] | D99: 9.9 - [Name of sub-vote]
B100: 9.10 | C100: [Name of sub-vote] | D100: 9.10 - [Name of sub-vote]
B101: Vote 10 | C101: Sports & Recreation
B102: 10.1 | C102: Recreational Facilities | D102: =CONCATENATE(B102, " - ", C102) -> 10.1 - Recreational Facilities
B103: 10.2 | C103: Sports Grounds and Stadiums | D103: =CONCATENATE(B103, " - ", C103) -> 10.2 - Sports Grounds and Stadiums
B104: 10.3 | C104: [Name of sub-vote] | D104: 10.3 - [Name of sub-vote]
B105: 10.4 | C105: [Name of sub-vote] | D105: 10.4 - [Name of sub-vote]
B106: 10.5 | C106: [Name of sub-vote] | D106: 10.5 - [Name of sub-vote]
B107: 10.6 | C107: [Name of sub-vote] | D107: 10.6 - [Name of sub-vote]
B108: 10.7 | C108: [Name of sub-vote] | D108: 10.7 - [Name of sub-vote]
B109: 10.8 | C109: [Name of sub-vote] | D109: 10.8 - [Name of sub-vote]
B110: 10.9 | C110: [Name of sub-vote] | D110: 10.9 - [Name of sub-vote]
B111: 10.10 | C111: [Name of sub-vote] | D111: 10.10 - [Name of sub-vote]
B112: Vote 11 | C112: Water Management
B113: 11.1 | C113: Water Distribution | D113: =CONCATENATE(B113, " - ", C113) -> 11.1 - Water Distribution
B114: 11.2 | C114: [Name of sub-vote] | D114: =CONCATENATE(B114, " - ", C114) -> 11.2 - [Name of sub-vote]
B115: 11.3 | C115: [Name of sub-vote] | D115: 11.3 - [Name of sub-vote]
B116: 11.4 | C116: [Name of sub-vote] | D116: 11.4 - [Name of sub-vote]
B117: 11.5 | C117: [Name of sub-vote] | D117: 11.5 - [Name of sub-vote]
B118: 11.6 | C118: [Name of sub-vote] | D118: 11.6 - [Name of sub-vote]
B119: 11.7 | C119: [Name of sub-vote] | D119: 11.7 - [Name of sub-vote]
B120: 11.8 | C120: [Name of sub-vote] | D120: 11.8 - [Name of sub-vote]
B121: 11.9 | C121: [Name of sub-vote] | D121: 11.9 - [Name of sub-vote]
B122: 11.10 | C122: [Name of sub-vote] | D122: 11.10 - [Name of sub-vote]
B123: Vote 12 | C123: Waste Water Management
B124: 12.1 | C124: Sewerage | D124: =CONCATENATE(B124, " - ", C124) -> 12.1 - Sewerage
B125: 12.2 | C125: [Name of sub-vote] | D125: =CONCATENATE(B125, " - ", C125) -> 12.2 - [Name of sub-vote]
B126: 12.3 | C126: [Name of sub-vote] | D126: 12.3 - [Name of sub-vote]
B127: 12.4 | C127: [Name of sub-vote] | D127: 12.4 - [Name of sub-vote]
B128: 12.5 | C128: [Name of sub-vote] | D128: 12.5 - [Name of sub-vote]
B129: 12.6 | C129: [Name of sub-vote] | D129: 12.6 - [Name of sub-vote]
B130: 12.7 | C130: [Name of sub-vote] | D130: 12.7 - [Name of sub-vote]
B131: 12.8 | C131: [Name of sub-vote] | D131: 12.8 - [Name of sub-vote]
B132: 12.9 | C132: [Name of sub-vote] | D132: 12.9 - [Name of sub-vote]
B133: 12.10 | C133: [Name of sub-vote] | D133: 12.10 - [Name of sub-vote]
B134: Vote 13 | C134: Housing
B135: 13.1 | C135: Housing | D135: =CONCATENATE(B135, " - ", C135) -> 13.1 - Housing
B136: 13.2 | C136: [Name of sub-vote] | D136: =CONCATENATE(B136, " - ", C136) -> 13.2 - [Name of sub-vote]
B137: 13.3 | C137: [Name of sub-vote] | D137: 13.3 - [Name of sub-vote]
B138: 13.4 | C138: [Name of sub-vote] | D138: 13.4 - [Name of sub-vote]
B139: 13.5 | C139: [Name of sub-vote] | D139: 13.5 - [Name of sub-vote]
B140: 13.6 | C140: [Name of sub-vote] | D140: 13.6 - [Name of sub-vote]
B141: 13.7 | C141: [Name of sub-vote] | D141: 13.7 - [Name of sub-vote]
B142: 13.8 | C142: [Name of sub-vote] | D142: 13.8 - [Name of sub-vote]
B143: 13.9 | C143: [Name of sub-vote] | D143: 13.9 - [Name of sub-vote]
B144: 13.10 | C144: [Name of sub-vote] | D144: 13.10 - [Name of sub-vote]
B145: Vote 14 | C145: Finance & Administration
B146: 14.1 | C146: Security Services | D146: =CONCATENATE(B146, " - ", C146) -> 14.1 - Security Services
B147: 14.2 | C147: Administrative and Corporate Support | D147: =CONCATENATE(B147, " - ", C147) -> 14.2 - Administrative and Corporate Support
B148: 14.3 | C148: Information Technology | D148: 14.3 - Information Technology
B149: 14.4 | C149: [Name of sub-vote] | D149: 14.4 - [Name of sub-vote]
B150: 14.5 | C150: [Name of sub-vote] | D150: 14.5 - [Name of sub-vote]
B151: 14.6 | C151: [Name of sub-vote] | D151: 14.6 - [Name of sub-vote]
B152: 14.7 | C152: [Name of sub-vote] | D152: 14.7 - [Name of sub-vote]
B153: 14.8 | C153: [Name of sub-vote] | D153: 14.8 - [Name of sub-vote]
B154: 14.9 | C154: [Name of sub-vote] | D154: 14.9 - [Name of sub-vote]
B155: 14.10 | C155: [Name of sub-vote] | D155: 14.10 - [Name of sub-vote]
B156: Vote 15 | C156: [NAME OF VOTE 5]
B157: 15.1 | C157: [Name of sub-vote] | D157: =CONCATENATE(B157, " - ", C157) -> 15.1 - [Name of sub-vote]
B158: 15.2 | C158: [Name of sub-vote] | D158: =CONCATENATE(B158, " - ", C158) -> 15.2 - [Name of sub-vote]
B159: 15.3 | C159: [Name of sub-vote] | D159: 15.3 - [Name of sub-vote]
B160: 15.4 | C160: [Name of sub-vote] | D160: 15.4 - [Name of sub-vote]
B161: 15.5 | C161: [Name of sub-vote] | D161: 15.5 - [Name of sub-vote]
B162: 15.6 | C162: [Name of sub-vote] | D162: 15.6 - [Name of sub-vote]
B163: 15.7 | C163: [Name of sub-vote] | D163: 15.7 - [Name of sub-vote]
B164: 15.8 | C164: [Name of sub-vote] | D164: 15.8 - [Name of sub-vote]
B165: 15.9 | C165: [Name of sub-vote] | D165: 15.9 - [Name of sub-vote]
B166: 15.10 | C166: [Name of sub-vote] | D166: 15.10 - [Name of sub-vote]

Sheet Contacts
A1: =muni&" - "&" Contact Information" -> LIM331 Greater Giyani - Contact Information
A3: A. GENERAL INFORMATION
A4: Municipality | B4: =muni -> LIM331 Greater Giyani | C4: Set name on 'Instructions' sheet
A6: Grade | B6: 3 | C6: 1 Grade in terms of the Remuneration of Public Office Bearers Act.
A8: Province | B8: =IF(B4>" ",VLOOKUP(B4,'Lookup and lists'!B28:C311,2, FALSE)," ") -> LIM LIMPOPO
A10: Web Address | B10: www.greatergiyani.gov.za
A12: e-mail Address | B12: Chaukemm@greatergiyani.gov.za
A14: B. CONTACT INFORMATION
A15: Postal address:
A16: P.O. Box | B16: Private Bag x 9559
A17: City / Town | B17: Giyani
A18: Postal Code | B18: 826
A20: Street address
A21: Building | B21: Greater Giyani Municipality
A22: Street No. & Name | B22: BA 59 CIVIC CENTRE
A23: City / Town | B23: GIYANI
A24: Postal Code | B24: 826
A26: General Contacts
A27: Telephone number | B27: 015 811 5500
A28: Fax number | B28: 015 812 0268
A30: C. POLITICAL LEADERSHIP
A31: Speaker: | C31: Secretary/PA to the Speaker:
A32: ID Number | B32: 730310 5337 084' | C32: ID Number | D32: 750303 1090 083
A33: Title | B33: Mr | C33: Title | D33: Mrs
A34: Name | B34: MP HLUGWANI | C34: Name | D34: B S NOVELA
A35: Telephone number | B35: 015 811 5500 | C35: Telephone number | D35: 015 811 5551
A36: Cell number | B36: 083 748 5962 | C36: Cell number | D36: 076 812 6319
A37: Fax number | B37: 015 812 0268 | C37: Fax number | D37: 086 766 9371
A38: E-mail address | B38: hlugwanimp@greatergiyani.gov.za | C38: E-mail address | D38: chabalalasb@greatergiyani.gov.za
A40: Mayor/Executive Mayor: | C40: Secretary/PA to the Mayor/Executive Mayor:
A41: ID Number | B41: 710602 0422 083 | C41: ID Number | D41: 850620 0671 087
A42: Title | B42: Mrs | C42: Title | D42: Mrs
A43: Name | B43: BA SHIVAMBU | C43: Name | D43: M H MABASA
A44: Telephone number | B44: 015 811 5500 | C44: Telephone number | D44: 015 811 5500
A45: Cell number | B45: 078 906 1676 | C45: Cell number | D45: 078 698 0156
A46: Fax number | B46: 015 812 0268 | C46: Fax number | D46: 015 812 0268
A47: E-mail address | B47: shivambuba@greatergiyani.gov.za | C47: E-mail address | D47: mabasamh@greatergiyani.gov.za
A49: Deputy Mayor/Executive Mayor: | C49: Secretary/PA to the Deputy Mayor/Executive Mayor:
A50: ID Number | C50: ID Number
A51: Title | C51: Title
A52: Name | C52: Name
A53: Telephone number | C53: Telephone number
A54: Cell number | C54: Cell number
A55: Fax number | C55: Fax number
A56: E-mail address | C56: E-mail address
A58: D. MANAGEMENT LEADERSHIP
A59: Municipal Manager: | C59: Secretary/PA to the Municipal Manager:
A60: ID Number | B60: 751115 5310 088 | C60: ID Number | D60: 800310 0995 089
A61: Title | B61: Mr | C61: Title | D61: Ms
A62: Name | B62: MM CHAUKE | C62: Name | D62: R B NGUNYULE
A63: Telephone number | B63: 015 811 5541 | C63: Telephone number | D63: 015 811 5542
A64: Cell number | B64: 083 275 6934 | C64: Cell number | D64: 076 812 6020
A65: Fax number | B65: 015 812 0268 | C65: Fax number | D65: 015 812 0268
A66: E-mail address | B66: ChaukeMM@greatergiyani.gov.za | C66: E-mail address | D66: ngunyulerb@greatergiyani.gov.za
A68: Chief Financial Officer | C68: Secretary/PA to the Chief Financial Officer
A69: ID Number | B69: 870403 5565 083 | C69: ID Number | D69: 810725 0771 081
A70: Title | B70: Mr | C70: Title | D70: Mrs
A71: Name | B71: NKUNA F | C71: Name | D71: MP Hlengani
A72: Telephone number | B72: 015 811 5612 | C72: Telephone number | D72: 015 811 5594
A73: Cell number | B73: 065 103 1395 | C73: Cell number | D73: 076 522 6432
A74: Fax number | B74: 015 811 0268 | C74: Fax number | D74: 015 812 0622
A75: E-mail address | B75: nkunaf@greatergiyani.gov.za | C75: E-mail address | D75: hlenganimp@greatergiyani.gov.za
A77: Official responsible for submitting financial information | C77: Official responsible for submitting financial information
A78: ID Number | B78: 820916 0951 082 | C78: ID Number | D78: 870714 5666 089
A79: Title | B79: Mrs | C79: Title | D79: Mr
A80: Name | B80: N Mashau | C80: Name | D80: M W Maswanganyi
A81: Telephone number | B81: 015 811 5520 | C81: Telephone number | D81: 015 811 5606
A82: Cell number | B82: 076 522 0295 | C82: Cell number | D82: 073 952 2170
A83: Fax number | B83: 086 759 8942 | C83: Fax number | D83: 015 812 0268
A84: E-mail address | B84: mashaun@greatergiyani.gov.za | C84: E-mail address | D84: maswanganyiw@greatergiyani.gov.za
A85: Official responsible for submitting financial information | C85: Official responsible for submitting financial information
A86: ID Number | C86: ID Number
A87: Title | C87: Title
A88: Name | C88: Name
A89: Telephone number | C89: Telephone number
A90: Cell number | C90: Cell number
A91: Fax number | C91: Fax number
A92: E-mail address | C92: E-mail address
A93: Official responsible for submitting financial information | C93: Official responsible for submitting financial information
A94: ID Number | C94: ID Number
A95: Title | C95: Title
A96: Name | C96: Name
A97: Telephone number | C97: Telephone number
A98: Cell number | C98: Cell number
A99: Fax number | C99: Fax number
A100: E-mail address | C100: E-mail address
A101: Official responsible for submitting financial information | C101: Official responsible for submitting financial information
A102: ID Number | C102: ID Number
A103: Title | C103: Title
A104: Name | C104: Name
A105: Telephone number | C105: Telephone number
A106: Cell number | C106: Cell number
A107: Fax number | C107: Fax number
A108: E-mail address | C108: E-mail address
A109: Official responsible for submitting financial information | C109: Official responsible for submitting financial information
A110: ID Number | C110: ID Number
A111: Title | C111: Title
A112: Name | C112: Name
A113: Telephone number | C113: Telephone number
A114: Cell number | C114: Cell number
A115: Fax number | C115: Fax number
A116: E-mail address | C116: E-mail address
A117: Official responsible for submitting financial information | C117: Official responsible for submitting financial information
A118: ID Number | C118: ID Number
A119: Title | C119: Title
A120: Name | C120: Name
A121: Telephone number | C121: Telephone number
A122: Cell number | C122: Cell number
A123: Fax number | C123: Fax number
A124: E-mail address | C124: E-mail address
A125: Official responsible for submitting financial information | C125: Official responsible for submitting financial information
A126: ID Number | C126: ID Number
A127: Title | C127: Title
A128: Name | C128: Name
A129: Telephone number | C129: Telephone number
A130: Cell number | C130: Cell number
A131: Fax number | C131: Fax number
A132: E-mail address | C132: E-mail address
A133: Official responsible for submitting financial information
A134: ID Number
A135: Title
A136: Name
A137: Telephone number
A138: Cell number
A139: Fax number
A140: E-mail address

Sheet C1-Sum
A1: =muni& " - "&s71sum& " - "&date -> LIM331 Greater Giyani - Table C1 Monthly Budget Statement Summary - M04 October
A2: =desc -> Description | B2: =Head1 -> 2018/19 | C2: =Head2 -> Budget Year 2019/20
B3: =Head5 -> Audited Outcome | C3: =Head6 -> Original Budget | D3: =Head7 -> Adjusted Budget | E3: =Head38 -> Monthly actual | F3: =Head39 -> YearTD actual | G3: =Head40 -> YearTD budget | H3: =Head41 -> YTD variance | I3: =Head41 -> YTD variance | J3: =Head8 -> Full Year Forecast
A4: R thousands | I4: %
A5: Financial Performance
A6: Property rates | B6: =SUM('C4-FinPerf RE'!C6:C6) -> 40659276.99 | C6: =SUM('C4-FinPerf RE'!D6:D6) -> 39976000 | D6: =SUM('C4-FinPerf RE'!E6:E6) -> 0 | E6: =SUM('C4-FinPerf RE'!F6:F6) -> 4331920.56 | F6: =SUM('C4-FinPerf RE'!G6:G6) -> 17118792.67 | G6: =SUM('C4-FinPerf RE'!H6:H6) -> 13325333.4 | H6: =F6-G6 -> 3793459.27 | I6: =IF(H6=0,"",H6/G6) -> 0.284680252 | J6: =SUM('C4-FinPerf RE'!K6:K6) -> 39976000
A7: Service charges | B7: =SUM('C4-FinPerf RE'!C7:C10) -> 4477862.14 | C7: =SUM('C4-FinPerf RE'!D7:D10) -> 5400000 | D7: =SUM('C4-FinPerf RE'!E7:E10) -> 0 | E7: =SUM('C4-FinPerf RE'!F7:F10) -> 407253.03 | F7: =SUM('C4-FinPerf RE'!G7:G10) -> 1628887.85 | G7: =SUM('C4-FinPerf RE'!H7:H10) -> 1800000 | H7: =F7-G7 -> -171112.15 | I7: =IF(H7=0,"",H7/G7) -> -0.09506230556 | J7: =SUM('C4-FinPerf RE'!K7:K10) -> 5400000
A8: Investment revenue | B8: ='C4-FinPerf RE'!C13 -> 5234951.38 | C8: ='C4-FinPerf RE'!D13 -> 5000000 | D8: ='C4-FinPerf RE'!E13 -> 0 | E8: ='C4-FinPerf RE'!F13 -> 596212.68 | F8: ='C4-FinPerf RE'!G13 -> 2316870.21 | G8: ='C4-FinPerf RE'!H13 -> 1666666.68 | H8: =F8-G8 -> 650203.53 | I8: =IF(H8=0,"",H8/G8) -> 0.3901221149 | J8: ='C4-FinPerf RE'!K13 -> 5000000
A9: Transfers and subsidies | B9: ='C4-FinPerf RE'!C19 -> 259208395.2 | C9: ='C4-FinPerf RE'!D19 -> 303024000 | D9: ='C4-FinPerf RE'!E19 -> 0 | E9: ='C4-FinPerf RE'!F19 -> 0 | F9: ='C4-FinPerf RE'!G19 -> 126660000 | G9: ='C4-FinPerf RE'!H19 -> 101008000 | H9: =F9-G9 -> 25652000 | I9: =IF(H9=0,"",H9/G9) -> 0.2539600824 | J9: ='C4-FinPerf RE'!K19 -> 303024000
A10: Other own revenue | B10: ='C4-FinPerf RE'!C12+'C4-FinPerf RE'!C14+'C4-FinPerf RE'!C15+'C4-FinPerf RE'!C16+'C4-FinPerf RE'!C17+'C4-FinPerf RE'!C18+'C4-FinPerf RE'!C20+'C4-FinPerf RE'!C21 -> 36596611.49 | C10: ='C4-FinPerf RE'!D12+'C4-FinPerf RE'!D14+'C4-FinPerf RE'!D15+'C4-FinPerf RE'!D16+'C4-FinPerf RE'!D17+'C4-FinPerf RE'!D18+'C4-FinPerf RE'!D20+'C4-FinPerf RE'!D21 -> 22973000 | D10: ='C4-FinPerf RE'!E12+'C4-FinPerf RE'!E14+'C4-FinPerf RE'!E15+'C4-FinPerf RE'!E16+'C4-FinPerf RE'!E17+'C4-FinPerf RE'!E18+'C4-FinPerf RE'!E20+'C4-FinPerf RE'!E21 -> 0 | E10: ='C4-FinPerf RE'!F12+'C4-FinPerf RE'!F14+'C4-FinPerf RE'!F15+'C4-FinPerf RE'!F16+'C4-FinPerf RE'!F17+'C4-FinPerf RE'!F18+'C4-FinPerf RE'!F20+'C4-FinPerf RE'!F21 -> 4142379.68 | F10: ='C4-FinPerf RE'!G12+'C4-FinPerf RE'!G14+'C4-FinPerf RE'!G15+'C4-FinPerf RE'!G16+'C4-FinPerf RE'!G17+'C4-FinPerf RE'!G18+'C4-FinPerf RE'!G20+'C4-FinPerf RE'!G21 -> 13971949.73 | G10: ='C4-FinPerf RE'!H12+'C4-FinPerf RE'!H14+'C4-FinPerf RE'!H15+'C4-FinPerf RE'!H16+'C4-FinPerf RE'!H17+'C4-FinPerf RE'!H18+'C4-FinPerf RE'!H20+'C4-FinPerf RE'!H21 -> 7657666.72 | H10: =F10-G10 -> 6314283.01 | I10: =IF(H10=0,"",H10/G10) -> 0.8245700996 | J10: ='C4-FinPerf RE'!K12+'C4-FinPerf RE'!K14+'C4-FinPerf RE'!K15+'C4-FinPerf RE'!K16+'C4-FinPerf RE'!K17+'C4-FinPerf RE'!K18+'C4-FinPerf RE'!K20+'C4-FinPerf RE'!K21 -> 22973000
A11: Total Revenue (excluding capital transfers and contributions) | B11: =SUM(B6:B10) -> 346177097.2 | C11: 376373000 | D11: 0 | E11: 9477765.95 | F11: 161696500.5 | G11: 125457666.8 | H11: =F11-G11 -> 36238833.66 | I11: =IF(H11=0,"",H11/G11) -> 0.2888530816 | J11: 376373000
A12: Employee costs | B12: ='C4-FinPerf RE'!C25 -> 130474394.1 | C12: ='C4-FinPerf RE'!D25 -> 164551019.8 | D12: ='C4-FinPerf RE'!E25 -> 0 | E12: ='C4-FinPerf RE'!F25 -> 11491048.49 | F12: ='C4-FinPerf RE'!G25 -> 44579392.31 | G12: ='C4-FinPerf RE'!H25 -> 54850339.95 | H12: -10270947.64 | I12: -0.1872540379 | J12: ='C4-FinPerf RE'!K25 -> 164551019.8
A13: Remuneration of Councillors | B13: ='C4-FinPerf RE'!C26 -> 22755072.12 | C13: ='C4-FinPerf RE'!D26 -> 23922552.37 | D13: ='C4-FinPerf RE'!E26 -> 0 | E13: ='C4-FinPerf RE'!F26 -> 1952435.49 | F13: ='C4-FinPerf RE'!G26 -> 7631869 | G13: ='C4-FinPerf RE'!H26 -> 7974184.123 | H13: -342315.1233 | I13: -0.04292791815 | J13: ='C4-FinPerf RE'!K26 -> 23922552.37
A14: Depreciation & asset impairment | B14: ='C4-FinPerf RE'!C28 -> 86419067.38 | C14: ='C4-FinPerf RE'!D28 -> 30000000 | D14: ='C4-FinPerf RE'!E28 -> 0 | E14: ='C4-FinPerf RE'!F28 -> 0 | F14: ='C4-FinPerf RE'!G28 -> 0 | G14: ='C4-FinPerf RE'!H28 -> 10000000 | H14: -10000000 | I14: -1 | J14: ='C4-FinPerf RE'!K28 -> 30000000
A15: Finance charges | B15: ='C4-FinPerf RE'!C29 -> 294856.32 | C15: ='C4-FinPerf RE'!D29 -> 0 | D15: ='C4-FinPerf RE'!E29 -> 0 | E15: ='C4-FinPerf RE'!F29 -> 0 | F15: ='C4-FinPerf RE'!G29 -> 0 | G15: ='C4-FinPerf RE'!H29 -> 0 | H15: 0 | J15: ='C4-FinPerf RE'!K29 -> 0
A16: Materials and bulk purchases | B16: =SUM('C4-FinPerf RE'!C30:C31) -> 4680660.95 | C16: =SUM('C4-FinPerf RE'!D30:D31) -> 9000000 | D16: =SUM('C4-FinPerf RE'!E30:E31) -> 0 | E16: =SUM('C4-FinPerf RE'!F30:F31) -> 129443.51 | F16: =SUM('C4-FinPerf RE'!G30:G31) -> 1835755.67 | G16: =SUM('C4-FinPerf RE'!H30:H31) -> 3000000 | H16: -1164244.33 | I16: -0.3880814433 | J16: =SUM('C4-FinPerf RE'!K30:K31) -> 9000000
A17: Transfers and subsidies | B17: ='C4-FinPerf RE'!C33 -> 22363.95 | C17: ='C4-FinPerf RE'!D33 -> 1000000 | D17: ='C4-FinPerf RE'!E33 -> 0 | E17: ='C4-FinPerf RE'!F33 -> 0 | F17: ='C4-FinPerf RE'!G33 -> 0 | G17: ='C4-FinPerf RE'!H33 -> 333333.3333 | H17: -333333.3333 | I17: -1 | J17: ='C4-FinPerf RE'!K33 -> 1000000
A18: Other expenditure | B18: ='C4-FinPerf RE'!C36-SUM('C1-Sum'!B12:B17) -> 146392539.2 | C18: ='C4-FinPerf RE'!D36-SUM('C1-Sum'!C12:C17) -> 143717167.2 | D18: ='C4-FinPerf RE'!E36-SUM('C1-Sum'!D12:D17) -> 0 | E18: ='C4-FinPerf RE'!F36-SUM('C1-Sum'!E12:E17) -> 7591595.84 | F18: ='C4-FinPerf RE'!G36-SUM('C1-Sum'!F12:F17) -> 23210641.15 | G18: ='C4-FinPerf RE'!H36-SUM('C1-Sum'!G12:G17) -> 47905722.41 | H18: -24695081.26 | I18: -0.5154933486 | J18: ='C4-FinPerf RE'!K36-SUM('C1-Sum'!J12:J17) -> 143717167.2
A19: Total Expenditure | B19: =SUM(B12:B18) -> 391038954 | C19: 372190739.4 | D19: 0 | E19: 21164523.33 | F19: 77257658.13 | G19: 124063579.8 | H19: -46805921.68 | I19: -0.3772736669 | J19: =SUM(J12:J18) -> 372190739.4
A20: Surplus/(Deficit) | B20: =B11-B19 -> -44861856.76 | C20: 4182260.56 | D20: 0 | E20: -11686757.38 | F20: 84438842.33 | G20: 1394086.987 | H20: 83044755.34 | I20: 59.56927806 | J20: =J11-J19 -> 4182260.56
A21: ='C4-FinPerf RE'!A39 -> Transfers and subsidies - capital (monetary allocations) (National / Provincial and District) | B21: ='C4-FinPerf RE'!C39 -> 73177035 | C21: ='C4-FinPerf RE'!D39 -> 60688000 | D21: ='C4-FinPerf RE'!E39 -> 0 | E21: ='C4-FinPerf RE'!F39 -> 0 | F21: ='C4-FinPerf RE'!G39 -> 24275000 | G21: ='C4-FinPerf RE'!H39 -> 20229333 | H21: 4045667 | I21: 0.1999901331 | J21: ='C4-FinPerf RE'!K39 -> 60688000
A22: Contributions & Contributed assets | B22: =SUM('C4-FinPerf RE'!C40:C41) -> 0 | C22: =SUM('C4-FinPerf RE'!D40:D41) -> 0 | D22: =SUM('C4-FinPerf RE'!E40:E41) -> 0 | E22: =SUM('C4-FinPerf RE'!F40:F41) -> 0 | F22: =SUM('C4-FinPerf RE'!G40:G41) -> 0 | G22: =SUM('C4-FinPerf RE'!H40:H41) -> 0 | H22: 0 | J22: =SUM('C4-FinPerf RE'!K40:K41) -> 0
A23: Surplus/(Deficit) after capital transfers & contributions | B23: =B20+B21+B22 -> 28315178.24 | C23: 64870260.56 | D23: 0 | E23: -11686757.38 | F23: 108713842.3 | G23: 21623419.99 | H23: 87090422.34 | I23: 4.02759704 | J23: =J20+J21+J22 -> 64870260.56
A24: Share of surplus/ (deficit) of associate | B24: ='C4-FinPerf RE'!C47 -> 0 | C24: ='C4-FinPerf RE'!D47 -> 0 | D24: ='C4-FinPerf RE'!E47 -> 0 | E24: ='C4-FinPerf RE'!F47 -> 0 | F24: ='C4-FinPerf RE'!G47 -> 0 | G24: ='C4-FinPerf RE'!H47 -> 0 | H24: 0 | J24: ='C4-FinPerf RE'!K47 -> 0
A25: Surplus/ (Deficit) for the year | B25: =B23+B24 -> 28315178.24 | C25: 64870260.56 | D25: 0 | E25: -11686757.38 | F25: 108713842.3 | G25: 21623419.99 | H25: 87090422.34 | I25: 4.02759704 | J25: =J23+J24 -> 64870260.56
A27: Capital expenditure & funds sources
A28: Capital expenditure | B28: ='C5-Capex'!C40 -> 64464111 | C28: ='C5-Capex'!D40 -> 109870266 | D28: ='C5-Capex'!E40 -> 0 | E28: ='C5-Capex'!F40 -> 12412452.93 | F28: ='C5-Capex'!G40 -> 28937420.25 | G28: ='C5-Capex'!H40 -> 36623422 | H28: =F28-G28 -> -7686001.75 | I28: =IF(H28=0,"",H28/G28) -> -0.2098657452 | J28: ='C5-Capex'!K40 -> 109870266
A29: Capital transfers recognised | B29: ='C5-Capex'!C70 -> 54706118 | C29: ='C5-Capex'!D70 -> 57653600 | D29: ='C5-Capex'!E70 -> 0 | E29: ='C5-Capex'!F70 -> 11543799.17 | F29: ='C5-Capex'!G70 -> 25140338.7 | G29: ='C5-Capex'!H70 -> 19217866.67 | H29: 5922472.033 | I29: 0.3081753108 | J29: ='C5-Capex'!K70 -> 57653600
A31: Borrowing | B31: ='C5-Capex'!C72 -> 0 | C31: ='C5-Capex'!D72 -> 0 | D31: ='C5-Capex'!E72 -> 0 | E31: ='C5-Capex'!F72 -> 0 | F31: ='C5-Capex'!G72 -> 0 | G31: ='C5-Capex'!H72 -> 0 | H31: 0 | J31: ='C5-Capex'!K72 -> 0
A32: Internally generated funds | B32: ='C5-Capex'!C73 -> 9757993 | C32: ='C5-Capex'!D73 -> 52216666 | D32: ='C5-Capex'!E73 -> 0 | E32: ='C5-Capex'!F73 -> 868653.8 | F32: ='C5-Capex'!G73 -> 3797081.59 | G32: ='C5-Capex'!H73 -> 17405555.33 | H32: -13608473.74 | I32: -0.7818465704 | J32: ='C5-Capex'!K73 -> 52216666
A33: Total sources of capital funds | B33: =+B29+B31+B32 -> 64464111 | C33: 109870266 | D33: 0 | E33: 12412452.97 | F33: 28937420.29 | G33: 36623422 | H33: -7686001.71 | I33: -0.2098657441 | J33: =+J29+J31+J32 -> 109870266
A35: Financial position
A36: Total current assets | B36: ='C6-FinPos'!C13 -> 138718609 | C36: ='C6-FinPos'!D13 -> 98835533.6 | D36: ='C6-FinPos'!E13 -> 0 | F36: ='C6-FinPos'!F13 -> 351275625 | J36: ='C6-FinPos'!G13 -> 98835533.6
A37: Total non current assets | B37: ='C6-FinPos'!C25 -> 881304905.1 | C37: ='C6-FinPos'!D25 -> 939655516.9 | D37: ='C6-FinPos'!E25 -> 0 | F37: ='C6-FinPos'!F25 -> 910242326 | J37: ='C6-FinPos'!G25 -> 939655516.9
A38: Total current liabilities | B38: ='C6-FinPos'!C35 -> 74325502 | C38: ='C6-FinPos'!D35 -> 118369347.1 | D38: ='C6-FinPos'!E35 -> 0 | F38: ='C6-FinPos'!F35 -> 287286512 | J38: ='C6-FinPos'!G35 -> 118369347.1
A39: Total non current liabilities | B39: ='C6-FinPos'!C40 -> 50891384.86 | C39: ='C6-FinPos'!D40 -> 0 | D39: ='C6-FinPos'!E40 -> 0 | F39: ='C6-FinPos'!F40 -> 2004646.23 | J39: ='C6-FinPos'!G40 -> 0
A40: Community wealth/Equity | B40: ='C6-FinPos'!C48 -> 894806627 | C40: ='C6-FinPos'!D48 -> 920121703.5 | D40: ='C6-FinPos'!E48 -> 0 | F40: ='C6-FinPos'!F48 -> 972226793 | J40: ='C6-FinPos'!G48 -> 920121703.5
A42: Cash flows
A43: Net cash from (used) operating | B43: ='C7-CFlow'!C18 -> 91383894 | C43: ='C7-CFlow'!D18 -> 91619860.56 | D43: ='C7-CFlow'!E18 -> 0 | E43: ='C7-CFlow'!F18 -> -13327860.14 | F43: ='C7-CFlow'!G18 -> 89300520.87 | G43: ='C7-CFlow'!H18 -> 35190089.08 | H43: =G43-F43 -> -54110431.79 | I43: =IF(H43=0,"",H43/G43) -> -1.53766112 | J43: ='C7-CFlow'!K18 -> 91619860.56
A44: Net cash from (used) investing | B44: ='C7-CFlow'!C28 -> -64464111 | C44: ='C7-CFlow'!D28 -> -109870266 | D44: ='C7-CFlow'!E28 -> 0 | E44: ='C7-CFlow'!F28 -> -12412453.17 | F44: ='C7-CFlow'!G28 -> -28937420.49 | G44: ='C7-CFlow'!H28 -> -33523422.08 | H44: =G44-F44 -> -4586001.59 | I44: =IF(H44=0,"",H44/G44) -> 0.1367999239 | J44: ='C7-CFlow'!K28 -> -109870266
A45: Net cash from (used) financing | B45: ='C7-CFlow'!C37 -> -582652 | C45: ='C7-CFlow'!D37 -> 0 | D45: ='C7-CFlow'!E37 -> 0 | E45: ='C7-CFlow'!F37 -> -533353.51 | F45: ='C7-CFlow'!G37 -> -10662416.41 | G45: ='C7-CFlow'!H37 -> 0 | H45: =G45-F45 -> 10662416.41 | I45: =IF(H45=0,"",H45/G45) ->  | J45: ='C7-CFlow'!K37 -> 0
A46: Cash/cash equivalents at the month/year end | B46: ='C7-CFlow'!C41 -> 26337131 | C46: ='C7-CFlow'!D41 -> 22508894.56 | D46: ='C7-CFlow'!E41 -> 0 | E46: ='C7-CFlow'!F41 -> 0 | F46: ='C7-CFlow'!G41 -> 90459983.97 | G46: ='C7-CFlow'!H41 -> 42425967 | H46: =G46-F46 -> -48034016.97 | I46: =IF(H46=0,"",H46/G46) -> -1.132184376 | J46: ='C7-CFlow'!K41 -> 22508894.56
A48: Debtors & creditors analysis | B48: ='SC3'!C3 -> 0-30 Days | C48: ='SC3'!D3 -> 31-60 Days | D48: ='SC3'!E3 -> 61-90 Days | E48: ='SC3'!F3 -> 91-120 Days | F48: ='SC3'!G3 -> 121-150 Dys | G48: ='SC3'!H3 -> 151-180 Dys | H48: ='SC3'!I3 -> 181 Dys-1 Yr | I48: ='SC3'!J3 -> Over 1Yr | J48: Total
A49: =LEFT('SC3'!A4,20) -> Debtors Age Analysis
A50: ='SC3'!A14 -> Total By Income Source | B50: ='SC3'!C14 -> 4541286.09 | C50: ='SC3'!D14 -> 6104834.36 | D50: ='SC3'!E14 -> 6919746.88 | E50: ='SC3'!F14 -> 5715557.09 | F50: ='SC3'!G14 -> 4560915.63 | G50: ='SC3'!H14 -> 5203587.65 | H50: ='SC3'!I14 -> 30141482.74 | I50: ='SC3'!J14 -> 173697618.2 | J50: ='SC3'!K14 -> 236885028.7
A51: =LEFT('SC4'!A5,22) -> Creditors Age Analysis
A52: Total Creditors | B52: ='SC4'!C15 -> 134621 | C52: ='SC4'!D15 -> 741120 | D52: ='SC4'!E15 -> -787172 | E52: ='SC4'!F15 -> -6648878 | F52: ='SC4'!G15 -> 7436032 | G52: ='SC4'!H15 -> 0 | H52: ='SC4'!I15 -> -22972 | I52: ='SC4'!J15 -> 21129 | J52: ='SC4'!K15 -> 873880

Sheet C2-FinPerf SC
A1: =muni& " - "&S71A& " - "&date -> LIM331 Greater Giyani - Table C2 Monthly Budget Statement - Financial Performance (functional classification) - M04 October
A2: =desc -> Description | B2: =head27 -> Ref | C2: =Head1 -> 2018/19 | D2: =Head2 -> Budget Year 2019/20
C3: =Head5 -> Audited Outcome | D3: =Head6 -> Original Budget | E3: =Head7 -> Adjusted Budget | F3: =Head38 -> Monthly actual | G3: =Head39 -> YearTD actual | H3: =Head40 -> YearTD budget | I3: =Head41 -> YTD variance | J3: =Head41 -> YTD variance | K3: =Head8 -> Full Year Forecast
A4: R thousands | B4: 1 | J4: %
A5: Revenue - Functional
A6: Governance and administration | C6: =SUM(C7:C9) -> 392363641.3 | D6: 413436000 | E6: 0 | F6: 7211311.37 | G6: 179343195.4 | H6: 137812000 | I6: =G6-H6 -> 41531195.4 | J6: =IF(I6=0,"",I6/H6) -> 0.3013612414 | K6: =SUM(K7:K9) -> 413436000
A7: Executive and council | C7: ='C2C'!C7 -> 0 | D7: ='C2C'!D7 -> 0 | E7: ='C2C'!E7 -> 0 | F7: ='C2C'!F7 -> 0 | G7: ='C2C'!G7 -> 0 | H7: ='C2C'!H7 -> 0 | I7: 0 | J7: =IF(I7=0,"",I7/H7) ->  | K7: ='C2C'!K7 -> 0
A8: Finance and administration | C8: ='C2C'!C10 -> 392363641.3 | D8: ='C2C'!D10 -> 413436000 | E8: ='C2C'!E10 -> 0 | F8: ='C2C'!F10 -> 7211311.37 | G8: ='C2C'!G10 -> 179343195.4 | H8: ='C2C'!H10 -> 137812000 | I8: 41531195.4 | J8: 0.3013612414 | K8: ='C2C'!K10 -> 413436000
A9: Internal audit | C9: ='C2C'!C24 -> 0 | D9: ='C2C'!D24 -> 0 | E9: ='C2C'!E24 -> 0 | F9: ='C2C'!F24 -> 0 | G9: ='C2C'!G24 -> 0 | H9: ='C2C'!H24 -> 0 | I9: 0 | K9: ='C2C'!K24 -> 0
A10: Community and public safety | C10: =SUM(C11:C15) -> 1252111.61 | D10: 1543000 | E10: 0 | F10: 93555 | G10: 487279.4 | H10: 514333.3333 | I10: -27053.93333 | J10: -0.0526 | K10: =SUM(K11:K15) -> 1543000
A11: Community and social services | C11: ='C2C'!C27 -> 449493.35 | D11: ='C2C'!D27 -> 623000 | E11: ='C2C'!E27 -> 0 | F11: ='C2C'!F27 -> 31389.34 | G11: ='C2C'!G27 -> 139094.15 | H11: ='C2C'!H27 -> 207666.6667 | I11: -68572.51667 | J11: -0.3302047352 | K11: ='C2C'!K27 -> 623000
A12: Sport and recreation | C12: ='C2C'!C49 -> 194131.39 | D12: ='C2C'!D49 -> 220000 | E12: ='C2C'!E49 -> 0 | F12: ='C2C'!F49 -> 1339.14 | G12: ='C2C'!G49 -> 105008.73 | H12: ='C2C'!H49 -> 73333.33333 | I12: 31675.39667 | J12: 0.4319372273 | K12: ='C2C'!K49 -> 220000
A13: Public safety | C13: ='C2C'!C55 -> 0 | D13: ='C2C'!D55 -> 0 | E13: ='C2C'!E55 -> 0 | F13: ='C2C'!F55 -> 0 | G13: ='C2C'!G55 -> 0 | H13: ='C2C'!H55 -> 0 | I13: 0 | K13: ='C2C'!K55 -> 0
A14: Housing | C14: ='C2C'!C64 -> 608486.87 | D14: ='C2C'!D64 -> 700000 | E14: ='C2C'!E64 -> 0 | F14: ='C2C'!F64 -> 60826.52 | G14: ='C2C'!G64 -> 243176.52 | H14: ='C2C'!H64 -> 233333.3333 | I14: =G14-H14 -> 9843.186667 | J14: =IF(I14=0,"",I14/H14) -> 0.04218508571 | K14: ='C2C'!K64 -> 700000
A15: Health | C15: ='C2C'!C67 -> 0 | D15: ='C2C'!D67 -> 0 | E15: ='C2C'!E67 -> 0 | F15: ='C2C'!F67 -> 0 | G15: ='C2C'!G67 -> 0 | H15: ='C2C'!H67 -> 0 | I15: 0 | K15: ='C2C'!K67 -> 0
A16: Economic and environmental services | C16: =SUM(C17:C19) -> 21182454.32 | D16: 16632000 | E16: 0 | F16: 1759735.22 | G16: 4486115.04 | H16: 5544000 | I16: -1057884.96 | J16: -0.1908161905 | K16: =SUM(K17:K19) -> 16632000
A17: Planning and development | C17: ='C2C'!C76 -> 822661.72 | D17: ='C2C'!D76 -> 1132000 | E17: ='C2C'!E76 -> 0 | F17: ='C2C'!F76 -> 74375.62 | G17: ='C2C'!G76 -> 246415.76 | H17: ='C2C'!H76 -> 377333.3333 | I17: -130917.5733 | J17: -0.3469546996 | K17: ='C2C'!K76 -> 1132000
A18: Road transport | C18: ='C2C'!C87 -> 20359792.6 | D18: ='C2C'!D87 -> 15500000 | E18: ='C2C'!E87 -> 0 | F18: ='C2C'!F87 -> 1685359.6 | G18: ='C2C'!G87 -> 4239699.28 | H18: ='C2C'!H87 -> 5166666.667 | I18: -926967.3867 | J18: -0.1794130426 | K18: ='C2C'!K87 -> 15500000
A19: Environmental protection | C19: ='C2C'!C92 -> 0 | D19: ='C2C'!D92 -> 0 | E19: ='C2C'!E92 -> 0 | F19: ='C2C'!F92 -> 0 | G19: ='C2C'!G92 -> 0 | H19: ='C2C'!H92 -> 0 | I19: 0 | K19: ='C2C'!K92 -> 0
A20: Trading services | C20: =SUM(C21:C24) -> 4555924.95 | D20: =SUM(D21:D24) -> 5450000 | E20: 0 | F20: 413164.36 | G20: 1654910.62 | H20: 1816666.667 | I20: -161756.0467 | J20: -0.08904002569 | K20: =SUM(K21:K24) -> 5450000
A21: Energy sources | C21: ='C2C'!C100 -> 0 | D21: ='C2C'!D100 -> 0 | E21: ='C2C'!E100 -> 0 | F21: ='C2C'!F100 -> 0 | G21: ='C2C'!G100 -> 0 | H21: ='C2C'!H100 -> 0 | I21: =G21-H21 -> 0 | K21: ='C2C'!K100 -> 0
A22: Water management | C22: ='C2C'!C104 -> 0 | D22: ='C2C'!D104 -> 0 | E22: ='C2C'!E104 -> 0 | F22: ='C2C'!F104 -> 0 | G22: ='C2C'!G104 -> 0 | H22: ='C2C'!H104 -> 0 | I22: =G22-H22 -> 0 | K22: ='C2C'!K104 -> 0
A23: Waste water management | C23: ='C2C'!C108 -> 0 | D23: ='C2C'!D108 -> 0 | E23: ='C2C'!E108 -> 0 | F23: ='C2C'!F108 -> 0 | G23: ='C2C'!G108 -> 0 | H23: ='C2C'!H108 -> 0 | I23: =G23-H23 -> 0 | K23: ='C2C'!K108 -> 0
A24: Waste management | C24: ='C2C'!C113 -> 4555924.95 | D24: ='C2C'!D113 -> 5450000 | E24: ='C2C'!E113 -> 0 | F24: ='C2C'!F113 -> 413164.36 | G24: ='C2C'!G113 -> 1654910.62 | H24: ='C2C'!H113 -> 1816666.667 | I24: =G24-H24 -> -161756.0467 | J24: -0.08904002569 | K24: ='C2C'!K113 -> 5450000
A25: Other | B25: 4 | C25: ='C2C'!C118 -> 0 | D25: ='C2C'!D118 -> 0 | E25: ='C2C'!E118 -> 0 | F25: ='C2C'!F118 -> 0 | G25: ='C2C'!G118 -> 0 | H25: ='C2C'!H118 -> 0 | I25: =G25-H25 -> 0 | K25: ='C2C'!K118 -> 0
A26: Total Revenue - Functional | B26: 2 | C26: =C6+C10+C16+C20+C25 -> 419354132.2 | D26: =D6+D10+D16+D20+D25 -> 437061000 | E26: 0 | F26: 9477765.95 | G26: 185971500.5 | H26: 145687000 | I26: 40284500.46 | J26: 0.2765140367 | K26: =K6+K10+K16+K20+K25 -> 437061000
A28: Expenditure - Functional
A29: Governance and administration | C29: =SUM(C30:C32) -> 273267441.1 | D29: 238034505.9 | E29: 0 | F29: 12943658.49 | G29: 47069293.48 | H29: 79344835.31 | I29: =G29-H29 -> -32275541.83 | J29: =IF(I29=0,"",I29/H29) -> -0.4067755854 | K29: =SUM(K30:K32) -> 238034505.9
A30: Executive and council | C30: ='C2C'!C129 -> 35336748.98 | D30: ='C2C'!D129 -> 36481597.61 | E30: ='C2C'!E129 -> 0 | F30: ='C2C'!F129 -> 3136312.45 | G30: ='C2C'!G129 -> 11258652.35 | H30: ='C2C'!H129 -> 12160532.54 | I30: -901880.1867 | J30: =IF(I30=0,"",I30/H30) -> -0.07416453054 | K30: ='C2C'!K129 -> 36481597.61
A31: Finance and administration | C31: ='C2C'!C132 -> 235495037.9 | D31: ='C2C'!D132 -> 198964333.3 | E31: ='C2C'!E132 -> 0 | F31: ='C2C'!F132 -> 9673402.85 | G31: ='C2C'!G132 -> 35098187.42 | H31: ='C2C'!H132 -> 66321444.43 | I31: -31223257.01 | J31: -0.4707867459 | K31: ='C2C'!K132 -> 198964333.3
A32: Internal audit | C32: ='C2C'!C146 -> 2435654.3 | D32: ='C2C'!D146 -> 2588575.04 | E32: ='C2C'!E146 -> 0 | F32: ='C2C'!F146 -> 133943.19 | G32: ='C2C'!G146 -> 712453.71 | H32: ='C2C'!H146 -> 862858.3467 | I32: -150404.6367 | J32: -0.1743097662 | K32: ='C2C'!K146 -> 2588575.04
A33: Community and public safety | C33: =SUM(C34:C38) -> 16096280.9 | D33: 19713545.59 | E33: 0 | F33: 1885189.24 | G33: 5399124.27 | H33: 6571181.863 | I33: -1172057.593 | J33: -0.1783632865 | K33: =SUM(K34:K38) -> 19713545.59
A34: Community and social services | C34: ='C2C'!C149 -> 8963636.61 | D34: ='C2C'!D149 -> 11309842.53 | E34: ='C2C'!E149 -> 0 | F34: ='C2C'!F149 -> 757357.38 | G34: ='C2C'!G149 -> 2706906.4 | H34: ='C2C'!H149 -> 3769947.51 | I34: -1063041.11 | J34: -0.2819776952 | K34: ='C2C'!K149 -> 11309842.53
A35: Sport and recreation | C35: ='C2C'!C171 -> 5871099.18 | D35: ='C2C'!D171 -> 7025909.89 | E35: ='C2C'!E171 -> 0 | F35: ='C2C'!F171 -> 1000836.79 | G35: ='C2C'!G171 -> 2264262.91 | H35: ='C2C'!H171 -> 2341969.963 | I35: -77707.05333 | J35: -0.0331802092 | K35: ='C2C'!K171 -> 7025909.89
A36: Public safety | C36: ='C2C'!C177 -> 135175 | D36: ='C2C'!D177 -> 100000 | E36: ='C2C'!E177 -> 0 | F36: ='C2C'!F177 -> 29750 | G36: ='C2C'!G177 -> 59570 | H36: ='C2C'!H177 -> 33333.33333 | I36: 26236.66667 | J36: 0.7871 | K36: ='C2C'!K177 -> 100000
A37: Housing | C37: ='C2C'!C186 -> 1126370.11 | D37: ='C2C'!D186 -> 1277793.17 | E37: ='C2C'!E186 -> 0 | F37: ='C2C'!F186 -> 97245.07 | G37: ='C2C'!G186 -> 368384.96 | H37: ='C2C'!H186 -> 425931.0567 | I37: -57546.09667 | J37: -0.1351065995 | K37: ='C2C'!K186 -> 1277793.17
A38: Health | C38: ='C2C'!C189 -> 0 | D38: ='C2C'!D189 -> 0 | E38: ='C2C'!E189 -> 0 | F38: ='C2C'!F189 -> 0 | G38: ='C2C'!G189 -> 0 | H38: ='C2C'!H189 -> 0 | I38: 0 | K38: ='C2C'!K189 -> 0
A39: Economic and environmental services | C39: =SUM(C40:C42) -> 47946212.57 | D39: 66319128.8 | E39: 0 | F39: 3823683.11 | G39: 14888665.77 | H39: 22106376.27 | I39: -7217710.497 | J39: -0.326499034 | K39: =SUM(K40:K42) -> 66319128.8
A40: Planning and development | C40: ='C2C'!C198 -> 18078391.32 | D40: ='C2C'!D198 -> 24317907.32 | E40: ='C2C'!E198 -> 0 | F40: ='C2C'!F198 -> 931661.62 | G40: ='C2C'!G198 -> 3742706.51 | H40: ='C2C'!H198 -> 8105969.107 | I40: -4363262.597 | J40: -0.5382777234 | K40: ='C2C'!K198 -> 24317907.32
A41: Road transport | C41: ='C2C'!C209 -> 29867821.25 | D41: ='C2C'!D209 -> 42001221.48 | E41: ='C2C'!E209 -> 0 | F41: ='C2C'!F209 -> 2892021.49 | G41: ='C2C'!G209 -> 11145959.26 | H41: ='C2C'!H209 -> 14000407.16 | I41: -2854447.9 | J41: -0.2038832062 | K41: ='C2C'!K209 -> 42001221.48
A42: Environmental protection | C42: ='C2C'!C214 -> 0 | D42: ='C2C'!D214 -> 0 | E42: ='C2C'!E214 -> 0 | F42: ='C2C'!F214 -> 0 | G42: ='C2C'!G214 -> 0 | H42: ='C2C'!H214 -> 0 | I42: 0 | K42: ='C2C'!K214 -> 0
A43: Trading services | C43: =SUM(C44:C47) -> 53729019.37 | D43: =SUM(D44:D47) -> 48123559.12 | E43: 0 | F43: 2511992.49 | G43: 9900574.61 | H43: 16041186.37 | I43: -6140611.763 | J43: -0.3828028439 | K43: =SUM(K44:K47) -> 48123559.12
A44: Energy sources | C44: ='C2C'!C222 -> 42237695.42 | D44: ='C2C'!D222 -> 35287529.57 | E44: ='C2C'!E222 -> 0 | F44: ='C2C'!F222 -> 2024710.2 | G44: ='C2C'!G222 -> 6536244.4 | H44: ='C2C'!H222 -> 11762509.86 | I44: -5226265.457 | J44: -0.4443155007 | K44: ='C2C'!K222 -> 35287529.57
A45: Water management | C45: ='C2C'!C226 -> 17143.11 | D45: ='C2C'!D226 -> 0 | E45: ='C2C'!E226 -> 0 | F45: ='C2C'!F226 -> 0 | G45: ='C2C'!G226 -> 0 | H45: ='C2C'!H226 -> 0 | I45: 0 | K45: ='C2C'!K226 -> 0
A46: Waste water management | C46: ='C2C'!C230 -> 9441.12 | D46: ='C2C'!D230 -> 0 | E46: ='C2C'!E230 -> 0 | F46: ='C2C'!F230 -> 0 | G46: ='C2C'!G230 -> 0 | H46: ='C2C'!H230 -> 0 | I46: 0 | K46: ='C2C'!K230 -> 0
A47: Waste management | C47: ='C2C'!C235 -> 11464739.72 | D47: ='C2C'!D235 -> 12836029.55 | E47: ='C2C'!E235 -> 0 | F47: ='C2C'!F235 -> 487282.29 | G47: ='C2C'!G235 -> 3364330.21 | H47: ='C2C'!H235 -> 4278676.517 | I47: -914346.3067 | J47: -0.2136983955 | K47: ='C2C'!K235 -> 12836029.55
A48: Other | C48: ='C2C'!C240 -> 0 | D48: ='C2C'!D240 -> 0 | E48: ='C2C'!E240 -> 0 | F48: ='C2C'!F240 -> 0 | G48: ='C2C'!G240 -> 0 | H48: ='C2C'!H240 -> 0 | I48: 0 | K48: ='C2C'!K240 -> 0
A49: Total Expenditure - Functional | B49: 3 | C49: =C29+C33+C39+C43+C48 -> 391038954 | D49: =D29+D33+D39+D43+D48 -> 372190739.4 | E49: 0 | F49: 21164523.33 | G49: 77257658.13 | H49: 124063579.8 | I49: -46805921.68 | J49: -0.3772736669 | K49: =K29+K33+K39+K43+K48 -> 372190739.4
A50: Surplus/ (Deficit) for the year | C50: =C26-C49 -> 28315178.24 | D50: 64870260.56 | E50: 0 | F50: -11686757.38 | G50: 108713842.3 | H50: 21623420.19 | I50: =I26-I49 -> 87090422.14 | J50: =IF(I50=0,"",I50/H50) -> 4.027596994 | K50: =K26-K49 -> 64870260.56
A51: =head27a -> References
A52: 1. Government Finance Statistics Functions and Sub-functions are standardised to assist the compilation of national and international accounts for comparison purposes
A53: 2. Total Revenue by functional classification must reconcile to Total Operating Revenue shown in the Financial Performance Statement
A54: 3. Total Expenditure by functional classification must reconcile to total operating expenditure shown in 'Financial Performance Statement'
A55: 4. All amounts must be classified under a functional classification (modified GFS). The GFS function 'Other' is only for Abbatoirs, Air Transport, Licensing and Regulation, Markets and Tourism - and if used must be supported by footnotes. Nothing else may be placed under 'Other'. Assign associate share to relevant classification

Sheet C2C
A1: =muni& " - "&S71A& " - "&date -> LIM331 Greater Giyani - Table C2 Monthly Budget Statement - Financial Performance (functional classification) - M04 October
A2: =desc -> Description | B2: =head27 -> Ref | C2: =Head1 -> 2018/19 | D2: =Head2 -> Budget Year 2019/20
C3: =Head5 -> Audited Outcome | D3: =Head6 -> Original Budget | E3: =Head7 -> Adjusted Budget | F3: =Head38 -> Monthly actual | G3: =Head39 -> YearTD actual | H3: =Head40 -> YearTD budget | I3: =Head41 -> YTD variance | J3: =Head41 -> YTD variance | K3: =Head8 -> Full Year Forecast
A4: R thousands | B4: 1 | J4: %
A5: Revenue - Functional
A6: Municipal governance and administration | C6: =C7+C10+C24 -> 392363641.3 | D6: 413436000 | E6: 0 | F6: 7211311.37 | G6: 179343195.4 | H6: 137812000 | I6: =G6-H6 -> 41531195.4 | J6: =IF(I6=0,"",I6/H6) -> 0.3013612414 | K6: =K7+K10+K24 -> 413436000
A7: Executive and council | C7: =SUM(C8:C9) -> 0 | D7: =SUM(D8:D9) -> 0 | E7: 0 | F7: 0 | G7: 0 | H7: 0 | I7: =G7-H7 -> 0 | J7: =IF(I7=0,"",I7/H7) ->  | K7: 0
A8: Mayor and Council | C8: 0 | D8: 0 | E8: 0 | F8: 0 | G8: 0 | H8: 0 | I8: 0 | K8: 0
A9: Municipal Manager, Town Secretary and Chief Executive | C9: 0 | D9: 0 | E9: 0 | F9: 0 | G9: 0 | H9: 0 | I9: 0 | K9: 0
A10: Finance and administration | C10: =SUM(C11:C23) -> 392363641.3 | D10: 413436000 | E10: 0 | F10: 7211311.37 | G10: 179343195.4 | H10: 137812000 | I10: =G10-H10 -> 41531195.4 | J10: =IF(I10=0,"",I10/H10) -> 0.3013612414 | K10: =SUM(K11:K23) -> 413436000
A11: Administrative and Corporate Support | C11: 0 | D11: 0 | E11: 0 | F11: 0 | G11: 0 | H11: 0 | I11: 0 | K11: 0
A12: Asset Management | C12: 0 | D12: 0 | E12: 0 | F12: 0 | G12: 0 | H12: 0 | I12: 0 | K12: 0
A13: Finance | C13: 393655563 | D13: 412418000 | E13: 0 | F13: 7206805.43 | G13: =172073098.93+F13 -> 179279904.4 | H13: =D13*4/12 -> 137472666.7 | I13: 41807237.69 | J13: 0.3041130918 | K13: 412418000
A14: Fleet Management | C14: 11666.15 | D14: 18000 | E14: 0 | F14: 2556.5 | G14: 8694.72 | H14: =D14*4/12 -> 6000 | I14: 2694.72 | J14: 0.44912 | K14: 18000
A15: Human Resources | C15: -1853224.39 | D15: 300000 | E15: 0 | F15: 0 | G15: 0 | H15: 100000 | I15: -100000 | J15: -1 | K15: 300000
A16: Information Technology | C16: 0 | D16: 0 | E16: 0 | F16: 0 | G16: 0 | H16: 0 | I16: =G16-H16 -> 0 | J16: =IF(I16=0,"",I16/H16) ->  | K16: 0
A17: Legal Services | C17: 0 | D17: 0 | E17: 0 | F17: 0 | G17: 0 | H17: 0 | I17: 0 | K17: 0
A18: Marketing, Customer Relations, Publicity and Media Co-ordination | C18: 0 | D18: 0 | E18: 0 | F18: 0 | G18: 0 | H18: 0 | I18: 0 | K18: 0
A19: Property Services | C19: 0 | D19: 0 | E19: 0 | F19: 0 | G19: 0 | H19: 0 | I19: 0 | K19: 0
A20: Risk Management | C20: 0 | D20: 0 | E20: 0 | F20: 0 | G20: 0 | H20: 0 | I20: 0 | K20: 0
A21: Security Services | C21: 0 | D21: 0 | E21: 0 | F21: 0 | G21: 0 | H21: 0 | I21: 0 | K21: 0
A22: Supply Chain Management | C22: 549636.56 | D22: 700000 | E22: 0 | F22: 1949.44 | G22: 54596.32 | H22: =D22*4/12 -> 233333.3333 | I22: -178737.0133 | J22: -0.7660157714 | K22: 700000
A23: Valuation Service | C23: 0 | D23: 0 | E23: 0 | F23: 0 | G23: 0 | H23: 0 | I23: 0 | K23: 0
A24: Internal audit | C24: =SUM(C25:C25) -> 0 | D24: 0 | E24: 0 | F24: 0 | G24: 0 | H24: 0 | I24: 0 | K24: =SUM(K25:K25) -> 0
A25: Governance Function | C25: 0 | D25: 0 | E25: 0 | F25: 0 | G25: 0 | H25: 0 | I25: 0 | K25: 0
A26: Community and public safety | C26: =C27+C49+C55+C64+C67 -> 1252111.61 | D26: =D27+D49+D55+D64+D67 -> 1543000 | E26: 0 | F26: 93555 | G26: 487279.4 | H26: 514333.3333 | I26: -27053.93333 | J26: -0.0526 | K26: 1543000
A27: Community and social services | C27: =SUM(C28:C48) -> 449493.35 | D27: 623000 | E27: 0 | F27: 31389.34 | G27: 139094.15 | H27: 207666.6667 | I27: -68572.51667 | J27: -0.3302047352 | K27: =SUM(K28:K48) -> 623000
A28: Aged Care | C28: 0 | D28: 0 | E28: 0 | F28: 0 | G28: 0 | H28: 0 | I28: =G28-H28 -> 0 | J28: =IF(I28=0,"",I28/H28) ->  | K28: 0
A29: Agricultural | C29: 0 | D29: 0 | E29: 0 | F29: 0 | G29: 0 | H29: 0 | I29: 0 | K29: 0
A30: Animal Care and Diseases | C30: 0 | D30: 0 | E30: 0 | F30: 0 | G30: 0 | H30: 0 | I30: 0 | K30: 0
A31: Cemeteries, Funeral Parlours and Crematoriums | C31: 292381.31 | D31: 320000 | E31: 0 | F31: 23781.53 | G31: 94653.36 | H31: =D31*4/12 -> 106666.6667 | I31: -12013.30667 | J31: -0.11262475 | K31: 320000
A32: Child Care Facilities | C32: 0 | D32: 0 | E32: 0 | F32: 0 | G32: 0 | H32: =D32*4/12 -> 0 | I32: 0 | K32: 0
A33: Community Halls and Facilities | C33: 153734.09 | D33: 300000 | E33: 0 | F33: 7446.08 | G33: 43686.05 | H33: 100000 | I33: -56313.95 | J33: -0.5631395 | K33: 300000
A34: Consumer Protection | C34: 0 | D34: 0 | E34: 0 | F34: 0 | G34: 0 | H34: 0 | I34: 0 | K34: 0
A35: Cultural Matters | C35: 0 | D35: 0 | E35: 0 | F35: 0 | G35: 0 | H35: 0 | I35: =G35-H35 -> 0 | J35: =IF(I35=0,"",I35/H35) ->  | K35: 0
A36: Disaster Management | C36: 0 | D36: 0 | E36: 0 | F36: 0 | G36: 0 | H36: 0 | I36: 0 | K36: 0
A37: Education | C37: 0 | D37: 0 | E37: 0 | F37: 0 | G37: 0 | H37: 0 | I37: 0 | K37: 0
A38: Indigenous and Customary Law | C38: 0 | D38: 0 | E38: 0 | F38: 0 | G38: 0 | H38: 0 | I38: 0 | K38: 0
A39: Industrial Promotion | C39: 0 | D39: 0 | E39: 0 | F39: 0 | G39: 0 | H39: 0 | I39: 0 | K39: 0
A40: Language Policy | C40: 0 | D40: 0 | E40: 0 | F40: 0 | G40: 0 | H40: 0 | I40: 0 | K40: 0
A41: Libraries and Archives | C41: 3377.95 | D41: 3000 | E41: 0 | F41: 161.73 | G41: 754.74 | H41: =D41*4/12 -> 1000 | I41: -245.26 | J41: -0.24526 | K41: 3000
A42: Literacy Programmes | C42: 0 | D42: 0 | E42: 0 | F42: 0 | G42: 0 | H42: 0 | I42: 0 | K42: 0
A43: Media Services | C43: 0 | D43: 0 | E43: 0 | F43: 0 | G43: 0 | H43: 0 | I43: 0 | K43: 0
A44: Museums and Art Galleries | C44: 0 | D44: 0 | E44: 0 | F44: 0 | G44: 0 | H44: 0 | I44: 0 | K44: 0
A45: Population Development | C45: 0 | D45: 0 | E45: 0 | F45: 0 | G45: 0 | H45: 0 | I45: 0 | K45: 0
A46: Provincial Cultural Matters | C46: 0 | D46: 0 | E46: 0 | F46: 0 | G46: 0 | H46: 0 | I46: 0 | K46: 0
A47: Theatres | C47: 0 | D47: 0 | E47: 0 | F47: 0 | G47: 0 | H47: 0 | I47: 0 | K47: 0
A48: Zoo's | C48: 0 | D48: 0 | E48: 0 | F48: 0 | G48: 0 | H48: 0 | I48: 0 | K48: 0
A49: Sport and recreation | C49: =SUM(C50:C54) -> 194131.39 | D49: =SUM(D50:D54) -> 220000 | E49: 0 | F49: 1339.14 | G49: 105008.73 | H49: 73333.33333 | I49: =G49-H49 -> 31675.39667 | J49: =IF(I49=0,"",I49/H49) -> 0.4319372273 | K49: 220000
A50: Beaches and Jetties | C50: 0 | D50: 0 | E50: 0 | F50: 0 | G50: 0 | H50: 0 | I50: 0 | K50: 0
A51: Casinos, Racing, Gambling, Wagering | C51: 0 | D51: 0 | E51: 0 | F51: 0 | G51: 0 | H51: 0 | I51: 0 | K51: 0
A52: Community Parks (including Nurseries) | C52: 0 | D52: 0 | E52: 0 | F52: 0 | G52: 0 | H52: 0 | I52: 0 | K52: 0
A53: Recreational Facilities | C53: 0 | D53: 0 | E53: 0 | F53: 0 | G53: 0 | H53: 0 | I53: 0 | K53: 0
A54: Sports Grounds and Stadiums | C54: 194131.39 | D54: 220000 | E54: 0 | F54: 1339.14 | G54: 105008.73 | H54: =D54*4/12 -> 73333.33333 | I54: 31675.39667 | J54: 0.4319372273 | K54: 220000
A55: Public safety | C55: =SUM(C56:C63) -> 0 | D55: =SUM(D56:D63) -> 0 | E55: 0 | F55: 0 | G55: 0 | H55: 0 | I55: 0 | K55: 0
A56: Civil Defence | C56: 0 | D56: 0 | E56: 0 | F56: 0 | G56: 0 | H56: 0 | I56: 0 | K56: 0
A57: Cleansing | C57: 0 | D57: 0 | E57: 0 | F57: 0 | G57: 0 | H57: 0 | I57: 0 | K57: 0
A58: Control of Public Nuisances | C58: 0 | D58: 0 | E58: 0 | F58: 0 | G58: 0 | H58: 0 | I58: =G58-H58 -> 0 | J58: =IF(I58=0,"",I58/H58) ->  | K58: 0
A59: Fencing and Fences | C59: 0 | D59: 0 | E59: 0 | F59: 0 | G59: 0 | H59: 0 | I59: 0 | K59: 0
A60: Fire Fighting and Protection | C60: 0 | D60: 0 | E60: 0 | F60: 0 | G60: 0 | H60: 0 | I60: 0 | K60: 0
A61: Licensing and Control of Animals | C61: 0 | D61: 0 | E61: 0 | F61: 0 | G61: 0 | H61: 0 | I61: =G61-H61 -> 0 | J61: =IF(I61=0,"",I61/H61) ->  | K61: 0
A62: Police Forces, Traffic and Street Parking Control | C62: 0 | D62: 0 | E62: 0 | F62: 0 | G62: 0 | H62: 0 | I62: =G62-H62 -> 0 | J62: =IF(I62=0,"",I62/H62) ->  | K62: 0
A63: Pounds | C63: 0 | D63: 0 | E63: 0 | F63: 0 | G63: 0 | H63: 0 | I63: 0 | K63: 0
A64: Housing | C64: =SUM(C65:C66) -> 608486.87 | D64: 700000 | E64: 0 | F64: 60826.52 | G64: 243176.52 | H64: 233333.3333 | I64: =G64-H64 -> 9843.186667 | J64: =IF(I64=0,"",I64/H64) -> 0.04218508571 | K64: =SUM(K65:K66) -> 700000
A65: Housing | C65: 608486.87 | D65: 700000 | E65: 0 | F65: 60826.52 | G65: 243176.52 | H65: =D65*4/12 -> 233333.3333 | I65: =G65-H65 -> 9843.186667 | J65: =IF(I65=0,"",I65/H65) -> 0.04218508571 | K65: 700000
A66: Informal Settlements | C66: 0 | D66: 0 | E66: 0 | F66: 0 | G66: 0 | H66: 0 | I66: =G66-H66 -> 0 | J66: =IF(I66=0,"",I66/H66) ->  | K66: 0
A67: Health | C67: =SUM(C68:C74) -> 0 | D67: 0 | E67: 0 | F67: 0 | G67: 0 | H67: 0 | I67: 0 | K67: =SUM(K68:K74) -> 0
A68: Ambulance | C68: 0 | D68: 0 | E68: 0 | F68: 0 | G68: 0 | H68: 0 | I68: 0 | K68: 0
A69: Health Services | C69: 0 | D69: 0 | E69: 0 | F69: 0 | G69: 0 | H69: 0 | I69: 0 | K69: 0
A70: Laboratory Services | C70: 0 | D70: 0 | E70: 0 | F70: 0 | G70: 0 | H70: 0 | I70: =G70-H70 -> 0 | J70: =IF(I70=0,"",I70/H70) ->  | K70: 0
A71: Food Control | C71: 0 | D71: 0 | E71: 0 | F71: 0 | G71: 0 | H71: 0 | I71: =G71-H71 -> 0 | J71: =IF(I71=0,"",I71/H71) ->  | K71: 0
A72: Health Surveillance and Prevention of Communicable Diseases including immunizations | C72: 0 | D72: 0 | E72: 0 | F72: 0 | G72: 0 | H72: 0 | I72: 0 | K72: 0
A73: Vector Control | C73: 0 | D73: 0 | E73: 0 | F73: 0 | G73: 0 | H73: 0 | I73: 0 | K73: 0
A74: Chemical Safety | C74: 0 | D74: 0 | E74: 0 | F74: 0 | G74: 0 | H74: 0 | I74: 0 | K74: 0
A75: Economic and environmental services | C75: =C76+C87+C92 -> 21182454.32 | D75: 16632000 | E75: 0 | F75: 1759735.22 | G75: 4486115.04 | H75: 5544000 | I75: -1057884.96 | J75: -0.1908161905 | K75: =K76+K87+K92 -> 16632000
A76: Planning and development | C76: =SUM(C77:C86) -> 822661.72 | D76: 1132000 | E76: 0 | F76: 74375.62 | G76: 246415.76 | H76: 377333.3333 | I76: -130917.5733 | J76: -0.3469546996 | K76: =SUM(K77:K86) -> 1132000
A77: Billboards | C77: 0 | D77: 0 | E77: 0 | F77: 0 | G77: 0 | H77: 0 | I77: =G77-H77 -> 0 | J77: =IF(I77=0,"",I77/H77) ->  | K77: 0
A78: Corporate Wide Strategic Planning (IDPs, LEDs) | C78: 131880.05 | D78: 132000 | E78: 0 | F78: 27336.63 | G78: 76027.86 | H78: =D78*4/12 -> 44000 | I78: 32027.86 | J78: 0.7279059091 | K78: 132000
A79: Central City Improvement District | C79: 0 | D79: 0 | E79: 0 | F79: 0 | G79: 0 | H79: 0 | I79: 0 | K79: 0
A80: Development Facilitation | C80: 0 | D80: 0 | E80: 0 | F80: 0 | G80: 0 | H80: 0 | I80: =G80-H80 -> 0 | J80: =IF(I80=0,"",I80/H80) ->  | K80: 0
A81: Economic Development/Planning | C81: 0 | D81: 0 | E81: 0 | F81: 0 | G81: 0 | H81: 0 | I81: =G81-H81 -> 0 | J81: =IF(I81=0,"",I81/H81) ->  | K81: 0
A82: Regional Planning and Development | C82: 0 | D82: 0 | E82: 0 | F82: 0 | G82: 0 | H82: 0 | I82: =G82-H82 -> 0 | J82: =IF(I82=0,"",I82/H82) ->  | K82: 0
A83: Town Planning, Building Regulations and Enforcement, and City Engineer | C83: 690781.67 | D83: 1000000 | E83: 0 | F83: 47038.99 | G83: 170387.9 | H83: =D83*4/12 -> 333333.3333 | I83: =G83-H83 -> -162945.4333 | J83: =IF(I83=0,"",I83/H83) -> -0.4888363 | K83: 1000000
A84: Project Management Unit | C84: 0 | D84: 0 | E84: 0 | F84: 0 | G84: 0 | H84: 0 | I84: 0 | K84: 0
A85: Provincial Planning | C85: 0 | D85: 0 | E85: 0 | F85: 0 | G85: 0 | H85: 0 | I85: 0 | K85: 0
A86: Support to Local Municipalities | C86: 0 | D86: 0 | E86: 0 | F86: 0 | G86: 0 | H86: 0 | I86: 0 | K86: 0
A87: Road transport | C87: =SUM(C88:C91) -> 20359792.6 | D87: 15500000 | E87: 0 | F87: 1685359.6 | G87: 4239699.28 | H87: 5166666.667 | I87: -926967.3867 | J87: -0.1794130426 | K87: =SUM(K88:K91) -> 15500000
A88: Public Transport | C88: 0 | D88: 0 | E88: 0 | F88: 0 | G88: 0 | H88: 0 | I88: 0 | K88: 0
A89: Road and Traffic Regulation | C89: 20359792.6 | D89: 15000000 | E89: 0 | F89: 1685359.6 | G89: 4239699.28 | H89: =D89*4/12 -> 5000000 | I89: -760300.72 | J89: -0.152060144 | K89: 15000000
A90: Roads | C90: 0 | D90: 0 | E90: 0 | F90: 0 | G90: 0 | H90: 0 | I90: 0 | K90: 0
A91: Taxi Ranks | C91: 0 | D91: 500000 | E91: 0 | F91: 0 | G91: 0 | H91: =D91*4/12 -> 166666.6667 | I91: -166666.6667 | J91: -1 | K91: 500000
A92: Environmental protection | C92: =SUM(C93:C98) -> 0 | D92: =SUM(D93:D98) -> 0 | E92: 0 | F92: 0 | G92: 0 | H92: 0 | I92: 0 | K92: 0
A93: Biodiversity and Landscape | C93: 0 | D93: 0 | E93: 0 | F93: 0 | G93: 0 | H93: 0 | I93: 0 | K93: 0
A94: Coastal Protection | C94: 0 | D94: 0 | E94: 0 | F94: 0 | G94: 0 | H94: 0 | I94: 0 | K94: 0
A95: Indigenous Forests | C95: 0 | D95: 0 | E95: 0 | F95: 0 | G95: 0 | H95: 0 | I95: =G95-H95 -> 0 | J95: =IF(I95=0,"",I95/H95) ->  | K95: 0
A96: Nature Conservation | C96: 0 | D96: 0 | E96: 0 | F96: 0 | G96: 0 | H96: 0 | I96: =G96-H96 -> 0 | J96: =IF(I96=0,"",I96/H96) ->  | K96: 0
A97: Pollution Control | C97: 0 | D97: 0 | E97: 0 | F97: 0 | G97: 0 | H97: 0 | I97: 0 | K97: 0
A98: Soil Conservation | C98: 0 | D98: 0 | E98: 0 | F98: 0 | G98: 0 | H98: 0 | I98: 0 | K98: 0
A99: Trading services | C99: =C100+C104+C108+C113 -> 4555924.95 | D99: =D100+D104+D108+D113 -> 5450000 | E99: 0 | F99: 413164.36 | G99: 1654910.62 | H99: 1816666.667 | I99: -161756.0467 | J99: -0.08904002569 | K99: =K100+K104+K108+K113 -> 5450000
A100: Energy sources | C100: =SUM(C101:C103) -> 0 | D100: =SUM(D101:D103) -> 0 | E100: 0 | F100: 0 | G100: 0 | H100: 0 | I100: 0 | K100: 0
A101: Electricity | C101: 0 | D101: 0 | E101: 0 | F101: 0 | G101: 0 | H101: 0 | I101: 0 | K101: 0
A102: Street Lighting and Signal Systems | C102: 0 | D102: 0 | E102: 0 | F102: 0 | G102: 0 | H102: 0 | I102: =G102-H102 -> 0 | J102: =IF(I102=0,"",I102/H102) ->  | K102: 0
A103: Nonelectric Energy | C103: 0 | D103: 0 | E103: 0 | F103: 0 | G103: 0 | H103: 0 | I103: 0 | K103: 0
A104: Water management | C104: =SUM(C105:C107) -> 0 | D104: =SUM(D105:D107) -> 0 | E104: 0 | F104: 0 | G104: 0 | H104: 0 | I104: 0 | K104: 0
A105: Water Treatment | C105: 0 | D105: 0 | E105: 0 | F105: 0 | G105: 0 | H105: 0 | I105: 0 | K105: 0
A106: Water Distribution | C106: 0 | D106: 0 | E106: 0 | F106: 0 | G106: 0 | H106: 0 | I106: =G106-H106 -> 0 | J106: =IF(I106=0,"",I106/H106) ->  | K106: 0
A107: Water Storage | C107: 0 | D107: 0 | E107: 0 | F107: 0 | G107: 0 | H107: 0 | I107: 0 | K107: 0
A108: Waste water management | C108: =SUM(C109:C112) -> 0 | D108: =SUM(D109:D112) -> 0 | E108: 0 | F108: 0 | G108: 0 | H108: 0 | I108: 0 | K108: 0
A109: Public Toilets | C109: 0 | D109: 0 | E109: 0 | F109: 0 | G109: 0 | H109: 0 | I109: 0 | K109: 0
A110: Sewerage | C110: 0 | D110: 0 | E110: 0 | F110: 0 | G110: 0 | H110: 0 | I110: 0 | K110: 0
A111: Storm Water Management | C111: 0 | D111: 0 | E111: 0 | F111: 0 | G111: 0 | H111: 0 | I111: =G111-H111 -> 0 | J111: =IF(I111=0,"",I111/H111) ->  | K111: 0
A112: Waste Water Treatment | C112: 0 | D112: 0 | E112: 0 | F112: 0 | G112: 0 | H112: 0 | I112: 0 | K112: 0
A113: Waste management | C113: =SUM(C114:C117) -> 4555924.95 | D113: 5450000 | E113: 0 | F113: 413164.36 | G113: 1654910.62 | H113: 1816666.667 | I113: -161756.0467 | J113: -0.08904002569 | K113: =SUM(K114:K117) -> 5450000
A114: Recycling | C114: 0 | D114: 0 | E114: 0 | F114: 0 | G114: 0 | H114: 0 | I114: =G114-H114 -> 0 | J114: =IF(I114=0,"",I114/H114) ->  | K114: 0
A115: Solid Waste Disposal (Landfill Sites) | C115: 0 | D115: 0 | E115: 0 | F115: 0 | G115: 0 | H115: 0 | I115: =G115-H115 -> 0 | J115: =IF(I115=0,"",I115/H115) ->  | K115: 0
A116: Solid Waste Removal | C116: 4555924.95 | D116: 5450000 | E116: 0 | F116: 413164.36 | G116: 1654910.62 | H116: =D116*4/12 -> 1816666.667 | I116: -161756.0467 | J116: -0.08904002569 | K116: 5450000
A117: Street Cleaning | C117: 0 | D117: 0 | E117: 0 | F117: 0 | G117: 0 | H117: 0 | I117: =G117-H117 -> 0 | J117: =IF(I117=0,"",I117/H117) ->  | K117: 0
A118: Other | C118: =SUM(C119:C124) -> 0 | D118: =SUM(D119:D124) -> 0 | E118: 0 | F118: 0 | G118: 0 | H118: 0 | I118: 0 | K118: 0
A119: Abattoirs | C119: 0 | D119: 0 | E119: 0 | F119: 0 | G119: 0 | H119: 0 | I119: 0 | K119: 0
A120: Air Transport | C120: 0 | D120: 0 | E120: 0 | F120: 0 | G120: 0 | H120: 0 | I120: 0 | K120: 0
A121: Forestry | C121: 0 | D121: 0 | E121: 0 | F121: 0 | G121: 0 | H121: 0 | I121: =G121-H121 -> 0 | J121: =IF(I121=0,"",I121/H121) ->  | K121: 0
A122: Licensing and Regulation | C122: 0 | D122: 0 | E122: 0 | F122: 0 | G122: 0 | H122: 0 | I122: 0 | K122: 0
A123: Markets | C123: 0 | D123: 0 | E123: 0 | F123: 0 | G123: 0 | H123: 0 | I123: 0 | K123: 0
A124: Tourism | C124: 0 | D124: 0 | E124: 0 | F124: 0 | G124: 0 | H124: 0 | I124: =G124-H124 -> 0 | J124: =IF(I124=0,"",I124/H124) ->  | K124: 0
A125: ="Total "&A5 -> Total Revenue - Functional | B125: 2 | C125: =C6+C26+C75+C99+C118 -> 419354132.2 | D125: 437061000 | E125: 0 | F125: 9477765.95 | G125: 185971500.5 | H125: 145687000 | I125: =G125-H125 -> 40284500.46 | J125: =IF(I125=0,"",I125/H125) -> 0.2765140367 | K125: =K6+K26+K75+K99+K118 -> 437061000
A127: Expenditure - Functional
A128: =A6 -> Municipal governance and administration | C128: =C129+C132+C146 -> 273267441.1 | D128: 238034505.9 | E128: 0 | F128: 12943658.49 | G128: 47069293.48 | H128: 79344835.31 | I128: =G128-H128 -> -32275541.83 | J128: =IF(I128=0,"",I128/H128) -> -0.4067755854 | K128: =K129+K132+K146 -> 238034505.9
A129: Executive and council | C129: =SUM(C130:C131) -> 35336748.98 | D129: 36481597.61 | E129: 0 | F129: 3136312.45 | G129: 11258652.35 | H129: 12160532.54 | I129: -901880.1867 | J129: -0.07416453054 | K129: 36481597.61
A130: Mayor and Council | C130: 33838909.07 | D130: 34973780.64 | E130: 0 | F130: 3025586.63 | G130: 10811865.75 | H130: =D130*4/12 -> 11657926.88 | I130: -846061.13 | J130: -0.07257389231 | K130: 34973780.64
A131: Municipal Manager, Town Secretary and Chief Executive | C131: 1497839.91 | D131: 1507816.97 | E131: 0 | F131: 110725.82 | G131: 446786.6 | H131: =D131*4/12 -> 502605.6567 | I131: -55819.05667 | J131: -0.1110593483 | K131: 1507816.97
A132: Finance and administration | C132: =SUM(C133:C145) -> 235495037.9 | D132: 198964333.3 | E132: 0 | F132: 9673402.85 | G132: 35098187.42 | H132: 66321444.43 | I132: -31223257.01 | J132: -0.4707867459 | K132: =SUM(K133:K145) -> 198964333.3
A133: Administrative and Corporate Support | C133: 13331320.41 | D133: 15710749.23 | E133: 0 | F133: 912988.93 | G133: 4056224.2 | H133: =D133*4/12 -> 5236916.41 | I133: -1180692.21 | J133: -0.225455615 | K133: 15710749.23
A134: Asset Management | C134: 98573923.53 | D134: 42562573.53 | E134: 0 | F134: 342244.08 | G134: 3258401.89 | H134: =D134*4/12 -> 14187524.51 | I134: -10929122.62 | J134: -0.7703333032 | K134: 42562573.53
A135: Finance | C135: 54139930.1 | D135: 47504687.79 | E135: 0 | F135: 3224188.01 | G135: =3882982.42+F135 -> 7107170.43 | H135: 15834895.93 | I135: -8727725.5 | J135: -0.5511703732 | K135: 47504687.79
A136: Fleet Management | C136: 9349424.62 | D136: 9785666.16 | E136: 0 | F136: 958362.27 | G136: 2588426.06 | H136: 3261888.72 | I136: -673462.66 | J136: -0.2064640206 | K136: 9785666.16
A137: Human Resources | C137: 13327829.33 | D137: 17059043.1 | E137: 0 | F137: 632788.72 | G137: 5219281.15 | H137: 5686347.7 | I137: -467066.55 | J137: -0.0821382326 | K137: 17059043.1
A138: Information Technology | C138: 5456619.76 | D138: 11259999.15 | E138: 0 | F138: 563861.44 | G138: 1477571.25 | H138: 3753333.05 | I138: -2275761.8 | J138: -0.6063308983 | K138: 11259999.15
A139: Legal Services | C139: 9625587.84 | D139: 6222259.47 | E139: 0 | F139: 218452.92 | G139: 1681935.1 | H139: 2074086.49 | I139: -392151.39 | J139: -0.1890718598 | K139: 6222259.47
A140: Marketing, Customer Relations, Publicity and Media Co-ordination | C140: 0 | D140: 0 | E140: 0 | F140: 0 | G140: 0 | H140: 0 | I140: 0 | K140: 0
A141: Property Services | C141: 9335430.3 | D141: 14810122.67 | E141: 0 | F141: 520074.34 | G141: 2322890.55 | H141: =D141*4/12 -> 4936707.557 | I141: -2613817.007 | J141: -0.5294656361 | K141: 14810122.67
A142: Risk Management | C142: 8141563.97 | D142: 12372126.28 | E142: 0 | F142: 879993.85 | G142: 2855568.22 | H142: =D142*4/12 -> 4124042.093 | I142: -1268473.873 | J142: -0.307580244 | K142: 12372126.28
A143: Security Services | C143: 12130580.28 | D143: 16022267.48 | E143: 0 | F143: 1120551.18 | G143: 3917585.14 | H143: 5340755.827 | I143: -1423170.687 | J143: -0.2664736477 | K143: 16022267.48
A144: Supply Chain Management | C144: 2082827.71 | D144: 5654838.42 | E144: 0 | F144: 299897.11 | G144: 613133.43 | H144: 1884946.14 | I144: -1271812.71 | J144: -0.6747209817 | K144: 5654838.42
A145: Valuation Service | C145: 0 | D145: 0 | E145: 0 | F145: 0 | G145: 0 | H145: 0 | I145: 0 | K145: 0
A146: Internal audit | C146: =SUM(C147:C147) -> 2435654.3 | D146: 2588575.04 | E146: 0 | F146: 133943.19 | G146: 712453.71 | H146: 862858.3467 | I146: -150404.6367 | J146: -0.1743097662 | K146: =SUM(K147:K147) -> 2588575.04
A147: Governance Function | C147: 2435654.3 | D147: 2588575.04 | E147: 0 | F147: 133943.19 | G147: 712453.71 | H147: =D147*4/12 -> 862858.3467 | I147: -150404.6367 | J147: -0.1743097662 | K147: 2588575.04
A148: Community and public safety | C148: =C149+C171+C177+C186+C189 -> 16096280.9 | D148: 19713545.59 | E148: 0 | F148: 1885189.24 | G148: 5399124.27 | H148: 6571181.863 | I148: -1172057.593 | J148: -0.1783632865 | K148: =K149+K171+K177+K186+K189 -> 19713545.59
A149: Community and social services | C149: =SUM(C150:C170) -> 8963636.61 | D149: 11309842.53 | E149: 0 | F149: 757357.38 | G149: 2706906.4 | H149: 3769947.51 | I149: -1063041.11 | J149: -0.2819776952 | K149: =SUM(K150:K170) -> 11309842.53
A150: Aged Care | C150: 0 | D150: 0 | E150: 0 | F150: 0 | G150: 0 | H150: 0 | I150: 0 | K150: 0
A151: Agricultural | C151: 0 | D151: 0 | E151: 0 | F151: 0 | G151: 0 | H151: 0 | I151: 0 | K151: 0
A152: Animal Care and Diseases | C152: 584735.89 | D152: 745614.39 | E152: 0 | F152: 89156.2 | G152: 285673.13 | H152: =D152*4/12 -> 248538.13 | I152: 37135 | J152: 0.1494136936 | K152: 745614.39
A153: Cemeteries, Funeral Parlours and Crematoriums | C153: 2822821.88 | D153: 3194757.89 | E153: 0 | F153: 243926.67 | G153: 769987.32 | H153: =D153*4/12 -> 1064919.297 | I153: -294931.9767 | J153: -0.2769524203 | K153: 3194757.89
A154: Child Care Facilities | C154: 0 | D154: 0 | E154: 0 | F154: 0 | G154: 0 | H154: 0 | I154: 0 | K154: 0
A155: Community Halls and Facilities | C155: 4523608.73 | D155: 5016026.34 | E155: 0 | F155: 346757.38 | G155: 1306103.09 | H155: 1672008.78 | I155: -365905.69 | J155: -0.2188419668 | K155: 5016026.34
A156: Consumer Protection | C156: 0 | D156: 0 | E156: 0 | F156: 0 | G156: 0 | H156: 0 | I156: 0 | K156: 0
A157: Cultural Matters | C157: 0 | D157: 0 | E157: 0 | F157: 0 | G157: 0 | H157: 0 | I157: =G157-H157 -> 0 | J157: =IF(I157=0,"",I157/H157) ->  | K157: 0
A158: Disaster Management | C158: 643691.71 | D158: 1719129.37 | E158: 0 | F158: 49301.42 | G158: 227492.62 | H158: 573043.1233 | I158: =G158-H158 -> -345550.5033 | J158: =IF(I158=0,"",I158/H158) -> -0.6030095978 | K158: 1719129.37
A159: Education | C159: 0 | D159: 0 | E159: 0 | F159: 0 | G159: 0 | H159: 0 | I159: =G159-H159 -> 0 | J159: =IF(I159=0,"",I159/H159) ->  | K159: 0
A160: =A38 -> Indigenous and Customary Law | C160: 0 | D160: 0 | E160: 0 | F160: 0 | G160: 0 | H160: 0 | I160: 0 | K160: 0
A161: Industrial Promotion | C161: 0 | D161: 0 | E161: 0 | F161: 0 | G161: 0 | H161: 0 | I161: 0 | K161: 0
A162: Language Policy | C162: 0 | D162: 0 | E162: 0 | F162: 0 | G162: 0 | H162: 0 | I162: 0 | K162: 0
A163: Libraries and Archives | C163: 388778.4 | D163: 634314.54 | E163: 0 | F163: 28215.71 | G163: 117650.24 | H163: 211438.18 | I163: -93787.94 | J163: -0.4435714496 | K163: 634314.54
A164: Literacy Programmes | C164: 0 | D164: 0 | E164: 0 | F164: 0 | G164: 0 | H164: 0 | I164: 0 | K164: 0
A165: Media Services | C165: 0 | D165: 0 | E165: 0 | F165: 0 | G165: 0 | H165: 0 | I165: 0 | K165: 0
A166: Museums and Art Galleries | C166: 0 | D166: 0 | E166: 0 | F166: 0 | G166: 0 | H166: 0 | I166: 0 | K166: 0
A167: Population Development | C167: 0 | D167: 0 | E167: 0 | F167: 0 | G167: 0 | H167: 0 | I167: 0 | K167: 0
A168: Provincial Cultural Matters | C168: 0 | D168: 0 | E168: 0 | F168: 0 | G168: 0 | H168: 0 | I168: 0 | K168: 0
A169: Theatres | C169: 0 | D169: 0 | E169: 0 | F169: 0 | G169: 0 | H169: 0 | I169: 0 | K169: 0
A170: Zoo's | C170: 0 | D170: 0 | E170: 0 | F170: 0 | G170: 0 | H170: 0 | I170: 0 | K170: 0
A171: Sport and recreation | C171: =SUM(C172:C176) -> 5871099.18 | D171: 7025909.89 | E171: 0 | F171: 1000836.79 | G171: 2264262.91 | H171: 2341969.963 | I171: =G171-H171 -> -77707.05333 | J171: =IF(I171=0,"",I171/H171) -> -0.0331802092 | K171: 7025909.89
A172: Beaches and Jetties | C172: 0 | D172: 0 | E172: 0 | F172: 0 | G172: 0 | H172: 0 | I172: 0 | K172: 0
A173: Casinos, Racing, Gambling, Wagering | C173: 0 | D173: 0 | E173: 0 | F173: 0 | G173: 0 | H173: 0 | I173: 0 | K173: 0
A174: Community Parks (including Nurseries) | C174: 0 | D174: 0 | E174: 0 | F174: 0 | G174: 0 | H174: 0 | I174: 0 | K174: 0
A175: Recreational Facilities | C175: 378526.17 | D175: 510000 | E175: 0 | F175: 0 | G175: 83299.6 | H175: =D175*4/12 -> 170000 | I175: -86700.4 | J175: -0.5100023529 | K175: 510000
A176: Sports Grounds and Stadiums | C176: 5492573.01 | D176: 6515909.89 | E176: 0 | F176: 1000836.79 | G176: 2180963.31 | H176: =D176*4/12 -> 2171969.963 | I176: 8993.346667 | J176: 0.004140640441 | K176: 6515909.89
A177: Public safety | C177: =SUM(C178:C185) -> 135175 | D177: 100000 | E177: 0 | F177: 29750 | G177: 59570 | H177: 33333.33333 | I177: 26236.66667 | J177: 0.7871 | K177: 100000
A178: Civil Defence | C178: 0 | D178: 0 | E178: 0 | F178: 0 | G178: 0 | H178: 0 | I178: 0 | K178: 0
A179: Cleansing | C179: 45900 | D179: 0 | E179: 0 | F179: 0 | G179: 0 | H179: 0 | I179: 0 | K179: 0
A180: Control of Public Nuisances | C180: 0 | D180: 0 | E180: 0 | F180: 0 | G180: 0 | H180: 0 | I180: =G180-H180 -> 0 | J180: =IF(I180=0,"",I180/H180) ->  | K180: 0
A181: Fencing and Fences | C181: 89275 | D181: 100000 | E181: 0 | F181: 29750 | G181: 59570 | H181: =D181*4/12 -> 33333.33333 | I181: 26236.66667 | J181: 0.7871 | K181: 100000
A182: Fire Fighting and Protection | C182: 0 | D182: 0 | E182: 0 | F182: 0 | G182: 0 | H182: 0 | I182: 0 | K182: 0
A183: Licensing and Control of Animals | C183: 0 | D183: 0 | E183: 0 | F183: 0 | G183: 0 | H183: 0 | I183: =G183-H183 -> 0 | J183: =IF(I183=0,"",I183/H183) ->  | K183: 0
A184: Police Forces, Traffic and Street Parking Control | C184: 0 | D184: 0 | E184: 0 | F184: 0 | G184: 0 | H184: 0 | I184: =G184-H184 -> 0 | J184: =IF(I184=0,"",I184/H184) ->  | K184: 0
A185: Pounds | C185: 0 | D185: 0 | E185: 0 | F185: 0 | G185: 0 | H185: 0 | I185: 0 | K185: 0
A186: Housing | C186: =SUM(C187:C188) -> 1126370.11 | D186: 1277793.17 | E186: 0 | F186: 97245.07 | G186: 368384.96 | H186: 425931.0567 | I186: =G186-H186 -> -57546.09667 | J186: =IF(I186=0,"",I186/H186) -> -0.1351065995 | K186: =SUM(K187:K188) -> 1277793.17
A187: Housing | C187: 1126370.11 | D187: 1277793.17 | E187: 0 | F187: 97245.07 | G187: 368384.96 | H187: =D187*4/12 -> 425931.0567 | I187: =G187-H187 -> -57546.09667 | J187: =IF(I187=0,"",I187/H187) -> -0.1351065995 | K187: 1277793.17
A188: Informal Settlements | C188: 0 | D188: 0 | E188: 0 | F188: 0 | G188: 0 | H188: 0 | I188: =G188-H188 -> 0 | J188: =IF(I188=0,"",I188/H188) ->  | K188: 0
A189: Health | C189: =SUM(C190:C196) -> 0 | D189: 0 | E189: 0 | F189: 0 | G189: 0 | H189: 0 | I189: 0 | K189: 0
A190: Ambulance | C190: 0 | D190: 0 | E190: 0 | F190: 0 | G190: 0 | H190: 0 | I190: 0 | K190: 0
A191: Health Services | C191: 0 | D191: 0 | E191: 0 | F191: 0 | G191: 0 | H191: 0 | I191: 0 | K191: 0
A192: =A70 -> Laboratory Services | C192: 0 | D192: 0 | E192: 0 | F192: 0 | G192: 0 | H192: 0 | I192: 0 | K192: 0
A193: Food Control | C193: 0 | D193: 0 | E193: 0 | F193: 0 | G193: 0 | H193: 0 | I193: =G193-H193 -> 0 | J193: =IF(I193=0,"",I193/H193) ->  | K193: 0
A194: Health Surveillance and Prevention of Communicable Diseases including immunizations | C194: 0 | D194: 0 | E194: 0 | F194: 0 | G194: 0 | H194: 0 | I194: =G194-H194 -> 0 | J194: =IF(I194=0,"",I194/H194) ->  | K194: 0
A195: Vector Control | C195: 0 | D195: 0 | E195: 0 | F195: 0 | G195: 0 | H195: 0 | I195: 0 | K195: 0
A196: Chemical Safety | C196: 0 | D196: 0 | E196: 0 | F196: 0 | G196: 0 | H196: 0 | I196: 0 | K196: 0
A197: Economic and environmental services | C197: =C198+C209+C214 -> 47946212.57 | D197: 66319128.8 | E197: 0 | F197: 3823683.11 | G197: 14888665.77 | H197: 22106376.27 | I197: -7217710.497 | J197: -0.326499034 | K197: =K198+K209+K214 -> 66319128.8
A198: Planning and development | C198: =SUM(C199:C208) -> 18078391.32 | D198: 24317907.32 | E198: 0 | F198: 931661.62 | G198: 3742706.51 | H198: 8105969.107 | I198: -4363262.597 | J198: -0.5382777234 | K198: 24317907.32
A199: Billboards | C199: 0 | D199: 0 | E199: 0 | F199: 0 | G199: 0 | H199: 0 | I199: 0 | K199: 0
A200: Corporate Wide Strategic Planning (IDPs, LEDs) | C200: 5229310.71 | D200: 6953160.84 | E200: 0 | F200: 322654.34 | G200: 1449037.18 | H200: =D200*4/12 -> 2317720.28 | I200: -868683.1 | J200: -0.374800664 | K200: 6953160.84
A201: Central City Improvement District | C201: 0 | D201: 0 | E201: 0 | F201: 0 | G201: 0 | H201: =D201*4/12 -> 0 | I201: 0 | K201: 0
... 54 more rows

Sheet C3-FinPerf V
A1: =muni& " - "&S71C& " - "&date -> LIM331 Greater Giyani - Table C3 Monthly Budget Statement - Financial Performance (revenue and expenditure by municipal vote) - M04 October
A2: =Vdesc -> Vote Description | B2: =head27 -> Ref | C2: =Head1 -> 2018/19 | D2: =Head2 -> Budget Year 2019/20
C3: =Head5 -> Audited Outcome | D3: =Head6 -> Original Budget | E3: =Head7 -> Adjusted Budget | F3: =Head38 -> Monthly actual | G3: =Head39 -> YearTD actual | H3: =Head40 -> YearTD budget | I3: =Head41 -> YTD variance | J3: =Head41 -> YTD variance | K3: =Head8 -> Full Year Forecast
A4: R thousands | J4: %
A5: Revenue by Vote | B5: 1
A6: ='Org structure'!A2 -> Vote 1 - Energy Sources | C6: ='C3C'!C6 -> 0 | D6: ='C3C'!D6 -> 0 | E6: ='C3C'!E6 -> 0 | F6: ='C3C'!F6 -> 0 | G6: ='C3C'!G6 -> 0 | H6: ='C3C'!H6 -> 0 | I6: =G6-H6 -> 0 | J6: =IF(I6=0,"",I6/H6) ->  | K6: ='C3C'!K6 -> 0
A7: ='Org structure'!A3 -> Vote 2 - Community and Social Services | C7: ='C3C'!C17 -> 449493.35 | D7: ='C3C'!D17 -> 623000 | E7: ='C3C'!E17 -> 0 | F7: ='C3C'!F17 -> 31389.34 | G7: ='C3C'!G17 -> 139094.15 | H7: ='C3C'!H17 -> 207666.6667 | I7: =G7-H7 -> -68572.51667 | J7: =IF(I7=0,"",I7/H7) -> -0.3302047352 | K7: ='C3C'!K17 -> 623000
A8: ='Org structure'!A4 -> Vote 3 - Finance & Administration | C8: ='C3C'!C28 -> 392363641.3 | D8: ='C3C'!D28 -> 413436000 | E8: ='C3C'!E28 -> 0 | F8: ='C3C'!F28 -> 7211311.37 | G8: ='C3C'!G28 -> 179343195.4 | H8: ='C3C'!H28 -> 137812000 | I8: 41531195.4 | J8: 0.3013612414 | K8: ='C3C'!K28 -> 413436000
A9: ='Org structure'!A5 -> Vote 4 - Planning and Development | C9: ='C3C'!C39 -> 822661.72 | D9: ='C3C'!D39 -> 1132000 | E9: ='C3C'!E39 -> 0 | F9: ='C3C'!F39 -> 74375.62 | G9: ='C3C'!G39 -> 246415.76 | H9: ='C3C'!H39 -> 377333.3333 | I9: -130917.5733 | J9: -0.3469546996 | K9: ='C3C'!K39 -> 1132000
A10: ='Org structure'!A6 -> Vote 5 - Executive & Council | C10: ='C3C'!C50 -> 0 | D10: ='C3C'!D50 -> 0 | E10: ='C3C'!E50 -> 0 | F10: ='C3C'!F50 -> 0 | G10: ='C3C'!G50 -> 0 | H10: ='C3C'!H50 -> 0 | I10: 0 | K10: ='C3C'!K50 -> 0
A11: ='Org structure'!A7 -> Vote 6 - Internal Audit | C11: ='C3C'!C61 -> 0 | D11: ='C3C'!D61 -> 0 | E11: ='C3C'!E61 -> 0 | F11: ='C3C'!F61 -> 0 | G11: ='C3C'!G61 -> 0 | H11: ='C3C'!H61 -> 0 | I11: 0 | K11: ='C3C'!K61 -> 0
A12: ='Org structure'!A8 -> Vote 7 - Road Transport | C12: ='C3C'!C72 -> 20359792.6 | D12: ='C3C'!D72 -> 15500000 | E12: ='C3C'!E72 -> 0 | F12: ='C3C'!F72 -> 1685359.6 | G12: ='C3C'!G72 -> 4239699.28 | H12: ='C3C'!H72 -> 5166666.667 | I12: -926967.3867 | J12: -0.1794130426 | K12: ='C3C'!K72 -> 15500000
A13: ='Org structure'!A9 -> Vote 8 - Public Safety | C13: ='C3C'!C83 -> 0 | D13: ='C3C'!D83 -> 0 | E13: ='C3C'!E83 -> 0 | F13: ='C3C'!F83 -> 0 | G13: ='C3C'!G83 -> 0 | H13: ='C3C'!H83 -> 0 | I13: 0 | K13: ='C3C'!K83 -> 0
A14: ='Org structure'!A10 -> Vote 9 - Waste Management | C14: ='C3C'!C94 -> 4555924.95 | D14: ='C3C'!D94 -> 5450000 | E14: ='C3C'!E94 -> 0 | F14: ='C3C'!F94 -> 413164.36 | G14: ='C3C'!G94 -> 1654910.62 | H14: ='C3C'!H94 -> 1816666.667 | I14: -161756.0467 | J14: -0.08904002569 | K14: ='C3C'!K94 -> 5450000
A15: ='Org structure'!A11 -> Vote 10 - Sports & Recreation | C15: ='C3C'!C105 -> 194131.39 | D15: ='C3C'!D105 -> 220000 | E15: ='C3C'!E105 -> 0 | F15: ='C3C'!F105 -> 1339.14 | G15: ='C3C'!G105 -> 105008.73 | H15: ='C3C'!H105 -> 73333.33333 | I15: 31675.39667 | J15: 0.4319372273 | K15: ='C3C'!K105 -> 220000
A16: ='Org structure'!A12 -> Vote 11 - Water Management | C16: ='C3C'!C116 -> 0 | D16: ='C3C'!D116 -> 0 | E16: ='C3C'!E116 -> 0 | F16: ='C3C'!F116 -> 0 | G16: ='C3C'!G116 -> 0 | H16: ='C3C'!H116 -> 0 | I16: 0 | K16: ='C3C'!K116 -> 0
A17: ='Org structure'!A13 -> Vote 12 - Waste Water Management | C17: ='C3C'!C127 -> 0 | D17: ='C3C'!D127 -> 0 | E17: ='C3C'!E127 -> 0 | F17: ='C3C'!F127 -> 0 | G17: ='C3C'!G127 -> 0 | H17: ='C3C'!H127 -> 0 | I17: 0 | K17: ='C3C'!K127 -> 0
A18: ='Org structure'!A14 -> Vote 13 - Housing | C18: ='C3C'!C138 -> 608486.87 | D18: ='C3C'!D138 -> 700000 | E18: ='C3C'!E138 -> 0 | F18: ='C3C'!F138 -> 60826.52 | G18: ='C3C'!G138 -> 243176.52 | H18: ='C3C'!H138 -> 233333.3333 | I18: 9843.186667 | J18: 0.04218508571 | K18: ='C3C'!K138 -> 700000
A19: ='Org structure'!A15 -> Vote 14 - Finance & Administration | C19: ='C3C'!C149 -> 0 | D19: ='C3C'!D149 -> 0 | E19: ='C3C'!E149 -> 0 | F19: ='C3C'!F149 -> 0 | G19: ='C3C'!G149 -> 0 | H19: ='C3C'!H149 -> 0 | I19: 0 | K19: ='C3C'!K149 -> 0
A20: ='Org structure'!A16 -> Vote 15 - [NAME OF VOTE 5] | C20: ='C3C'!C160 -> 0 | D20: ='C3C'!D160 -> 0 | E20: ='C3C'!E160 -> 0 | F20: ='C3C'!F160 -> 0 | G20: ='C3C'!G160 -> 0 | H20: ='C3C'!H160 -> 0 | I20: 0 | K20: ='C3C'!K160 -> 0
A21: Total Revenue by Vote | B21: 2 | C21: =SUM(C6:C20) -> 419354132.2 | D21: =SUM(D6:D20) -> 437061000 | E21: 0 | F21: 9477765.95 | G21: 185971500.5 | H21: 145687000 | I21: 40284500.46 | J21: 0.2765140367 | K21: =SUM(K6:K20) -> 437061000
A23: Expenditure by Vote | B23: 1
A24: ='Org structure'!A2 -> Vote 1 - Energy Sources | C24: ='C3C'!C174 -> 42237695.42 | D24: ='C3C'!D174 -> 35287529.57 | E24: ='C3C'!E174 -> 0 | F24: ='C3C'!F174 -> 2024710.2 | G24: ='C3C'!G174 -> 6536244.4 | H24: ='C3C'!H174 -> 11762509.86 | I24: =G24-H24 -> -5226265.457 | J24: =IF(I24=0,"",I24/H24) -> -0.4443155007 | K24: ='C3C'!K174 -> 35287529.57
A25: ='Org structure'!A3 -> Vote 2 - Community and Social Services | C25: ='C3C'!C185 -> 8963636.61 | D25: ='C3C'!D185 -> 11309842.53 | E25: ='C3C'!E185 -> 0 | F25: ='C3C'!F185 -> 757357.38 | G25: ='C3C'!G185 -> 2706906.4 | H25: ='C3C'!H185 -> 3769947.51 | I25: -1063041.11 | J25: -0.2819776952 | K25: ='C3C'!K185 -> 11309842.53
A26: ='Org structure'!A4 -> Vote 3 - Finance & Administration | C26: ='C3C'!C196 -> 204576517.4 | D26: ='C3C'!D196 -> 155971317.4 | E26: ='C3C'!E196 -> 0 | F26: ='C3C'!F196 -> 7076001.3 | G26: ='C3C'!G196 -> 25646806.83 | H26: ='C3C'!H196 -> 51990439.14 | I26: -26343632.31 | J26: -0.5067014772 | K26: ='C3C'!K196 -> 155971317.4
A27: ='Org structure'!A5 -> Vote 4 - Planning and Development | C27: ='C3C'!C207 -> 18078391.32 | D27: ='C3C'!D207 -> 24317907.32 | E27: ='C3C'!E207 -> 0 | F27: ='C3C'!F207 -> 931661.62 | G27: ='C3C'!G207 -> 3742706.51 | H27: ='C3C'!H207 -> 8105969.107 | I27: -4363262.597 | J27: -0.5382777234 | K27: ='C3C'!K207 -> 24317907.32
A28: ='Org structure'!A6 -> Vote 5 - Executive & Council | C28: ='C3C'!C218 -> 35336748.98 | D28: ='C3C'!D218 -> 36481597.61 | E28: ='C3C'!E218 -> 0 | F28: ='C3C'!F218 -> 3136312.45 | G28: ='C3C'!G218 -> 11258652.35 | H28: ='C3C'!H218 -> 12160532.54 | I28: -901880.1867 | J28: -0.07416453054 | K28: ='C3C'!K218 -> 36481597.61
A29: ='Org structure'!A7 -> Vote 6 - Internal Audit | C29: ='C3C'!C229 -> 2435654.3 | D29: ='C3C'!D229 -> 2588575.04 | E29: ='C3C'!E229 -> 0 | F29: ='C3C'!F229 -> 133943.19 | G29: ='C3C'!G229 -> 712453.71 | H29: ='C3C'!H229 -> 862858.3467 | I29: -150404.6367 | J29: -0.1743097662 | K29: ='C3C'!K229 -> 2588575.04
A30: ='Org structure'!A8 -> Vote 7 - Road Transport | C30: ='C3C'!C240 -> 29867821.25 | D30: ='C3C'!D240 -> 42001221.48 | E30: ='C3C'!E240 -> 0 | F30: ='C3C'!F240 -> 2892021.49 | G30: ='C3C'!G240 -> 11145959.26 | H30: ='C3C'!H240 -> 14000407.16 | I30: -2854447.9 | J30: =IF(I30=0,"",I30/H30) -> -0.2038832062 | K30: ='C3C'!K240 -> 42001221.48
A31: ='Org structure'!A9 -> Vote 8 - Public Safety | C31: ='C3C'!C251 -> 135175 | D31: ='C3C'!D251 -> 100000 | E31: ='C3C'!E251 -> 0 | F31: ='C3C'!F251 -> 29750 | G31: ='C3C'!G251 -> 59570 | H31: ='C3C'!H251 -> 33333.33333 | I31: 26236.66667 | J31: 0.7871 | K31: ='C3C'!K251 -> 100000
A32: ='Org structure'!A10 -> Vote 9 - Waste Management | C32: ='C3C'!C262 -> 11464739.72 | D32: ='C3C'!D262 -> 12836029.55 | E32: ='C3C'!E262 -> 0 | F32: ='C3C'!F262 -> 487282.29 | G32: ='C3C'!G262 -> 3364330.21 | H32: ='C3C'!H262 -> 4278676.517 | I32: -914346.3067 | J32: -0.2136983955 | K32: ='C3C'!K262 -> 12836029.55
A33: ='Org structure'!A11 -> Vote 10 - Sports & Recreation | C33: ='C3C'!C273 -> 5871099.18 | D33: ='C3C'!D273 -> 7025909.89 | E33: ='C3C'!E273 -> 0 | F33: ='C3C'!F273 -> 1000836.79 | G33: ='C3C'!G273 -> 2264262.91 | H33: ='C3C'!H273 -> 2341969.963 | I33: -77707.05333 | J33: =IF(I33=0,"",I33/H33) -> -0.0331802092 | K33: ='C3C'!K273 -> 7025909.89
A34: ='Org structure'!A12 -> Vote 11 - Water Management | C34: ='C3C'!C284 -> 17143.11 | D34: ='C3C'!D284 -> 0 | E34: ='C3C'!E284 -> 0 | F34: ='C3C'!F284 -> 0 | G34: ='C3C'!G284 -> 0 | H34: ='C3C'!H284 -> 0 | I34: 0 | J34: =IF(I34=0,"",I34/H34) ->  | K34: ='C3C'!K284 -> 0
A35: ='Org structure'!A13 -> Vote 12 - Waste Water Management | C35: ='C3C'!C295 -> 9441.12 | D35: ='C3C'!D295 -> 0 | E35: ='C3C'!E295 -> 0 | F35: ='C3C'!F295 -> 0 | G35: ='C3C'!G295 -> 0 | H35: ='C3C'!H295 -> 0 | I35: 0 | J35: =IF(I35=0,"",I35/H35) ->  | K35: ='C3C'!K295 -> 0
A36: ='Org structure'!A14 -> Vote 13 - Housing | C36: ='C3C'!C306 -> 1126370.11 | D36: ='C3C'!D306 -> 1277793.17 | E36: ='C3C'!E306 -> 0 | F36: ='C3C'!F306 -> 97245.07 | G36: ='C3C'!G306 -> 368384.96 | H36: ='C3C'!H306 -> 425931.0567 | I36: -57546.09667 | J36: =IF(I36=0,"",I36/H36) -> -0.1351065995 | K36: ='C3C'!K306 -> 1277793.17
A37: ='Org structure'!A15 -> Vote 14 - Finance & Administration | C37: ='C3C'!C317 -> 30918520.45 | D37: ='C3C'!D317 -> 42993015.86 | E37: ='C3C'!E317 -> 0 | F37: ='C3C'!F317 -> 2597401.55 | G37: ='C3C'!G317 -> 9451380.59 | H37: ='C3C'!H317 -> 14331005.29 | I37: -4879624.697 | J37: =IF(I37=0,"",I37/H37) -> -0.340494236 | K37: ='C3C'!K317 -> 42993015.86
A38: ='Org structure'!A16 -> Vote 15 - [NAME OF VOTE 5] | C38: ='C3C'!C328 -> 0 | D38: ='C3C'!D328 -> 0 | E38: ='C3C'!E328 -> 0 | F38: ='C3C'!F328 -> 0 | G38: ='C3C'!G328 -> 0 | H38: ='C3C'!H328 -> 0 | I38: 0 | K38: ='C3C'!K328 -> 0
A39: Total Expenditure by Vote | B39: 2 | C39: =SUM(C24:C38) -> 391038954 | D39: =SUM(D24:D38) -> 372190739.4 | E39: 0 | F39: 21164523.33 | G39: 77257658.13 | H39: 124063579.8 | I39: -46805921.68 | J39: =IF(I39=0,"",I39/H39) -> -0.3772736669 | K39: =SUM(K24:K38) -> 372190739.4
A40: =result -> Surplus/ (Deficit) for the year | B40: 2 | C40: =C21-C39 -> 28315178.24 | D40: 64870260.56 | E40: 0 | F40: -11686757.38 | G40: 108713842.3 | H40: 21623420.19 | I40: =I21-I39 -> 87090422.14 | J40: =IF(I40=0,"",I40/H40) -> 4.027596994 | K40: =K21-K39 -> 64870260.56
A41: =head27a -> References
A42: 1. Insert 'Vote'; e.g. Department, if different to standard classification structure
A43: 2. Must reconcile to Monthly Budget Statement - Financial Performance Statement (standard classification)

Sheet C3C
A1: =muni& " - "&S71C& " - "&"A"& " - "&date -> LIM331 Greater Giyani - Table C3 Monthly Budget Statement - Financial Performance (revenue and expenditure by municipal vote) - A - M04 October
A2: =Vdesc -> Vote Description | B2: =head27 -> Ref | C2: =Head1 -> 2018/19 | D2: =Head2 -> Budget Year 2019/20 | L2: =Head4 -> 
A3: R thousand | C3: =Head5 -> Audited Outcome | D3: =Head6 -> Original Budget | E3: =Head7 -> Adjusted Budget | F3: =Head38 -> Monthly actual | G3: =Head39 -> YearTD actual | H3: =Head40 -> YearTD budget | I3: =Head41 -> YTD variance | J3: =Head41 -> YTD variance | K3: =Head8 -> Full Year Forecast | L3: =Head12 -> Forecast 2010/11 | M3: =Head13 -> Forecast 2011/12 | N3: =Head14 -> Forecast 2012/13 | O3: =Head15 -> Forecast 2013/14 | P3: =Head16 -> Forecast 2014/15 | Q3: =Head17 -> Forecast 2015/16 | R3: =Head18 -> Forecast 2016/17 | S3: =Head19 -> Forecast 2017/18 | T3: =Head20 -> Forecast 2018/19 | U3: =Head21 -> Forecast 2019/20 | V3: =Head22 -> Forecast 2020/21 | W3: =Head23 -> Forecast 2021/22
J4: %
A5: Revenue by Vote | B5: 1
A6: ='Org structure'!A2 -> Vote 1 - Energy Sources | C6: =SUM(C7:C16) -> 0 | D6: =SUM(D7:D16) -> 0 | E6: 0 | F6: 0 | G6: 0 | H6: 0 | I6: =G6-H6 -> 0 | J6: =IF(I6=0,"",I6/H6) ->  | K6: 0
A7: ='Org structure'!D3 -> 1.1 - Electricity | C7: 0 | D7: 0 | E7: 0 | F7: 0 | G7: 0 | H7: 0 | I7: 0 | K7: 0
A8: ='Org structure'!D4 -> 1.2 - Street Lighting and Signal Systems | C8: 0 | D8: 0 | E8: 0 | F8: 0 | G8: 0 | H8: 0 | I8: 0 | K8: 0
C9: 0 | D9: 0 | E9: 0 | F9: 0 | G9: 0 | H9: 0 | I9: 0 | K9: 0
C10: 0 | D10: 0 | E10: 0 | F10: 0 | G10: 0 | H10: 0 | I10: 0 | K10: 0
C11: 0 | D11: 0 | E11: 0 | F11: 0 | G11: 0 | H11: 0 | I11: 0 | K11: 0
C12: 0 | D12: 0 | E12: 0 | F12: 0 | G12: 0 | H12: 0 | I12: 0 | K12: 0
C13: 0 | D13: 0 | E13: 0 | F13: 0 | G13: 0 | H13: 0 | I13: 0 | K13: 0
C14: 0 | D14: 0 | E14: 0 | F14: 0 | G14: 0 | H14: 0 | I14: 0 | K14: 0
C15: 0 | D15: 0 | E15: 0 | F15: 0 | G15: 0 | H15: 0 | I15: 0 | K15: 0
C16: 0 | D16: 0 | E16: 0 | F16: 0 | G16: 0 | H16: 0 | I16: 0 | K16: 0
A17: ='Org structure'!A3 -> Vote 2 - Community and Social Services | C17: =SUM(C18:C27) -> 449493.35 | D17: =SUM(D18:D27) -> 623000 | E17: 0 | F17: 31389.34 | G17: 139094.15 | H17: 207666.6667 | I17: -68572.51667 | J17: -0.3302047352 | K17: 623000
A18: ='Org structure'!D14 -> 2.1 - Animal Care and Diseases | C18: 0 | D18: 0 | E18: 0 | F18: 0 | G18: 0 | H18: 0 | I18: 0 | K18: 0
A19: ='Org structure'!D15 -> 2.2 - Community Halls and Facilities | C19: 153734.09 | D19: 300000 | E19: 0 | F19: 7446.08 | G19: 43686.05 | H19: =D19*4/12 -> 100000 | I19: -56313.95 | J19: -0.5631395 | K19: 300000
A20: ='Org structure'!D16 -> 2.3 - Libraries and Archives | C20: 3377.95 | D20: 3000 | E20: 0 | F20: 161.73 | G20: 754.74 | H20: =D20*4/12 -> 1000 | I20: -245.26 | J20: -0.24526 | K20: 3000
A21: ='Org structure'!D17 -> 2.4 - Cemeteries, Funeral Parlours and Crematoriums | C21: 292381.31 | D21: 320000 | E21: 0 | F21: 23781.53 | G21: 94653.36 | H21: 106666.6667 | I21: -12013.30667 | J21: -0.11262475 | K21: 320000
A22: ='Org structure'!D18 -> 2.5 - Disaster Management | C22: 0 | D22: 0 | E22: 0 | F22: 0 | G22: 0 | H22: 0 | I22: 0 | K22: 0
C23: 0 | D23: 0 | E23: 0 | F23: 0 | G23: 0 | H23: 0 | I23: 0 | K23: 0
C24: 0 | D24: 0 | E24: 0 | F24: 0 | G24: 0 | H24: 0 | I24: 0 | K24: 0
C25: 0 | D25: 0 | E25: 0 | F25: 0 | G25: 0 | H25: 0 | I25: 0 | K25: 0
C26: 0 | D26: 0 | E26: 0 | F26: 0 | G26: 0 | H26: 0 | I26: 0 | K26: 0
C27: 0 | D27: 0 | E27: 0 | F27: 0 | G27: 0 | H27: 0 | I27: 0 | K27: 0
A28: ='Org structure'!A4 -> Vote 3 - Finance & Administration | C28: =SUM(C29:C38) -> 392363641.3 | D28: 413436000 | E28: 0 | F28: 7211311.37 | G28: 179343195.4 | H28: 137812000 | I28: 41531195.4 | J28: 0.3013612414 | K28: 413436000
A29: ='Org structure'!D25 -> 3.1 - Fleet Management | C29: 11666.15 | D29: 18000 | E29: 0 | F29: 2556.5 | G29: 8694.72 | H29: =D29*4/12 -> 6000 | I29: 2694.72 | J29: 0.44912 | K29: 18000
A30: ='Org structure'!D26 -> 3.2 - Finance | C30: 393655563 | D30: 412418000 | E30: 0 | F30: 7206805.43 | G30: 179279904.4 | H30: =D30*4/12 -> 137472666.7 | I30: 41807237.69 | J30: 0.3041130918 | K30: 412418000
A31: ='Org structure'!D27 -> 3.3 - Asset Management | C31: 0 | D31: 0 | E31: 0 | F31: 0 | G31: 0 | H31: 0 | I31: 0 | K31: 0
A32: ='Org structure'!D28 -> 3.4 - Human Resources | C32: -1853224.39 | D32: 300000 | E32: 0 | F32: 0 | G32: 0 | H32: 100000 | I32: -100000 | J32: -1 | K32: 300000
A33: ='Org structure'!D29 -> 3.5 - Legal Services | C33: 0 | D33: 0 | E33: 0 | F33: 0 | G33: 0 | H33: 0 | I33: 0 | J33: =IF(I33=0,"",I33/H33) ->  | K33: 0
A34: ='Org structure'!D30 -> 3.6 - Property Services | C34: 0 | D34: 0 | E34: 0 | F34: 0 | G34: 0 | H34: 0 | I34: 0 | K34: 0
A35: ='Org structure'!D31 -> 3.7 - Risk Management | C35: 0 | D35: 0 | E35: 0 | F35: 0 | G35: 0 | H35: 0 | I35: 0 | K35: 0
A36: ='Org structure'!D32 -> 3.8 - Supply Chain Management | C36: 549636.56 | D36: 700000 | E36: 0 | F36: 1949.44 | G36: 54596.32 | H36: 233333.3333 | I36: -178737.0133 | J36: -0.7660157714 | K36: 700000
C37: 0 | D37: 0 | E37: 0 | F37: 0 | G37: 0 | H37: 0 | I37: 0 | K37: 0
C38: 0 | D38: 0 | E38: 0 | F38: 0 | G38: 0 | H38: 0 | I38: 0 | K38: 0
A39: ='Org structure'!A5 -> Vote 4 - Planning and Development | C39: =SUM(C40:C49) -> 822661.72 | D39: 1132000 | E39: 0 | F39: 74375.62 | G39: 246415.76 | H39: 377333.3333 | I39: -130917.5733 | J39: -0.3469546996 | K39: 1132000
A40: ='Org structure'!D36 -> 4.1 - Town Planning, Building Regulations and Enforcement, and City Engineer | C40: 690781.67 | D40: 1000000 | E40: 0 | F40: 47038.99 | G40: 170387.9 | H40: =D40*4/12 -> 333333.3333 | I40: -162945.4333 | J40: -0.4888363 | K40: 1000000
A41: ='Org structure'!D37 -> 4.2 - Corporate Wide Strategic Planning (IDPs, LEDs) | C41: 131880.05 | D41: 132000 | E41: 0 | F41: 27336.63 | G41: 76027.86 | H41: =D41*4/12 -> 44000 | I41: 32027.86 | J41: 0.7279059091 | K41: 132000
A42: ='Org structure'!D38 -> 4.3 - Economic Development/Planning | C42: 0 | D42: 0 | E42: 0 | F42: 0 | G42: 0 | H42: 0 | I42: 0 | K42: 0
A43: ='Org structure'!D39 -> 4.4 - Project Management Unit | C43: 0 | D43: 0 | E43: 0 | F43: 0 | G43: 0 | H43: 0 | I43: 0 | K43: 0
C44: 0 | D44: 0 | E44: 0 | F44: 0 | G44: 0 | H44: 0 | I44: 0 | K44: 0
C45: 0 | D45: 0 | E45: 0 | F45: 0 | G45: 0 | H45: 0 | I45: 0 | K45: 0
C46: 0 | D46: 0 | E46: 0 | F46: 0 | G46: 0 | H46: 0 | I46: 0 | K46: 0
C47: 0 | D47: 0 | E47: 0 | F47: 0 | G47: 0 | H47: 0 | I47: 0 | K47: 0
C48: 0 | D48: 0 | E48: 0 | F48: 0 | G48: 0 | H48: 0 | I48: 0 | K48: 0
C49: 0 | D49: 0 | E49: 0 | F49: 0 | G49: 0 | H49: 0 | I49: 0 | K49: 0
A50: ='Org structure'!A6 -> Vote 5 - Executive & Council | C50: =SUM(C51:C60) -> 0 | D50: =SUM(D51:D60) -> 0 | E50: 0 | F50: 0 | G50: 0 | H50: 0 | I50: 0 | K50: 0
A51: ='Org structure'!D47 -> 5.1 - Municipal Manager, Town Secretary and Chief Executive | C51: 0 | D51: 0 | E51: 0 | F51: 0 | G51: 0 | H51: 0 | I51: 0 | K51: 0
A52: ='Org structure'!D48 -> 5.2 - Mayor and Council | C52: 0 | D52: 0 | E52: 0 | F52: 0 | G52: 0 | H52: 0 | I52: 0 | K52: 0
C53: 0 | D53: 0 | E53: 0 | F53: 0 | G53: 0 | H53: 0 | I53: 0 | K53: 0
C54: 0 | D54: 0 | E54: 0 | F54: 0 | G54: 0 | H54: 0 | I54: 0 | K54: 0
C55: 0 | D55: 0 | E55: 0 | F55: 0 | G55: 0 | H55: 0 | I55: 0 | K55: 0
C56: 0 | D56: 0 | E56: 0 | F56: 0 | G56: 0 | H56: 0 | I56: 0 | K56: 0
C57: 0 | D57: 0 | E57: 0 | F57: 0 | G57: 0 | H57: 0 | I57: 0 | K57: 0
C58: 0 | D58: 0 | E58: 0 | F58: 0 | G58: 0 | H58: 0 | I58: 0 | K58: 0
C59: 0 | D59: 0 | E59: 0 | F59: 0 | G59: 0 | H59: 0 | I59: 0 | K59: 0
C60: 0 | D60: 0 | E60: 0 | F60: 0 | G60: 0 | H60: 0 | I60: 0 | K60: 0
A61: ='Org structure'!A7 -> Vote 6 - Internal Audit | C61: =SUM(C62:C71) -> 0 | D61: =SUM(D62:D71) -> 0 | E61: 0 | F61: 0 | G61: 0 | H61: 0 | I61: 0 | K61: 0
A62: ='Org structure'!D58 -> 6.1 - Governance Function | C62: 0 | D62: 0 | E62: 0 | F62: 0 | G62: 0 | H62: 0 | I62: 0 | K62: 0
C63: 0 | D63: 0 | E63: 0 | F63: 0 | G63: 0 | H63: 0 | I63: 0 | K63: 0
C64: 0 | D64: 0 | E64: 0 | F64: 0 | G64: 0 | H64: 0 | I64: 0 | K64: 0
C65: 0 | D65: 0 | E65: 0 | F65: 0 | G65: 0 | H65: 0 | I65: 0 | K65: 0
C66: 0 | D66: 0 | E66: 0 | F66: 0 | G66: 0 | H66: 0 | I66: 0 | K66: 0
C67: 0 | D67: 0 | E67: 0 | F67: 0 | G67: 0 | H67: 0 | I67: 0 | K67: 0
C68: 0 | D68: 0 | E68: 0 | F68: 0 | G68: 0 | H68: 0 | I68: 0 | K68: 0
C69: 0 | D69: 0 | E69: 0 | F69: 0 | G69: 0 | H69: 0 | I69: 0 | K69: 0
C70: 0 | D70: 0 | E70: 0 | F70: 0 | G70: 0 | H70: 0 | I70: =G70-H70 -> 0 | J70: =IF(I70=0,"",I70/H70) ->  | K70: 0
C71: 0 | D71: 0 | E71: 0 | F71: 0 | G71: 0 | H71: 0 | I71: 0 | K71: 0
A72: ='Org structure'!A8 -> Vote 7 - Road Transport | C72: =SUM(C73:C82) -> 20359792.6 | D72: 15500000 | E72: 0 | F72: 1685359.6 | G72: 4239699.28 | H72: 5166666.667 | I72: -926967.3867 | J72: -0.1794130426 | K72: 15500000
A73: ='Org structure'!D69 -> 7.1 - Taxi Ranks | C73: 0 | D73: 500000 | E73: 0 | F73: 0 | G73: 0 | H73: =D73*4/12 -> 166666.6667 | I73: -166666.6667 | J73: -1 | K73: 500000
A74: ='Org structure'!D70 -> 7.2 - Road and Traffic Regulation | C74: 20359792.6 | D74: 15000000 | E74: 0 | F74: 1685359.6 | G74: 4239699.28 | H74: =D74*4/12 -> 5000000 | I74: -760300.72 | J74: -0.152060144 | K74: 15000000
A75: ='Org structure'!D71 -> 7.3 - Public Transport | C75: 0 | D75: 0 | E75: 0 | F75: 0 | G75: 0 | H75: 0 | I75: 0 | K75: 0
A76: ='Org structure'!D72 -> 7.4 - Roads | C76: 0 | D76: 0 | E76: 0 | F76: 0 | G76: 0 | H76: 0 | I76: 0 | K76: 0
C77: 0 | D77: 0 | E77: 0 | F77: 0 | G77: 0 | H77: 0 | I77: 0 | K77: 0
C78: 0 | D78: 0 | E78: 0 | F78: 0 | G78: 0 | H78: 0 | I78: 0 | K78: 0
C79: 0 | D79: 0 | E79: 0 | F79: 0 | G79: 0 | H79: 0 | I79: 0 | K79: 0
C80: 0 | D80: 0 | E80: 0 | F80: 0 | G80: 0 | H80: 0 | I80: 0 | K80: 0
C81: 0 | D81: 0 | E81: 0 | F81: 0 | G81: 0 | H81: 0 | I81: 0 | K81: 0
C82: 0 | D82: 0 | E82: 0 | F82: 0 | G82: 0 | H82: 0 | I82: 0 | K82: 0
A83: ='Org structure'!A9 -> Vote 8 - Public Safety | C83: =SUM(C84:C93) -> 0 | D83: =SUM(D84:D93) -> 0 | E83: 0 | F83: 0 | G83: 0 | H83: 0 | I83: 0 | K83: 0
A84: ='Org structure'!D80 -> 8.1 - Cleansing | C84: 0 | D84: 0 | E84: 0 | F84: 0 | G84: 0 | H84: 0 | I84: 0 | K84: 0
A85: ='Org structure'!D81 -> 8.2 - Fencing and Fences | C85: 0 | D85: 0 | E85: 0 | F85: 0 | G85: 0 | H85: 0 | I85: 0 | K85: 0
C86: 0 | D86: 0 | E86: 0 | F86: 0 | G86: 0 | H86: 0 | I86: 0 | K86: 0
C87: 0 | D87: 0 | E87: 0 | F87: 0 | G87: 0 | H87: 0 | I87: 0 | K87: 0
C88: 0 | D88: 0 | E88: 0 | F88: 0 | G88: 0 | H88: 0 | I88: 0 | K88: 0
C89: 0 | D89: 0 | E89: 0 | F89: 0 | G89: 0 | H89: 0 | I89: 0 | K89: 0
C90: 0 | D90: 0 | E90: 0 | F90: 0 | G90: 0 | H90: 0 | I90: 0 | K90: 0
C91: 0 | D91: 0 | E91: 0 | F91: 0 | G91: 0 | H91: 0 | I91: 0 | K91: 0
C92: 0 | D92: 0 | E92: 0 | F92: 0 | G92: 0 | H92: 0 | I92: 0 | K92: 0
C93: 0 | D93: 0 | E93: 0 | F93: 0 | G93: 0 | H93: 0 | I93: 0 | K93: 0
A94: ='Org structure'!A10 -> Vote 9 - Waste Management | C94: =SUM(C95:C104) -> 4555924.95 | D94: =SUM(D95:D104) -> 5450000 | E94: 0 | F94: 413164.36 | G94: 1654910.62 | H94: 1816666.667 | I94: -161756.0467 | J94: -0.08904002569 | K94: 5450000
A95: ='Org structure'!D91 -> 9.1 - Recycling | C95: 0 | D95: 0 | E95: 0 | F95: 0 | G95: 0 | H95: 0 | I95: 0 | K95: 0
A96: ='Org structure'!D92 -> 9.2 - Solid Waste Disposal (Landfill Sites) | C96: 0 | D96: 0 | E96: 0 | F96: 0 | G96: 0 | H96: 0 | I96: 0 | K96: 0
A97: ='Org structure'!D93 -> 9.3 - Solid Waste Removal | C97: 4555924.95 | D97: 5450000 | E97: 0 | F97: 413164.36 | G97: 1654910.62 | H97: =D97*4/12 -> 1816666.667 | I97: -161756.0467 | J97: -0.08904002569 | K97: 5450000
C98: 0 | D98: 0 | E98: 0 | F98: 0 | G98: 0 | H98: 0 | I98: 0 | K98: 0
C99: 0 | D99: 0 | E99: 0 | F99: 0 | G99: 0 | H99: 0 | I99: 0 | K99: 0
C100: 0 | D100: 0 | E100: 0 | F100: 0 | G100: 0 | H100: 0 | I100: 0 | K100: 0
C101: 0 | D101: 0 | E101: 0 | F101: 0 | G101: 0 | H101: 0 | I101: 0 | K101: 0
C102: 0 | D102: 0 | E102: 0 | F102: 0 | G102: 0 | H102: 0 | I102: 0 | K102: 0
C103: 0 | D103: 0 | E103: 0 | F103: 0 | G103: 0 | H103: 0 | I103: 0 | K103: 0
C104: 0 | D104: 0 | E104: 0 | F104: 0 | G104: 0 | H104: 0 | I104: 0 | K104: 0
A105: ='Org structure'!A11 -> Vote 10 - Sports & Recreation | C105: =SUM(C106:C115) -> 194131.39 | D105: =SUM(D106:D115) -> 220000 | E105: 0 | F105: 1339.14 | G105: 105008.73 | H105: 73333.33333 | I105: 31675.39667 | J105: 0.4319372273 | K105: 220000
A106: ='Org structure'!D102 -> 10.1 - Recreational Facilities | C106: 0 | D106: 0 | E106: 0 | F106: 0 | G106: 0 | H106: 0 | I106: 0 | K106: 0
A107: ='Org structure'!D103 -> 10.2 - Sports Grounds and Stadiums | C107: 194131.39 | D107: 220000 | E107: 0 | F107: 1339.14 | G107: 105008.73 | H107: =D107*4/12 -> 73333.33333 | I107: 31675.39667 | J107: 0.4319372273 | K107: 220000
C108: 0 | D108: 0 | E108: 0 | F108: 0 | G108: 0 | H108: 0 | I108: 0 | K108: 0
C109: 0 | D109: 0 | E109: 0 | F109: 0 | G109: 0 | H109: 0 | I109: 0 | K109: 0
C110: 0 | D110: 0 | E110: 0 | F110: 0 | G110: 0 | H110: 0 | I110: 0 | K110: 0
C111: 0 | D111: 0 | E111: 0 | F111: 0 | G111: 0 | H111: 0 | I111: 0 | K111: 0
C112: 0 | D112: 0 | E112: 0 | F112: 0 | G112: 0 | H112: 0 | I112: 0 | K112: 0
C113: 0 | D113: 0 | E113: 0 | F113: 0 | G113: 0 | H113: 0 | I113: 0 | K113: 0
C114: 0 | D114: 0 | E114: 0 | F114: 0 | G114: 0 | H114: 0 | I114: 0 | K114: 0
C115: 0 | D115: 0 | E115: 0 | F115: 0 | G115: 0 | H115: 0 | I115: 0 | K115: 0
A116: ='Org structure'!A12 -> Vote 11 - Water Management | C116: =SUM(C117:C126) -> 0 | D116: =SUM(D117:D126) -> 0 | E116: 0 | F116: 0 | G116: 0 | H116: 0 | I116: 0 | K116: 0
A117: ='Org structure'!D113 -> 11.1 - Water Distribution | C117: 0 | D117: 0 | E117: 0 | F117: 0 | G117: 0 | H117: 0 | I117: 0 | K117: 0
C118: 0 | D118: 0 | E118: 0 | F118: 0 | G118: 0 | H118: 0 | I118: 0 | K118: 0
C119: 0 | D119: 0 | E119: 0 | F119: 0 | G119: 0 | H119: 0 | I119: 0 | K119: 0
C120: 0 | D120: 0 | E120: 0 | F120: 0 | G120: 0 | H120: 0 | I120: 0 | K120: 0
C121: 0 | D121: 0 | E121: 0 | F121: 0 | G121: 0 | H121: 0 | I121: 0 | K121: 0
C122: 0 | D122: 0 | E122: 0 | F122: 0 | G122: 0 | H122: 0 | I122: 0 | K122: 0
C123: 0 | D123: 0 | E123: 0 | F123: 0 | G123: 0 | H123: 0 | I123: 0 | K123: 0
C124: 0 | D124: 0 | E124: 0 | F124: 0 | G124: 0 | H124: 0 | I124: 0 | K124: 0
C125: 0 | D125: 0 | E125: 0 | F125: 0 | G125: 0 | H125: 0 | I125: 0 | K125: 0
C126: 0 | D126: 0 | E126: 0 | F126: 0 | G126: 0 | H126: 0 | I126: 0 | K126: 0
A127: ='Org structure'!A13 -> Vote 12 - Waste Water Management | C127: =SUM(C128:C137) -> 0 | D127: =SUM(D128:D137) -> 0 | E127: 0 | F127: 0 | G127: 0 | H127: 0 | I127: 0 | K127: 0
A128: ='Org structure'!D124 -> 12.1 - Sewerage | C128: 0 | D128: 0 | E128: 0 | F128: 0 | G128: 0 | H128: 0 | I128: 0 | K128: 0
C129: 0 | D129: 0 | E129: 0 | F129: 0 | G129: 0 | H129: 0 | I129: 0 | K129: 0
C130: 0 | D130: 0 | E130: 0 | F130: 0 | G130: 0 | H130: 0 | I130: 0 | K130: 0
C131: 0 | D131: 0 | E131: 0 | F131: 0 | G131: 0 | H131: 0 | I131: 0 | K131: 0
C132: 0 | D132: 0 | E132: 0 | F132: 0 | G132: 0 | H132: 0 | I132: 0 | K132: 0
C133: 0 | D133: 0 | E133: 0 | F133: 0 | G133: 0 | H133: 0 | I133: 0 | K133: 0
C134: 0 | D134: 0 | E134: 0 | F134: 0 | G134: 0 | H134: 0 | I134: =G134-H134 -> 0 | J134: =IF(I134=0,"",I134/H134) ->  | K134: 0
C135: 0 | D135: 0 | E135: 0 | F135: 0 | G135: 0 | H135: 0 | I135: 0 | K135: 0
C136: 0 | D136: 0 | E136: 0 | F136: 0 | G136: 0 | H136: 0 | I136: 0 | K136: 0
C137: 0 | D137: 0 | E137: 0 | F137: 0 | G137: 0 | H137: 0 | I137: 0 | K137: 0
A138: ='Org structure'!A14 -> Vote 13 - Housing | C138: =SUM(C139:C148) -> 608486.87 | D138: =SUM(D139:D148) -> 700000 | E138: 0 | F138: 60826.52 | G138: 243176.52 | H138: 233333.3333 | I138: 9843.186667 | J138: 0.04218508571 | K138: 700000
A139: ='Org structure'!D135 -> 13.1 - Housing | C139: 608486.87 | D139: 700000 | E139: 0 | F139: 60826.52 | G139: 243176.52 | H139: =D139*4/12 -> 233333.3333 | I139: 9843.186667 | J139: 0.04218508571 | K139: 700000
C140: 0 | D140: 0 | E140: 0 | F140: 0 | G140: 0 | H140: 0 | I140: 0 | K140: 0
C141: 0 | D141: 0 | E141: 0 | F141: 0 | G141: 0 | H141: 0 | I141: 0 | K141: 0
C142: 0 | D142: 0 | E142: 0 | F142: 0 | G142: 0 | H142: 0 | I142: 0 | K142: 0
C143: 0 | D143: 0 | E143: 0 | F143: 0 | G143: 0 | H143: 0 | I143: 0 | K143: 0
C144: 0 | D144: 0 | E144: 0 | F144: 0 | G144: 0 | H144: 0 | I144: 0 | K144: 0
C145: 0 | D145: 0 | E145: 0 | F145: 0 | G145: 0 | H145: 0 | I145: 0 | K145: 0
C146: 0 | D146: 0 | E146: 0 | F146: 0 | G146: 0 | H146: 0 | I146: 0 | K146: 0
C147: 0 | D147: 0 | E147: 0 | F147: 0 | G147: 0 | H147: 0 | I147: 0 | K147: 0
C148: 0 | D148: 0 | E148: 0 | F148: 0 | G148: 0 | H148: 0 | I148: 0 | K148: 0
A149: ='Org structure'!A15 -> Vote 14 - Finance & Administration | C149: =SUM(C150:C159) -> 0 | D149: =SUM(D150:D159) -> 0 | E149: 0 | F149: 0 | G149: 0 | H149: 0 | I149: 0 | K149: 0
A150: ='Org structure'!D146 -> 14.1 - Security Services | C150: 0 | D150: 0 | E150: 0 | F150: 0 | G150: 0 | H150: 0 | I150: 0 | K150: 0
A151: ='Org structure'!D147 -> 14.2 - Administrative and Corporate Support | C151: 0 | D151: 0 | E151: 0 | F151: 0 | G151: 0 | H151: 0 | I151: 0 | K151: 0
A152: ='Org structure'!D148 -> 14.3 - Information Technology | C152: 0 | D152: 0 | E152: 0 | F152: 0 | G152: 0 | H152: 0 | I152: 0 | K152: 0
C153: 0 | D153: 0 | E153: 0 | F153: 0 | G153: 0 | H153: 0 | I153: 0 | K153: 0
C154: 0 | D154: 0 | E154: 0 | F154: 0 | G154: 0 | H154: 0 | I154: 0 | K154: 0
C155: 0 | D155: 0 | E155: 0 | F155: 0 | G155: 0 | H155: 0 | I155: 0 | K155: 0
C156: 0 | D156: 0 | E156: 0 | F156: 0 | G156: 0 | H156: 0 | I156: 0 | K156: 0
C157: 0 | D157: 0 | E157: 0 | F157: 0 | G157: 0 | H157: 0 | I157: 0 | K157: 0
C158: 0 | D158: 0 | E158: 0 | F158: 0 | G158: 0 | H158: 0 | I158: 0 | K158: 0
C159: 0 | D159: 0 | E159: 0 | F159: 0 | G159: 0 | H159: 0 | I159: 0 | K159: 0
A160: ='Org structure'!A16 -> Vote 15 - [NAME OF VOTE 5] | C160: =SUM(C161:C170) -> 0 | D160: =SUM(D161:D170) -> 0 | E160: 0 | F160: 0 | G160: 0 | H160: 0 | I160: 0 | K160: 0
C161: 0 | D161: 0 | E161: 0 | F161: 0 | G161: 0 | H161: 0 | I161: 0 | K161: 0
C162: 0 | D162: 0 | E162: 0 | F162: 0 | G162: 0 | H162: 0 | I162: 0 | K162: 0
C163: 0 | D163: 0 | E163: 0 | F163: 0 | G163: 0 | H163: 0 | I163: 0 | K163: 0
C164: 0 | D164: 0 | E164: 0 | F164: 0 | G164: 0 | H164: 0 | I164: 0 | K164: 0
C165: 0 | D165: 0 | E165: 0 | F165: 0 | G165: 0 | H165: 0 | I165: 0 | K165: 0
C166: 0 | D166: 0 | E166: 0 | F166: 0 | G166: 0 | H166: 0 | I166: 0 | K166: 0
C167: 0 | D167: 0 | E167: 0 | F167: 0 | G167: 0 | H167: 0 | I167: 0 | K167: 0
C168: 0 | D168: 0 | E168: 0 | F168: 0 | G168: 0 | H168: 0 | I168: 0 | K168: 0
C169: 0 | D169: 0 | E169: 0 | F169: 0 | G169: 0 | H169: 0 | I169: 0 | K169: 0
C170: 0 | D170: 0 | E170: 0 | F170: 0 | G170: 0 | H170: 0 | I170: 0 | K170: 0 | L170: =SUM(L78:L81) -> 0 | M170: 0 | N170: 0 | O170: 0 | P170: 0 | Q170: 0 | R170: 0 | S170: 0 | T170: 0 | U170: 0 | V170: 0 | W170: 0
A171: Total Revenue by Vote | B171: 2 | C171: =C6+C17+C28+C39+C50+C61+C72+C83+C94+C105+C116+C127+C138+C149+C160 -> 419354132.2 | D171: =D6+D17+D28+D39+D50+D61+D72+D83+D94+D105+D116+D127+D138+D149+D160 -> 437061000 | E171: 0 | F171: 9477765.95 | G171: 185971500.5 | H171: 145687000 | I171: 40284500.46 | J171: 0.2765140367 | K171: 437061000
I172: 0
A173: Expenditure by Vote | B173: 1 | I173: 0
A174: ='Org structure'!A2 -> Vote 1 - Energy Sources | C174: =SUM(C175:C184) -> 42237695.42 | D174: 35287529.57 | E174: 0 | F174: 2024710.2 | G174: 6536244.4 | H174: 11762509.86 | I174: -5226265.457 | J174: -0.4443155007 | K174: 35287529.57
A175: =A7 -> 1.1 - Electricity | C175: 42237695.42 | D175: 35287529.57 | E175: 0 | F175: 2024710.2 | G175: 6536244.4 | H175: =D175*4/12 -> 11762509.86 | I175: -5226265.457 | J175: -0.4443155007 | K175: 35287529.57
A176: =A8 -> 1.2 - Street Lighting and Signal Systems | C176: 0 | D176: 0 | E176: 0 | F176: 0 | G176: 0 | H176: 0 | I176: 0 | K176: 0
A177: 0 | C177: 0 | D177: 0 | E177: 0 | F177: 0 | G177: 0 | H177: 0 | I177: 0 | K177: 0
A178: 0 | C178: 0 | D178: 0 | E178: 0 | F178: 0 | G178: 0 | H178: 0 | I178: 0 | K178: 0
A179: 0 | C179: 0 | D179: 0 | E179: 0 | F179: 0 | G179: 0 | H179: 0 | I179: 0 | K179: 0
A180: 0 | C180: 0 | D180: 0 | E180: 0 | F180: 0 | G180: 0 | H180: 0 | I180: 0 | K180: 0
A181: 0 | C181: 0 | D181: 0 | E181: 0 | F181: 0 | G181: 0 | H181: 0 | I181: 0 | K181: 0
A182: 0 | C182: 0 | D182: 0 | E182: 0 | F182: 0 | G182: 0 | H182: 0 | I182: 0 | K182: 0
A183: 0 | C183: 0 | D183: 0 | E183: 0 | F183: 0 | G183: 0 | H183: 0 | I183: 0 | K183: 0
A184: 0 | C184: 0 | D184: 0 | E184: 0 | F184: 0 | G184: 0 | H184: 0 | I184: 0 | K184: 0
A185: ='Org structure'!A3 -> Vote 2 - Community and Social Services | C185: =SUM(C186:C195) -> 8963636.61 | D185: =SUM(D186:D195) -> 11309842.53 | E185: =SUM(E186:E195) -> 0 | F185: 757357.38 | G185: 2706906.4 | H185: 3769947.51 | I185: -1063041.11 | J185: -0.2819776952 | K185: 11309842.53
A186: =A18 -> 2.1 - Animal Care and Diseases | C186: 584735.89 | D186: 745614.39 | E186: 0 | F186: 89156.2 | G186: 285673.13 | H186: =D186*4/12 -> 248538.13 | I186: 37135 | J186: 0.1494136936 | K186: 745614.39
A187: =A19 -> 2.2 - Community Halls and Facilities | C187: 4523608.73 | D187: 5016026.34 | E187: 0 | F187: 346757.38 | G187: 1306103.09 | H187: =D187*4/12 -> 1672008.78 | I187: -365905.69 | J187: -0.2188419668 | K187: 5016026.34
A188: 2.3 - Libraries and Archives | C188: 388778.4 | D188: 634314.54 | E188: 0 | F188: 28215.71 | G188: 117650.24 | H188: 211438.18 | I188: -93787.94 | J188: -0.4435714496 | K188: 634314.54
A189: 2.4 - Cemeteries, Funeral Parlours and Crematoriums | C189: 2822821.88 | D189: 3194757.89 | E189: 0 | F189: 243926.67 | G189: 769987.32 | H189: 1064919.297 | I189: -294931.9767 | J189: -0.2769524203 | K189: 3194757.89
A190: 2.5 - Disaster Management | C190: 643691.71 | D190: 1719129.37 | E190: 0 | F190: 49301.42 | G190: 227492.62 | H190: 573043.1233 | I190: -345550.5033 | J190: -0.6030095978 | K190: 1719129.37
A191: 0 | C191: 0 | D191: 0 | E191: 0 | F191: 0 | G191: 0 | H191: 0 | I191: 0 | K191: 0
A192: 0 | C192: 0 | D192: 0 | E192: 0 | F192: 0 | G192: 0 | H192: 0 | I192: 0 | K192: 0
A193: 0 | C193: 0 | D193: 0 | E193: 0 | F193: 0 | G193: 0 | H193: 0 | I193: 0 | K193: 0
A194: 0 | C194: 0 | D194: 0 | E194: 0 | F194: 0 | G194: 0 | H194: 0 | I194: 0 | K194: 0
A195: 0 | C195: 0 | D195: 0 | E195: 0 | F195: 0 | G195: 0 | H195: 0 | I195: 0 | K195: 0
A196: ='Org structure'!A4 -> Vote 3 - Finance & Administration | C196: =SUM(C197:C206) -> 204576517.4 | D196: 155971317.4 | E196: 0 | F196: 7076001.3 | G196: 25646806.83 | H196: 51990439.14 | I196: -26343632.31 | J196: -0.5067014772 | K196: 155971317.4
A197: =A29 -> 3.1 - Fleet Management | C197: 9349424.62 | D197: 9785666.16 | E197: 0 | F197: 958362.27 | G197: 2588426.06 | H197: =D197*4/12 -> 3261888.72 | I197: -673462.66 | J197: -0.2064640206 | K197: 9785666.16
A198: =A30 -> 3.2 - Finance | C198: 54139930.1 | D198: 47504687.79 | E198: 0 | F198: 3224188.01 | G198: 7107170.43 | H198: =D198*4/12 -> 15834895.93 | I198: =G198-H198 -> -8727725.5 | J198: =IF(I198=0,"",I198/H198) -> -0.5511703732 | K198: 47504687.79
A199: 3.3 - Asset Management | C199: 98573923.53 | D199: 42562573.53 | E199: 0 | F199: 342244.08 | G199: 3258401.89 | H199: 14187524.51 | I199: -10929122.62 | J199: -0.7703333032 | K199: 42562573.53
A200: 3.4 - Human Resources | C200: 13327829.33 | D200: 17059043.1 | E200: 0 | F200: 632788.72 | G200: 5219281.15 | H200: 5686347.7 | I200: -467066.55 | J200: -0.0821382326 | K200: 17059043.1
... 147 more rows

Sheet C4-FinPerf RE
A1: =muni& " - "&S71B& " - "&date -> LIM331 Greater Giyani - Table C4 Monthly Budget Statement - Financial Performance (revenue and expenditure) - M04 October
A2: =desc -> Description | B2: =head27 -> Ref | C2: =Head1 -> 2018/19 | D2: =Head2 -> Budget Year 2019/20
C3: =Head5 -> Audited Outcome | D3: =Head6 -> Original Budget | E3: =Head7 -> Adjusted Budget | F3: =Head38 -> Monthly actual | G3: =Head39 -> YearTD actual | H3: =Head40 -> YearTD budget | I3: =Head41 -> YTD variance | J3: =Head41 -> YTD variance | K3: =Head8 -> Full Year Forecast
A4: R thousands | J4: %
A5: Revenue By Source
A6: Property rates | C6: 40659276.99 | D6: 39976000 | E6: 0 | F6: 4331920.56 | G6: =12786872.11+F6 -> 17118792.67 | H6: 13325333.4 | I6: =G6-H6 -> 3793459.27 | J6: =IF(I6=0,"",I6/H6) -> 0.284680252 | K6: 39976000
A7: Service charges - electricity revenue | C7: 0 | D7: 0 | E7: 0 | F7: 0 | G7: 0 | H7: 0 | I7: 0 | K7: 0
A8: Service charges - water revenue | C8: 0 | D8: 0 | E8: 0 | F8: 0 | G8: 0 | H8: 0 | I8: 0 | K8: 0
A9: Service charges - sanitation revenue | C9: 0 | D9: 0 | E9: 0 | F9: 0 | G9: 0 | H9: 0 | I9: 0 | K9: 0
A10: Service charges - refuse revenue | C10: 4477862.14 | D10: 5400000 | E10: 0 | F10: 407253.03 | G10: 1628887.85 | H10: 1800000 | I10: -171112.15 | J10: -0.09506230556 | K10: 5400000
A12: Rental of facilities and equipment | C12: 959361.94 | D12: 1222000 | E12: 0 | F12: 69959.57 | G12: 393707.84 | H12: 407333.32 | I12: -13625.48 | J12: -0.03345044299 | K12: 1222000
A13: Interest earned - external investments | C13: 5234951.38 | D13: 5000000 | E13: 0 | F13: 596212.68 | G13: 2316870.21 | H13: 1666666.68 | I13: 650203.53 | J13: 0.3901221149 | K13: 5000000
A14: Interest earned - outstanding debtors | C14: 15154966.24 | D14: 3400000 | E14: 0 | F14: 2263515.6 | G14: 8782481.98 | H14: 1133333.36 | I14: 7649148.62 | J14: 6.749248624 | K14: 3400000
A15: Dividends received | C15: 0 | D15: 0 | E15: 0 | F15: 0 | G15: 0 | H15: 0 | I15: 0 | K15: 0
A16: Fines, penalties and forfeits | C16: 14710465.63 | D16: 10000000 | E16: 0 | F16: 334908.05 | G16: 708721.09 | H16: 3333333.32 | I16: -2624612.23 | J16: -0.7873836721 | K16: 10000000
A17: Licences and permits | C17: 5716227.24 | D17: 6000000 | E17: 0 | F17: 1356432.46 | G17: 3589331.94 | H17: 2000000.04 | I17: 1589331.9 | J17: 0.7946659341 | K17: 6000000
A18: Agency services | C18: 0 | D18: 0 | E18: 0 | F18: 0 | G18: 0 | H18: 0 | I18: 0 | K18: 0
A19: Transfers and subsidies | C19: 259208395.2 | D19: 303024000 | E19: 0 | F19: 0 | G19: 126660000 | H19: 101008000 | I19: 25652000 | J19: 0.2539600824 | K19: 303024000
A20: Other revenue | C20: 55590.44 | D20: 2351000 | E20: 0 | F20: 117564 | G20: 497706.88 | H20: 783666.68 | I20: -285959.8 | J20: -0.3648997811 | K20: 2351000
A21: Gains on disposal of PPE | C21: 0 | D21: 0 | E21: 0 | F21: 0 | G21: 0 | H21: 0 | I21: 0 | K21: 0
A22: Total Revenue (excluding capital transfers and contributions) | C22: =SUM(C6:C10)+SUM(C12:C21) -> 346177097.2 | D22: 376373000 | E22: 0 | F22: 9477765.95 | G22: 161696500.5 | H22: 125457666.8 | I22: 36238833.66 | J22: 0.2888530816 | K22: =SUM(K6:K10)+SUM(K12:K21) -> 376373000
A24: Expenditure By Type
A25: Employee related costs | C25: 130474394.1 | D25: 164551019.8 | E25: 0 | F25: 11491048.49 | G25: 44579392.31 | H25: =D25*4/12 -> 54850339.95 | I25: =G25-H25 -> -10270947.64 | J25: =IF(I25=0,"",I25/H25) -> -0.1872540379 | K25: 164551019.8
A26: Remuneration of councillors | C26: 22755072.12 | D26: 23922552.37 | E26: 0 | F26: 1952435.49 | G26: 7631869 | H26: =D26*4/12 -> 7974184.123 | I26: -342315.1233 | J26: -0.04292791815 | K26: 23922552.37
A27: Debt impairment | C27: 29161644.74 | D27: 16000000 | E27: 0 | F27: 0 | G27: 0 | H27: =D27*4/12 -> 5333333.333 | I27: -5333333.333 | J27: -1 | K27: 16000000
A28: Depreciation & asset impairment | C28: 86419067.38 | D28: 30000000 | E28: 0 | F28: 0 | G28: 0 | H28: =D28*4/12 -> 10000000 | I28: -10000000 | J28: -1 | K28: 30000000
A29: Finance charges | C29: 294856.32 | D29: 0 | E29: 0 | F29: 0 | G29: 0 | H29: 0 | I29: 0 | K29: 0
A30: Bulk purchases | C30: 0 | D30: 0 | E30: 0 | F30: 0 | G30: 0 | H30: 0 | I30: 0 | K30: 0
A31: Other materials | C31: 4680660.95 | D31: 9000000 | E31: 0 | F31: 129443.51 | G31: 1835755.67 | H31: =D31*4/12 -> 3000000 | I31: -1164244.33 | J31: -0.3880814433 | K31: 9000000
A32: Contracted services | C32: 67631998.78 | D32: 71238008 | E32: 0 | F32: 4964606.95 | G32: 12517283.61 | H32: =D32*4/12 -> 23746002.67 | I32: -11228719.06 | J32: -0.4728677586 | K32: 71238008
A33: Transfers and subsidies | C33: 22363.95 | D33: 1000000 | E33: 0 | F33: 0 | G33: 0 | H33: =D33*4/12 -> 333333.3333 | I33: -333333.3333 | J33: -1 | K33: 1000000
A34: Other expenditure | C34: 49591568.83 | D34: 56479159.23 | E34: 0 | F34: 2626988.89 | G34: 10693357.54 | H34: =D34*4/12 -> 18826386.41 | I34: -8133028.87 | J34: -0.4320015904 | K34: 56479159.23
A35: Loss on disposal of PPE | C35: 7326.83 | D35: 0 | E35: 0 | F35: 0 | G35: 0 | H35: 0 | I35: 0 | K35: 0
A36: Total Expenditure | C36: =SUM(C25:C35) -> 391038954 | D36: =SUM(D25:D35) -> 372190739.4 | E36: =SUM(E25:E35) -> 0 | F36: 21164523.33 | G36: 77257658.13 | H36: 124063579.8 | I36: -46805921.68 | J36: -0.3772736669 | K36: 372190739.4
A38: Surplus/(Deficit) | C38: =C22-C36 -> -44861856.76 | D38: 4182260.56 | E38: 0 | F38: -11686757.38 | G38: 84438842.33 | H38: 1394086.987 | I38: =I22-I36 -> 83044755.34 | J38: 59.56927806 | K38: =K22-K36 -> 4182260.56
A39: Transfers and subsidies - capital (monetary allocations) (National / Provincial and District) | C39: 73177035 | D39: 60688000 | E39: 0 | F39: 0 | G39: 24275000 | H39: 20229333 | I39: =G39-H39 -> 4045667 | J39: 0.1999901331 | K39: 60688000
A40: Transfers and subsidies - capital (monetary allocations) (National / Provincial Departmental Agencies, Households, Non-profit Institutions, Private Enterprises, Public Corporatons, Higher Educational Institutions) | C40: 0 | D40: 0 | E40: 0 | F40: 0 | G40: 0 | H40: 0 | I40: =G40-H40 -> 0 | K40: 0
A41: Transfers and subsidies - capital (in-kind - all) | C41: 0 | D41: 0 | E41: 0 | F41: 0 | G41: 0 | H41: 0 | I41: =G41-H41 -> 0 | K41: 0
A42: Surplus/(Deficit) after capital transfers & contributions | C42: =C38+SUM(C39:C41) -> 28315178.24 | D42: 64870260.56 | E42: 0 | F42: -11686757.38 | G42: 108713842.3 | H42: 21623419.99 | K42: =K38+SUM(K39:K41) -> 64870260.56
A43: Taxation | I43: =G43-H43 -> 0 | J43: =IF(I43=0,"",I43/H43) -> 
A44: Surplus/(Deficit) after taxation | C44: =C42-C43 -> 28315178.24 | D44: 64870260.56 | E44: 0 | F44: -11686757.38 | G44: 108713842.3 | H44: 21623419.99 | K44: =K42-K43 -> 64870260.56
A45: Attributable to minorities
A46: Surplus/(Deficit) attributable to municipality | C46: =SUM(C44:C45) -> 28315178.24 | D46: 64870260.56 | E46: 0 | F46: -11686757.38 | G46: 108713842.3 | H46: 21623419.99 | K46: =SUM(K44:K45) -> 64870260.56
A47: Share of surplus/ (deficit) of associate
A48: Surplus/ (Deficit) for the year | C48: =C46+C47 -> 28315178.24 | D48: 64870260.56 | E48: 0 | F48: -11686757.38 | G48: 108713842.3 | H48: 21623419.99 | K48: =K46+K47 -> 64870260.56
A49: =head27a -> References
A50: 1. Material variances to be explained on Table SC1
A53: =A22&" including capital transfers/contributions etc" -> Total Revenue (excluding capital transfers and contributions) including capital transfers/contributions etc | C53: =C22+SUM(C39:C41) -> 419354132.2 | D53: 437061000 | E53: 0 | F53: 9477765.95 | G53: 185971500.5 | H53: 145686999.8 | K53: =K22+SUM(K39:K41) -> 437061000

Sheet C5-Capex
A1: =muni& " - "&S71D& " - "&date -> LIM331 Greater Giyani - Table C5 Monthly Budget Statement - Capital Expenditure (municipal vote, functional classification and funding) - M04 October
A2: =Vdesc -> Vote Description | B2: =head27 -> Ref | C2: =Head1 -> 2018/19 | D2: =Head2 -> Budget Year 2019/20
C3: =Head5 -> Audited Outcome | D3: =Head6 -> Original Budget | E3: =Head7 -> Adjusted Budget | F3: =Head38 -> Monthly actual | G3: =Head39 -> YearTD actual | H3: =Head40 -> YearTD budget | I3: =Head41 -> YTD variance | J3: =Head41 -> YTD variance | K3: =Head8 -> Full Year Forecast
A4: R thousands | B4: 1 | J4: %
A5: Multi-Year expenditure appropriation | B5: 2
A6: ='Org structure'!A2 -> Vote 1 - Energy Sources | C6: ='C5C'!C7 -> 0 | D6: ='C5C'!D7 -> 1400000 | E6: ='C5C'!E7 -> 0 | F6: ='C5C'!F7 -> 0 | G6: ='C5C'!G7 -> 0 | H6: ='C5C'!H7 -> 466666.6667 | I6: =G6-H6 -> -466666.6667 | J6: =IF(I6=0,"",I6/H6) -> -1 | K6: ='C5C'!K7 -> 1400000
A7: ='Org structure'!A3 -> Vote 2 - Community and Social Services | C7: ='C5C'!C18 -> 7438669 | D7: ='C5C'!D18 -> 100000 | E7: ='C5C'!E18 -> 0 | F7: ='C5C'!F18 -> 0 | G7: ='C5C'!G18 -> 0 | H7: ='C5C'!H18 -> 33333.33333 | I7: =G7-H7 -> -33333.33333 | J7: =IF(I7=0,"",I7/H7) -> -1 | K7: ='C5C'!K18 -> 100000
A8: ='Org structure'!A4 -> Vote 3 - Finance & Administration | C8: ='C5C'!C29 -> 4716695 | D8: ='C5C'!D29 -> 500000 | E8: ='C5C'!E29 -> 0 | F8: ='C5C'!F29 -> 0 | G8: ='C5C'!G29 -> 0 | H8: ='C5C'!H29 -> 166666.6667 | I8: =G8-H8 -> -166666.6667 | J8: =IF(I8=0,"",I8/H8) -> -1 | K8: ='C5C'!K29 -> 500000
A9: ='Org structure'!A5 -> Vote 4 - Planning and Development | C9: ='C5C'!C40 -> 0 | D9: ='C5C'!D40 -> 1166666 | E9: ='C5C'!E40 -> 0 | F9: ='C5C'!F40 -> 0 | G9: ='C5C'!G40 -> 0 | H9: ='C5C'!H40 -> 388888.6667 | I9: -388888.6667 | J9: -1 | K9: ='C5C'!K40 -> 1166666
A10: ='Org structure'!A6 -> Vote 5 - Executive & Council | C10: ='C5C'!C51 -> 0 | D10: ='C5C'!D51 -> 0 | E10: ='C5C'!E51 -> 0 | F10: ='C5C'!F51 -> 0 | G10: ='C5C'!G51 -> 0 | H10: ='C5C'!H51 -> 0 | I10: 0 | K10: ='C5C'!K51 -> 0
A11: ='Org structure'!A7 -> Vote 6 - Internal Audit | C11: ='C5C'!C62 -> 0 | D11: ='C5C'!D62 -> 0 | E11: ='C5C'!E62 -> 0 | F11: ='C5C'!F62 -> 0 | G11: ='C5C'!G62 -> 0 | H11: ='C5C'!H62 -> 0 | I11: 0 | K11: ='C5C'!K62 -> 0
A12: ='Org structure'!A8 -> Vote 7 - Road Transport | C12: ='C5C'!C73 -> 47267449 | D12: ='C5C'!D73 -> 40002820 | E12: ='C5C'!E73 -> 0 | F12: ='C5C'!F73 -> 10068532 | G12: ='C5C'!G73 -> 21154761.09 | H12: ='C5C'!H73 -> 13334273.33 | I12: 7820487.757 | J12: 0.5864952338 | K12: ='C5C'!K73 -> 40002820
A13: ='Org structure'!A9 -> Vote 8 - Public Safety | C13: ='C5C'!C84 -> 0 | D13: ='C5C'!D84 -> 0 | E13: ='C5C'!E84 -> 0 | F13: ='C5C'!F84 -> 0 | G13: ='C5C'!G84 -> 0 | H13: ='C5C'!H84 -> 0 | I13: 0 | K13: ='C5C'!K84 -> 0
A14: ='Org structure'!A10 -> Vote 9 - Waste Management | C14: ='C5C'!C95 -> 0 | D14: ='C5C'!D95 -> 12500000 | E14: ='C5C'!E95 -> 0 | F14: ='C5C'!F95 -> 0 | G14: ='C5C'!G95 -> 0 | H14: ='C5C'!H95 -> 4166666.667 | I14: -4166666.667 | J14: -1 | K14: ='C5C'!K95 -> 12500000
A15: ='Org structure'!A11 -> Vote 10 - Sports & Recreation | C15: ='C5C'!C106 -> 0 | D15: ='C5C'!D106 -> 23250780 | E15: ='C5C'!E106 -> 0 | F15: ='C5C'!F106 -> 1475268 | G15: ='C5C'!G106 -> 5983888.55 | H15: ='C5C'!H106 -> 7750260 | I15: -1766371.45 | J15: -0.2279112507 | K15: ='C5C'!K106 -> 23250780
A16: ='Org structure'!A12 -> Vote 11 - Water Management | C16: ='C5C'!C117 -> 0 | D16: ='C5C'!D117 -> 0 | E16: ='C5C'!E117 -> 0 | F16: ='C5C'!F117 -> 0 | G16: ='C5C'!G117 -> 0 | H16: ='C5C'!H117 -> 0 | I16: 0 | K16: ='C5C'!K117 -> 0
A17: ='Org structure'!A13 -> Vote 12 - Waste Water Management | C17: ='C5C'!C128 -> 0 | D17: ='C5C'!D128 -> 0 | E17: ='C5C'!E128 -> 0 | F17: ='C5C'!F128 -> 0 | G17: ='C5C'!G128 -> 0 | H17: ='C5C'!H128 -> 0 | I17: 0 | K17: ='C5C'!K128 -> 0
A18: ='Org structure'!A14 -> Vote 13 - Housing | C18: ='C5C'!C139 -> 0 | D18: ='C5C'!D139 -> 0 | E18: ='C5C'!E139 -> 0 | F18: ='C5C'!F139 -> 0 | G18: ='C5C'!G139 -> 0 | H18: ='C5C'!H139 -> 0 | I18: =G18-H18 -> 0 | J18: =IF(I18=0,"",I18/H18) ->  | K18: ='C5C'!K139 -> 0
A19: ='Org structure'!A15 -> Vote 14 - Finance & Administration | C19: ='C5C'!C150 -> 0 | D19: ='C5C'!D150 -> 22450000 | E19: ='C5C'!E150 -> 0 | F19: ='C5C'!F150 -> 788136 | G19: ='C5C'!G150 -> 1572002.11 | H19: ='C5C'!H150 -> 7483333.333 | I19: =G19-H19 -> -5911331.223 | J19: =IF(I19=0,"",I19/H19) -> -0.7899329029 | K19: ='C5C'!K150 -> 22450000
A20: ='Org structure'!A16 -> Vote 15 - [NAME OF VOTE 5] | C20: ='C5C'!C161 -> 0 | D20: ='C5C'!D161 -> 0 | E20: ='C5C'!E161 -> 0 | F20: ='C5C'!F161 -> 0 | G20: ='C5C'!G161 -> 0 | H20: ='C5C'!H161 -> 0 | I20: =G20-H20 -> 0 | J20: =IF(I20=0,"",I20/H20) ->  | K20: ='C5C'!K161 -> 0
A21: Total Capital Multi-year expenditure | B21: 4,7 | C21: =SUM(C6:C20) -> 59422813 | D21: =SUM(D6:D20) -> 101370266 | E21: 0 | F21: 12331936 | G21: 28710651.75 | H21: 33790088.67 | I21: -5079436.917 | J21: =IF(I21=0,"",I21/H21) -> -0.1503232787 | K21: =SUM(K6:K20) -> 101370266
A23: Single Year expenditure appropriation | B23: 2
A24: ='Org structure'!A2 -> Vote 1 - Energy Sources | C24: ='C5C'!C176 -> 115814 | D24: ='C5C'!D176 -> 300000 | E24: ='C5C'!E176 -> 0 | F24: ='C5C'!F176 -> 0 | G24: ='C5C'!G176 -> 0 | H24: ='C5C'!H176 -> 100000 | I24: ='C5C'!I176 -> -100000 | J24: =IF(I24=0,"",I24/H24) -> -1 | K24: ='C5C'!K176 -> 300000
A25: ='Org structure'!A3 -> Vote 2 - Community and Social Services | C25: ='C5C'!C187 -> 0 | D25: ='C5C'!D187 -> 0 | E25: ='C5C'!E187 -> 0 | F25: ='C5C'!F187 -> 0 | G25: ='C5C'!G187 -> 0 | H25: ='C5C'!H187 -> 0 | I25: ='C5C'!I187 -> 0 | J25: =IF(I25=0,"",I25/H25) ->  | K25: ='C5C'!K187 -> 0
A26: ='Org structure'!A4 -> Vote 3 - Finance & Administration | C26: ='C5C'!C198 -> 2417221 | D26: ='C5C'!D198 -> 2500000 | E26: ='C5C'!E198 -> 0 | F26: ='C5C'!F198 -> 0 | G26: ='C5C'!G198 -> 0 | H26: ='C5C'!H198 -> 833333.3333 | I26: ='C5C'!I198 -> -833333.3333 | J26: -1 | K26: ='C5C'!K198 -> 2500000
A27: ='Org structure'!A5 -> Vote 4 - Planning and Development | C27: ='C5C'!C209 -> 0 | D27: ='C5C'!D209 -> 0 | E27: ='C5C'!E209 -> 0 | F27: ='C5C'!F209 -> 0 | G27: ='C5C'!G209 -> 0 | H27: ='C5C'!H209 -> 0 | I27: ='C5C'!I209 -> 0 | K27: ='C5C'!K209 -> 0
A28: ='Org structure'!A6 -> Vote 5 - Executive & Council | C28: ='C5C'!C220 -> 0 | D28: ='C5C'!D220 -> 0 | E28: ='C5C'!E220 -> 0 | F28: ='C5C'!F220 -> 0 | G28: ='C5C'!G220 -> 0 | H28: ='C5C'!H220 -> 0 | I28: ='C5C'!I220 -> 0 | K28: ='C5C'!K220 -> 0
A29: ='Org structure'!A7 -> Vote 6 - Internal Audit | C29: ='C5C'!C231 -> 0 | D29: ='C5C'!D231 -> 0 | E29: ='C5C'!E231 -> 0 | F29: ='C5C'!F231 -> 0 | G29: ='C5C'!G231 -> 0 | H29: ='C5C'!H231 -> 0 | I29: ='C5C'!I231 -> 0 | K29: ='C5C'!K231 -> 0
A30: ='Org structure'!A8 -> Vote 7 - Road Transport | C30: ='C5C'!C242 -> 0 | D30: ='C5C'!D242 -> 600000 | E30: ='C5C'!E242 -> 0 | F30: ='C5C'!F242 -> 7391.3 | G30: ='C5C'!G242 -> 7391.3 | H30: ='C5C'!H242 -> 200000 | I30: ='C5C'!I242 -> -192608.7 | J30: -0.9630435 | K30: ='C5C'!K242 -> 600000
A31: ='Org structure'!A9 -> Vote 8 - Public Safety | C31: ='C5C'!C253 -> 0 | D31: ='C5C'!D253 -> 0 | E31: ='C5C'!E253 -> 0 | F31: ='C5C'!F253 -> 0 | G31: ='C5C'!G253 -> 0 | H31: ='C5C'!H253 -> 0 | I31: ='C5C'!I253 -> 0 | K31: ='C5C'!K253 -> 0
A32: ='Org structure'!A10 -> Vote 9 - Waste Management | C32: ='C5C'!C264 -> 0 | D32: ='C5C'!D264 -> 100000 | E32: ='C5C'!E264 -> 0 | F32: ='C5C'!F264 -> 0 | G32: ='C5C'!G264 -> 0 | H32: ='C5C'!H264 -> 33333.33333 | I32: ='C5C'!I264 -> -33333.33333 | J32: -1 | K32: ='C5C'!K264 -> 100000
A33: ='Org structure'!A11 -> Vote 10 - Sports & Recreation | C33: ='C5C'!C275 -> 0 | D33: ='C5C'!D275 -> 0 | E33: ='C5C'!E275 -> 0 | F33: ='C5C'!F275 -> 0 | G33: ='C5C'!G275 -> 0 | H33: ='C5C'!H275 -> 0 | I33: ='C5C'!I275 -> 0 | K33: ='C5C'!K275 -> 0
A34: ='Org structure'!A12 -> Vote 11 - Water Management | C34: ='C5C'!C286 -> 0 | D34: ='C5C'!D286 -> 0 | E34: ='C5C'!E286 -> 0 | F34: ='C5C'!F286 -> 0 | G34: ='C5C'!G286 -> 0 | H34: ='C5C'!H286 -> 0 | I34: ='C5C'!I286 -> 0 | K34: ='C5C'!K286 -> 0
A35: ='Org structure'!A13 -> Vote 12 - Waste Water Management | C35: ='C5C'!C297 -> 0 | D35: ='C5C'!D297 -> 0 | E35: ='C5C'!E297 -> 0 | F35: ='C5C'!F297 -> 0 | G35: ='C5C'!G297 -> 0 | H35: ='C5C'!H297 -> 0 | I35: ='C5C'!I297 -> 0 | K35: ='C5C'!K297 -> 0
A36: ='Org structure'!A14 -> Vote 13 - Housing | C36: ='C5C'!C308 -> 0 | D36: ='C5C'!D308 -> 0 | E36: ='C5C'!E308 -> 0 | F36: ='C5C'!F308 -> 0 | G36: ='C5C'!G308 -> 0 | H36: ='C5C'!H308 -> 0 | I36: ='C5C'!I308 -> 0 | K36: ='C5C'!K308 -> 0
A37: ='Org structure'!A15 -> Vote 14 - Finance & Administration | C37: ='C5C'!C319 -> 2508263 | D37: ='C5C'!D319 -> 5000000 | E37: ='C5C'!E319 -> 0 | F37: ='C5C'!F319 -> 73125.63 | G37: ='C5C'!G319 -> 219377.2 | H37: ='C5C'!H319 -> 1666666.667 | I37: ='C5C'!I319 -> -1447289.467 | J37: -0.86837368 | K37: ='C5C'!K319 -> 5000000
A38: ='Org structure'!A16 -> Vote 15 - [NAME OF VOTE 5] | C38: ='C5C'!C330 -> 0 | D38: ='C5C'!D330 -> 0 | E38: ='C5C'!E330 -> 0 | F38: ='C5C'!F330 -> 0 | G38: ='C5C'!G330 -> 0 | H38: ='C5C'!H330 -> 0 | I38: ='C5C'!I330 -> 0 | K38: ='C5C'!K330 -> 0
A39: Total Capital single-year expenditure | B39: 4 | C39: =SUM(C24:C38) -> 5041298 | D39: 8500000 | E39: 0 | F39: 80516.93 | G39: 226768.5 | H39: 2833333.333 | I39: -2606564.833 | J39: -0.9199640588 | K39: =SUM(K24:K38) -> 8500000
A40: Total Capital Expenditure | C40: =C39+C21 -> 64464111 | D40: 109870266 | E40: 0 | F40: 12412452.93 | G40: 28937420.25 | H40: 36623422 | I40: -7686001.75 | J40: =IF(I40=0,"",I40/H40) -> -0.2098657452 | K40: =K39+K21 -> 109870266
A42: Capital Expenditure - Functional Classification
A43: Governance and administration | C43: =SUM(C44:C46) -> 9642179 | D43: 31400000 | E43: 0 | F43: 861262.3 | G43: 1791379.98 | H43: 10466666.67 | I43: =G43-H43 -> -8675286.687 | J43: =IF(I43=0,"",I43/H43) -> -0.8288490465 | K43: =SUM(K44:K46) -> 31400000
A44: Executive and council | C44: 0 | D44: 0 | E44: 0 | F44: 0 | G44: 0 | H44: 0 | I44: 0 | J44: =IF(I44=0,"",I44/H44) ->  | K44: 0
A45: Finance and administration | C45: 9642179 | D45: 31400000 | E45: 0 | F45: 861262.3 | G45: 1791379.98 | H45: =D45*4/12 -> 10466666.67 | I45: -8675286.687 | J45: -0.8288490465 | K45: 31400000
A46: Internal audit | C46: 0 | D46: 0 | E46: 0 | F46: 0 | G46: 0 | H46: 0 | I46: 0 | K46: 0
A47: Community and public safety | C47: =SUM(C48:C52) -> 7438669 | D47: 25400780 | E47: 0 | F47: 1475267.86 | G47: 5983888.41 | H47: 8466926.667 | I47: -2483038.257 | J47: -0.2932632293 | K47: =SUM(K48:K52) -> 25400780
A48: Community and social services | C48: 0 | D48: 100000 | E48: 0 | F48: 0 | G48: 0 | H48: =D48*4/12 -> 33333.33333 | I48: -33333.33333 | J48: -1 | K48: 100000
A49: Sport and recreation | C49: 7438669 | D49: 25250780 | E49: 0 | F49: 1475267.86 | G49: 5983888.41 | H49: =D49*4/12 -> 8416926.667 | I49: -2433038.257 | J49: -0.2890649227 | K49: 25250780
A50: Public safety | C50: 0 | D50: 50000 | E50: 0 | F50: 0 | G50: 0 | H50: 16666.66667 | I50: -16666.66667 | J50: -1 | K50: 50000
A51: Housing | C51: 0 | D51: 0 | E51: 0 | F51: 0 | G51: 0 | H51: 0 | I51: 0 | K51: 0
A52: Health | C52: 0 | D52: 0 | E52: 0 | F52: 0 | G52: 0 | H52: 0 | I52: 0 | K52: 0
A53: Economic and environmental services | C53: =SUM(C54:C56) -> 47267449 | D53: 38769486 | E53: 0 | F53: 10075923.01 | G53: 21162152.1 | H53: 12923162 | I53: 8238990.1 | J53: 0.6375367035 | K53: =SUM(K54:K56) -> 38769486
A54: Planning and development | C54: 0 | D54: 1166666 | E54: 0 | F54: 0 | G54: 0 | H54: =D54*4/12 -> 388888.6667 | I54: -388888.6667 | J54: -1 | K54: 1166666
A55: Road transport | C55: 47267449 | D55: 37602820 | E55: 0 | F55: 10075923.01 | G55: 21162152.1 | H55: =D55*4/12 -> 12534273.33 | I55: 8627878.767 | J55: 0.6883429567 | K55: 37602820
A56: Environmental protection | C56: 0 | D56: 0 | E56: 0 | F56: 0 | G56: 0 | H56: 0 | I56: 0 | K56: 0
A57: Trading services | C57: =SUM(C58:C61) -> 115814 | D57: 14300000 | E57: 0 | F57: 0 | G57: 0 | H57: 4766666.667 | I57: -4766666.667 | J57: -1 | K57: =SUM(K58:K61) -> 14300000
A58: Energy sources | C58: 115814 | D58: 1700000 | E58: 0 | F58: 0 | G58: 0 | H58: =D58*4/12 -> 566666.6667 | I58: -566666.6667 | J58: -1 | K58: 1700000
A59: Water management | C59: 0 | D59: 0 | E59: 0 | F59: 0 | G59: 0 | H59: 0 | I59: 0 | K59: 0
A60: Waste water management | C60: 0 | D60: 0 | E60: 0 | F60: 0 | G60: 0 | H60: 0 | I60: 0 | K60: 0
A61: Waste management | C61: 0 | D61: 12600000 | E61: 0 | F61: 0 | G61: 0 | H61: =D61*4/12 -> 4200000 | I61: -4200000 | J61: -1 | K61: 12600000
A62: Other | C62: 0 | D62: 0 | E62: 0 | F62: 0 | G62: 0 | H62: 0 | I62: 0 | K62: 0
A63: Total Capital Expenditure - Functional Classification | B63: 3 | C63: =C43+C47+C53+C57+C62 -> 64464111 | D63: =D43+D47+D53+D57+D62 -> 109870266 | E63: 0 | F63: 12412453.17 | G63: 28937420.49 | H63: 36623422 | I63: -7686001.51 | J63: -0.2098657387 | K63: =K43+K47+K53+K57+K62 -> 109870266
A65: Funded by:
A66: National Government | C66: 54706118 | D66: 57653600 | E66: 0 | F66: 11543799.17 | G66: 25140338.7 | H66: =D66*4/12 -> 19217866.67 | I66: =G66-H66 -> 5922472.033 | J66: =IF(I66=0,"",I66/H66) -> 0.3081753108 | K66: 57653600
A67: Provincial Government | C67: 0 | D67: 0 | E67: 0 | F67: 0 | G67: 0 | H67: 0 | I67: 0 | K67: 0
A68: District Municipality | C68: 0 | D68: 0 | E68: 0 | F68: 0 | G68: 0 | H68: 0 | I68: 0 | K68: 0
A69: Other transfers and grants | C69: 0 | D69: 0 | E69: 0 | F69: 0 | G69: 0 | H69: 0 | I69: 0 | K69: 0
A70: Transfers recognised - capital | C70: =SUM(C66:C69) -> 54706118 | D70: 57653600 | E70: 0 | F70: 11543799.17 | G70: 25140338.7 | H70: 19217866.67 | I70: 5922472.033 | J70: 0.3081753108 | K70: =SUM(K66:K69) -> 57653600
A72: Borrowing | B72: 6 | C72: 0 | D72: 0 | E72: 0 | F72: 0 | G72: 0 | H72: 0 | I72: 0 | K72: 0
A73: Internally generated funds | C73: 9757993 | D73: 52216666 | E73: 0 | F73: =868654-0.2 -> 868653.8 | G73: =2928427.79+F73 -> 3797081.59 | H73: =D73*4/12 -> 17405555.33 | I73: -13608473.74 | J73: -0.7818465704 | K73: 52216666
A74: Total Capital Funding | C74: =+C70+C72+C73 -> 64464111 | D74: 109870266 | E74: 0 | F74: 12412452.97 | G74: 28937420.29 | H74: 36623422 | I74: -7686001.71 | J74: -0.2098657441 | K74: =+K70+K72+K73 -> 109870266
A75: =head27a -> References
A76: 1. Municipalities may choose to appropriate for capital expenditure for three years or for one year (if one year appropriation projected expenditure required for yr2 and yr3).
A77: 2. Include capital component of PPP unitary payment
A78: 3. Capital expenditure by functional classification must reconcile to the total of multi-year and single year appropriations
A79: 4. Include expenditure on investment property, intangible and biological assets
A81: 6. Include finance leases and PPP capital funding component of unitary payment - total borrowing/repayments to reconcile to changes in Table SA17
A86: check balance | C86: =C40-C74 -> 0 | D86: =D40-D74 -> 0 | E86: 0 | F86: -0.04000000283 | G86: -0.03999999911 | H86: 0 | K86: 0

Sheet C5C
A1: =muni& " - "&S71D& " - "&"A"& " - "&date -> LIM331 Greater Giyani - Table C5 Monthly Budget Statement - Capital Expenditure (municipal vote, functional classification and funding) - A - M04 October
A2: =Vdesc -> Vote Description | B2: =head27 -> Ref | C2: =Head1 -> 2018/19 | D2: =Head2 -> Budget Year 2019/20 | L2: =Head4 -> 
A3: R thousand | C3: =Head5 -> Audited Outcome | D3: =Head6 -> Original Budget | E3: =Head7 -> Adjusted Budget | F3: =Head38 -> Monthly actual | G3: =Head39 -> YearTD actual | H3: =Head40 -> YearTD budget | I3: =Head41 -> YTD variance | J3: =Head41 -> YTD variance | K3: =Head8 -> Full Year Forecast | L3: =Head12 -> Forecast 2010/11 | M3: =Head13 -> Forecast 2011/12 | N3: =Head14 -> Forecast 2012/13 | O3: =Head15 -> Forecast 2013/14 | P3: =Head16 -> Forecast 2014/15 | Q3: =Head17 -> Forecast 2015/16 | R3: =Head18 -> Forecast 2016/17 | S3: =Head19 -> Forecast 2017/18 | T3: =Head20 -> Forecast 2018/19 | U3: =Head21 -> Forecast 2019/20 | V3: =Head22 -> Forecast 2020/21 | W3: =Head23 -> Forecast 2021/22
J4: %
A5: Capital expenditure - Municipal Vote
A6: Expenditure of multi-year capital appropriation | B6: 1
A7: ='Org structure'!A2 -> Vote 1 - Energy Sources | C7: =SUM(C8:C17) -> 0 | D7: =SUM(D8:D17) -> 1400000 | E7: 0 | F7: 0 | G7: 0 | H7: 466666.6667 | I7: =G7-H7 -> -466666.6667 | J7: =IF(I7=0,"",I7/H7) -> -1 | K7: 1400000
A8: =IF(RIGHT('Org structure'!D3,18)<>"[Name of sub-vote]",'Org structure'!D3,"") -> 1.1 - Electricity | D8: 1400000 | H8: =4/12*D8 -> 466666.6667 | I8: -466666.6667 | J8: -1 | K8: 1400000
A9: =IF(RIGHT('Org structure'!D4,18)<>"[Name of sub-vote]",'Org structure'!D4,"") -> 1.2 - Street Lighting and Signal Systems | I9: 0
A10: =IF(RIGHT('Org structure'!D5,18)<>"[Name of sub-vote]",'Org structure'!D5,"") ->  | I10: 0
A11: =IF(RIGHT('Org structure'!D6,18)<>"[Name of sub-vote]",'Org structure'!D6,"") ->  | I11: 0
A12: =IF(RIGHT('Org structure'!D7,18)<>"[Name of sub-vote]",'Org structure'!D7,"") ->  | I12: 0
A13: =IF(RIGHT('Org structure'!D8,18)<>"[Name of sub-vote]",'Org structure'!D8,"") ->  | I13: 0
A14: =IF(RIGHT('Org structure'!D9,18)<>"[Name of sub-vote]",'Org structure'!D9,"") ->  | I14: 0
A15: =IF(RIGHT('Org structure'!D10,18)<>"[Name of sub-vote]",'Org structure'!D10,"") ->  | I15: 0
A16: =IF(RIGHT('Org structure'!D11,18)<>"[Name of sub-vote]",'Org structure'!D11,"") ->  | I16: 0
A17: =IF(RIGHT('Org structure'!D12,18)<>"[Name of sub-vote]",'Org structure'!D12,"") ->  | I17: 0
A18: ='Org structure'!A3 -> Vote 2 - Community and Social Services | C18: =SUM(C19:C28) -> 7438669 | D18: =SUM(D19:D28) -> 100000 | E18: 0 | F18: 0 | G18: 0 | H18: 33333.33333 | I18: -33333.33333 | J18: -1 | K18: 100000
A19: =IF(RIGHT('Org structure'!D14,18)<>"[Name of sub-vote]",'Org structure'!D14,"") -> 2.1 - Animal Care and Diseases | I19: 0
A20: =IF(RIGHT('Org structure'!D15,18)<>"[Name of sub-vote]",'Org structure'!D15,"") -> 2.2 - Community Halls and Facilities | C20: 7438669 | D20: 100000 | E20: 0 | H20: =4/12*D20 -> 33333.33333 | I20: -33333.33333 | J20: -1 | K20: 100000
A21: =IF(RIGHT('Org structure'!D16,18)<>"[Name of sub-vote]",'Org structure'!D16,"") -> 2.3 - Libraries and Archives | I21: 0
A22: =IF(RIGHT('Org structure'!D17,18)<>"[Name of sub-vote]",'Org structure'!D17,"") -> 2.4 - Cemeteries, Funeral Parlours and Crematoriums | I22: 0
A23: =IF(RIGHT('Org structure'!D18,18)<>"[Name of sub-vote]",'Org structure'!D18,"") -> 2.5 - Disaster Management | I23: 0
A24: =IF(RIGHT('Org structure'!D19,18)<>"[Name of sub-vote]",'Org structure'!D19,"") ->  | I24: 0
A25: =IF(RIGHT('Org structure'!D20,18)<>"[Name of sub-vote]",'Org structure'!D20,"") ->  | I25: 0
A26: =IF(RIGHT('Org structure'!D21,18)<>"[Name of sub-vote]",'Org structure'!D21,"") ->  | I26: 0
A27: =IF(RIGHT('Org structure'!D22,18)<>"[Name of sub-vote]",'Org structure'!D22,"") ->  | I27: 0
A28: =IF(RIGHT('Org structure'!D23,18)<>"[Name of sub-vote]",'Org structure'!D23,"") ->  | I28: 0
A29: ='Org structure'!A4 -> Vote 3 - Finance & Administration | C29: =SUM(C30:C39) -> 4716695 | D29: 500000 | E29: 0 | F29: 0 | G29: 0 | H29: 166666.6667 | I29: -166666.6667 | J29: -1 | K29: 500000
A30: =IF(RIGHT('Org structure'!D25,18)<>"[Name of sub-vote]",'Org structure'!D25,"") -> 3.1 - Fleet Management | I30: 0
A31: =IF(RIGHT('Org structure'!D26,18)<>"[Name of sub-vote]",'Org structure'!D26,"") -> 3.2 - Finance | I31: 0
A32: =IF(RIGHT('Org structure'!D27,18)<>"[Name of sub-vote]",'Org structure'!D27,"") -> 3.3 - Asset Management | I32: 0
A33: =IF(RIGHT('Org structure'!D28,18)<>"[Name of sub-vote]",'Org structure'!D28,"") -> 3.4 - Human Resources | I33: 0
A34: =IF(RIGHT('Org structure'!D29,18)<>"[Name of sub-vote]",'Org structure'!D29,"") -> 3.5 - Legal Services | D34: 500000 | H34: =4/12*D34 -> 166666.6667 | I34: -166666.6667 | J34: -1 | K34: 500000
A35: =IF(RIGHT('Org structure'!D30,18)<>"[Name of sub-vote]",'Org structure'!D30,"") -> 3.6 - Property Services | C35: 4716695 | I35: 0
A36: =IF(RIGHT('Org structure'!D31,18)<>"[Name of sub-vote]",'Org structure'!D31,"") -> 3.7 - Risk Management | I36: 0
A37: =IF(RIGHT('Org structure'!D32,18)<>"[Name of sub-vote]",'Org structure'!D32,"") -> 3.8 - Supply Chain Management | I37: 0
A38: =IF(RIGHT('Org structure'!D33,18)<>"[Name of sub-vote]",'Org structure'!D33,"") ->  | I38: 0
A39: =IF(RIGHT('Org structure'!D34,18)<>"[Name of sub-vote]",'Org structure'!D34,"") ->  | I39: 0
A40: ='Org structure'!A5 -> Vote 4 - Planning and Development | C40: =SUM(C41:C50) -> 0 | D40: 1166666 | E40: 0 | F40: 0 | G40: 0 | H40: 388888.6667 | I40: -388888.6667 | J40: -1 | K40: 1166666
A41: =IF(RIGHT('Org structure'!D36,18)<>"[Name of sub-vote]",'Org structure'!D36,"") -> 4.1 - Town Planning, Building Regulations and Enforcement, and City Engineer | I41: 0
A42: =IF(RIGHT('Org structure'!D37,18)<>"[Name of sub-vote]",'Org structure'!D37,"") -> 4.2 - Corporate Wide Strategic Planning (IDPs, LEDs) | D42: 1166666 | H42: =4/12*D42 -> 388888.6667 | I42: -388888.6667 | J42: -1 | K42: 1166666
A43: =IF(RIGHT('Org structure'!D38,18)<>"[Name of sub-vote]",'Org structure'!D38,"") -> 4.3 - Economic Development/Planning | I43: 0
A44: =IF(RIGHT('Org structure'!D39,18)<>"[Name of sub-vote]",'Org structure'!D39,"") -> 4.4 - Project Management Unit | I44: 0
A45: =IF(RIGHT('Org structure'!D40,18)<>"[Name of sub-vote]",'Org structure'!D40,"") ->  | I45: 0
A46: =IF(RIGHT('Org structure'!D41,18)<>"[Name of sub-vote]",'Org structure'!D41,"") ->  | I46: 0
A47: =IF(RIGHT('Org structure'!D42,18)<>"[Name of sub-vote]",'Org structure'!D42,"") ->  | I47: 0
A48: =IF(RIGHT('Org structure'!D43,18)<>"[Name of sub-vote]",'Org structure'!D43,"") ->  | I48: 0
A49: =IF(RIGHT('Org structure'!D44,18)<>"[Name of sub-vote]",'Org structure'!D44,"") ->  | I49: 0
A50: =IF(RIGHT('Org structure'!D45,18)<>"[Name of sub-vote]",'Org structure'!D45,"") ->  | I50: 0
A51: ='Org structure'!A6 -> Vote 5 - Executive & Council | C51: =SUM(C52:C61) -> 0 | D51: =SUM(D52:D61) -> 0 | E51: 0 | F51: 0 | G51: 0 | H51: 0 | I51: 0 | K51: 0
A52: =IF(RIGHT('Org structure'!D47,18)<>"[Name of sub-vote]",'Org structure'!D47,"") -> 5.1 - Municipal Manager, Town Secretary and Chief Executive | I52: 0
A53: =IF(RIGHT('Org structure'!D48,18)<>"[Name of sub-vote]",'Org structure'!D48,"") -> 5.2 - Mayor and Council | I53: 0
A54: =IF(RIGHT('Org structure'!D49,18)<>"[Name of sub-vote]",'Org structure'!D49,"") ->  | I54: 0
A55: =IF(RIGHT('Org structure'!D50,18)<>"[Name of sub-vote]",'Org structure'!D50,"") ->  | I55: 0
A56: =IF(RIGHT('Org structure'!D51,18)<>"[Name of sub-vote]",'Org structure'!D51,"") ->  | I56: 0
A57: =IF(RIGHT('Org structure'!D52,18)<>"[Name of sub-vote]",'Org structure'!D52,"") ->  | I57: 0
A58: =IF(RIGHT('Org structure'!D53,18)<>"[Name of sub-vote]",'Org structure'!D53,"") ->  | I58: 0
A59: =IF(RIGHT('Org structure'!D54,18)<>"[Name of sub-vote]",'Org structure'!D54,"") ->  | I59: 0
A60: =IF(RIGHT('Org structure'!D55,18)<>"[Name of sub-vote]",'Org structure'!D55,"") ->  | I60: 0
A61: =IF(RIGHT('Org structure'!D56,18)<>"[Name of sub-vote]",'Org structure'!D56,"") ->  | I61: 0
A62: ='Org structure'!A7 -> Vote 6 - Internal Audit | C62: =SUM(C63:C72) -> 0 | D62: =SUM(D63:D72) -> 0 | E62: 0 | F62: 0 | G62: 0 | H62: 0 | I62: 0 | K62: 0
A63: =IF(RIGHT('Org structure'!D58,18)<>"[Name of sub-vote]",'Org structure'!D58,"") -> 6.1 - Governance Function | I63: 0
A64: =IF(RIGHT('Org structure'!D59,18)<>"[Name of sub-vote]",'Org structure'!D59,"") ->  | I64: 0
A65: =IF(RIGHT('Org structure'!D60,18)<>"[Name of sub-vote]",'Org structure'!D60,"") ->  | I65: 0
A66: =IF(RIGHT('Org structure'!D61,18)<>"[Name of sub-vote]",'Org structure'!D61,"") ->  | I66: 0
A67: =IF(RIGHT('Org structure'!D62,18)<>"[Name of sub-vote]",'Org structure'!D62,"") ->  | I67: 0
A68: =IF(RIGHT('Org structure'!D63,18)<>"[Name of sub-vote]",'Org structure'!D63,"") ->  | I68: 0
A69: =IF(RIGHT('Org structure'!D64,18)<>"[Name of sub-vote]",'Org structure'!D64,"") ->  | I69: 0
A70: =IF(RIGHT('Org structure'!D65,18)<>"[Name of sub-vote]",'Org structure'!D65,"") ->  | I70: 0
A71: =IF(RIGHT('Org structure'!D66,18)<>"[Name of sub-vote]",'Org structure'!D66,"") ->  | I71: =G71-H71 -> 0 | J71: =IF(I71=0,"",I71/H71) -> 
A72: =IF(RIGHT('Org structure'!D67,18)<>"[Name of sub-vote]",'Org structure'!D67,"") ->  | I72: 0
A73: ='Org structure'!A8 -> Vote 7 - Road Transport | C73: =SUM(C74:C83) -> 47267449 | D73: 40002820 | E73: 0 | F73: 10068532 | G73: 21154761.09 | H73: 13334273.33 | I73: 7820487.757 | J73: 0.5864952338 | K73: 40002820
A74: =IF(RIGHT('Org structure'!D69,18)<>"[Name of sub-vote]",'Org structure'!D69,"") -> 7.1 - Taxi Ranks | I74: 0
A75: =IF(RIGHT('Org structure'!D70,18)<>"[Name of sub-vote]",'Org structure'!D70,"") -> 7.2 - Road and Traffic Regulation | H75: =D75*4/12 -> 0 | I75: 0
A76: =IF(RIGHT('Org structure'!D71,18)<>"[Name of sub-vote]",'Org structure'!D71,"") -> 7.3 - Public Transport | I76: 0
A77: =IF(RIGHT('Org structure'!D72,18)<>"[Name of sub-vote]",'Org structure'!D72,"") -> 7.4 - Roads | C77: 47267449 | D77: 40002820 | F77: 10068532 | G77: =11086229.09+F77 -> 21154761.09 | H77: =4/12*D77 -> 13334273.33 | I77: 7820487.757 | J77: 0.5864952338 | K77: 40002820
A78: =IF(RIGHT('Org structure'!D73,18)<>"[Name of sub-vote]",'Org structure'!D73,"") ->  | I78: 0
A79: =IF(RIGHT('Org structure'!D74,18)<>"[Name of sub-vote]",'Org structure'!D74,"") ->  | I79: 0
A80: =IF(RIGHT('Org structure'!D75,18)<>"[Name of sub-vote]",'Org structure'!D75,"") ->  | I80: 0
A81: =IF(RIGHT('Org structure'!D76,18)<>"[Name of sub-vote]",'Org structure'!D76,"") ->  | I81: 0
A82: =IF(RIGHT('Org structure'!D77,18)<>"[Name of sub-vote]",'Org structure'!D77,"") ->  | I82: 0
A83: =IF(RIGHT('Org structure'!D78,18)<>"[Name of sub-vote]",'Org structure'!D78,"") ->  | I83: 0
A84: ='Org structure'!A9 -> Vote 8 - Public Safety | C84: =SUM(C85:C94) -> 0 | D84: =SUM(D85:D94) -> 0 | E84: 0 | F84: 0 | G84: 0 | H84: 0 | I84: 0 | K84: 0
A85: =IF(RIGHT('Org structure'!D80,18)<>"[Name of sub-vote]",'Org structure'!D80,"") -> 8.1 - Cleansing | I85: 0
A86: =IF(RIGHT('Org structure'!D81,18)<>"[Name of sub-vote]",'Org structure'!D81,"") -> 8.2 - Fencing and Fences | I86: 0
A87: =IF(RIGHT('Org structure'!D82,18)<>"[Name of sub-vote]",'Org structure'!D82,"") ->  | I87: 0
A88: =IF(RIGHT('Org structure'!D83,18)<>"[Name of sub-vote]",'Org structure'!D83,"") ->  | I88: 0
A89: =IF(RIGHT('Org structure'!D84,18)<>"[Name of sub-vote]",'Org structure'!D84,"") ->  | I89: 0
A90: =IF(RIGHT('Org structure'!D85,18)<>"[Name of sub-vote]",'Org structure'!D85,"") ->  | I90: 0
A91: =IF(RIGHT('Org structure'!D86,18)<>"[Name of sub-vote]",'Org structure'!D86,"") ->  | I91: 0
A92: =IF(RIGHT('Org structure'!D87,18)<>"[Name of sub-vote]",'Org structure'!D87,"") ->  | I92: 0
A93: =IF(RIGHT('Org structure'!D88,18)<>"[Name of sub-vote]",'Org structure'!D88,"") ->  | I93: 0
A94: =IF(RIGHT('Org structure'!D89,18)<>"[Name of sub-vote]",'Org structure'!D89,"") ->  | I94: 0
A95: ='Org structure'!A10 -> Vote 9 - Waste Management | C95: =SUM(C97) -> 0 | D95: =SUM(D97) -> 12500000 | E95: =SUM(E97) -> 0 | F95: 0 | G95: 0 | H95: 4166666.667 | I95: -4166666.667 | J95: -1 | K95: 12500000
A96: =IF(RIGHT('Org structure'!D91,18)<>"[Name of sub-vote]",'Org structure'!D91,"") -> 9.1 - Recycling | I96: 0
A97: =IF(RIGHT('Org structure'!D92,18)<>"[Name of sub-vote]",'Org structure'!D92,"") -> 9.2 - Solid Waste Disposal (Landfill Sites) | D97: 12500000 | H97: =4/12*D97 -> 4166666.667 | I97: -4166666.667 | J97: -1 | K97: 12500000
A98: =IF(RIGHT('Org structure'!D93,18)<>"[Name of sub-vote]",'Org structure'!D93,"") -> 9.3 - Solid Waste Removal | I98: 0
A99: =IF(RIGHT('Org structure'!D94,18)<>"[Name of sub-vote]",'Org structure'!D94,"") ->  | I99: 0
A100: =IF(RIGHT('Org structure'!D95,18)<>"[Name of sub-vote]",'Org structure'!D95,"") ->  | I100: 0
A101: =IF(RIGHT('Org structure'!D96,18)<>"[Name of sub-vote]",'Org structure'!D96,"") ->  | I101: 0
A102: =IF(RIGHT('Org structure'!D97,18)<>"[Name of sub-vote]",'Org structure'!D97,"") ->  | I102: 0
A103: =IF(RIGHT('Org structure'!D98,18)<>"[Name of sub-vote]",'Org structure'!D98,"") ->  | I103: 0
A104: =IF(RIGHT('Org structure'!D99,18)<>"[Name of sub-vote]",'Org structure'!D99,"") ->  | I104: 0
A105: =IF(RIGHT('Org structure'!D100,18)<>"[Name of sub-vote]",'Org structure'!D100,"") ->  | I105: 0
A106: ='Org structure'!A11 -> Vote 10 - Sports & Recreation | C106: =SUM(C107:C116) -> 0 | D106: =SUM(D107:D116) -> 23250780 | E106: 0 | F106: 1475268 | G106: 5983888.55 | H106: 7750260 | I106: -1766371.45 | J106: -0.2279112507 | K106: 23250780
A107: =IF(RIGHT('Org structure'!D102,18)<>"[Name of sub-vote]",'Org structure'!D102,"") -> 10.1 - Recreational Facilities | D107: 2500000 | H107: =4/12*D107 -> 833333.3333 | I107: -833333.3333 | J107: -1 | K107: 2500000
A108: =IF(RIGHT('Org structure'!D103,18)<>"[Name of sub-vote]",'Org structure'!D103,"") -> 10.2 - Sports Grounds and Stadiums | D108: 20750780 | F108: 1475268 | G108: =4508620.55+F108 -> 5983888.55 | H108: 6916926.667 | I108: -933038.1167 | J108: -0.1348920065 | K108: 20750780
A109: =IF(RIGHT('Org structure'!D104,18)<>"[Name of sub-vote]",'Org structure'!D104,"") ->  | I109: 0
A110: =IF(RIGHT('Org structure'!D105,18)<>"[Name of sub-vote]",'Org structure'!D105,"") ->  | I110: 0
A111: =IF(RIGHT('Org structure'!D106,18)<>"[Name of sub-vote]",'Org structure'!D106,"") ->  | I111: 0
A112: =IF(RIGHT('Org structure'!D107,18)<>"[Name of sub-vote]",'Org structure'!D107,"") ->  | I112: 0
A113: =IF(RIGHT('Org structure'!D108,18)<>"[Name of sub-vote]",'Org structure'!D108,"") ->  | I113: 0
A114: =IF(RIGHT('Org structure'!D109,18)<>"[Name of sub-vote]",'Org structure'!D109,"") ->  | I114: 0
A115: =IF(RIGHT('Org structure'!D110,18)<>"[Name of sub-vote]",'Org structure'!D110,"") ->  | I115: 0
A116: =IF(RIGHT('Org structure'!D111,18)<>"[Name of sub-vote]",'Org structure'!D111,"") ->  | I116: 0
A117: ='Org structure'!A12 -> Vote 11 - Water Management | C117: =SUM(C118:C127) -> 0 | D117: =SUM(D118:D127) -> 0 | E117: 0 | F117: 0 | G117: 0 | H117: 0 | I117: 0 | K117: 0
A118: =IF(RIGHT('Org structure'!D113,18)<>"[Name of sub-vote]",'Org structure'!D113,"") -> 11.1 - Water Distribution | I118: 0
A119: =IF(RIGHT('Org structure'!D114,18)<>"[Name of sub-vote]",'Org structure'!D114,"") ->  | I119: 0
A120: =IF(RIGHT('Org structure'!D115,18)<>"[Name of sub-vote]",'Org structure'!D115,"") ->  | I120: 0
A121: =IF(RIGHT('Org structure'!D116,18)<>"[Name of sub-vote]",'Org structure'!D116,"") ->  | I121: 0
A122: =IF(RIGHT('Org structure'!D117,18)<>"[Name of sub-vote]",'Org structure'!D117,"") ->  | I122: 0
A123: =IF(RIGHT('Org structure'!D118,18)<>"[Name of sub-vote]",'Org structure'!D118,"") ->  | I123: 0
A124: =IF(RIGHT('Org structure'!D119,18)<>"[Name of sub-vote]",'Org structure'!D119,"") ->  | I124: 0
A125: =IF(RIGHT('Org structure'!D120,18)<>"[Name of sub-vote]",'Org structure'!D120,"") ->  | I125: 0
A126: =IF(RIGHT('Org structure'!D121,18)<>"[Name of sub-vote]",'Org structure'!D121,"") ->  | I126: 0
A127: =IF(RIGHT('Org structure'!D122,18)<>"[Name of sub-vote]",'Org structure'!D122,"") ->  | I127: 0
A128: ='Org structure'!A13 -> Vote 12 - Waste Water Management | C128: =SUM(C129:C138) -> 0 | D128: =SUM(D129:D138) -> 0 | E128: 0 | F128: 0 | G128: 0 | H128: 0 | I128: 0 | K128: 0
A129: =IF(RIGHT('Org structure'!D124,18)<>"[Name of sub-vote]",'Org structure'!D124,"") -> 12.1 - Sewerage | I129: 0
A130: =IF(RIGHT('Org structure'!D125,18)<>"[Name of sub-vote]",'Org structure'!D125,"") ->  | I130: 0
A131: =IF(RIGHT('Org structure'!D126,18)<>"[Name of sub-vote]",'Org structure'!D126,"") ->  | I131: 0
A132: =IF(RIGHT('Org structure'!D127,18)<>"[Name of sub-vote]",'Org structure'!D127,"") ->  | I132: 0
A133: =IF(RIGHT('Org structure'!D128,18)<>"[Name of sub-vote]",'Org structure'!D128,"") ->  | I133: 0
A134: =IF(RIGHT('Org structure'!D129,18)<>"[Name of sub-vote]",'Org structure'!D129,"") ->  | I134: 0
A135: =IF(RIGHT('Org structure'!D130,18)<>"[Name of sub-vote]",'Org structure'!D130,"") ->  | I135: =G135-H135 -> 0 | J135: =IF(I135=0,"",I135/H135) -> 
A136: =IF(RIGHT('Org structure'!D131,18)<>"[Name of sub-vote]",'Org structure'!D131,"") ->  | I136: 0
A137: =IF(RIGHT('Org structure'!D132,18)<>"[Name of sub-vote]",'Org structure'!D132,"") ->  | I137: 0
A138: =IF(RIGHT('Org structure'!D133,18)<>"[Name of sub-vote]",'Org structure'!D133,"") ->  | I138: 0
A139: ='Org structure'!A14 -> Vote 13 - Housing | C139: =SUM(C140:C149) -> 0 | D139: =SUM(D140:D149) -> 0 | E139: 0 | F139: 0 | G139: 0 | H139: 0 | I139: 0 | K139: 0
A140: =IF(RIGHT('Org structure'!D135,18)<>"[Name of sub-vote]",'Org structure'!D135,"") -> 13.1 - Housing | I140: 0
A141: =IF(RIGHT('Org structure'!D136,18)<>"[Name of sub-vote]",'Org structure'!D136,"") ->  | I141: 0
A142: =IF(RIGHT('Org structure'!D137,18)<>"[Name of sub-vote]",'Org structure'!D137,"") ->  | I142: 0
A143: =IF(RIGHT('Org structure'!D138,18)<>"[Name of sub-vote]",'Org structure'!D138,"") ->  | I143: 0
A144: =IF(RIGHT('Org structure'!D139,18)<>"[Name of sub-vote]",'Org structure'!D139,"") ->  | I144: 0
A145: =IF(RIGHT('Org structure'!D140,18)<>"[Name of sub-vote]",'Org structure'!D140,"") ->  | I145: 0
A146: =IF(RIGHT('Org structure'!D141,18)<>"[Name of sub-vote]",'Org structure'!D141,"") ->  | I146: 0
A147: =IF(RIGHT('Org structure'!D142,18)<>"[Name of sub-vote]",'Org structure'!D142,"") ->  | I147: 0
A148: =IF(RIGHT('Org structure'!D143,18)<>"[Name of sub-vote]",'Org structure'!D143,"") ->  | I148: 0
A149: =IF(RIGHT('Org structure'!D144,18)<>"[Name of sub-vote]",'Org structure'!D144,"") ->  | I149: 0
A150: ='Org structure'!A15 -> Vote 14 - Finance & Administration | C150: =SUM(C151:C160) -> 0 | D150: =SUM(D151:D160) -> 22450000 | E150: 0 | F150: 788136 | G150: 1572002.11 | H150: 7483333.333 | I150: -5911331.223 | J150: -0.7899329029 | K150: 22450000
A151: =IF(RIGHT('Org structure'!D146,18)<>"[Name of sub-vote]",'Org structure'!D146,"") -> 14.1 - Security Services | I151: 0
A152: =IF(RIGHT('Org structure'!D147,18)<>"[Name of sub-vote]",'Org structure'!D147,"") -> 14.2 - Administrative and Corporate Support | D152: 20050000 | F152: 788136 | G152: =783866.11+F152 -> 1572002.11 | H152: =4/12*D152 -> 6683333.333 | I152: -5111331.223 | J152: -0.7647877142 | K152: 20050000
A153: =IF(RIGHT('Org structure'!D148,18)<>"[Name of sub-vote]",'Org structure'!D148,"") -> 14.3 - Information Technology | D153: 2400000 | H153: 800000 | I153: -800000 | J153: -1 | K153: 2400000
A154: =IF(RIGHT('Org structure'!D149,18)<>"[Name of sub-vote]",'Org structure'!D149,"") ->  | I154: 0
A155: =IF(RIGHT('Org structure'!D150,18)<>"[Name of sub-vote]",'Org structure'!D150,"") ->  | I155: 0
A156: =IF(RIGHT('Org structure'!D151,18)<>"[Name of sub-vote]",'Org structure'!D151,"") ->  | I156: 0
A157: =IF(RIGHT('Org structure'!D152,18)<>"[Name of sub-vote]",'Org structure'!D152,"") ->  | I157: 0
A158: =IF(RIGHT('Org structure'!D153,18)<>"[Name of sub-vote]",'Org structure'!D153,"") ->  | I158: 0
A159: =IF(RIGHT('Org structure'!D154,18)<>"[Name of sub-vote]",'Org structure'!D154,"") ->  | I159: 0
A160: =IF(RIGHT('Org structure'!D155,18)<>"[Name of sub-vote]",'Org structure'!D155,"") ->  | I160: 0
A161: ='Org structure'!A16 -> Vote 15 - [NAME OF VOTE 5] | C161: =SUM(C162:C171) -> 0 | D161: =SUM(D162:D171) -> 0 | E161: 0 | F161: 0 | G161: 0 | H161: 0 | I161: 0 | K161: 0
A162: =IF(RIGHT('Org structure'!D157,18)<>"[Name of sub-vote]",'Org structure'!D157,"") ->  | I162: 0
A163: =IF(RIGHT('Org structure'!D158,18)<>"[Name of sub-vote]",'Org structure'!D158,"") ->  | I163: 0
A164: =IF(RIGHT('Org structure'!D159,18)<>"[Name of sub-vote]",'Org structure'!D159,"") ->  | I164: 0
A165: =IF(RIGHT('Org structure'!D160,18)<>"[Name of sub-vote]",'Org structure'!D160,"") ->  | I165: 0
A166: =IF(RIGHT('Org structure'!D161,18)<>"[Name of sub-vote]",'Org structure'!D161,"") ->  | I166: 0
A167: =IF(RIGHT('Org structure'!D162,18)<>"[Name of sub-vote]",'Org structure'!D162,"") ->  | I167: 0
A168: =IF(RIGHT('Org structure'!D163,18)<>"[Name of sub-vote]",'Org structure'!D163,"") ->  | I168: 0
A169: =IF(RIGHT('Org structure'!D164,18)<>"[Name of sub-vote]",'Org structure'!D164,"") ->  | I169: 0
A170: =IF(RIGHT('Org structure'!D165,18)<>"[Name of sub-vote]",'Org structure'!D165,"") ->  | I170: 0
A171: =IF(RIGHT('Org structure'!D166,18)<>"[Name of sub-vote]",'Org structure'!D166,"") ->  | I171: 0 | L171: =SUM(L79:L82) -> 0 | M171: 0 | N171: 0 | O171: 0 | P171: 0 | Q171: 0 | R171: 0 | S171: 0 | T171: 0 | U171: 0 | V171: 0 | W171: 0
A172: Total multi-year capital expenditure | C172: =C7+C18+C29+C40+C51+C62+C73+C84+C95+C106+C117+C128+C139+C150+C161 -> 59422813 | D172: =D7+D18+D29+D40+D51+D62+D73+D84+D95+D106+D117+D128+D139+D150+D161 -> 101370266 | E172: 0 | F172: 12331936 | G172: 28710651.75 | H172: 33790088.67 | I172: -5079436.917 | J172: -0.1503232787 | K172: 101370266
I173: 0
A174: Capital expenditure - Municipal Vote
A175: Expenditue of single-year capital appropriation | B175: 1 | I175: 0
A176: ='Org structure'!A2 -> Vote 1 - Energy Sources | C176: =SUM(C177:C186) -> 115814 | D176: 300000 | E176: 0 | F176: 0 | G176: 0 | H176: 100000 | I176: -100000 | J176: -1 | K176: 300000
A177: =IF(RIGHT('Org structure'!D3,18)<>"[Name of sub-vote]",'Org structure'!D3,"") -> 1.1 - Electricity | C177: 115814 | D177: 300000 | E177: 0 | F177: 0 | G177: 0 | H177: =4/12*D177 -> 100000 | I177: -100000 | J177: -1 | K177: 300000
A178: =IF(RIGHT('Org structure'!D4,18)<>"[Name of sub-vote]",'Org structure'!D4,"") -> 1.2 - Street Lighting and Signal Systems | E178: 0 | F178: 0 | G178: 0 | H178: 0 | I178: 0 | K178: 0
A179: =IF(RIGHT('Org structure'!D5,18)<>"[Name of sub-vote]",'Org structure'!D5,"") ->  | C179: 0 | D179: 0 | E179: 0 | F179: 0 | G179: 0 | H179: 0 | I179: 0 | K179: 0
A180: =IF(RIGHT('Org structure'!D6,18)<>"[Name of sub-vote]",'Org structure'!D6,"") ->  | C180: 0 | D180: 0 | E180: 0 | F180: 0 | G180: 0 | H180: 0 | I180: 0 | K180: 0
A181: =IF(RIGHT('Org structure'!D7,18)<>"[Name of sub-vote]",'Org structure'!D7,"") ->  | C181: 0 | D181: 0 | E181: 0 | F181: 0 | G181: 0 | H181: 0 | I181: 0 | K181: 0
A182: =IF(RIGHT('Org structure'!D8,18)<>"[Name of sub-vote]",'Org structure'!D8,"") ->  | C182: 0 | D182: 0 | E182: 0 | F182: 0 | G182: 0 | H182: 0 | I182: 0 | K182: 0
A183: =IF(RIGHT('Org structure'!D9,18)<>"[Name of sub-vote]",'Org structure'!D9,"") ->  | C183: 0 | D183: 0 | E183: 0 | F183: 0 | G183: 0 | H183: 0 | I183: 0 | K183: 0
A184: =IF(RIGHT('Org structure'!D10,18)<>"[Name of sub-vote]",'Org structure'!D10,"") ->  | C184: 0 | D184: 0 | E184: 0 | F184: 0 | G184: 0 | H184: 0 | I184: 0 | K184: 0
A185: =IF(RIGHT('Org structure'!D11,18)<>"[Name of sub-vote]",'Org structure'!D11,"") ->  | C185: 0 | D185: 0 | E185: 0 | F185: 0 | G185: 0 | H185: 0 | I185: 0 | K185: 0
A186: =IF(RIGHT('Org structure'!D12,18)<>"[Name of sub-vote]",'Org structure'!D12,"") ->  | C186: 0 | D186: 0 | E186: 0 | F186: 0 | G186: 0 | H186: 0 | I186: 0 | K186: 0
A187: ='Org structure'!A3 -> Vote 2 - Community and Social Services | C187: =SUM(C188:C197) -> 0 | D187: =SUM(D188:D197) -> 0 | E187: =SUM(E188:E197) -> 0 | F187: 0 | G187: 0 | H187: 0 | I187: 0 | K187: 0
A188: =IF(RIGHT('Org structure'!D14,18)<>"[Name of sub-vote]",'Org structure'!D14,"") -> 2.1 - Animal Care and Diseases | C188: 0 | D188: 0 | E188: 0 | F188: 0 | G188: 0 | H188: 0 | I188: 0 | K188: 0
A189: =IF(RIGHT('Org structure'!D15,18)<>"[Name of sub-vote]",'Org structure'!D15,"") -> 2.2 - Community Halls and Facilities | C189: 0 | D189: 0 | E189: 0 | F189: 0 | G189: 0 | H189: 0 | I189: 0 | K189: 0
A190: =IF(RIGHT('Org structure'!D16,18)<>"[Name of sub-vote]",'Org structure'!D16,"") -> 2.3 - Libraries and Archives | C190: 0 | D190: 0 | E190: 0 | F190: 0 | G190: 0 | H190: 0 | I190: 0 | K190: 0
A191: =IF(RIGHT('Org structure'!D17,18)<>"[Name of sub-vote]",'Org structure'!D17,"") -> 2.4 - Cemeteries, Funeral Parlours and Crematoriums | C191: 0 | D191: 0 | E191: 0 | F191: 0 | G191: 0 | H191: 0 | I191: 0 | K191: 0
A192: =IF(RIGHT('Org structure'!D18,18)<>"[Name of sub-vote]",'Org structure'!D18,"") -> 2.5 - Disaster Management | C192: 0 | D192: 0 | E192: 0 | F192: 0 | G192: 0 | H192: 0 | I192: 0 | K192: 0
A193: =IF(RIGHT('Org structure'!D19,18)<>"[Name of sub-vote]",'Org structure'!D19,"") ->  | C193: 0 | D193: 0 | E193: 0 | F193: 0 | G193: 0 | H193: 0 | I193: 0 | K193: 0
A194: =IF(RIGHT('Org structure'!D20,18)<>"[Name of sub-vote]",'Org structure'!D20,"") ->  | C194: 0 | D194: 0 | E194: 0 | F194: 0 | G194: 0 | H194: 0 | I194: 0 | K194: 0
A195: =IF(RIGHT('Org structure'!D21,18)<>"[Name of sub-vote]",'Org structure'!D21,"") ->  | C195: 0 | D195: 0 | E195: 0 | F195: 0 | G195: 0 | H195: 0 | I195: 0 | K195: 0
A196: =IF(RIGHT('Org structure'!D22,18)<>"[Name of sub-vote]",'Org structure'!D22,"") ->  | C196: 0 | D196: 0 | E196: 0 | F196: 0 | G196: 0 | H196: 0 | I196: 0 | K196: 0
A197: =IF(RIGHT('Org structure'!D23,18)<>"[Name of sub-vote]",'Org structure'!D23,"") ->  | C197: 0 | D197: 0 | E197: 0 | F197: 0 | G197: 0 | H197: 0 | I197: 0 | K197: 0
A198: ='Org structure'!A4 -> Vote 3 - Finance & Administration | C198: =SUM(C199:C208) -> 2417221 | D198: 2500000 | E198: 0 | F198: 0 | G198: 0 | H198: 833333.3333 | I198: -833333.3333 | J198: -1 | K198: 2500000
A199: =IF(RIGHT('Org structure'!D25,18)<>"[Name of sub-vote]",'Org structure'!D25,"") -> 3.1 - Fleet Management | C199: 2417221 | D199: 2500000 | E199: 0 | F199: 0 | G199: 0 | H199: =4/12*D199 -> 833333.3333 | I199: -833333.3333 | J199: -1 | K199: 2500000
A200: =IF(RIGHT('Org structure'!D26,18)<>"[Name of sub-vote]",'Org structure'!D26,"") -> 3.2 - Finance | I200: =G200-H200 -> 0 | J200: =IF(I200=0,"",I200/H200) -> 
... 145 more rows

Sheet C6-FinPos
A1: =muni& " - "&S71E& " - "&date -> LIM331 Greater Giyani - Table C6 Monthly Budget Statement - Financial Position - M04 October
A2: =desc -> Description | B2: =head27 -> Ref | C2: =Head1 -> 2018/19 | D2: =Head2 -> Budget Year 2019/20
C3: =Head5 -> Audited Outcome | D3: =Head6 -> Original Budget | E3: =Head7 -> Adjusted Budget | F3: =Head39 -> YearTD actual | G3: =Head8 -> Full Year Forecast
A4: R thousands | B4: 1
A5: ASSETS
A6: Current assets
A7: Cash | C7: 40759300 | D7: 31749594.56 | E7: 0 | F7: 90459966 | G7: 31749594.56
A8: Call investment deposits | C8: 0 | D8: 0 | E8: 0 | F8: 113781845 | G8: 0
A9: Consumer debtors | C9: 95624027 | D9: 38907075 | E9: 0 | F9: 69648186 | G9: 38907075
A10: Other debtors | C10: 0 | D10: 21187185.72 | E10: 0 | F10: 71814602 | G10: 21187185.72
A11: Current portion of long-term receivables | C11: 0 | D11: 0 | E11: 0 | G11: 0
A12: Inventory | C12: 2335282 | D12: 6991678.32 | E12: 0 | F12: 5571026 | G12: 6991678.32
A13: Total current assets | C13: =SUM(C7:C12) -> 138718609 | D13: =SUM(D7:D12) -> 98835533.6 | E13: =SUM(E7:E12) -> 0 | F13: =SUM(F7:F12) -> 351275625 | G13: =SUM(G7:G12) -> 98835533.6
A15: Non current assets
A16: Long-term receivables | C16: 0 | D16: 0 | E16: 0 | F16: 0 | G16: 0
A17: Investments | C17: 0 | D17: 0 | E17: 0 | F17: 0 | G17: 0
A18: Investment property | C18: 11136000 | D18: 11196000 | E18: 0 | F18: 11136000 | G18: 11196000
A19: Investments in Associate | C19: 0 | D19: 0 | E19: 0 | F19: 0 | G19: 0
A20: Property, plant and equipment | C20: 869332557.6 | D20: 927883084.9 | E20: 0 | F20: 898269978 | G20: 927883084.9
C21: 0 | D21: 0 | E21: 0 | F21: 0 | G21: 0
A22: Biological | C22: 0 | D22: 0 | E22: 0 | F22: 0 | G22: 0
A23: Intangible | C23: 630044.83 | D23: 405379.42 | E23: 0 | F23: 630045 | G23: 405379.42
A24: Other non-current assets | C24: 206302.63 | D24: 171052.63 | E24: 0 | F24: 206303 | G24: 171052.63
A25: Total non current assets | C25: =SUM(C16:C20)+SUM(C22:C24) -> 881304905.1 | D25: =SUM(D16:D20)+SUM(D22:D24) -> 939655516.9 | E25: =SUM(E16:E20)+SUM(E22:E24) -> 0 | F25: =SUM(F16:F20)+SUM(F22:F24) -> 910242326 | G25: =SUM(G16:G20)+SUM(G22:G24) -> 939655516.9
A26: TOTAL ASSETS | C26: =C13+C25 -> 1020023514 | D26: =D13+D25 -> 1038491051 | E26: =E13+E25 -> 0 | F26: =F13+F25 -> 1261517951 | G26: =G13+G25 -> 1038491051
A28: LIABILITIES
A29: Current liabilities
A30: Bank overdraft | C30: 0 | D30: 0 | E30: 0 | F30: 0 | G30: 0
A31: Borrowing | C31: 706994 | D31: 0 | E31: 0 | F31: 706994 | G31: 0
A32: Consumer deposits | C32: 0 | D32: 0 | E32: 0 | F32: 0 | G32: 0
A33: Trade and other payables | C33: 73297428 | D33: 60000000 | E33: 0 | F33: 156761996 | G33: 60000000
A34: Provisions | C34: 321080 | D34: 58369347.06 | E34: 0 | F34: 129817522 | G34: 58369347.06
A35: Total current liabilities | C35: =SUM(C30:C34) -> 74325502 | D35: =SUM(D30:D34) -> 118369347.1 | E35: =SUM(E30:E34) -> 0 | F35: =SUM(F30:F34) -> 287286512 | G35: =SUM(G30:G34) -> 118369347.1
A37: Non current liabilities
A38: Borrowing | C38: 480165.86 | D38: 0 | E38: 0 | F38: 480165.86 | G38: 0
A39: Provisions | C39: 50411219 | D39: 0 | E39: 0 | F39: 1524480.37 | G39: 0
A40: Total non current liabilities | C40: =SUM(C38:C39) -> 50891384.86 | D40: =SUM(D38:D39) -> 0 | E40: =SUM(E38:E39) -> 0 | F40: =SUM(F38:F39) -> 2004646.23 | G40: =SUM(G38:G39) -> 0
A41: TOTAL LIABILITIES | C41: =C35+C40 -> 125216886.9 | D41: =D35+D40 -> 118369347.1 | E41: =E35+E40 -> 0 | F41: =F35+F40 -> 289291158.2 | G41: =G35+G40 -> 118369347.1
A43: NET ASSETS | B43: 2 | C43: =C26-C41 -> 894806627.2 | D43: =D26-D41 -> 920121703.5 | E43: =E26-E41 -> 0 | F43: =F26-F41 -> 972226792.8 | G43: =G26-G41 -> 920121703.5
A45: COMMUNITY WEALTH/EQUITY
A46: Accumulated Surplus/(Deficit) | C46: 894806627 | D46: 920121703.5 | E46: 0 | F46: 972226793 | G46: 920121703.5
A47: Reserves | C47: 0 | D47: 0 | E47: 0 | F47: 0 | G47: 0
A48: TOTAL COMMUNITY WEALTH/EQUITY | B48: 2 | C48: =SUM(C46:C47) -> 894806627 | D48: =SUM(D46:D47) -> 920121703.5 | E48: =SUM(E46:E47) -> 0 | F48: =SUM(F46:F47) -> 972226793 | G48: =SUM(G46:G47) -> 920121703.5
A49: =head27a -> References
A50: 1. Material variances to be explained in Table SC1
A51: 2. Net assets must balance with Total Community Wealth/Equity
A54: check balance | C54: =C43-C48 -> 0.2099997997 | D54: =D43-D48 -> 0 | E54: =E43-E48 -> 0 | F54: =F43-F48 -> -0.2300000191 | G54: =G43-G48 -> 0

Sheet C7-CFlow
A1: =muni& " - "&S71F& " - "&date -> LIM331 Greater Giyani - Table C7 Monthly Budget Statement - Cash Flow - M04 October
A2: =desc -> Description | B2: =head27 -> Ref | C2: =Head1 -> 2018/19 | D2: =Head2 -> Budget Year 2019/20
C3: =Head5 -> Audited Outcome | D3: =Head6 -> Original Budget | E3: =Head7 -> Adjusted Budget | F3: =Head38 -> Monthly actual | G3: =Head39 -> YearTD actual | H3: =Head40 -> YearTD budget | I3: =Head41 -> YTD variance | J3: =Head41 -> YTD variance | K3: =Head8 -> Full Year Forecast
A4: R thousands | B4: 1 | J4: %
A5: CASH FLOW FROM OPERATING ACTIVITIES
A6: Receipts
A7: Property rates | C7: 40659276 | D7: 23985600 | F7: 4709381 | G7: =2527281+F7 -> 7236662 | H7: 13525333.4 | I7: =G7-H7 -> -6288671.4 | J7: =IF(I7=0,"",I7/H7) -> -0.4649550007 | K7: 23985600
A8: Service charges | C8: 4685205 | D8: 3240000 | E8: 0 | F8: 699278 | G8: =365884+F8 -> 1065162 | H8: 1800000 | I8: -734838 | J8: =IF(I8=0,"",I8/H8) -> -0.4082433333 | K8: 3240000
A9: Other revenue | C9: 23660897 | D9: 18473000 | E9: 0 | F9: 1831791.51 | G9: =3172693.28+F9 -> 5004484.79 | H9: 6157666.68 | I9: -1153181.89 | J9: =IF(I9=0,"",I9/H9) -> -0.1872757897 | K9: 18473000
A10: Government - operating | C10: 259208395 | D10: 303024000 | E10: 0 | F10: 0 | G10: 126660000 | H10: 97841333.36 | I10: 28818666.64 | J10: =IF(I10=0,"",I10/H10) -> 0.2945449091 | K10: 303024000
A11: Government - capital | C11: 73177035 | D11: 60688000 | E11: 0 | F11: 0 | G11: 24275000 | H11: 23562666.64 | I11: 712333.36 | J11: =IF(I11=0,"",I11/H11) -> 0.03023144073 | K11: 60688000
A12: Interest | C12: 20389917 | D12: 8400000 | E12: 0 | F12: 596212.68 | G12: =1720657.53+F12 -> 2316870.21 | H12: 2800000.04 | I12: -483129.83 | J12: -0.1725463654 | K12: 8400000
A13: Dividends | C13: 0 | D13: 0 | E13: 0 | F13: 0 | G13: 0 | H13: 0 | I13: 0 | K13: 0
A14: Payments
A15: Suppliers and employees | C15: -330101975 | D15: -326190739.4 | E15: 0 | F15: -21164523.33 | G15: -77257658.13 | H15: -110496911 | I15: =H15-G15 -> -33239252.91 | J15: 0.3008161278 | K15: -326190739.4
A16: Finance charges | C16: -294856 | D16: 0 | E16: 0 | F16: 0 | G16: 0 | H16: 0 | I16: =H16-G16 -> 0 | K16: 0
A17: Transfers and Grants | C17: 0 | D17: 0 | E17: 0 | F17: 0 | G17: 0 | H17: 0 | I17: =H17-G17 -> 0 | K17: 0
A18: NET CASH FROM/(USED) OPERATING ACTIVITIES | C18: =SUM(C7:C13)+SUM(C15:C17) -> 91383894 | D18: 91619860.56 | E18: 0 | F18: -13327860.14 | G18: 89300520.87 | H18: 35190089.08 | I18: =H18-G18 -> -54110431.79 | J18: -1.53766112 | K18: =SUM(K7:K13)+SUM(K15:K17) -> 91619860.56
A20: CASH FLOWS FROM INVESTING ACTIVITIES
A21: Receipts
A22: Proceeds on disposal of PPE | C22: 0 | D22: 0 | E22: 0 | F22: 0 | G22: 0 | H22: 0 | I22: =G22-H22 -> 0 | J22: =IF(I22=0,"",I22/H22) ->  | K22: 0
A23: Decrease (Increase) in non-current debtors | C23: 0 | D23: 0 | E23: 0 | F23: 0 | G23: 0 | H23: 0 | I23: =G23-H23 -> 0 | K23: 0
A24: Decrease (increase) other non-current receivables | C24: 0 | D24: 0 | E24: 0 | F24: 0 | G24: 0 | H24: 0 | I24: =G24-H24 -> 0 | K24: 0
A25: Decrease (increase) in non-current investments | C25: 0 | D25: 0 | E25: 0 | F25: 0 | G25: 0 | H25: 0 | I25: =G25-H25 -> 0 | K25: 0
A26: Payments
A27: Capital assets | C27: -64464111 | D27: -109870266 | E27: 0 | F27: -12412453.17 | G27: -28937420.49 | H27: -33523422.08 | I27: =H27-G27 -> -4586001.59 | J27: 0.1367999239 | K27: -109870266
A28: NET CASH FROM/(USED) INVESTING ACTIVITIES | C28: =SUM(C22:C25)+C27 -> -64464111 | D28: =SUM(D22:D25)+D27 -> -109870266 | E28: 0 | F28: -12412453.17 | G28: -28937420.49 | H28: -33523422.08 | I28: =H28-G28 -> -4586001.59 | J28: 0.1367999239 | K28: =SUM(K22:K25)+K27 -> -109870266
A30: CASH FLOWS FROM FINANCING ACTIVITIES
A31: Receipts
A32: Short term loans | C32: 0 | D32: 0 | E32: 0 | F32: 0 | G32: 0 | H32: 0 | I32: =G32-H32 -> 0 | J32: =IF(I32=0,"",I32/H32) ->  | K32: 0
A33: Borrowing long term/refinancing | C33: 0 | D33: 0 | E33: 0 | F33: 0 | G33: 0 | H33: 0 | I33: =G33-H33 -> 0 | K33: 0
A34: Increase (decrease) in consumer deposits | C34: 0 | D34: 0 | E34: 0 | F34: 0 | G34: 0 | H34: 0 | I34: =G34-H34 -> 0 | K34: 0
A35: Payments
A36: Repayment of borrowing | C36: -582652 | D36: 0 | E36: 0 | F36: =-545125.379999995+11771.87 -> -533353.51 | G36: =-10129062.9000001+F36 -> -10662416.41 | H36: 0 | I36: =H36-G36 -> 10662416.41 | K36: 0
A37: NET CASH FROM/(USED) FINANCING ACTIVITIES | C37: =SUM(C32:C34)+C36 -> -582652 | D37: 0 | E37: 0 | F37: -533353.51 | G37: -10662416.41 | H37: 0 | I37: =H37-G37 -> 10662416.41 | K37: =SUM(K32:K34)+K36 -> 0
A39: NET INCREASE/ (DECREASE) IN CASH HELD | C39: =C18+C28+C37 -> 26337131 | D39: -18250405.44 | E39: 0 | F39: -26273666.82 | G39: 49700683.97 | H39: 1666667 | K39: =K18+K28+K37 -> -18250405.44
A40: Cash/cash equivalents at beginning: | C40: 0 | D40: 40759300 | E40: 0 | G40: 40759300 | H40: =IF(E40=0, D40, E40) -> 40759300 | K40: =G40 -> 40759300
A41: Cash/cash equivalents at month/year end: | C41: =C39+C40 -> 26337131 | D41: =D39+D40 -> 22508894.56 | E41: =E39+E40 -> 0 | G41: =G39+G40 -> 90459983.97 | H41: =H39+H40 -> 42425967 | K41: =K39+K40 -> 22508894.56
A42: References
A43: 1. Material variances to be explained in Table SC1

Sheet SC1
A1: =muni& " - "&S71G& " - "&date -> LIM331 Greater Giyani - Supporting Table SC1 Material variance explanations - M04 October
A2: =head27 -> Ref | B2: =desc -> Description
C3: Variance | D3: Reasons for material deviations | E3: Remedial or corrective steps/remarks
B4: R thousands
A5: 1 | B5: ='C4-FinPerf RE'!A5 -> Revenue By Source
A10: 2 | B10: ='C4-FinPerf RE'!A24 -> Expenditure By Type
A15: 3 | B15: =RIGHT('C5-Capex'!A40,19) -> Capital Expenditure
A20: 4 | B20: Financial Position
A25: 5 | B25: Cash Flow
A30: 6 | B30: Measureable performance
A35: 7 | B35: Municipal Entities
A41: =head27a -> References
A42: 1. Revenue for each source, vote and standard classification
A43: 2. Expenditure for each type, vote and standard classification
A44: 3. Capital expenditure for each vote and standard classification
A45: 4. Explain any material variances between the annual budget and the expected financial position based on current trends
A46: 5. Cash receipts by source and cash payments by type where not explained under revenue and expenditure
A47: 6. For Sept, Dec, Mar and Jun statements explain any material variances in achievement of measurable performance objectives

Sheet SC2
A1: =muni& " - "&S71H& " - "&Head57 -> LIM331 Greater Giyani - Supporting Table SC2 Monthly Budget Statement - performance indicators - M04 October
A2: Description of financial indicator | B2: Basis of calculation | C2: =head27 -> Ref | D2: =Head1 -> 2018/19 | E2: =Head2 -> Budget Year 2019/20
D3: =Head5 -> Audited Outcome | E3: =Head6 -> Original Budget | F3: =Head7 -> Adjusted Budget | G3: =Head39 -> YearTD actual | H3: =Head8 -> Full Year Forecast
A5: Borrowing Management
A7: Capital Charges to Operating Expenditure | B7: Interest & principal paid/Operating Expenditure | D7: =IF(ISERROR((D42-D43)/D45),0,((D42-D43)/D45)) -> -0.0007359770097 | E7: =IF(ISERROR((E42+E44)/E45),0,((E42+E44)/E45)) -> 0.08060383245 | F7: =IF(ISERROR((F42+F44)/F45),0,((F42+F44)/F45)) -> 0 | G7: =IF(ISERROR((G42+G44)/G45),0,((G42+G44)/G45)) -> 0 | H7: =IF(ISERROR((H42+H44)/H45),0,((H42+H44)/H45)) -> 0.0642749801
A8: Borrowed funding of 'own' capital expenditure | B8: Borrowings/Capital expenditure excl. transfers and grants | D8: =IF(ISERROR(D47/D46),0,(D47/D46)) -> 0 | E8: =IF(ISERROR(E47/E46),0,(E47/E46)) -> 0 | F8: =IF(ISERROR(F47/F46),0,(F47/F46)) -> 0 | G8: =IF(ISERROR(G47/G46),0,(G47/G46)) -> 0 | H8: =IF(ISERROR(H47/H46),0,(H47/H46)) -> 0
A9: Safety of Capital
A10: Debt to Equity | B10: Loans, Accounts Payable, Overdraft & Tax Provision/ Funds & Reserves | D10: =IF(ISERROR(D48/D49),0,(D48/D49)) -> 0.08324098818 | E10: =IF(ISERROR(E48/E49),0,(E48/E49)) -> 0.06520876507 | F10: =IF(ISERROR(F48/F49),0,(F48/F49)) -> 0 | G10: =IF(ISERROR(G48/G49),0,(G48/G49)) -> 0.1624612251 | H10: =IF(ISERROR(H48/H49),0,(H48/H49)) -> 0.06520876507
A11: Gearing | B11: Long Term Borrowing/ Funds & Reserves | D11: =IF(ISERROR(D51/D50),0,(D51/D50)) -> 0 | E11: =IF(ISERROR(E51/E50),0,(E51/E50)) -> 0 | F11: =IF(ISERROR(F51/F50),0,(F51/F50)) -> 0 | G11: =IF(ISERROR(G51/G50),0,(G51/G50)) -> 0 | H11: =IF(ISERROR(H51/H50),0,(H51/H50)) -> 0
A12: Liquidity
A13: Current Ratio | B13: Current assets/current liabilities | C13: 1 | D13: =IF(ISERROR(D52/D53),0,(D52/D53)) -> 1.866366257 | E13: =IF(ISERROR(E52/E53),0,(E52/E53)) -> 0.8349757438 | F13: =IF(ISERROR(F52/F53),0,(F52/F53)) -> 0 | G13: =IF(ISERROR(G52/G53),0,(G52/G53)) -> 1.222736224 | H13: =IF(ISERROR(H52/H53),0,(H52/H53)) -> 0.8349757438
A14: Liquidity Ratio | B14: Monetary Assets/Current Liabilities | D14: =IF(ISERROR(D54/D53),0,(D54/D53)) -> 0.5483891653 | E14: =IF(ISERROR(E54/E53),0,(E54/E53)) -> 0.268224801 | F14: =IF(ISERROR(F54/F53),0,(F54/F53)) -> 0 | G14: =IF(ISERROR(G54/G53),0,(G54/G53)) -> 0.7109342154 | H14: =IF(ISERROR(H54/H53),0,(H54/H53)) -> 0.268224801
A15: Revenue Management
A16: Annual Debtors Collection Rate (Payment Level %) | B16: Last 12 Mths Receipts/ Last 12 Mths Billing
A17: Outstanding Debtors to Revenue | B17: Total Outstanding Debtors to Annual Revenue | D17: =IF(ISERROR(D59/D55),0,(D59/D55)) -> 0.2762286349 | E17: =IF(ISERROR(E59/E55),0,(E59/E55)) -> 0.1596667687 | F17: =IF(ISERROR(F59/F55),0,(F59/F55)) -> 0 | G17: =IF(ISERROR(G59/G55),0,(G59/G55)) -> 0.8748661078 | H17: =IF(ISERROR(H59/H55),0,(H59/H55)) -> 0.1596667687
A18: Longstanding Debtors Recovered | B18: Debtors > 12 Mths Recovered/Total Debtors > 12 Months Old | D18: =IF(ISERROR(D64/D63),0,(D64/D63)) -> 0 | E18: =IF(ISERROR(E64/E63),0,(E64/E63)) -> 0 | F18: =IF(ISERROR(F64/F63),0,(F64/F63)) -> 0 | G18: =IF(ISERROR(G64/G63),0,(G64/G63)) -> 0 | H18: =IF(ISERROR(H64/H63),0,(H64/H63)) -> 0
A19: Creditors Management
A20: Creditors System Efficiency | B20: % of Creditors Paid Within Terms (within MFMA s 65(e)) | D20: 1 | E20: 1 | F20: 1 | G20: 1 | H20: 1
A21: Funding of Provisions
A22: Percentage Of Provisions Not Funded | B22: Unfunded Provisions/Total Provisions
A23: Other Indicators
A24: Electricity Distribution Losses | B24: % Volume (units purchased and generated less units sold)/units purchased and generated | C24: 2
A25: Water Distribution Losses | B25: % Volume (units purchased and own source less units sold)/Total units purchased and own source | C25: 2
A26: Employee costs | B26: Employee costs/Total Revenue - capital revenue | D26: =IF(ISERROR(D40/D55),0,(D40/D55)) -> 0.376900711 | E26: =IF(ISERROR(E40/E55),0,(E40/E55)) -> 0.4372019774 | F26: =IF(ISERROR(F40/F55),0,(F40/F55)) -> 0 | G26: =IF(ISERROR(G40/G55),0,(G40/G55)) -> 0.2756979414 | H26: =IF(ISERROR(H40/H55),0,(H40/H55)) -> 0.4372019774
A27: Repairs & Maintenance | B27: R&M/Total Revenue - capital revenue | D27: =IF(ISERROR(D41/D55),0,(D41/D55)) -> 0.01346809208 | E27: =IF(ISERROR(E41/E55),0,(E41/E55)) -> 0.01231491101 | F27: =IF(ISERROR(F41/F55),0,(F41/F55)) -> 0 | G27: =IF(ISERROR(G41/G55),0,(G41/G55)) -> 0.007825825769 | H27: =IF(ISERROR(H41/H55),0,(H41/H55)) -> 0.01231491101
A28: Interest & Depreciation | B28: I&D/Total Revenue - capital revenue | D28: =IF(ISERROR((D42+D44)/D55),0,((D42+D44)/D55)) -> 0.2504900653 | E28: =IF(ISERROR((E42+E44)/E55),0,((E42+E44)/E55)) -> 0.07970816185 | F28: =IF(ISERROR((F42+F44)/F55),0,((F42+F44)/F55)) -> 0 | G28: =IF(ISERROR((G42+G44)/G55),0,((G42+G44)/G55)) -> 0 | H28: =IF(ISERROR((H42+H44)/H55),0,((H42+H44)/H55)) -> 0.06356075587
A29: IDP regulation financial viability indicators
A30: i. Debt coverage | B30: (Total Operating Revenue - Operating Grants)/Debt service payments due within financial year)
A31: ii. O/S Service Debtors to Revenue | B31: Total outstanding service debtors/annual revenue received for services
A32: iii. Cost coverage | B32: (Available cash + Investments)/monthly fixed operational expenditure
A33: References
A34: 1. Consumer debtors > 12 months old are excluded from current assets.
A35: 2. Material variances to be explained.
A37: Calculations
A38: ='C6-FinPos'!A38 -> Borrowing | D38: ='C6-FinPos'!C38 -> 480165.86 | E38: ='C6-FinPos'!D38 -> 0 | F38: ='C6-FinPos'!E38 -> 0 | G38: ='C6-FinPos'!F38 -> 480165.86 | H38: 0
A39: Total Assets | D39: ='C6-FinPos'!C26 -> 1020023514 | E39: ='C6-FinPos'!D26 -> 1038491051 | F39: ='C6-FinPos'!E26 -> 0 | G39: ='C6-FinPos'!F26 -> 1261517951 | H39: ='C6-FinPos'!G26 -> 1038491051
A40: ='C4-FinPerf RE'!A25 -> Employee related costs | D40: ='C4-FinPerf RE'!C25 -> 130474394.1 | E40: ='C4-FinPerf RE'!D25 -> 164551019.8 | F40: ='C4-FinPerf RE'!E25 -> 0 | G40: ='C4-FinPerf RE'!G25 -> 44579392.31 | H40: ='C4-FinPerf RE'!K25 -> 164551019.8
A41: =A27 -> Repairs & Maintenance | D41: =SC13c!C166 -> 4662345.02 | E41: =SC13c!D166 -> 4635000 | F41: =SC13c!E166 -> 0 | G41: =SC13c!G166 -> 1265408.64 | H41: =SC13c!K166 -> 4635000
A42: Interest (finance charges) | D42: ='C4-FinPerf RE'!C29 -> 294856.32 | E42: ='C4-FinPerf RE'!D29 -> 0 | F42: ='C4-FinPerf RE'!E29 -> 0 | G42: ='C4-FinPerf RE'!G29 -> 0 | H42: ='C4-FinPerf RE'!K29 -> 0
A43: Principal paid | D43: =-'C7-CFlow'!C36 -> 582652 | E43: =-'C7-CFlow'!D36 -> 0 | F43: =-'C7-CFlow'!E36 -> 0 | G43: =-'C7-CFlow'!G36 -> 10662416.41 | H43: =-'C7-CFlow'!K36 -> 0
A44: Depreciation | D44: ='C4-FinPerf RE'!C28 -> 86419067.38 | E44: ='C4-FinPerf RE'!D28 -> 30000000 | F44: ='C4-FinPerf RE'!E28 -> 0 | H44: ='C4-FinPerf RE'!K26 -> 23922552.37
A45: Operating expenditure | D45: ='C4-FinPerf RE'!C36 -> 391038954 | E45: ='C4-FinPerf RE'!D36 -> 372190739.4 | F45: ='C4-FinPerf RE'!E36 -> 0 | G45: ='C4-FinPerf RE'!G36 -> 77257658.13 | H45: ='C4-FinPerf RE'!K36 -> 372190739.4
A46: ='C5-Capex'!A40 -> Total Capital Expenditure | D46: ='C5-Capex'!C40 -> 64464111 | E46: ='C5-Capex'!D40 -> 109870266 | F46: ='C5-Capex'!E40 -> 0 | G46: ='C5-Capex'!G40 -> 28937420.25 | H46: ='C5-Capex'!K40 -> 109870266
A47: Borrowed funding for capital | D47: ='C5-Capex'!C72 -> 0 | E47: ='C5-Capex'!D72 -> 0 | F47: ='C5-Capex'!E72 -> 0 | G47: ='C5-Capex'!G72 -> 0 | H47: ='C5-Capex'!K72 -> 0
A48: Debt | D48: ='C6-FinPos'!C30+'C6-FinPos'!C31+'C6-FinPos'!C33+'C6-FinPos'!C38 -> 74484587.86 | E48: ='C6-FinPos'!D30+'C6-FinPos'!D31+'C6-FinPos'!D33+'C6-FinPos'!D38 -> 60000000 | F48: ='C6-FinPos'!E30+'C6-FinPos'!E31+'C6-FinPos'!E33+'C6-FinPos'!E38 -> 0 | G48: ='C6-FinPos'!F30+'C6-FinPos'!F31+'C6-FinPos'!F33+'C6-FinPos'!F38 -> 157949155.9 | H48: ='C6-FinPos'!G30+'C6-FinPos'!G31+'C6-FinPos'!G33+'C6-FinPos'!G38 -> 60000000
A49: Equity | D49: ='C6-FinPos'!C48 -> 894806627 | E49: ='C6-FinPos'!D48 -> 920121703.5 | F49: ='C6-FinPos'!E48 -> 0 | G49: ='C6-FinPos'!F48 -> 972226793 | H49: ='C6-FinPos'!G48 -> 920121703.5
A50: ='C6-FinPos'!A47 -> Reserves | D50: ='C6-FinPos'!C47 -> 0 | E50: ='C6-FinPos'!D47 -> 0 | F50: ='C6-FinPos'!E47 -> 0 | G50: ='C6-FinPos'!F47 -> 0 | H50: ='C6-FinPos'!G47 -> 0
A51: ='C6-FinPos'!A38 -> Borrowing | D51: ='C6-FinPos'!C38 -> 480165.86 | E51: ='C6-FinPos'!D38 -> 0 | F51: ='C6-FinPos'!E38 -> 0 | G51: ='C6-FinPos'!F38 -> 480165.86 | H51: ='C6-FinPos'!G38 -> 0
A52: ='C6-FinPos'!A6 -> Current assets | D52: ='C6-FinPos'!C13 -> 138718609 | E52: ='C6-FinPos'!D13 -> 98835533.6 | F52: ='C6-FinPos'!E13 -> 0 | G52: ='C6-FinPos'!F13 -> 351275625 | H52: ='C6-FinPos'!G13 -> 98835533.6
A53: ='C6-FinPos'!A29 -> Current liabilities | D53: ='C6-FinPos'!C35 -> 74325502 | E53: ='C6-FinPos'!D35 -> 118369347.1 | F53: ='C6-FinPos'!E35 -> 0 | G53: ='C6-FinPos'!F35 -> 287286512 | H53: ='C6-FinPos'!G35 -> 118369347.1
A54: Monetary assets | D54: ='C6-FinPos'!C7+'C6-FinPos'!C8 -> 40759300 | E54: ='C6-FinPos'!D7+'C6-FinPos'!D8 -> 31749594.56 | F54: ='C6-FinPos'!E7+'C6-FinPos'!E8 -> 0 | G54: ='C6-FinPos'!F7+'C6-FinPos'!F8 -> 204241811 | H54: ='C6-FinPos'!G7+'C6-FinPos'!G8 -> 31749594.56
A55: ='C4-FinPerf RE'!A22 -> Total Revenue (excluding capital transfers and contributions) | D55: ='C4-FinPerf RE'!C22 -> 346177097.2 | E55: ='C4-FinPerf RE'!D22 -> 376373000 | F55: ='C4-FinPerf RE'!E22 -> 0 | G55: ='C4-FinPerf RE'!G22 -> 161696500.5 | H55: ='C4-FinPerf RE'!K22 -> 376373000
A56: ='C4-FinPerf RE'!A19 -> Transfers and subsidies | D56: ='C4-FinPerf RE'!C19 -> 259208395.2 | E56: ='C4-FinPerf RE'!D19 -> 303024000 | F56: ='C4-FinPerf RE'!E19 -> 0 | G56: ='C4-FinPerf RE'!G19 -> 126660000 | H56: ='C4-FinPerf RE'!K19 -> 303024000
A57: ='C4-FinPerf RE'!A39 -> Transfers and subsidies - capital (monetary allocations) (National / Provincial and District) | D57: ='C4-FinPerf RE'!C39 -> 73177035 | E57: ='C4-FinPerf RE'!D39 -> 60688000 | F57: ='C4-FinPerf RE'!E39 -> 0 | G57: ='C4-FinPerf RE'!G39 -> 24275000 | H57: ='C4-FinPerf RE'!K39 -> 60688000
A58: Debt service payments | D58: ='C7-CFlow'!C12+'C7-CFlow'!C36 -> 19807265 | E58: ='C7-CFlow'!D12+'C7-CFlow'!D36 -> 8400000 | F58: ='C7-CFlow'!E12+'C7-CFlow'!E36 -> 0 | G58: ='C7-CFlow'!G16+'C7-CFlow'!G36 -> -10662416.41 | H58: ='C7-CFlow'!K16+'C7-CFlow'!K36 -> 0
A59: Outstanding debtors (receivables) | D59: ='C6-FinPos'!C9+'C6-FinPos'!C10+'C6-FinPos'!C11+'C6-FinPos'!C16 -> 95624027 | E59: ='C6-FinPos'!D9+'C6-FinPos'!D10+'C6-FinPos'!D11+'C6-FinPos'!D16 -> 60094260.72 | F59: ='C6-FinPos'!E9+'C6-FinPos'!E10+'C6-FinPos'!E11+'C6-FinPos'!E16 -> 0 | G59: ='C6-FinPos'!F9+'C6-FinPos'!F10+'C6-FinPos'!F11+'C6-FinPos'!F16 -> 141462788 | H59: ='C6-FinPos'!G9+'C6-FinPos'!G10+'C6-FinPos'!G11+'C6-FinPos'!G16 -> 60094260.72
A60: Annual services revenue | D60: =SUM('C4-FinPerf RE'!C7:C11) -> 4477862.14 | E60: =SUM('C4-FinPerf RE'!D7:D11) -> 5400000 | F60: =SUM('C4-FinPerf RE'!E7:E11) -> 0 | G60: =SUM('C4-FinPerf RE'!G7:G11) -> 1628887.85
A61: Cash + investments | B61: Including LT investments | D61: ='C6-FinPos'!C7+'C6-FinPos'!C8+'C6-FinPos'!C17-'C6-FinPos'!C30 -> 40759300 | E61: ='C6-FinPos'!D7+'C6-FinPos'!D8+'C6-FinPos'!D17-'C6-FinPos'!D30 -> 31749594.56 | F61: ='C6-FinPos'!E7+'C6-FinPos'!E8+'C6-FinPos'!E17-'C6-FinPos'!E30 -> 0 | G61: ='C6-FinPos'!F7+'C6-FinPos'!F8+'C6-FinPos'!F17-'C6-FinPos'!F30 -> 204241811 | H61: ='C6-FinPos'!G7+'C6-FinPos'!G8+'C6-FinPos'!G17-'C6-FinPos'!G30 -> 31749594.56
A62: Fixed operational expend. (monthly)
A63: Longstanding debtors outstanding | D63: ='C6-FinPos'!C16 -> 0 | E63: ='C6-FinPos'!D16 -> 0 | F63: ='C6-FinPos'!E16 -> 0 | G63: ='C6-FinPos'!F16 -> 0 | H63: ='C6-FinPos'!G16 -> 0
A64: Longstanding debtors recovered
A65: Attorney collections

Sheet SC3
A1: =muni& " - "&S71I& " - "&Head57 -> LIM331 Greater Giyani - Supporting Table SC3 Monthly Budget Statement - aged debtors - M04 October
A2: =desc -> Description | C2: =Head2 -> Budget Year 2019/20
A3: R thousands | B3: NT Code | C3: 0-30 Days | D3: 31-60 Days | E3: 61-90 Days | F3: 91-120 Days | G3: 121-150 Dys | H3: 151-180 Dys | I3: 181 Dys-1 Yr | J3: Over 1Yr | K3: Total | L3: Total over 90 days | M3: Actual Bad Debts Written Off against Debtors | N3: Impairment - Bad Debts i.t.o Council Policy
A4: Debtors Age Analysis By Income Source
A5: Trade and Other Receivables from Exchange Transactions - Water | B5: 1200 | C5: 0 | D5: 0 | E5: 0 | F5: 0 | G5: 0 | H5: 0 | I5: 0 | J5: 0 | K5: =SUM(C5:J5) -> 0 | L5: =SUM(F5:J5) -> 0
A6: Trade and Other Receivables from Exchange Transactions - Electricity | B6: 1300 | C6: 0 | D6: 0 | E6: 0 | F6: 0 | G6: 0 | H6: 0 | I6: 0 | J6: 0 | K6: =SUM(C6:J6) -> 0 | L6: =SUM(F6:J6) -> 0
A7: Receivables from Non-exchange Transactions - Property Rates | B7: 1400 | C7: 1802463 | D7: 3491834.26 | E7: 4275131.18 | F7: 3157311.41 | G7: 2209435.76 | H7: 2852663.83 | I7: 14853839.84 | J7: 71398656.11 | K7: =SUM(C7:J7) -> 104041335.4 | L7: 94471906.95
A8: Receivables from Exchange Transactions - Waste Water Management | B8: 1500 | C8: 0 | D8: 0 | E8: 0 | F8: 0 | G8: 0 | H8: 0 | I8: 0 | J8: 0 | K8: 0 | L8: 0
A9: Receivables from Exchange Transactions - Waste Management | B9: 1600 | C9: 394719.14 | D9: 393709.19 | E9: 373965.9 | F9: 304870.87 | G9: 322239.74 | H9: 298983.9 | I9: 2057965.38 | J9: 19435482.48 | K9: 23581936.6 | L9: =SUM(F9:J9) -> 22419542.37
A10: Receivables from Exchange Transactions - Property Rental Debtors | B10: 1700 | C10: 59950 | D10: 59470 | E10: 58085.78 | F10: 60250 | G10: 48686 | H10: 48686 | I10: 341927.53 | J10: 3320634.49 | K10: 3997689.8 | L10: =SUM(F10:J10) -> 3820184.02
A11: Interest on Arrear Debtor Accounts | B11: 1810 | C11: 2266667.8 | D11: 2150996.37 | E11: 2198812.9 | F11: 2181499.07 | G11: 1967123.13 | H11: 1999954.36 | I11: 12784822.61 | J11: 78635690.59 | K11: 104185566.8 | L11: 97569089.76
A12: Recoverable unauthorised, irregular, fruitless and wasteful expenditure | B12: 1820 | C12: 0 | D12: 0 | E12: 0 | F12: 0 | G12: 0 | H12: 0 | I12: 0 | J12: 0 | K12: 0 | L12: 0
A13: Other | B13: 1900 | C13: 17486.15 | D13: 8824.54 | E13: 13751.12 | F13: 11625.74 | G13: 13431 | H13: 3299.56 | I13: 102927.38 | J13: 907154.57 | K13: 1078500.06 | L13: =SUM(F13:J13) -> 1038438.25
A14: Total By Income Source | B14: 2000 | C14: =SUM(C5:C13) -> 4541286.09 | D14: 6104834.36 | E14: 6919746.88 | F14: 5715557.09 | G14: 4560915.63 | H14: 5203587.65 | I14: 30141482.74 | J14: 173697618.2 | K14: 236885028.7 | L14: =SUM(L5:L13) -> 219319161.4 | M14: 0 | N14: 0
A15: =Head1&" - totals only" -> 2018/19 - totals only | K15: =SUM(C15:J15) -> 0 | L15: =SUM(F15:J15) -> 0
A16: Debtors Age Analysis By Customer Group
A17: Organs of State | B17: 2200 | C17: 408715.7481 | D17: 549435.0924 | E17: 622777.2192 | F17: 514400.1381 | G17: 410482.4067 | H17: 468322.8885 | I17: 2712733.447 | J17: 15632785.64 | K17: =SUM(C17:J17) -> 21319652.58 | L17: =SUM(F17:J17) -> 19738724.52
A18: Commercial | B18: 2300 | C18: 772018.6353 | D18: 1037821.841 | E18: 1176356.97 | F18: 971644.7053 | G18: 775355.6571 | H18: 884609.9005 | I18: 5124052.066 | J18: 29528595.1 | K18: =SUM(C18:J18) -> 40270454.88 | L18: =SUM(F18:J18) -> 37284257.43
A19: Households | B19: 2400 | C19: 2770184.515 | D19: 3723948.96 | E19: 4221045.597 | F19: 3486489.825 | G19: 2782158.534 | H19: 3174188.467 | I19: 18386304.47 | J19: 105955547.1 | K19: =SUM(C19:J19) -> 144499867.5 | L19: =SUM(F19:J19) -> 133784688.4
A20: Other | B20: 2500 | C20: 590367.1917 | D20: 793628.4668 | E20: 899567.0944 | F20: 743022.4217 | G20: 592919.0319 | H20: 676466.3945 | I20: 3918392.756 | J20: 22580690.37 | K20: =SUM(C20:J20) -> 30795053.73 | L20: =SUM(F20:J20) -> 28511490.98
A21: Total By Customer Group | B21: 2600 | C21: =SUM(C17:C20) -> 4541286.09 | D21: 6104834.36 | E21: 6919746.88 | F21: 5715557.09 | G21: 4560915.63 | H21: 5203587.65 | I21: 30141482.74 | J21: =SUM(J17:J20) -> 173697618.2 | K21: =SUM(K17:K20) -> 236885028.7 | L21: =SUM(L17:L20) -> 219319161.4 | M21: =SUM(M17:M20) -> 0 | N21: =SUM(N17:N20) -> 0
A22: Notes
A23: Material increases in value of debtors' categories compared to previous month to be explained
A24: Bad debts = amounts actually written off in the month
A25: Total by Income Source must reconcile with Total by Customer Group
C26: =C14-C21 -> 0 | D26: =D14-D21 -> 0 | E26: =E14-E21 -> 0 | F26: 0 | G26: 0 | H26: 0 | I26: 0 | J26: =J14-J21 -> 0 | K26: 0
C27: =IF(C26=0,"","MUST AGREE") ->  | D27: =IF(D26=0,"","MUST AGREE") -> 

Sheet SC4
A1: =muni& " - "&S71J& " - "&Head57 -> LIM331 Greater Giyani - Supporting Table SC4 Monthly Budget Statement - aged creditors - M04 October
A2: =desc -> Description | B2: NT Code | C2: =Head2 -> Budget Year 2019/20 | L2: Prior year totals for chart (same period)
C3: 0 - 30 Days | D3: 31 - 60 Days | E3: 61 - 90 Days | F3: 91 - 120 Days | G3: 121 - 150 Days | H3: 151 - 180 Days | I3: 181 Days - 1 Year | J3: Over 1 Year | K3: Total
A4: R thousands
A5: Creditors Age Analysis By Customer Type
A6: Bulk Electricity | B6: 0100 | C6: 0 | D6: 0 | E6: 0 | F6: 0 | G6: 0 | H6: 0 | I6: 0 | J6: 0 | K6: =SUM(C6:J6) -> 0
A7: Bulk Water | B7: 0200 | C7: 0 | D7: 0 | E7: 0 | F7: 0 | G7: 0 | H7: 0 | I7: 0 | J7: 0 | K7: =SUM(C7:J7) -> 0
A8: PAYE deductions | B8: 0300 | C8: 0 | D8: 0 | E8: 0 | F8: 0 | G8: 0 | H8: 0 | I8: 0 | J8: 0 | K8: 0
A9: VAT (output less input) | B9: 0400 | C9: 0 | D9: 0 | E9: 0 | F9: 0 | G9: 0 | H9: 0 | I9: 0 | J9: 0 | K9: 0
A10: Pensions / Retirement deductions | B10: 0500 | C10: 0 | D10: 0 | E10: 0 | F10: 0 | G10: 0 | H10: 0 | I10: 0 | J10: 0 | K10: 0
A11: Loan repayments | B11: 0600 | C11: 0 | D11: 0 | E11: 0 | F11: 0 | G11: 0 | H11: 0 | I11: 0 | J11: 0 | K11: 0
A12: Trade Creditors | B12: 0700 | C12: 134621 | D12: 741120 | E12: -87666 | F12: -2298098 | G12: 2385747 | H12: 0 | I12: -14991 | J12: 13149 | K12: 873882
A13: Auditor General | B13: 0800 | C13: 0 | D13: 0 | E13: 0 | F13: 0 | G13: 0 | H13: 0 | I13: 0 | J13: 0 | K13: 0
A14: Other | B14: 0900 | C14: 0 | D14: 0 | E14: -699506 | F14: -4350780 | G14: 5050285 | H14: 0 | I14: -7981 | J14: 7980 | K14: =SUM(C14:J14) -> -2
A15: Total By Customer Type | B15: 1000 | C15: =SUM(C6:C14) -> 134621 | D15: =SUM(D6:D14) -> 741120 | E15: -787172 | F15: -6648878 | G15: 7436032 | H15: 0 | I15: -22972 | J15: 21129 | K15: =SUM(K6:K14) -> 873880 | L15: =SUM(L6:L14) -> 0
A16: Notes
A17: Material increases in value of creditors' categories compared to previous month to be explained

Sheet SC5
A1: =muni& " - "&S71K& " - "&Head57 -> LIM331 Greater Giyani - Supporting Table SC5 Monthly Budget Statement - investment portfolio - M04 October
A2: Investments by maturity Name of institution & investment ID | B2: Ref | C2: Period of Investment | D2: Type of Investment | E2: Capital Guarantee (Yes/ No) | F2: Variable or Fixed interest rate | G2: Interest Rate ᶟ | H2: Commission Paid (Rands) | I2: Commission Recipient | J2: Expiry date of investment | K2: Opening balance | L2: Interest to be realised | M2: Partial / Premature Withdrawal (4) | N2: Investment Top Up | O2: Closing Balance
A3: R thousands | C3: Yrs/Months
A4: Municipality
O5: =SUM(K5:N5) -> 0
O6: 0
O7: 0
O8: 0
O9: 0
O10: 0
O11: 0
A12: Municipality sub-total | K12: =SUM(K5:K11) -> 0 | M12: =SUM(M5:M11) -> 0 | N12: =SUM(N5:N11) -> 0 | O12: =SUM(O5:O11) -> 0
A14: Entities
O15: =SUM(K15:N15) -> 0
O16: 0
O17: 0
O18: 0
O19: 0
O20: 0
O21: 0
A22: Entities sub-total | K22: =SUM(K15:K21) -> 0 | M22: =SUM(M15:M21) -> 0 | N22: =SUM(N15:N21) -> 0 | O22: =SUM(O15:O21) -> 0
A24: TOTAL INVESTMENTS AND INTEREST | B24: 2 | K24: =K12+K22 -> 0 | M24: =M12+M22 -> 0 | N24: =N12+N22 -> 0 | O24: =O12+O22 -> 0
A25: =head27a -> References
A26: 2. List investments in expiry date order
A27: 3. If 'variable' is selected in column F, input interest rate range
A28: 4. Withdrawals to be entered as negative

Sheet SC6
A1: =muni& " - "&S71L& " - "&Head57 -> LIM331 Greater Giyani - Supporting Table SC6 Monthly Budget Statement - transfers and grant receipts - M04 October
A2: =desc -> Description | B2: =head27 -> Ref | C2: =Head1 -> 2018/19 | D2: =Head2 -> Budget Year 2019/20
C3: =Head5 -> Audited Outcome | D3: =Head6 -> Original Budget | E3: =Head7 -> Adjusted Budget | F3: =Head38 -> Monthly actual | G3: =Head39 -> YearTD actual | H3: =Head40 -> YearTD budget | I3: =Head41 -> YTD variance | J3: =Head41 -> YTD variance | K3: =Head8 -> Full Year Forecast
A4: R thousands | J4: %
A5: RECEIPTS: | B5: 1,2
A7: Operating Transfers and Grants
A8: National Government: | C8: =SUM(C9:C19) -> 0 | D8: 302724000 | E8: 0 | F8: 17975262.34 | G8: 82566725.07 | H8: 100908000 | I8: -15302727.51 | J8: =IF(I8=0,"",I8/H8) -> -0.1516502905 | K8: =SUM(K9:K19) -> 302724000
A9: Local Government Equitable Share | D9: 287217000 | F9: 17593217.34 | G9: =62843055.15+F9 -> 80436272.49 | H9: =D9*4/12 -> 95739000 | I9: =G9-H9 -> -15302727.51 | J9: -0.159837971 | K9: 287217000
A10: Finance Management | D10: 2145000 | F10: 30645 | G10: =168945.08+F10 -> 199590.08 | H10: =D10*4/12 -> 715000 | K10: 2145000
A11: Integrated National Electrification Programme | D11: 10000000 | H11: 3333333.333 | K11: 10000000
A12: EPWP Incentive | D12: 3362000 | F12: 351400 | G12: =1579462.5+F12 -> 1930862.5 | H12: 1120666.667 | K12: 3362000
B14: 3 | I14: 0
I15: 0
I16: 0
I17: 0
I18: 0
A19: Other transfers and grants [insert description] | I19: 0
A20: Provincial Government: | C20: =SUM(C21:C26) -> 0 | D20: 300000 | E20: 0 | F20: 0 | G20: 0 | H20: 100000 | I20: -100000 | J20: -1 | K20: =SUM(K21:K26) -> 300000
I21: =G21-H21 -> 0
I23: 0
B24: 4 | I24: 0
I25: 0
A26: LG SETA | D26: 300000 | H26: =D26*4/12 -> 100000 | I26: -100000 | J26: -1 | K26: 300000
A27: District Municipality: | C27: =SUM(C28:C29) -> 0 | D27: 0 | E27: 0 | F27: 0 | G27: 0 | H27: 0 | I27: 0 | K27: =SUM(K28:K29) -> 0
A28: [insert description] | I28: 0
I29: 0
A30: Other grant providers: | C30: =SUM(C31:C37) -> 0 | D30: 0 | E30: 0 | F30: 0 | G30: 0 | H30: 0 | I30: 0 | K30: =SUM(K31:K37) -> 0
A31: [insert description] | I31: 0
I37: 0
A38: Total Operating Transfers and Grants | B38: 5 | C38: =C8+C20+C27+C30 -> 0 | D38: 303024000 | E38: 0 | F38: 17975262.34 | G38: 82566725.07 | H38: 101008000 | I38: -15402727.51 | J38: -0.1524901741 | K38: =K8+K20+K27+K30 -> 303024000
A40: Capital Transfers and Grants
A41: =A8 -> National Government: | C41: =SUM(C42:C51) -> 0 | D41: 60688000 | E41: 0 | F41: 11813661.85 | G41: 26310445.54 | H41: 20229333.33 | I41: 6081112.207 | J41: =IF(I41=0,"",I41/H41) -> 0.3006086314 | K41: 60688000
A42: Municipal Infrastructure Grant (MIG) | D42: 60688000 | F42: 11813661.85 | G42: 26310445.54 | H42: =D42*4/12 -> 20229333.33 | I42: =G42-H42 -> 6081112.207 | J42: 0.3006086314 | K42: 60688000
I47: 0
I48: 0
I49: 0
I50: 0
A51: Other capital transfers [insert description] | I51: 0
A52: =A20 -> Provincial Government: | C52: =SUM(C53:C58) -> 0 | D52: 0 | E52: 0 | F52: 0 | G52: 0 | H52: 0 | I52: =G52-H52 -> 0 | J52: =IF(I52=0,"",I52/H52) ->  | K52: =SUM(K53:K58) -> 0
A53: [insert description] | I53: 0 | J53: =IF(I53=0,"",I53/H53) -> 
I58: 0
A59: =A27 -> District Municipality: | C59: =SUM(C60:C61) -> 0 | D59: 0 | E59: 0 | F59: 0 | G59: 0 | H59: 0 | I59: 0 | K59: =SUM(K60:K61) -> 0
A60: [insert description] | I60: 0
I61: 0
A62: =A30 -> Other grant providers: | C62: =SUM(C63:C68) -> 0 | D62: 0 | E62: 0 | F62: 0 | G62: 0 | H62: 0 | I62: 0 | K62: =SUM(K63:K68) -> 0
A63: [insert description] | I63: 0 | J63: =IF(I63=0,"",I63/H63) -> 
I68: 0
A69: Total Capital Transfers and Grants | B69: 5 | C69: =C41+C52+C59+C62 -> 0 | D69: =D41+D52+D59+D62 -> 60688000 | E69: 0 | F69: 11813661.85 | G69: 26310445.54 | H69: 20229333.33 | I69: 6081112.207 | J69: 0.3006086314 | K69: 60688000
A71: TOTAL RECEIPTS OF TRANSFERS & GRANTS | B71: 5 | C71: =C38+C69 -> 0 | D71: 363712000 | E71: 0 | F71: 29788924.19 | G71: 108877170.6 | H71: 121237333.3 | I71: -9321615.303 | J71: -0.07688733369 | K71: 363712000
A72: =head27a -> References
A73: 1. Each grant is listed by name as gazetted together with the name of the transferring department or municipality, donor or other organisation
A74: 2. Grant expenditure must be separately listed for each grant received
A75: 3. Replacement of RSC levies
A76: 4. Housing subsidies for housing where ownership transferred
A77: 5. Total recurrent/capital grants and subsidies must reconcile to the 'Financial Performance' Statement

Sheet SC7
A1: =muni& " - "&S71M& " - "&Head57 -> LIM331 Greater Giyani - Supporting Table SC7(1) Monthly Budget Statement - transfers and grant expenditure - M04 October
A2: =desc -> Description | B2: =head27 -> Ref | C2: =Head1 -> 2018/19 | D2: =Head2 -> Budget Year 2019/20
C3: =Head5 -> Audited Outcome | D3: =Head6 -> Original Budget | E3: =Head7 -> Adjusted Budget | F3: =Head38 -> Monthly actual | G3: =Head39 -> YearTD actual | H3: =Head40 -> YearTD budget | I3: =Head41 -> YTD variance | J3: =Head41 -> YTD variance | K3: =Head8 -> Full Year Forecast
A4: R thousands | J4: %
A5: EXPENDITURE
A7: Operating expenditure of Transfers and Grants
A8: ='SC6'!A8 -> National Government: | C8: =SUM(C9:C15) -> 0 | D8: 302724000 | E8: 0 | F8: 17975262.34 | G8: 82566725.07 | H8: 100908000 | I8: -18341274.93 | J8: =IF(I8=0,"",I8/H8) -> -0.1817623472 | K8: =SUM(K9:K15) -> 302724000
A9: ='SC6'!A9 -> Local Government Equitable Share | D9: ='SC6'!D9 -> 287217000 | F9: ='SC6'!F9 -> 17593217.34 | G9: ='SC6'!G9 -> 80436272.49 | H9: ='SC6'!H9 -> 95739000 | I9: =G9-H9 -> -15302727.51 | J9: -0.159837971 | K9: ='SC6'!K9 -> 287217000
A10: ='SC6'!A10 -> Finance Management | D10: ='SC6'!D10 -> 2145000 | F10: ='SC6'!F10 -> 30645 | G10: ='SC6'!G10 -> 199590.08 | H10: ='SC6'!H10 -> 715000 | I10: -515409.92 | J10: -0.720853035 | K10: ='SC6'!K10 -> 2145000
A11: ='SC6'!A11 -> Integrated National Electrification Programme | D11: ='SC6'!D11 -> 10000000 | F11: ='SC6'!F11 -> 0 | G11: ='SC6'!G11 -> 0 | H11: ='SC6'!H11 -> 3333333.333 | I11: -3333333.333 | J11: -1 | K11: ='SC6'!K11 -> 10000000
A12: ='SC6'!A12 -> EPWP Incentive | D12: ='SC6'!D12 -> 3362000 | F12: ='SC6'!F12 -> 351400 | G12: ='SC6'!G12 -> 1930862.5 | H12: ='SC6'!H12 -> 1120666.667 | I12: 810195.8333 | J12: 0.7229588043 | K12: ='SC6'!K12 -> 3362000
A13: ='SC6'!A13 -> 0 | I13: 0
A14: ='SC6'!A14 -> 0 | I14: 0
A15: ='SC6'!A19 -> Other transfers and grants [insert description] | I15: 0
A16: ='SC6'!A20 -> Provincial Government: | C16: =SUM(C17:C21) -> 0 | D16: 300000 | E16: 0 | F16: 0 | G16: 0 | H16: 100000 | I16: -100000 | J16: -1 | K16: =SUM(K17:K21) -> 300000
A17: ='SC6'!A21 -> 0 | I17: =G17-H17 -> 0
A18: ='SC6'!A23 -> 0 | I18: 0
A19: ='SC6'!A24 -> 0 | I19: 0
A20: ='SC6'!A25 -> 0 | I20: 0
A21: ='SC6'!A26 -> LG SETA | D21: ='SC6'!D26 -> 300000 | H21: =D21*4/12 -> 100000 | I21: -100000 | J21: -1 | K21: ='SC6'!K26 -> 300000
A22: ='SC6'!A27 -> District Municipality: | C22: =SUM(C23:C24) -> 0 | D22: 0 | E22: =SUM(E23:E24) -> 0 | F22: 0 | G22: 0 | H22: 0 | I22: 0 | K22: =SUM(K23:K24) -> 0
I23: 0
A24: ='SC6'!A28 -> [insert description] | I24: 0
A25: ='SC6'!A30 -> Other grant providers: | C25: =SUM(C26:C27) -> 0 | D25: 0 | E25: 0 | F25: 0 | G25: 0 | H25: 0 | I25: 0 | K25: =SUM(K26:K27) -> 0
I26: 0
A27: ='SC6'!A31 -> [insert description] | I27: 0
A28: Total operating expenditure of Transfers and Grants: | C28: =C8+C16+C22+C25 -> 0 | D28: =D8+D16+D22+D25 -> 303024000 | E28: 0 | F28: 17975262.34 | G28: 82566725.07 | H28: 101008000 | I28: -18441274.93 | J28: -0.1825724193 | K28: =K8+K16+K22+K25 -> 303024000
A30: Capital expenditure of Transfers and Grants
A31: ='SC6'!A41 -> National Government: | C31: =SUM(C32:C37) -> 0 | D31: 60688000 | E31: 0 | F31: 11813661.85 | G31: 26310445.54 | H31: 20229333.33 | I31: 6081112.207 | J31: =IF(I31=0,"",I31/H31) -> 0.3006086314 | K31: 60688000
A32: ='SC6'!A42 -> Municipal Infrastructure Grant (MIG) | D32: ='SC6'!D42 -> 60688000 | E32: ='SC6'!E42 -> 0 | F32: ='SC6'!F42 -> 11813661.85 | G32: ='SC6'!G42 -> 26310445.54 | H32: =D32*4/12 -> 20229333.33 | I32: =G32-H32 -> 6081112.207 | J32: 0.3006086314 | K32: ='SC6'!K42 -> 60688000
A33: ='SC6'!A47 -> 0 | I33: 0
A34: ='SC6'!A48 -> 0 | I34: 0
A35: ='SC6'!A49 -> 0 | I35: 0
A36: ='SC6'!A50 -> 0 | I36: 0
A37: ='SC6'!A51 -> Other capital transfers [insert description] | I37: 0
A38: ='SC6'!A52 -> Provincial Government: | C38: =SUM(C39:C40) -> 0 | D38: 0 | E38: 0 | F38: 0 | G38: 0 | H38: 0 | I38: =G38-H38 -> 0 | K38: =SUM(K39:K40) -> 0
I39: 0
A40: ='SC6'!A58 -> 0 | I40: 0
A41: ='SC6'!A59 -> District Municipality: | C41: =SUM(C42:C43) -> 0 | D41: 0 | E41: 0 | F41: 0 | G41: 0 | H41: 0 | I41: 0 | K41: =SUM(K42:K43) -> 0
I42: 0
A43: ='SC6'!A61 -> 0 | I43: 0
A44: ='SC6'!A62 -> Other grant providers: | C44: =SUM(C45:C46) -> 0 | D44: 0 | E44: 0 | F44: 0 | G44: 0 | H44: 0 | I44: 0 | K44: =SUM(K45:K46) -> 0
I45: 0
A46: ='SC6'!A68 -> 0 | I46: 0
A47: Total capital expenditure of Transfers and Grants | C47: =C31+C38+C41+C44 -> 0 | D47: =D31+D38+D41+D44 -> 60688000 | E47: 0 | F47: 11813661.85 | G47: 26310445.54 | H47: 20229333.33 | I47: 6081112.207 | J47: =IF(I47=0,"",I47/H47) -> 0.3006086314 | K47: 60688000
A49: TOTAL EXPENDITURE OF TRANSFERS AND GRANTS | C49: =C28+C47 -> 0 | D49: 363712000 | E49: 0 | F49: 29788924.19 | G49: 108877170.6 | H49: 121237333.3 | I49: -12360162.72 | J49: =IF(I49=0,"",I49/H49) -> -0.1019501368 | K49: 363712000
A50: =head27a -> References

Sheet SC8
A1: =muni& " - "&S71N& " - "&Head57 -> LIM331 Greater Giyani - Supporting Table SC8 Monthly Budget Statement - councillor and staff benefits - M04 October
A2: Summary of Employee and Councillor remuneration | B2: =head27 -> Ref | C2: =Head1 -> 2018/19 | D2: =Head2 -> Budget Year 2019/20
C3: =Head5 -> Audited Outcome | D3: =Head6 -> Original Budget | E3: =Head7 -> Adjusted Budget | F3: =Head38 -> Monthly actual | G3: =Head39 -> YearTD actual | H3: =Head40 -> YearTD budget | I3: =Head41 -> YTD variance | J3: =Head41 -> YTD variance | K3: =Head8 -> Full Year Forecast
A4: R thousands | J4: %
B5: 1 | C5: A | D5: B | E5: C | K5: D
A6: Councillors (Political Office Bearers plus Other)
A7: Basic Salaries and Wages | C7: 15122111.45 | D7: 16322826.49 | E7: 0 | F7: 1238046.73 | G7: =3718680.81+F7 -> 4956727.54 | H7: 5451159.64 | I7: =G7-H7 -> -494432.1 | J7: =IF(I7=0,"",I7/H7) -> -0.09070218681 | K7: 16322826.49
A8: Pension and UIF Contributions | C8: 0 | D8: 0 | E8: 0 | F8: 0 | G8: 0 | H8: 0 | I8: 0 | K8: 0
A9: Medical Aid Contributions | C9: 0 | D9: 0 | E9: 0 | F9: 0 | G9: 0 | H9: 0 | I9: 0 | K9: 0
A10: Motor Vehicle Allowance | C10: 4898660.67 | D10: 4846925.88 | E10: 0 | F10: 488688.76 | G10: =1283652.7+F10 -> 1772341.46 | H10: 1615642 | I10: =G10-H10 -> 156699.46 | J10: =IF(I10=0,"",I10/H10) -> 0.09698897404 | K10: 4846925.88
A11: Cellphone Allowance | C11: 2734300 | D11: 2752800 | E11: 0 | F11: 225700 | G11: =677100+F11 -> 902800 | H11: 917600 | I11: =G11-H11 -> -14800 | J11: =IF(I11=0,"",I11/H11) -> -0.01612903226 | K11: 2752800
A12: Housing Allowances | C12: 0 | D12: 0 | E12: 0 | F12: 0 | G12: 0 | H12: 0 | I12: =G12-H12 -> 0 | J12: =IF(I12=0,"",I12/H12) ->  | K12: 0
A13: Other benefits and allowances | C13: 0 | D13: 0 | E13: 0 | F13: 0 | G13: 0 | H13: 0 | I13: 0 | K13: 0
A14: Sub Total - Councillors | C14: =SUM(C7:C13) -> 22755072.12 | D14: 23922552.37 | E14: 0 | F14: 1952435.49 | G14: 7631869 | H14: 7984401.64 | I14: -352532.64 | J14: -0.04415266865 | K14: 23922552.37
A15: % increase | B15: 4 | D15: =IF(D14=0,"",(D14/C14)-1) -> 0.05130637441 | E15: =IF(E14=0,"",(E14/C14)-1) ->  | K15: =IF(K14=0,"",(K14/C14)-1) -> 0.05130637441
A17: Senior Managers of the Municipality | B17: 3
A18: Basic Salaries and Wages | C18: 2764108.51 | D18: 4511185.97 | E18: 0 | F18: 264193.48 | G18: 957684.37 | H18: 1506551.68 | I18: =G18-H18 -> -548867.31 | J18: =IF(I18=0,"",I18/H18) -> -0.3643202668 | K18: 4511185.97
A19: Pension and UIF Contributions | C19: 135091.28 | D19: 180245.56 | E19: 0 | F19: 13509.29 | G19: 48422.06 | H19: 60080.28 | I19: -11658.22 | J19: -0.1940440357 | K19: 180245.56
A20: Medical Aid Contributions | C20: 13944 | D20: 45372 | E20: 0 | F20: 8502 | G20: 8502 | H20: 15124 | I20: -6622 | J20: -0.4378471304 | K20: 45372
A21: Overtime | C21: 0 | D21: 0 | E21: 0 | F21: 0 | G21: 0 | H21: 0 | I21: 0 | K21: 0
A22: Performance Bonus | C22: 0 | D22: 0 | E22: 0 | F22: 0 | G22: 0 | H22: 0 | I22: =G22-H22 -> 0 | J22: =IF(I22=0,"",I22/H22) ->  | K22: 0
A23: Motor Vehicle Allowance | C23: 768005.4 | D23: 1531916.93 | E23: 0 | F23: 76010.26 | G23: 264041.04 | H23: 510638.32 | I23: =G23-H23 -> -246597.28 | J23: =IF(I23=0,"",I23/H23) -> -0.4829196524 | K23: 1531916.93
A24: Cellphone Allowance | C24: 39200 | D24: 95200 | E24: 0 | F24: 5600 | G24: 19600 | H24: 31733.32 | I24: =G24-H24 -> -12133.32 | J24: =IF(I24=0,"",I24/H24) -> -0.3823526817 | K24: 95200
A25: Housing Allowances | C25: 0 | D25: 0 | E25: 0 | F25: 0 | G25: 0 | H25: 0 | I25: =G25-H25 -> 0 | J25: =IF(I25=0,"",I25/H25) ->  | K25: 0
A26: Other benefits and allowances | C26: 136481.24 | D26: 225976.24 | E26: 0 | F26: 10709.94 | G26: 42839.76 | H26: 75325.32 | I26: -32485.56 | J26: -0.4312701227 | K26: 225976.24
A27: Payments in lieu of leave | C27: 200277.12 | D27: 0 | E27: 0 | F27: 0 | G27: 0 | H27: 0 | I27: 0 | K27: 0
A28: Long service awards | C28: 0 | D28: 0 | E28: 0 | F28: 0 | G28: 0 | H28: 0 | I28: 0 | K28: 0
A29: Post-retirement benefit obligations | B29: 2 | C29: 0 | D29: 0 | E29: 0 | F29: 0 | G29: 0 | H29: 0 | I29: 0 | K29: 0
A30: Sub Total - Senior Managers of Municipality | C30: =SUM(C18:C29) -> 4057107.55 | D30: 6589896.7 | E30: 0 | F30: =SUM(F18:F29) -> 378524.97 | G30: =SUM(G18:G29) -> 1341089.23 | H30: =SUM(H18:H29) -> 2199452.92 | I30: -858363.69 | J30: =IF(I30=0,"",I30/H30) -> -0.3902623612 | K30: 6589896.7
A31: % increase | B31: 4 | D31: =IF(D30=0,"",(D30/C30)-1) -> 0.6242844487 | E31: =IF(E30=0,"",(E30/C30)-1) ->  | K31: =IF(K30=0,"",(K30/C30)-1) -> 0.6242844487
A33: Other Municipal Staff
A34: Basic Salaries and Wages | C34: 81621602.54 | D34: 106001907.9 | E34: 0 | F34: 7184255.22 | G34: 28358659.18 | H34: 35253426 | I34: =G34-H34 -> -6894766.82 | J34: =IF(I34=0,"",I34/H34) -> -0.1955772134 | K34: 106001907.9
A35: Pension and UIF Contributions | C35: 14924930.08 | D35: 21531186.15 | E35: 0 | F35: 1289524.77 | G35: 5164551.81 | H35: 7156015.64 | I35: -1991463.83 | J35: -0.2782922691 | K35: 21531186.15
A36: Medical Aid Contributions | C36: 3815018.51 | D36: 4156940.64 | E36: 0 | F36: 361917.75 | G36: 1418503.5 | H36: 1486189.36 | I36: -67685.86 | J36: -0.04554322741 | K36: 4156940.64
A37: Overtime | C37: 5827399.11 | D37: 3962359 | E37: 0 | F37: 502894.07 | G37: 2020993.51 | H37: 1487452.96 | I37: 533540.55 | J37: 0.3586940659 | K37: 3962359
A38: Performance Bonus | C38: 0 | D38: 0 | E38: 0 | F38: 0 | G38: 0 | H38: 0 | I38: 0 | K38: 0
A39: Motor Vehicle Allowance | C39: 8930861.51 | D39: 11659652.4 | E39: 0 | F39: 817055.4 | G39: 3267385.02 | H39: 3750819.32 | I39: =G39-H39 -> -483434.3 | J39: =IF(I39=0,"",I39/H39) -> -0.1288876533 | K39: 11659652.4
A40: Cellphone Allowance | C40: 448760 | D40: 802752 | E40: 0 | F40: 55705.89 | G40: 222823.56 | H40: 259584 | I40: =G40-H40 -> -36760.44 | J40: =IF(I40=0,"",I40/H40) -> -0.1416128883 | K40: 802752
A41: Housing Allowances | C41: 273618.89 | D41: 283224.24 | E41: 0 | F41: 23602.02 | G41: 94408.08 | H41: 88644.16 | I41: =G41-H41 -> 5763.92 | J41: =IF(I41=0,"",I41/H41) -> 0.06502312166 | K41: 283224.24
A42: Other benefits and allowances | C42: 6956123.07 | D42: 9285715.95 | E42: 0 | F42: 621461.65 | G42: 2229722.32 | H42: 3092635.56 | I42: -862913.24 | J42: -0.2790219614 | K42: 9285715.95
A43: Payments in lieu of leave | C43: 1244478.45 | D43: 0 | E43: 0 | F43: 202726.08 | G43: 352771.2 | H43: 0 | I43: 352771.2 | K43: 0
A44: Long service awards | C44: 2374494.36 | D44: 263657.14 | E44: 0 | F44: 10052.3 | G44: 65156.53 | H44: 87884.6 | I44: -22728.07 | J44: -0.258612658 | K44: 263657.14
A45: Post-retirement benefit obligations | B45: 2 | C45: 0 | D45: 13727.73 | E45: 0 | F45: 43328.37 | G45: 43328.37 | H45: 4575.68 | I45: 38752.69 | J45: 8.469274512 | K45: 13727.73
A46: Sub Total - Other Municipal Staff | C46: =SUM(C34:C45) -> 126417286.5 | D46: 157961123.1 | E46: 0 | F46: =SUM(F34:F45) -> 11112523.52 | G46: =SUM(G34:G45) -> 43238303.08 | H46: =SUM(H34:H45) -> 52667227.28 | I46: -9428924.2 | J46: =IF(I46=0,"",I46/H46) -> -0.1790283007 | K46: 157961123.1
A47: % increase | B47: 4 | D47: =IF(D46=0,"",(D46/C46)-1) -> 0.2495215448 | E47: =IF(E46=0,"",(E46/C46)-1) ->  | K47: =IF(K46=0,"",(K46/C46)-1) -> 0.2495215448
A49: Total Parent Municipality | C49: =C14+C30+C46 -> 153229466.2 | D49: =D14+D30+D46 -> 188473572.2 | E49: 0 | F49: 13443483.98 | G49: 52211261.31 | H49: 62851081.84 | I49: =G49-H49 -> -10639820.53 | J49: =IF(I49=0,"",I49/H49) -> -0.1692861955 | K49: 188473572.2
D50: =IF(D49=0,"",(D49/C49)-1) -> 0.2300086719 | E50: =IF(E49=0,"",(E49/C49)-1) ->  | K50: =IF(K49=0,"",(K49/C49)-1) -> 0.2300086719
A51: Unpaid salary, allowances & benefits in arrears:
A53: Board Members of Entities
A54: Basic Salaries and Wages | C54: 0 | D54: 0 | E54: 0 | F54: 0 | G54: 0 | H54: 0 | I54: =G54-H54 -> 0 | J54: =IF(I54=0,"",I54/H54) ->  | K54: 0
A55: Pension and UIF Contributions | C55: 0 | D55: 0 | E55: 0 | F55: 0 | G55: 0 | H55: 0 | I55: 0 | K55: 0
A56: Medical Aid Contributions | C56: 0 | D56: 0 | E56: 0 | F56: 0 | G56: 0 | H56: 0 | I56: 0 | K56: 0
A57: Overtime | C57: 0 | D57: 0 | E57: 0 | F57: 0 | G57: 0 | H57: 0 | I57: =G57-H57 -> 0 | J57: =IF(I57=0,"",I57/H57) ->  | K57: 0
A58: Performance Bonus | C58: 0 | D58: 0 | E58: 0 | F58: 0 | G58: 0 | H58: 0 | I58: =G58-H58 -> 0 | J58: =IF(I58=0,"",I58/H58) ->  | K58: 0
A59: Motor Vehicle Allowance | C59: 0 | D59: 0 | E59: 0 | F59: 0 | G59: 0 | H59: 0 | I59: =G59-H59 -> 0 | J59: =IF(I59=0,"",I59/H59) ->  | K59: 0
A60: Cellphone Allowance | C60: 0 | D60: 0 | E60: 0 | F60: 0 | G60: 0 | H60: 0 | I60: =G60-H60 -> 0 | J60: =IF(I60=0,"",I60/H60) ->  | K60: 0
A61: Housing Allowances | C61: 0 | D61: 0 | E61: 0 | F61: 0 | G61: 0 | H61: 0 | I61: =G61-H61 -> 0 | J61: =IF(I61=0,"",I61/H61) ->  | K61: 0
A62: Other benefits and allowances | C62: 0 | D62: 0 | E62: 0 | F62: 0 | G62: 0 | H62: 0 | I62: 0 | K62: 0
A63: Board Fees | C63: 0 | D63: 0 | E63: 0 | F63: 0 | G63: 0 | H63: 0 | I63: =G63-H63 -> 0 | J63: =IF(I63=0,"",I63/H63) ->  | K63: 0
A64: Payments in lieu of leave | C64: 0 | D64: 0 | E64: 0 | F64: 0 | G64: 0 | H64: 0 | I64: 0 | K64: 0
A65: Long service awards | C65: 0 | D65: 0 | E65: 0 | F65: 0 | G65: 0 | H65: 0 | I65: 0 | K65: 0
A66: Post-retirement benefit obligations | C66: 0 | D66: 0 | E66: 0 | F66: 0 | G66: 0 | H66: 0 | I66: 0 | K66: 0
A67: Sub Total - Board Members of Entities | B67: 2 | C67: =SUM(C54:C66) -> 0 | D67: 0 | E67: 0 | F67: =SUM(F54:F66) -> 0 | G67: =SUM(G54:G66) -> 0 | H67: =SUM(H54:H66) -> 0 | I67: 0 | J67: =IF(I67=0,"",I67/H67) ->  | K67: 0
A68: % increase | B68: 4 | D68: =IF(D67=0,"",(D67/C67)-1) ->  | E68: =IF(E67=0,"",(E67/C67)-1) ->  | K68: =IF(K67=0,"",(K67/C67)-1) -> 
A70: Senior Managers of Entities
A71: Basic Salaries and Wages | C71: 0 | D71: 0 | E71: 0 | F71: 0 | G71: 0 | H71: 0 | I71: =G71-H71 -> 0 | J71: =IF(I71=0,"",I71/H71) ->  | K71: 0
A72: Pension and UIF Contributions | C72: 0 | D72: 0 | E72: 0 | F72: 0 | G72: 0 | H72: 0 | I72: 0 | K72: 0
A73: Medical Aid Contributions | C73: 0 | D73: 0 | E73: 0 | F73: 0 | G73: 0 | H73: 0 | I73: 0 | K73: 0
A74: Overtime | C74: 0 | D74: 0 | E74: 0 | F74: 0 | G74: 0 | H74: 0 | I74: 0 | K74: 0
A75: Performance Bonus | C75: 0 | D75: 0 | E75: 0 | F75: 0 | G75: 0 | H75: 0 | I75: =G75-H75 -> 0 | J75: =IF(I75=0,"",I75/H75) ->  | K75: 0
A76: Motor Vehicle Allowance | C76: 0 | D76: 0 | E76: 0 | F76: 0 | G76: 0 | H76: 0 | I76: =G76-H76 -> 0 | J76: =IF(I76=0,"",I76/H76) ->  | K76: 0
A77: Cellphone Allowance | C77: 0 | D77: 0 | E77: 0 | F77: 0 | G77: 0 | H77: 0 | I77: =G77-H77 -> 0 | J77: =IF(I77=0,"",I77/H77) ->  | K77: 0
A78: Housing Allowances | C78: 0 | D78: 0 | E78: 0 | F78: 0 | G78: 0 | H78: 0 | I78: =G78-H78 -> 0 | J78: =IF(I78=0,"",I78/H78) ->  | K78: 0
A79: Other benefits and allowances | C79: 0 | D79: 0 | E79: 0 | F79: 0 | G79: 0 | H79: 0 | I79: 0 | K79: 0
A80: Payments in lieu of leave | C80: 0 | D80: 0 | E80: 0 | F80: 0 | G80: 0 | H80: 0 | I80: 0 | K80: 0
A81: Long service awards | C81: 0 | D81: 0 | E81: 0 | F81: 0 | G81: 0 | H81: 0 | I81: 0 | K81: 0
A82: Post-retirement benefit obligations | B82: 2 | C82: 0 | D82: 0 | E82: 0 | F82: 0 | G82: 0 | H82: 0 | I82: 0 | K82: 0
A83: Sub Total - Senior Managers of Entities | C83: =SUM(C71:C82) -> 0 | D83: 0 | E83: 0 | F83: =SUM(F71:F82) -> 0 | G83: =SUM(G71:G82) -> 0 | H83: =SUM(H71:H82) -> 0 | I83: 0 | J83: =IF(I83=0,"",I83/H83) ->  | K83: 0
A84: % increase | B84: 4 | D84: =IF(D83=0,"",(D83/C83)-1) ->  | E84: =IF(E83=0,"",(E83/C83)-1) ->  | K84: =IF(K83=0,"",(K83/C83)-1) -> 
A86: Other Staff of Entities
A87: Basic Salaries and Wages | C87: 0 | D87: 0 | E87: 0 | F87: 0 | G87: 0 | H87: 0 | I87: =G87-H87 -> 0 | J87: =IF(I87=0,"",I87/H87) ->  | K87: 0
A88: Pension and UIF Contributions | C88: 0 | D88: 0 | E88: 0 | F88: 0 | G88: 0 | H88: 0 | I88: 0 | K88: 0
A89: Medical Aid Contributions | C89: 0 | D89: 0 | E89: 0 | F89: 0 | G89: 0 | H89: 0 | I89: =G89-H89 -> 0 | J89: =IF(I89=0,"",I89/H89) ->  | K89: 0
A90: Overtime | C90: 0 | D90: 0 | E90: 0 | F90: 0 | G90: 0 | H90: 0 | I90: =G90-H90 -> 0 | J90: =IF(I90=0,"",I90/H90) ->  | K90: 0
A91: Performance Bonus | C91: 0 | D91: 0 | E91: 0 | F91: 0 | G91: 0 | H91: 0 | I91: =G91-H91 -> 0 | J91: =IF(I91=0,"",I91/H91) ->  | K91: 0
A92: Motor Vehicle Allowance | C92: 0 | D92: 0 | E92: 0 | F92: 0 | G92: 0 | H92: 0 | I92: =G92-H92 -> 0 | J92: =IF(I92=0,"",I92/H92) ->  | K92: 0
A93: Cellphone Allowance | C93: 0 | D93: 0 | E93: 0 | F93: 0 | G93: 0 | H93: 0 | I93: 0 | K93: 0
A94: Housing Allowances | C94: 0 | D94: 0 | E94: 0 | F94: 0 | G94: 0 | H94: 0 | I94: 0 | K94: 0
A95: Other benefits and allowances | C95: 0 | D95: 0 | E95: 0 | F95: 0 | G95: 0 | H95: 0 | I95: 0 | K95: 0
A96: Payments in lieu of leave | C96: 0 | D96: 0 | E96: 0 | F96: 0 | G96: 0 | H96: 0 | I96: 0 | K96: 0
A97: Long service awards | C97: 0 | D97: 0 | E97: 0 | F97: 0 | G97: 0 | H97: 0 | I97: 0 | K97: 0
A98: Post-retirement benefit obligations | C98: 0 | D98: 0 | E98: 0 | F98: 0 | G98: 0 | H98: 0 | I98: 0 | K98: 0
A99: Sub Total - Other Staff of Entities | C99: =SUM(C87:C98) -> 0 | D99: 0 | E99: 0 | F99: 0 | G99: 0 | H99: 0 | I99: 0 | J99: =IF(I99=0,"",I99/H99) ->  | K99: =SUM(K87:K98) -> 0
A100: % increase | B100: 4 | D100: =IF(D99=0,"",(D99/C99)-1) ->  | E100: =IF(E99=0,"",(E99/C99)-1) ->  | K100: =IF(K99=0,"",(K99/C99)-1) -> 
A102: Total Municipal Entities | C102: =C67+C83+C99 -> 0 | D102: 0 | E102: 0 | F102: 0 | G102: 0 | H102: 0 | I102: =G102-H102 -> 0 | J102: =IF(I102=0,"",I102/H102) ->  | K102: =K67+K83+K99 -> 0
A104: TOTAL SALARY, ALLOWANCES & BENEFITS | C104: =C49+C102 -> 153229466.2 | D104: 188473572.2 | E104: 0 | F104: 13443483.98 | G104: 52211261.31 | H104: 62851081.84 | I104: =G104-H104 -> -10639820.53 | J104: =IF(I104=0,"",I104/H104) -> -0.1692861955 | K104: =K49+K102 -> 188473572.2
A105: % increase | B105: 4 | D105: =IF(D104=0,"",(D104/C104)-1) -> 0.2300086719 | E105: =IF(E104=0,"",(E104/C104)-1) ->  | K105: =IF(K104=0,"",(K104/C104)-1) -> 0.2300086719
A106: TOTAL MANAGERS AND STAFF | C106: =C30+C46+C83+C99 -> 130474394.1 | D106: 164551019.8 | E106: 0 | F106: 11491048.49 | G106: 44579392.31 | H106: 54866680.2 | I106: -10287287.89 | J106: =IF(I106=0,"",I106/H106) -> -0.1874960878 | K106: =K30+K46+K83+K99 -> 164551019.8
A107: =head27a -> References
A108: 1. Include 'Loans and advances' where applicable if any reportable amounts until phased compliance with s164 of MFMA achieved
A109: 2. If benefits in kind are provided (e.g. provision of living quarters) the full market value must be shown as the cost to the municipality
A110: 3. s57 of the Systems Act
A111: 4. B/A, C/A, D/A
A112: Column Definitions:
A113: A. Audited actual 2005/06 (audited financial statements). If audited amounts unavailable, unaudited amounts must be provided with a note stating these are unaudited
A114: B. The original budget approved by council for the 2006/07 budget year.
A115: C. The budget for 2006/07 budget year as adjusted by council resolution in terms of section 28 of the MFMA.
A116: D. An estimate of final actual amounts (pre audit - 2006/07 budget year) at the time of preparing the budget for the 2007/08 budget year. This may differ from C.

Sheet SC9
A1: =muni& " - "&S71O& " - "&Head57 -> LIM331 Greater Giyani - Supporting Table SC9 Monthly Budget Statement - actuals and revised targets for cash receipts - M04 October
A2: =desc -> Description | B2: =head27 -> Ref | C2: =Head2 -> Budget Year 2019/20 | O2: ='Template names'!B5 -> 2019/20 Medium Term Revenue & Expenditure Framework
C3: July | D3: August | E3: Sept | F3: October | G3: Nov | H3: Dec | I3: January | J3: Feb | K3: March | L3: April | M3: May | N3: June | O3: =Head9 -> Budget Year 2019/20 | P3: =Head10 -> Budget Year +1 2020/21 | Q3: =Head11 -> Budget Year +2 2021/22
A4: R thousands | B4: 1 | C4: Outcome | D4: Outcome | E4: Outcome | F4: Outcome | G4: Outcome | H4: Outcome | I4: Budget | J4: Budget | K4: Budget | L4: Budget | M4: Budget | N4: Budget
A5: Cash Receipts By Source
A6: Property rates | C6: 761285 | D6: 859914 | E6: 906082 | F6: 4709381 | G6: 2093625 | H6: 2093625 | I6: 2093625 | J6: 2093625 | K6: 2093625 | L6: 2093625 | M6: 2093625 | N6: =O6-SUM(C6:M6) -> 2093563 | O6: 23985600 | P6: 25280824 | Q6: 26645986
A7: Service charges - electricity revenue | C7: 0 | D7: 0 | E7: 0 | F7: 0 | G7: 0 | H7: 0 | I7: 0 | J7: 0 | K7: 0 | L7: 0 | M7: 0 | N7: 0 | O7: 0
A8: Service charges - water revenue | C8: 0 | D8: 0 | E8: 0 | F8: 0 | G8: 0 | H8: 0 | I8: 0 | J8: 0 | K8: 0 | L8: 0 | M8: 0 | N8: 0 | O8: 0
A9: Service charges - sanitation revenue | C9: 0 | D9: 0 | E9: 0 | F9: 0 | G9: 0 | H9: 0 | I9: 0 | J9: 0 | K9: 0 | L9: 0 | M9: 0 | N9: 0 | O9: 0
A10: Service charges - refuse | C10: 184972 | D10: 90456 | E10: 90456 | F10: 699279 | G10: 271875 | H10: 271875 | I10: 271875 | J10: 271875 | K10: 271875 | L10: 271875 | M10: 271875 | N10: 271712 | O10: 3240000 | P10: 3270000 | Q10: 3270000
A12: Rental of facilities and equipment | C12: 35852 | D12: 114118 | E12: 35867.88 | F12: 22887 | G12: 101833.33 | H12: 101833.33 | I12: 101833.33 | J12: 101833.33 | K12: 101833.33 | L12: 101833.33 | M12: 101833.33 | N12: 300441.81 | O12: 1222000 | P12: 1242100 | Q12: 1267222
A13: Interest earned - external investments | C13: 321171.17 | D13: 665495.63 | E13: 733990.73 | F13: 596212.68 | G13: 335375 | H13: 335375 | I13: 335375 | J13: 335375 | K13: 335375 | L13: 335375 | M13: 335375 | N13: 335504.79 | O13: 5000000 | P13: 5100000 | Q13: 5150000
A14: Interest earned - outstanding debtors | G14: 283333.33 | H14: 283333.33 | I14: 283333.33 | J14: 283333.33 | K14: 283333.33 | L14: 283333.33 | M14: 283333.33 | N14: 1416666.69 | O14: 3400000 | P14: 3583600 | Q14: 3777133
A15: Dividends received | G15: 0 | H15: 0 | I15: 0 | J15: 0 | K15: 0 | L15: 0 | M15: 0 | N15: 0 | O15: 0
A16: Fines, penalties and forfeits | C16: 126940 | D16: 151423.04 | E16: 95450 | F16: 334908.05 | G16: 833333.33 | H16: 833333.33 | I16: 833333.33 | J16: 833333.33 | K16: 833333.33 | L16: 833333.33 | M16: 833333.33 | N16: 3457945.6 | O16: 10000000 | P16: 11000000 | Q16: 11000000
A17: Licences and permits | C17: 1684160.5 | D17: 446798.75 | E17: 101940.23 | F17: 1356432.46 | G17: 238875 | H17: 238875 | I17: 238875 | J17: 238875 | K17: 238875 | L17: 238875 | M17: 238875 | N17: 238543.06 | O17: 5500000 | P17: 5600000 | Q17: 5600000
A18: Agency services | G18: 0 | H18: 0 | I18: 0 | J18: 0 | K18: 0 | L18: 0 | M18: 0 | N18: 0 | O18: 0 | P18: 0 | Q18: 0
A19: Transfer receipts - operating | C19: 123674000 | D19: 2986000 | E19: 0 | F19: 0 | G19: 101008000 | H19: 0 | I19: 0 | J19: 0 | K19: 75356000 | L19: 0 | M19: 0 | N19: 0 | O19: 303024000 | P19: 316807000 | Q19: 345521000
A20: Other revenue | C20: 145117.67 | D20: 140701.73 | E20: 94323.48 | F20: 117564 | G20: 145916.67 | H20: 145916.67 | I20: 145916.67 | J20: 145916.67 | K20: 145916.67 | L20: 145916.67 | M20: 145916.67 | N20: 231876.43 | O20: 1751000 | P20: 1847780 | Q20: 1944026.12
A21: Cash Receipts by Source | C21: =SUM(C6:C10)+SUM(C12:C20) -> 126933498.3 | D21: =SUM(D6:D10)+SUM(D12:D20) -> 5454907.15 | E21: 2058110.32 | F21: 7836664.19 | G21: 105312166.7 | H21: 4304166.66 | I21: 4304166.66 | J21: 4304166.66 | K21: 79660166.66 | L21: 4304166.66 | M21: 4304166.66 | N21: 8346253.38 | O21: 357122600 | P21: 373731304 | Q21: 404175367.1
N22: =O22-SUM(C22:M22) -> 0
A23: Other Cash Flows by Source | N23: 0
A24: Transfer receipts - capital | C24: 24275000 | D24: 0 | E24: 0 | F24: 0 | G24: 20229333 | H24: 0 | I24: 0 | J24: 0 | K24: 16183333 | L24: 0 | M24: 0 | N24: 334 | O24: 60688000 | P24: 64049000 | Q24: 68884000
A25: Contributions & Contributed assets | C25: 0 | D25: 0 | E25: 0 | F25: 0 | G25: 0 | H25: 0 | I25: 0 | J25: 0 | K25: 0 | L25: 0 | M25: 0 | N25: 0 | O25: 0
A26: Proceeds on disposal of PPE | C26: 0 | D26: 0 | E26: 0 | F26: 0 | G26: 0 | H26: 0 | I26: 0 | J26: 0 | K26: 0 | L26: 0 | M26: 0 | N26: 0 | O26: 0
A27: Short term loans | C27: 0 | D27: 0 | E27: 0 | F27: 0 | G27: 0 | H27: 0 | I27: 0 | J27: 0 | K27: 0 | L27: 0 | M27: 0 | N27: 0 | O27: 0
A28: Borrowing long term/refinancing | C28: 0 | D28: 0 | E28: 0 | F28: 0 | G28: 0 | H28: 0 | I28: 0 | J28: 0 | K28: 0 | L28: 0 | M28: 0 | N28: 0 | O28: 0
A29: Increase in consumer deposits | C29: 0 | D29: 0 | E29: 0 | F29: 0 | G29: 0 | H29: 0 | I29: 0 | J29: 0 | K29: 0 | L29: 0 | M29: 0 | N29: 0 | O29: 0
A30: Receipt of non-current debtors | C30: 0 | D30: 0 | E30: 0 | F30: 0 | G30: 0 | H30: 0 | I30: 0 | J30: 0 | K30: 0 | L30: 0 | M30: 0 | N30: 0 | O30: 0
A31: Receipt of non-current receivables | C31: 0 | D31: 0 | E31: 0 | F31: 0 | G31: 0 | H31: 0 | I31: 0 | J31: 0 | K31: 0 | L31: 0 | M31: 0 | N31: 0 | O31: 0
A32: Change in non-current investments | C32: 0 | D32: 0 | E32: 0 | F32: 0 | G32: 0 | H32: 0 | I32: 0 | J32: 0 | K32: 0 | L32: 0 | M32: 0 | N32: 0 | O32: 0
A33: Total Cash Receipts by Source | C33: =SUM(C21:C32) -> 151208498.3 | D33: 5454907.15 | E33: 2058110.32 | F33: 7836664.19 | G33: 125541499.7 | H33: 4304166.66 | I33: 4304166.66 | J33: 4304166.66 | K33: 95843499.66 | L33: 4304166.66 | M33: 4304166.66 | N33: 8346587.38 | O33: 417810600 | P33: 437780304 | Q33: 473059367.1
N34: =O34-SUM(C34:M34) -> 0
A35: Cash Payments by Type | N35: 0
A36: Employee related costs | C36: 11004917.58 | D36: 11044187.36 | E36: 11039238.89 | F36: 11491048.49 | G36: 13712584.99 | H36: 13712584.99 | I36: 13712584.99 | J36: 13712584.99 | K36: 13712584.99 | L36: 13712584.99 | M36: 13712584.99 | N36: 23983532.59 | O36: 164551019.8 | P36: 180024262.8 | Q36: 193364520.8
A37: Remuneration of councillors | C37: 1877888.67 | D37: 1898577.58 | E37: 1902967.26 | F37: 1952435.49 | G37: 1993546.03 | H37: 1993546.03 | I37: 1993546.03 | J37: 1993546.03 | K37: 1993546.03 | L37: 1993546.03 | M37: 1993546.03 | N37: 2335861.16 | O37: 23922552.37 | P37: 25513402.09 | Q37: 27210043.34
A38: Interest paid | C38: 0 | D38: 0 | F38: 0 | G38: 0 | H38: 0 | I38: 0 | J38: 0 | K38: 0 | L38: 0 | M38: 0 | N38: 0 | O38: 0
A39: Bulk purchases - Electricity | C39: 0 | D39: 0 | F39: 0 | G39: 0 | H39: 0 | I39: 0 | J39: 0 | K39: 0 | L39: 0 | M39: 0 | N39: 0 | O39: 0
A40: Bulk purchases - Water & Sewer | C40: 0 | D40: 0 | F40: 0 | G40: 0 | H40: 0 | I40: 0 | J40: 0 | K40: 0 | L40: 0 | M40: 0 | N40: 0 | O40: 0
A41: Other materials | C41: 391859.1 | D41: 685646.8 | E41: 628806.26 | F41: 129443.51 | G41: 750000 | H41: 750000 | I41: 750000 | J41: 750000 | K41: 750000 | L41: 750000 | M41: 750000 | N41: 1914244.33 | O41: 9000000 | P41: 12000000 | Q41: 14790000
A42: Contracted services | C42: 293832.76 | D42: 1175847.78 | E42: 6082996.12 | F42: 4964606.95 | G42: 5936500.67 | H42: 5936500.67 | I42: 5936500.67 | J42: 5936500.67 | K42: 5936500.67 | L42: 5936500.67 | M42: 5936500.67 | N42: 17165219.7 | O42: 71238008 | P42: 61042513 | Q42: 69404708
A43: Grants and subsidies paid - other municipalities | G43: 0 | H43: 0 | I43: 0 | J43: 0 | K43: 0 | L43: 0 | M43: 0 | N43: 0 | O43: 0
A44: Grants and subsidies paid - other | G44: 0 | H44: 0 | I44: 0 | J44: 0 | K44: 0 | L44: 0 | M44: 0 | N44: 0
A45: General expenses | C45: 1085000.44 | D45: 3157559.24 | E45: 3823808.97 | F45: 2626988.89 | G45: 4706596.6 | H45: 4706596.6 | I45: 4706596.6 | J45: 4706596.6 | K45: 4706596.6 | L45: 4706596.6 | M45: 4706596.6 | N45: 13839625.49 | O45: 57479159.23 | P45: 63629920.02 | Q45: 70239835.21
A46: Cash Payments by Type | B46: =SUM(B36:B45) -> 0 | C46: =SUM(C36:C45) -> 14653498.55 | D46: =SUM(D36:D45) -> 17961818.76 | E46: 23477817.5 | F46: 21164523.33 | G46: 27099228.29 | H46: 27099228.29 | I46: 27099228.29 | J46: 27099228.29 | K46: 27099228.29 | L46: 27099228.29 | M46: 27099228.29 | N46: 59238483.27 | O46: 326190739.4 | P46: 342210097.9 | Q46: 375009107.3
N47: =O47-SUM(C47:M47) -> 0
A48: Other Cash Flows/Payments by Type
A49: Capital assets | C49: 0 | D49: 10193452 | E49: 6331515.69 | F49: 12412453.17 | G49: 9155855.5 | H49: 9155855.5 | I49: 9155855.5 | J49: 9155855.5 | K49: 9155855.5 | L49: 9155855.5 | M49: 9155855.5 | N49: =O49-SUM(C49:M49) -> 16841856.64 | O49: 109870266 | P49: 95759088 | Q49: 94205350
A50: Repayment of borrowing | C50: 0 | D50: 0 | E50: 0 | F50: 0 | G50: 0 | H50: 0 | I50: 0 | J50: 0 | K50: 0 | L50: 0 | M50: 0 | N50: =O50-SUM(C50:M50) -> 0 | O50: 0
A51: Other Cash Flows/Payments | C51: 4977903.07 | D51: 3315720.72 | E51: 1835439.11 | F51: =545125.379999995-11753.28 -> 533372.1 | G51: 0 | H51: 0 | I51: 0 | J51: 0 | K51: 0 | L51: 0 | M51: 0 | N51: =O51-SUM(C51:M51) -> -10662435 | O51: 0
A52: Total Cash Payments by Type | B52: =SUM(B46:B51) -> 0 | C52: 19631401.62 | D52: 31470991.48 | E52: 31644772.3 | F52: 34110348.6 | G52: 36255083.79 | H52: 36255083.79 | I52: 36255083.79 | J52: 36255083.79 | K52: 36255083.79 | L52: 36255083.79 | M52: 36255083.79 | N52: 65417904.91 | O52: 436061005.4 | P52: 437969185.9 | Q52: 469214457.3
N53: =O53-SUM(C53:M53) -> 0
A54: NET INCREASE/(DECREASE) IN CASH HELD | B54: =B33-B52 -> 0 | C54: 131577096.7 | D54: -26016084.33 | E54: -29586661.98 | F54: -26273684.41 | G54: 89286415.87 | H54: -31950917.13 | I54: -31950917.13 | J54: -31950917.13 | K54: 59588415.87 | L54: -31950917.13 | M54: -31950917.13 | N54: -57071317.53 | O54: -18250405.44 | P54: -188881.95 | Q54: 3844909.81
A55: Cash/cash equivalents at the month/year beginning: | C55: 40759300 | D55: =C56 -> 172336396.7 | E55: =D56 -> 146320312.4 | F55: 116733650.4 | G55: 90459966 | H55: 179746381.9 | I55: 147795464.7 | J55: 115844547.6 | K55: 83893630.48 | L55: 143482046.4 | M55: 111531129.2 | N55: 79580212.09 | O55: =C55 -> 40759300 | P55: =O56 -> 22508894.56 | Q55: =P56 -> 22320012.61
A56: Cash/cash equivalents at the month/year end: | C56: =C54+C55 -> 172336396.7 | D56: =D54+D55 -> 146320312.4 | E56: =E54+E55 -> 116733650.4 | F56: 90459966 | G56: 179746381.9 | H56: 147795464.7 | I56: 115844547.6 | J56: 83893630.48 | K56: 143482046.4 | L56: 111531129.2 | M56: 79580212.09 | N56: 22508894.56 | O56: =O54+O55 -> 22508894.56 | P56: =P54+P55 -> 22320012.61 | Q56: =Q54+Q55 -> 26164922.42
A57: =head27a -> References
A58: 1. Replace 'budget' heading with adjusted budget, or 'outcome' only for month/s complete
A59: 2. Total of monthly amounts must always agree to the approved or adjusted budget
A60: 3. Amend 'cash-at-beginning' when prior year actual known (as part of the adjustments budget)
E65: =E46+E64 -> 23477817.5 | F65: 21164523.33 | G65: 27099228.29 | H65: 27099228.29 | I65: 27099228.29 | J65: 27099228.29 | K65: 27099228.29 | L65: 27099228.29 | N65: =N46+N64 -> 59238483.27 | O65: 326190739.4 | P65: 342210097.9
E66: =E54-E64 -> -29586661.98 | F66: -26273684.41 | G66: 89286415.87 | H66: -31950917.13 | I66: -31950917.13 | J66: -31950917.13 | K66: 59588415.87 | L66: -31950917.13 | M66: =M54-M64 -> -31950917.13 | N66: =N54-N64 -> -57071317.53 | O66: -18250405.44 | P66: -188881.95

Sheet SC10
A1: =muni& " - "&S71P& " - "&Head57 -> LIM331 Greater Giyani - NOT REQUIRED - municipality does not have entities or this is the parent municipality's budget - M04 October
A2: =desc -> Description | B2: =head27 -> Ref | C2: =Head1 -> 2018/19 | D2: =Head2 -> Budget Year 2019/20
C3: =Head5 -> Audited Outcome | D3: =Head6 -> Original Budget | E3: =Head7 -> Adjusted Budget | F3: =Head38 -> Monthly actual | G3: =Head39 -> YearTD actual | H3: =Head40 -> YearTD budget | I3: =Head41 -> YTD variance | J3: =Head41 -> YTD variance | K3: =Head8 -> Full Year Forecast
A4: R thousands | B4: 1 | J4: %
A5: ='C4-FinPerf RE'!A5 -> Revenue By Source
A6: ='C4-FinPerf RE'!A6 -> Property rates | I6: =G6-H6 -> 0 | J6: =IF(I6=0,"",I6/H6) -> 
A7: ='C4-FinPerf RE'!A7 -> Service charges - electricity revenue | I7: 0 | J7: =IF(I7=0,"",I7/H7) -> 
A8: ='C4-FinPerf RE'!A8 -> Service charges - water revenue | I8: 0
A9: ='C4-FinPerf RE'!A9 -> Service charges - sanitation revenue | I9: 0
A10: ='C4-FinPerf RE'!A10 -> Service charges - refuse revenue | I10: 0
A12: ='C4-FinPerf RE'!A12 -> Rental of facilities and equipment | I12: 0
A13: ='C4-FinPerf RE'!A13 -> Interest earned - external investments | I13: 0
A14: ='C4-FinPerf RE'!A14 -> Interest earned - outstanding debtors | I14: 0
A15: ='C4-FinPerf RE'!A15 -> Dividends received | I15: 0
A16: ='C4-FinPerf RE'!A16 -> Fines, penalties and forfeits | I16: 0
A17: ='C4-FinPerf RE'!A17 -> Licences and permits | I17: 0
A18: ='C4-FinPerf RE'!A18 -> Agency services | I18: 0
A19: ='C4-FinPerf RE'!A19 -> Transfers and subsidies | I19: 0
A20: ='C4-FinPerf RE'!A20 -> Other revenue | I20: 0
A21: ='C4-FinPerf RE'!A21 -> Gains on disposal of PPE | I21: 0
A22: Total Revenue (excluding capital transfers and contributions) | C22: =SUM(C6:C10)+SUM(C12:C21) -> 0 | D22: 0 | E22: 0 | F22: 0 | G22: 0 | H22: 0 | I22: =G22-H22 -> 0 | K22: =SUM(K6:K10)+SUM(K12:K21) -> 0
A24: Expenditure By Type
A25: ='C4-FinPerf RE'!A25 -> Employee related costs | I25: =G25-H25 -> 0 | J25: =IF(I25=0,"",I25/H25) -> 
A26: ='C4-FinPerf RE'!A26 -> Remuneration of councillors | I26: 0
A27: ='C4-FinPerf RE'!A27 -> Debt impairment | I27: 0
A28: ='C4-FinPerf RE'!A28 -> Depreciation & asset impairment | I28: 0
A29: ='C4-FinPerf RE'!A29 -> Finance charges | I29: 0
A30: ='C4-FinPerf RE'!A30 -> Bulk purchases | I30: 0
A31: ='C4-FinPerf RE'!A31 -> Other materials | I31: 0
A32: ='C4-FinPerf RE'!A32 -> Contracted services | I32: 0
A33: ='C4-FinPerf RE'!A33 -> Transfers and subsidies | I33: 0
A34: ='C4-FinPerf RE'!A34 -> Other expenditure | I34: 0
A35: ='C4-FinPerf RE'!A35 -> Loss on disposal of PPE | I35: 0
A36: Total Expenditure | C36: =SUM(C25:C35) -> 0 | D36: 0 | E36: 0 | F36: 0 | G36: 0 | H36: 0 | I36: 0 | K36: =SUM(K25:K35) -> 0
I37: 0
A38: ='C4-FinPerf RE'!A38 -> Surplus/(Deficit) | C38: =C22-C36 -> 0 | D38: 0 | E38: 0 | F38: 0 | G38: 0 | H38: 0 | I38: 0 | K38: =K22-K36 -> 0
A39: ='C4-FinPerf RE'!A39 -> Transfers and subsidies - capital (monetary allocations) (National / Provincial and District) | I39: 0
A40: ='C4-FinPerf RE'!A40 -> Transfers and subsidies - capital (monetary allocations) (National / Provincial Departmental Agencies, Households, Non-profit Institutions, Private Enterprises, Public Corporatons, Higher Educational Institutions) | I40: 0
A41: ='C4-FinPerf RE'!A41 -> Transfers and subsidies - capital (in-kind - all) | I41: 0
A42: ='C4-FinPerf RE'!A42 -> Surplus/(Deficit) after capital transfers & contributions | C42: =C38+SUM(C39:C41) -> 0 | D42: =D38+SUM(D39:D41) -> 0 | E42: 0 | F42: 0 | G42: 0 | H42: 0 | I42: 0 | K42: 0
A43: ='C4-FinPerf RE'!A43 -> Taxation | I43: 0
A44: ='C4-FinPerf RE'!A44 -> Surplus/(Deficit) after taxation | C44: =C42-C43 -> 0 | D44: 0 | E44: 0 | F44: 0 | G44: 0 | H44: 0 | I44: 0 | K44: =K42-K43 -> 0
A45: =head27a -> References
A46: 1. Votes (consolidated) are revenue sources and expenditure type

Sheet SC11
A1: =muni& " - "&S71Q& " - "&Head57 -> LIM331 Greater Giyani - NOT REQUIRED - municipality does not have entities or this is the parent municipality's budget - M04 October
A2: =desc -> Description | B2: =head27 -> Ref | C2: =Head1 -> 2018/19 | D2: =Head2 -> Budget Year 2019/20
C3: =Head5 -> Audited Outcome | D3: =Head6 -> Original Budget | E3: =Head7 -> Adjusted Budget | F3: =Head38 -> Monthly actual | G3: =Head39 -> YearTD actual | H3: =Head40 -> YearTD budget | I3: =Head41 -> YTD variance | J3: =Head41 -> YTD variance | K3: =Head8 -> Full Year Forecast
A4: R thousands | J4: %
A5: Revenue By Municipal Entity
A6: Insert name of municipal entity | I6: =G6-H6 -> 0 | J6: =IF(I6=0,"",I6/H6) -> 
I7: 0 | J7: =IF(I7=0,"",I7/H7) -> 
I8: 0
I9: 0
I10: 0
I11: 0
I12: 0
I13: 0
I14: 0
I15: 0
A16: Total Operating Revenue | B16: 1 | C16: =SUM(C6:C15) -> 0 | D16: 0 | E16: 0 | F16: 0 | G16: 0 | H16: 0 | I16: 0 | K16: =SUM(K6:K15) -> 0
A18: Expenditure By Municipal Entity
A19: =A6 -> Insert name of municipal entity | I19: 0 | J19: =IF(I19=0,"",I19/H19) -> 
A20: =IF(A7="","",A7) ->  | I20: 0
A21: =IF(A8="","",A8) ->  | I21: 0
I22: 0
I23: 0
I24: 0
I25: 0
I26: 0
I27: 0
I28: 0
A29: Total Operating Expenditure | B29: 2 | C29: =SUM(C19:C28) -> 0 | D29: 0 | E29: 0 | F29: 0 | G29: 0 | H29: 0 | I29: 0 | K29: =SUM(K19:K28) -> 0
A31: =Head42 -> Surplus/ (Deficit) for the yr/period | C31: =C16-C29 -> 0 | D31: =D16-D29 -> 0 | E31: 0 | F31: 0 | G31: 0 | H31: 0 | I31: =I16+I29 -> 0 | K31: 0
A32: Capital Expenditure By Municipal Entity
A33: =$A$6 -> Insert name of municipal entity | I33: 0
A34: =IF(A7="","",A7) ->  | I34: 0
A35: =IF(A8="","",A8) ->  | I35: 0
I36: 0
I37: 0
I38: 0
I39: 0
I40: 0
I41: 0
A43: Total Capital Expenditure | B43: 3 | C43: =SUM(C32:C42) -> 0 | D43: =SUM(D32:D42) -> 0 | E43: 0 | F43: 0 | G43: 0 | H43: =SUM(H32:H42) -> 0 | I43: =G43-H43 -> 0 | K43: 0
A44: =head27a -> References
A45: 1. Must reconcile to the sum of all municipal entity monthly revenue reports
A46: 2. Must reconcile to the sum of all municipal entity monthly expenditure reports
A47: 3. YTD = Year to date; FAV - favourable variance or unfavourable variance
A48: 4. Material variances to be explained
A49: 5. Insert additional 'Adjustment' Budget column for each Adjustment made by an entity

Sheet SC12
A1: =muni& " - "&S71R& " - "&Head57 -> LIM331 Greater Giyani - Supporting Table SC12 Monthly Budget Statement - capital expenditure trend - M04 October
A2: Month | B2: =Head1 -> 2018/19 | C2: =Head2 -> Budget Year 2019/20
B3: =Head5 -> Audited Outcome | C3: =Head6 -> Original Budget | D3: =Head7 -> Adjusted Budget | E3: =Head38 -> Monthly actual | F3: =Head39 -> YearTD actual | G3: =Head40 -> YearTD budget | H3: =Head41 -> YTD variance | I3: =Head41 -> YTD variance | J3: % spend of Original Budget
A4: R thousands | I4: %
A5: Monthly expenditure performance trend
A6: July | B6: 100537317.8 | C6: 9155855.5 | D6: 0 | E6: 1 | F6: =IF(E6>0,E6,"") -> 1 | G6: =IF(D6>0,D6,C6) -> 9155855.5 | H6: =IF(F6="",0,G6-F6) -> 9155854.5 | I6: =IF(F6="","",IF(H6=0,"",H6/G6)) -> 0.9999998908 | J6: =IF(F6="","",F6/$C$18) -> 9.101643569e-09
A7: August | B7: 100537317.8 | C7: 9155855.5 | D7: 0 | E7: 10193452 | F7: =IF(E7>0,E7+F6,"") -> 10193453 | G7: =IF(D7>0,D7+D6,C7+C6) -> 18311711 | H7: 8118258 | I7: 0.4433369443 | J7: 0.09277717595
A8: September | B8: 100537317.8 | C8: 9155855.5 | D8: 0 | E8: 6331515.69 | F8: =IF(E8>0,E8+F7,"") -> 16524968.69 | G8: =IF(D8>0,D8+G7,C8+G7) -> 27467566.5 | H8: 10942597.81 | I8: 0.3983825 | J8: 0.150404375
A9: October | B9: 100537317.8 | C9: 9155855.5 | D9: 0 | E9: 12412453.17 | F9: 28937421.86 | G9: =IF(D9>0,D9+G8,C9+G8) -> 36623422 | H9: 7686000.14 | I9: 0.2098657012 | J9: 0.2633780996
A10: November | B10: 100537317.8 | C10: 9155855.5 | D10: 0 | E10: 0 | G10: 45779277.5 | H10: 0
A11: December | B11: 100537317.8 | C11: 9155855.5 | D11: 0 | E11: 0 | G11: 54935133 | H11: 0
A12: January | B12: 100537317.8 | C12: 9155855.5 | D12: 0 | E12: 0 | G12: 64090988.5 | H12: 0
A13: February | B13: 100537317.8 | C13: 9155855.5 | D13: 0 | E13: 0 | G13: 73246844 | H13: 0
A14: March | B14: 100537317.8 | C14: 9155855.5 | D14: 0 | E14: 0 | G14: 82402699.5 | H14: 0
A15: April | B15: 100537317.8 | C15: 9155855.5 | D15: 0 | E15: 0 | G15: 91558555 | H15: 0
A16: May | B16: 100537317.8 | C16: 9155855.5 | D16: 0 | E16: 0 | G16: 100714410.5 | H16: 0
A17: June | B17: 100537317.8 | C17: 9155855.5 | D17: 0 | E17: 0 | G17: 109870266 | H17: =IF(F17="",0,G17-F17) -> 0 | I17: =IF(F17="","",IF(H17=0,"",H17/G17)) ->  | J17: =IF(F17="","",F17/$C$18) -> 
A18: Total Capital expenditure | B18: =SUM(B6:B17) -> 1206447814 | C18: =SUM(C6:C17) -> 109870266 | D18: =SUM(D6:D17) -> 0 | E18: =SUM(E6:E17) -> 28937421.86

Sheet SC13a
A1: =muni& " - "&S71Sa& " - "&Head57 -> LIM331 Greater Giyani - Supporting Table SC13a Monthly Budget Statement - capital expenditure on new assets by asset class - M04 October
A2: =desc -> Description | B2: =head27 -> Ref | C2: =Head1 -> 2018/19 | D2: =Head2 -> Budget Year 2019/20
C3: =Head5 -> Audited Outcome | D3: =Head6 -> Original Budget | E3: =Head7 -> Adjusted Budget | F3: =Head38 -> Monthly actual | G3: =Head39 -> YearTD actual | H3: =Head40 -> YearTD budget | I3: =Head41 -> YTD variance | J3: =Head41 -> YTD variance | K3: =Head8 -> Full Year Forecast
A4: R thousands | B4: 1 | J4: %
A5: Capital expenditure on new assets by Asset Class/Sub-class
A7: Infrastructure | C7: =C8+C13+C17+C27+C38+C45+C53+C63+C69 -> 47267449 | D7: 49902820 | E7: 0 | F7: 10068531.71 | G7: 21154760.8 | H7: 16634273.33 | I7: =H7-G7 -> -4520487.467 | J7: =IF(I7=0,"",I7/H7) -> -0.2717574358 | K7: =K8+K13+K17+K27+K38+K45+K53+K63+K69 -> 49902820
A8: Roads Infrastructure | C8: =SUM(C9:C12) -> 47267449 | D8: 35002820 | E8: 0 | F8: 10068531.71 | G8: 21154760.8 | H8: 11667606.67 | I8: -9487154.133 | J8: -0.8131191258 | K8: =SUM(K9:K12) -> 35002820
A9: Roads | C9: 47267449 | D9: 34902820 | E9: 0 | F9: 10068531.71 | G9: 21154760.8 | H9: =4/12*D9 -> 11634273.33 | I9: -9520487.467 | J9: -0.8183138898 | K9: 34902820
A10: Road Structures | C10: 0 | D10: 100000 | E10: 0 | F10: 0 | G10: 0 | H10: 33333.33333 | I10: 33333.33333 | J10: 1 | K10: 100000
A11: Road Furniture | C11: 0 | D11: 0 | E11: 0 | F11: 0 | G11: 0 | H11: 0 | I11: 0 | K11: 0
A12: Capital Spares | C12: 0 | D12: 0 | E12: 0 | F12: 0 | G12: 0 | H12: 0 | I12: 0 | K12: 0
A13: Storm water Infrastructure | C13: =SUM(C14:C16) -> 0 | D13: 0 | E13: 0 | F13: 0 | G13: 0 | H13: 0 | I13: 0 | K13: =SUM(K14:K16) -> 0
A14: Drainage Collection | C14: 0 | D14: 0 | E14: 0 | F14: 0 | G14: 0 | H14: 0 | I14: 0 | K14: 0
A15: Storm water Conveyance | C15: 0 | D15: 0 | E15: 0 | F15: 0 | G15: 0 | H15: 0 | I15: 0 | K15: 0
A16: Attenuation | C16: 0 | D16: 0 | E16: 0 | F16: 0 | G16: 0 | H16: 0 | I16: 0 | K16: 0
A17: Electrical Infrastructure | C17: =SUM(C18:C26) -> 0 | D17: 0 | E17: 0 | F17: 0 | G17: 0 | H17: 0 | I17: 0 | K17: =SUM(K18:K26) -> 0
A18: Power Plants | C18: 0 | D18: 0 | E18: 0 | F18: 0 | G18: 0 | H18: 0 | I18: 0 | K18: 0
A19: HV Substations | C19: 0 | D19: 0 | E19: 0 | F19: 0 | G19: 0 | H19: 0 | I19: 0 | K19: 0
A20: HV Switching Station | C20: 0 | D20: 0 | E20: 0 | F20: 0 | G20: 0 | H20: 0 | I20: 0 | K20: 0
A21: HV Transmission Conductors | C21: 0 | D21: 0 | E21: 0 | F21: 0 | G21: 0 | H21: 0 | I21: 0 | K21: 0
A22: MV Substations | C22: 0 | D22: 0 | E22: 0 | F22: 0 | G22: 0 | H22: 0 | I22: 0 | K22: 0
A23: MV Switching Stations | C23: 0 | D23: 0 | E23: 0 | F23: 0 | G23: 0 | H23: 0 | I23: 0 | K23: 0
A24: MV Networks | C24: 0 | D24: 0 | E24: 0 | F24: 0 | G24: 0 | H24: 0 | I24: 0 | K24: 0
A25: LV Networks | C25: 0 | D25: 0 | E25: 0 | F25: 0 | G25: 0 | H25: 0 | I25: 0 | K25: 0
A26: Capital Spares | C26: 0 | D26: 0 | E26: 0 | F26: 0 | G26: 0 | H26: 0 | I26: 0 | K26: 0
A27: Water Supply Infrastructure | C27: =SUM(C28:C37) -> 0 | D27: 0 | E27: 0 | F27: 0 | G27: 0 | H27: 0 | I27: 0 | K27: =SUM(K28:K37) -> 0
A28: Dams and Weirs | C28: 0 | D28: 0 | E28: 0 | F28: 0 | G28: 0 | H28: 0 | I28: 0 | K28: 0
A29: Boreholes | C29: 0 | D29: 0 | E29: 0 | F29: 0 | G29: 0 | H29: 0 | I29: 0 | K29: 0
A30: Reservoirs | C30: 0 | D30: 0 | E30: 0 | F30: 0 | G30: 0 | H30: 0 | I30: 0 | K30: 0
A31: Pump Stations | C31: 0 | D31: 0 | E31: 0 | F31: 0 | G31: 0 | H31: 0 | I31: 0 | K31: 0
A32: Water Treatment Works | C32: 0 | D32: 0 | E32: 0 | F32: 0 | G32: 0 | H32: 0 | I32: 0 | K32: 0
A33: Bulk Mains | C33: 0 | D33: 0 | E33: 0 | F33: 0 | G33: 0 | H33: 0 | I33: 0 | K33: 0
A34: Distribution | C34: 0 | D34: 0 | E34: 0 | F34: 0 | G34: 0 | H34: 0 | I34: 0 | K34: 0
A35: Distribution Points | C35: 0 | D35: 0 | E35: 0 | F35: 0 | G35: 0 | H35: 0 | I35: 0 | K35: 0
A36: PRV Stations | C36: 0 | D36: 0 | E36: 0 | F36: 0 | G36: 0 | H36: 0 | I36: 0 | K36: 0
A37: Capital Spares | C37: 0 | D37: 0 | E37: 0 | F37: 0 | G37: 0 | H37: 0 | I37: 0 | K37: 0
A38: Sanitation Infrastructure | C38: =SUM(C39:C44) -> 0 | D38: 0 | E38: 0 | F38: 0 | G38: 0 | H38: 0 | I38: =H38-G38 -> 0 | J38: =IF(I38=0,"",I38/H38) ->  | K38: =SUM(K39:K44) -> 0
A39: Pump Station | C39: 0 | D39: 0 | E39: 0 | F39: 0 | G39: 0 | H39: 0 | I39: 0 | K39: 0
A40: Reticulation | C40: 0 | D40: 0 | E40: 0 | F40: 0 | G40: 0 | H40: 0 | I40: =H40-G40 -> 0 | J40: =IF(I40=0,"",I40/H40) ->  | K40: 0
A41: Waste Water Treatment Works | C41: 0 | D41: 0 | E41: 0 | F41: 0 | G41: 0 | H41: 0 | I41: =H41-G41 -> 0 | J41: =IF(I41=0,"",I41/H41) ->  | K41: 0
A42: Outfall Sewers | C42: 0 | D42: 0 | E42: 0 | F42: 0 | G42: 0 | H42: 0 | I42: =H42-G42 -> 0 | J42: =IF(I42=0,"",I42/H42) ->  | K42: 0
A43: Toilet Facilities | C43: 0 | D43: 0 | E43: 0 | F43: 0 | G43: 0 | H43: 0 | I43: 0 | K43: 0
A44: Capital Spares | C44: 0 | D44: 0 | E44: 0 | F44: 0 | G44: 0 | H44: 0 | I44: 0 | K44: 0
A45: Solid Waste Infrastructure | C45: =SUM(C46:C52) -> 0 | D45: 12500000 | E45: 0 | F45: 0 | G45: 0 | H45: 4166666.667 | I45: =H45-G45 -> 4166666.667 | J45: =IF(I45=0,"",I45/H45) -> 1 | K45: =SUM(K46:K52) -> 12500000
A46: Landfill Sites | C46: 0 | D46: 12500000 | E46: 0 | F46: 0 | G46: 0 | H46: =4/12*D46 -> 4166666.667 | I46: 4166666.667 | J46: 1 | K46: 12500000
A47: Waste Transfer Stations | C47: 0 | D47: 0 | E47: 0 | F47: 0 | G47: 0 | H47: 0 | I47: 0 | K47: 0
A48: Waste Processing Facilities | C48: 0 | D48: 0 | E48: 0 | F48: 0 | G48: 0 | H48: 0 | I48: =H48-G48 -> 0 | J48: =IF(I48=0,"",I48/H48) ->  | K48: 0
A49: Waste Drop-off Points | C49: 0 | D49: 0 | E49: 0 | F49: 0 | G49: 0 | H49: 0 | I49: 0 | K49: 0
A50: Waste Separation Facilities | C50: 0 | D50: 0 | E50: 0 | F50: 0 | G50: 0 | H50: 0 | I50: 0 | K50: 0
A51: Electricity Generation Facilities | C51: 0 | D51: 0 | E51: 0 | F51: 0 | G51: 0 | H51: 0 | I51: 0 | K51: 0
A52: Capital Spares | C52: 0 | D52: 0 | E52: 0 | F52: 0 | G52: 0 | H52: 0 | I52: 0 | K52: 0
A53: Rail Infrastructure | C53: =SUM(C54:C62) -> 0 | D53: 0 | E53: 0 | F53: 0 | G53: 0 | H53: 0 | I53: 0 | K53: =SUM(K54:K62) -> 0
A54: Rail Lines | C54: 0 | D54: 0 | E54: 0 | F54: 0 | G54: 0 | H54: 0 | I54: 0 | K54: 0
A55: Rail Structures | C55: 0 | D55: 0 | E55: 0 | F55: 0 | G55: 0 | H55: 0 | I55: 0 | K55: 0
A56: Rail Furniture | C56: 0 | D56: 0 | E56: 0 | F56: 0 | G56: 0 | H56: 0 | I56: 0 | K56: 0
A57: Drainage Collection | C57: 0 | D57: 0 | E57: 0 | F57: 0 | G57: 0 | H57: 0 | I57: 0 | K57: 0
A58: Storm water Conveyance | C58: 0 | D58: 0 | E58: 0 | F58: 0 | G58: 0 | H58: 0 | I58: 0 | K58: 0
A59: Attenuation | C59: 0 | D59: 0 | E59: 0 | F59: 0 | G59: 0 | H59: 0 | I59: 0 | K59: 0
A60: MV Substations | C60: 0 | D60: 0 | E60: 0 | F60: 0 | G60: 0 | H60: 0 | I60: 0 | K60: 0
A61: LV Networks | C61: 0 | D61: 0 | E61: 0 | F61: 0 | G61: 0 | H61: 0 | I61: 0 | K61: 0
A62: Capital Spares | C62: 0 | D62: 0 | E62: 0 | F62: 0 | G62: 0 | H62: 0 | I62: 0 | K62: 0
A63: Coastal Infrastructure | C63: =SUM(C64:C68) -> 0 | D63: 0 | E63: 0 | F63: 0 | G63: 0 | H63: 0 | I63: 0 | K63: =SUM(K64:K68) -> 0
A64: Sand Pumps | C64: 0 | D64: 0 | E64: 0 | F64: 0 | G64: 0 | H64: 0 | I64: 0 | K64: 0
A65: Piers | C65: 0 | D65: 0 | E65: 0 | F65: 0 | G65: 0 | H65: 0 | I65: 0 | K65: 0
A66: Revetments | C66: 0 | D66: 0 | E66: 0 | F66: 0 | G66: 0 | H66: 0 | I66: 0 | K66: 0
A67: Promenades | C67: 0 | D67: 0 | E67: 0 | F67: 0 | G67: 0 | H67: 0 | I67: 0 | K67: 0
A68: Capital Spares | C68: 0 | D68: 0 | E68: 0 | F68: 0 | G68: 0 | H68: 0 | I68: 0 | K68: 0
A69: Information and Communication Infrastructure | C69: =SUM(C70:C73) -> 0 | D69: 2400000 | E69: 0 | F69: 0 | G69: 0 | H69: 800000 | I69: =H69-G69 -> 800000 | J69: =IF(I69=0,"",I69/H69) -> 1 | K69: =SUM(K70:K73) -> 2400000
A70: Data Centres | C70: 0 | D70: 0 | E70: 0 | F70: 0 | G70: 0 | H70: 0 | I70: =H70-G70 -> 0 | K70: 0
A71: Core Layers | C71: 0 | D71: 2400000 | E71: 0 | F71: 0 | G71: 0 | H71: =4/12*D71 -> 800000 | I71: =H71-G71 -> 800000 | J71: 1 | K71: 2400000
A72: Distribution Layers | C72: 0 | D72: 0 | E72: 0 | F72: 0 | G72: 0 | H72: 0 | I72: =H72-G72 -> 0 | K72: 0
A73: Capital Spares | C73: 0 | D73: 0 | E73: 0 | F73: 0 | G73: 0 | H73: 0 | I73: =H73-G73 -> 0 | K73: 0
A75: Community Assets | C75: =+C76+C99 -> 7438669 | D75: 20750780 | E75: 0 | F75: 1475267.86 | G75: 5983888.41 | H75: 6916926.667 | I75: =H75-G75 -> 933038.2567 | J75: 0.1348920267 | K75: =+K76+K99 -> 20750780
A76: Community Facilities | C76: =SUM(C77:C98) -> 0 | D76: 0 | E76: 0 | F76: 0 | G76: 0 | H76: 0 | I76: =H76-G76 -> 0 | J76: =IF(I76=0,"",I76/H76) ->  | K76: =SUM(K77:K98) -> 0
A77: Halls | C77: 0 | D77: 0 | E77: 0 | F77: 0 | G77: 0 | H77: 0 | I77: 0 | K77: 0
A78: Centres | C78: 0 | D78: 0 | E78: 0 | F78: 0 | G78: 0 | H78: 0 | I78: 0 | K78: 0
A79: Crèches | C79: 0 | D79: 0 | E79: 0 | F79: 0 | G79: 0 | H79: 0 | I79: 0 | K79: 0
A80: Clinics/Care Centres | C80: 0 | D80: 0 | E80: 0 | F80: 0 | G80: 0 | H80: 0 | I80: 0 | K80: 0
A81: Fire/Ambulance Stations | C81: 0 | D81: 0 | E81: 0 | F81: 0 | G81: 0 | H81: 0 | I81: 0 | K81: 0
A82: Testing Stations | C82: 0 | D82: 0 | E82: 0 | F82: 0 | G82: 0 | H82: 0 | I82: 0 | K82: 0
A83: Museums | C83: 0 | D83: 0 | E83: 0 | F83: 0 | G83: 0 | H83: 0 | I83: 0 | K83: 0
A84: Galleries | C84: 0 | D84: 0 | E84: 0 | F84: 0 | G84: 0 | H84: 0 | I84: 0 | K84: 0
A85: Theatres | C85: 0 | D85: 0 | E85: 0 | F85: 0 | G85: 0 | H85: 0 | I85: 0 | K85: 0
A86: Libraries | C86: 0 | D86: 0 | E86: 0 | F86: 0 | G86: 0 | H86: 0 | I86: 0 | K86: 0
A87: Cemeteries/Crematoria | C87: 0 | D87: 0 | E87: 0 | F87: 0 | G87: 0 | H87: 0 | I87: 0 | K87: 0
A88: Police | C88: 0 | D88: 0 | E88: 0 | F88: 0 | G88: 0 | H88: 0 | I88: =H88-G88 -> 0 | J88: =IF(I88=0,"",I88/H88) ->  | K88: 0
A89: Purls | C89: 0 | D89: 0 | E89: 0 | F89: 0 | G89: 0 | H89: 0 | I89: 0 | K89: 0
A90: Public Open Space | C90: 0 | D90: 0 | E90: 0 | F90: 0 | G90: 0 | H90: 0 | I90: 0 | K90: 0
A91: Nature Reserves | C91: 0 | D91: 0 | E91: 0 | F91: 0 | G91: 0 | H91: 0 | I91: 0 | K91: 0
A92: Public Ablution Facilities | C92: 0 | D92: 0 | E92: 0 | F92: 0 | G92: 0 | H92: 0 | I92: 0 | K92: 0
A93: Markets | C93: 0 | D93: 0 | E93: 0 | F93: 0 | G93: 0 | H93: 0 | I93: 0 | K93: 0
A94: Stalls | C94: 0 | D94: 0 | E94: 0 | F94: 0 | G94: 0 | H94: 0 | I94: 0 | K94: 0
A95: Abattoirs | C95: 0 | D95: 0 | E95: 0 | F95: 0 | G95: 0 | H95: 0 | I95: 0 | K95: 0
A96: Airports | C96: 0 | D96: 0 | E96: 0 | F96: 0 | G96: 0 | H96: 0 | I96: 0 | K96: 0
A97: Taxi Ranks/Bus Terminals | C97: 0 | D97: 0 | E97: 0 | F97: 0 | G97: 0 | H97: 0 | I97: 0 | K97: 0
A98: Capital Spares | C98: 0 | D98: 0 | E98: 0 | F98: 0 | G98: 0 | H98: 0 | I98: 0 | K98: 0
A99: Sport and Recreation Facilities | C99: =SUM(C100:C102) -> 7438669 | D99: 20750780 | E99: 0 | F99: 1475267.86 | G99: 5983888.41 | H99: 6916926.667 | I99: 933038.2567 | J99: 0.1348920267 | K99: =SUM(K100:K102) -> 20750780
A100: Indoor Facilities | C100: 0 | D100: 0 | E100: 0 | F100: 0 | G100: 0 | H100: =4/12*D100 -> 0 | I100: 0 | K100: 0
A101: Outdoor Facilities | C101: 7438669 | D101: 20750780 | E101: 0 | F101: 1475267.86 | G101: 5983888.41 | H101: 6916926.667 | I101: 933038.2567 | J101: 0.1348920267 | K101: 20750780
A102: Capital Spares | C102: 0 | D102: 0 | E102: 0 | F102: 0 | G102: 0 | H102: 0 | I102: 0 | K102: 0
A103: Heritage assets | C103: =SUM(C104:C108) -> 0 | D103: 0 | E103: 0 | F103: 0 | G103: 0 | H103: 0 | I103: 0 | K103: =SUM(K104:K108) -> 0
A104: Monuments | C104: 0 | D104: 0 | E104: 0 | F104: 0 | G104: 0 | H104: 0 | I104: 0 | K104: 0
A105: Historic Buildings | C105: 0 | D105: 0 | E105: 0 | F105: 0 | G105: 0 | H105: 0 | I105: 0 | K105: 0
A106: Works of Art | C106: 0 | D106: 0 | E106: 0 | F106: 0 | G106: 0 | H106: 0 | I106: 0 | K106: 0
A107: Conservation Areas | C107: 0 | D107: 0 | E107: 0 | F107: 0 | G107: 0 | H107: 0 | I107: 0 | K107: 0
A108: Other Heritage | C108: 0 | D108: 0 | E108: 0 | F108: 0 | G108: 0 | H108: 0 | I108: 0 | K108: 0
I109: 0
A110: Investment properties | C110: =+C111+C114 -> 0 | D110: 0 | E110: 0 | F110: 0 | G110: 0 | H110: 0 | I110: 0 | K110: =+K111+K114 -> 0
A111: Revenue Generating | C111: =SUM(C112:C113) -> 0 | D111: 0 | E111: 0 | F111: 0 | G111: 0 | H111: 0 | I111: 0 | K111: =SUM(K112:K113) -> 0
A112: Improved Property | C112: 0 | D112: 0 | E112: 0 | F112: 0 | G112: 0 | H112: 0 | I112: 0 | K112: 0
A113: Unimproved Property | C113: 0 | D113: 0 | E113: 0 | F113: 0 | G113: 0 | H113: 0 | I113: 0 | K113: 0
A114: Non-revenue Generating | C114: =SUM(C115:C116) -> 0 | D114: 0 | E114: 0 | F114: 0 | G114: 0 | H114: 0 | I114: 0 | K114: =SUM(K115:K116) -> 0
A115: Improved Property | C115: 0 | D115: 0 | E115: 0 | F115: 0 | G115: 0 | H115: 0 | I115: 0 | K115: 0
A116: Unimproved Property | C116: 0 | D116: 0 | E116: 0 | F116: 0 | G116: 0 | H116: 0 | I116: 0 | K116: 0
A117: Other assets | C117: =+C118+C130 -> 4511695 | D117: 0 | E117: 0 | F117: 0 | G117: 0 | H117: 0 | I117: 0 | K117: =+K118+K130 -> 0
A118: Operational Buildings | C118: =SUM(C119:C129) -> 4511695 | D118: 0 | E118: 0 | F118: 0 | G118: 0 | H118: 0 | I118: 0 | K118: =SUM(K119:K129) -> 0
A119: Municipal Offices | C119: 4511695 | D119: 0 | E119: 0 | F119: 0 | G119: 0 | H119: 0 | I119: 0 | K119: 0
A120: Pay/Enquiry Points | C120: 0 | D120: 0 | E120: 0 | F120: 0 | G120: 0 | H120: 0 | I120: 0 | J120: =IF(I120=0,"",I120/H120) ->  | K120: 0
A121: Building Plan Offices | C121: 0 | D121: 0 | E121: 0 | F121: 0 | G121: 0 | H121: 0 | I121: 0 | K121: 0
A122: Workshops | C122: 0 | D122: 0 | E122: 0 | F122: 0 | G122: 0 | H122: 0 | I122: 0 | K122: 0
A123: Yards | C123: 0 | D123: 0 | E123: 0 | F123: 0 | G123: 0 | H123: 0 | I123: 0 | K123: 0
A124: Stores | C124: 0 | D124: 0 | E124: 0 | F124: 0 | G124: 0 | H124: 0 | I124: 0 | K124: 0
A125: Laboratories | C125: 0 | D125: 0 | E125: 0 | F125: 0 | G125: 0 | H125: 0 | I125: 0 | K125: 0
A126: Training Centres | C126: 0 | D126: 0 | E126: 0 | F126: 0 | G126: 0 | H126: 0 | I126: 0 | K126: 0
A127: Manufacturing Plant | C127: 0 | D127: 0 | E127: 0 | F127: 0 | G127: 0 | H127: 0 | I127: 0 | K127: 0
A128: Depots | C128: 0 | D128: 0 | E128: 0 | F128: 0 | G128: 0 | H128: 0 | I128: 0 | K128: 0
A129: Capital Spares | C129: 0 | D129: 0 | E129: 0 | F129: 0 | G129: 0 | H129: 0 | I129: 0 | K129: 0
A130: Housing | C130: =SUM(C131:C133) -> 0 | D130: 0 | E130: 0 | F130: 0 | G130: 0 | H130: 0 | I130: 0 | K130: =SUM(K131:K133) -> 0
A131: Staff Housing | C131: 0 | D131: 0 | E131: 0 | F131: 0 | G131: 0 | H131: 0 | I131: 0 | K131: 0
A132: Social Housing | C132: 0 | D132: 0 | E132: 0 | F132: 0 | G132: 0 | H132: 0 | I132: 0 | K132: 0
A133: Capital Spares | C133: 0 | D133: 0 | E133: 0 | F133: 0 | G133: 0 | H133: 0 | I133: 0 | K133: 0
A135: Biological or Cultivated Assets | C135: =SUM(C136:C136) -> 0 | D135: 0 | E135: 0 | F135: 0 | G135: 0 | H135: 0 | I135: =H135-G135 -> 0 | K135: =SUM(K136) -> 0
A136: Biological or Cultivated Assets | C136: 0 | D136: 0 | E136: 0 | F136: 0 | G136: 0 | H136: 0 | I136: =H136-G136 -> 0 | K136: 0
A138: Intangible Assets | C138: =SUM(C139:C140) -> 6256608.03 | D138: 1966666 | E138: 0 | F138: 0 | G138: 0 | H138: 655555.3333 | I138: =H138-G138 -> 655555.3333 | J138: 1 | K138: =SUM(K139:K140) -> 1966666
A139: Servitudes | C139: 0 | D139: 0 | E139: 0 | F139: 0 | G139: 0 | H139: 0 | I139: 0 | K139: 0
A140: Licences and Rights | C140: =SUM(C141:C146) -> 6256608.03 | D140: 1966666 | E140: 0 | F140: 0 | G140: 0 | H140: 655555.3333 | I140: 655555.3333 | J140: 1 | K140: =SUM(K141:K146) -> 1966666
A141: Water Rights | C141: 0 | D141: 0 | E141: 0 | F141: 0 | G141: 0 | H141: =4/12*D141 -> 0 | I141: 0 | K141: 0
A142: Effluent Licenses | C142: 0 | D142: 0 | E142: 0 | F142: 0 | G142: 0 | H142: 0 | I142: 0 | K142: 0
A143: Solid Waste Licenses | C143: 0 | D143: 0 | E143: 0 | F143: 0 | G143: 0 | H143: 0 | I143: 0 | K143: 0
A144: Computer Software and Applications | C144: 6256608.03 | D144: 1466666 | E144: 0 | F144: 0 | G144: 0 | H144: 488888.6667 | I144: 488888.6667 | J144: 1 | K144: 1466666
A145: Load Settlement Software Applications | C145: 0 | D145: 0 | E145: 0 | F145: 0 | G145: 0 | H145: 0 | I145: 0 | K145: 0
A146: Unspecified | C146: 0 | D146: 500000 | E146: 0 | F146: 0 | G146: 0 | H146: 166666.6667 | I146: 166666.6667 | J146: 1 | K146: 500000
A148: Computer Equipment | C148: =SUM(C149:C149) -> 6297876.26 | D148: 1200000 | E148: 0 | F148: 73125.63 | G148: 219377.2 | H148: 400000 | I148: =H148-G148 -> 180622.8 | J148: =IF(I148=0,"",I148/H148) -> 0.451557 | K148: =SUM(K149) -> 1200000
A149: Computer Equipment | C149: 6297876.26 | D149: 1200000 | E149: 0 | F149: 73125.63 | G149: 219377.2 | H149: =4/12*D149 -> 400000 | I149: =H149-G149 -> 180622.8 | J149: =IF(I149=0,"",I149/H149) -> 0.451557 | K149: 1200000
A151: Furniture and Office Equipment | C151: =SUM(C152:C152) -> 1790270.28 | D151: 1300000 | E151: 0 | F151: 0 | G151: 0 | H151: 433333.3333 | I151: =H151-G151 -> 433333.3333 | J151: =IF(I151=0,"",I151/H151) -> 1 | K151: =SUM(K152) -> 1300000
A152: Furniture and Office Equipment | C152: 1790270.28 | D152: 1300000 | E152: 0 | F152: 0 | G152: 0 | H152: =4/12*D152 -> 433333.3333 | I152: =H152-G152 -> 433333.3333 | J152: =IF(I152=0,"",I152/H152) -> 1 | K152: 1300000
J153: =IF(I153=0,"",I153/H153) -> 
A154: Machinery and Equipment | C154: =SUM(C155:C155) -> 11892653.56 | D154: 4200000 | E154: 0 | F154: 7391.3 | G154: 7391.3 | H154: 1400000 | I154: =H154-G154 -> 1392608.7 | J154: =IF(I154=0,"",I154/H154) -> 0.9947205 | K154: =SUM(K155) -> 4200000
A155: Machinery and Equipment | C155: 11892653.56 | D155: 4200000 | E155: 0 | F155: 7391.3 | G155: 7391.3 | H155: =4/12*D155 -> 1400000 | I155: =H155-G155 -> 1392608.7 | J155: =IF(I155=0,"",I155/H155) -> 0.9947205 | K155: 4200000
A157: Transport Assets | C157: =SUM(C158:C158) -> 13968566.27 | D157: 1500000 | E157: 0 | F157: 0 | G157: 0 | H157: 500000 | I157: =H157-G157 -> 500000 | J157: =IF(I157=0,"",I157/H157) -> 1 | K157: =SUM(K158) -> 1500000
A158: Transport Assets | C158: 13968566.27 | D158: 1500000 | E158: 0 | F158: 0 | G158: 0 | H158: =4/12*D158 -> 500000 | I158: =H158-G158 -> 500000 | J158: =IF(I158=0,"",I158/H158) -> 1 | K158: 1500000
A160: Land | C160: =SUM(C161:C161) -> 205000 | D160: 0 | E160: 0 | F160: 0 | G160: 0 | H160: 0 | I160: =H160-G160 -> 0 | J160: =IF(I160=0,"",I160/H160) ->  | K160: =SUM(K161) -> 0
A161: Land | C161: 205000 | D161: 0 | E161: 0 | F161: 0 | G161: 0 | H161: 0 | I161: =H161-G161 -> 0 | J161: =IF(I161=0,"",I161/H161) ->  | K161: 0
A163: Zoo's, Marine and Non-biological Animals | C163: =SUM(C164:C164) -> 0 | D163: 0 | E163: 0 | F163: 0 | G163: 0 | H163: 0 | I163: =H163-G163 -> 0 | J163: =IF(I163=0,"",I163/H163) ->  | K163: =SUM(K164) -> 0
A164: Zoo's, Marine and Non-biological Animals | C164: 0 | D164: 0 | E164: 0 | F164: 0 | G164: 0 | H164: 0 | I164: =H164-G164 -> 0 | J164: =IF(I164=0,"",I164/H164) ->  | K164: 0
J165: =IF(I165=0,"",I165/H165) -> 
A166: Total Capital Expenditure on new assets | B166: 1 | C166: =C7+C75+C103+C110+C117+C135+C138+C148+C151+C154+C157+C160+C163 -> 99628787.4 | D166: 80820266 | E166: 0 | F166: 11624316.5 | G166: 27365417.71 | H166: 26940088.67 | I166: =H166-G166 -> -425329.0433 | J166: =IF(I166=0,"",I166/H166) -> -0.01578796004 | K166: =K7+K75+K103+K110+K117+K135+K138+K148+K151+K154+K157+K160+K163 -> 80820266
A168: =head27a -> References
A169: 1. Total Capital Expenditure on new assets (SC13a) plus Total Capital Expenditure on renewal of existing assets (SC13b) plus Total Capital Expenditure on upgrading of existing assets (SC13e) must reconcile to total capital expenditure in Table C5
A171: check balance | C171: =C166+SC13b!C166+SC13e!C166-'C5-Capex'!C40 -> 125116411.7 | D171: =D166+SC13b!D166+SC13e!D166-'C5-Capex'!D40 -> 0 | E171: =E166+SC13b!E166+SC13e!E166-'C5-Capex'!E40 -> 0 | F171: =F166+SC13b!F166+SC13e!F166-'C5-Capex'!F40 -> 0.2400000021 | G171: =G166+SC13b!G166+SC13e!G166-'C5-Capex'!G40 -> 0.2399999984 | H171: =H166+SC13b!H166+SC13e!H166-'C5-Capex'!H40 -> 0.01333332807 | K171: =K166+SC13b!K166+SC13e!K166-'C5-Capex'!K40 -> 0

Sheet SC13b
A1: =muni& " - "&S71Sb& " - "&Head57 -> LIM331 Greater Giyani - Supporting Table SC13b Monthly Budget Statement - capital expenditure on renewal of existing assets by asset class - M04 October
A2: =desc -> Description | B2: =head27 -> Ref | C2: =Head1 -> 2018/19 | D2: =Head2 -> Budget Year 2019/20
C3: =Head5 -> Audited Outcome | D3: =Head6 -> Original Budget | E3: =Head7 -> Adjusted Budget | F3: =Head38 -> Monthly actual | G3: =Head39 -> YearTD actual | H3: =Head40 -> YearTD budget | I3: =Head41 -> YTD variance | J3: =Head41 -> YTD variance | K3: =Head8 -> Full Year Forecast
A4: R thousands | B4: 1 | J4: %
A5: Capital expenditure on renewal of existing assets by Asset Class/Sub-class
A7: Infrastructure | C7: =C8+C13+C17+C27+C38+C45+C53+C63+C69 -> 696000 | D7: 0 | E7: 0 | F7: 0 | G7: 0 | H7: 0 | I7: =H7-G7 -> 0 | J7: =IF(I7=0,"",I7/H7) ->  | K7: =K8+K13+K17+K27+K38+K45+K53+K63+K69 -> 0
A8: Roads Infrastructure | C8: =SUM(C9:C12) -> 696000 | D8: 0 | E8: 0 | F8: 0 | G8: 0 | H8: 0 | I8: 0 | K8: =SUM(K9:K12) -> 0
A9: Roads | C9: 696000 | D9: 0 | E9: 0 | F9: 0 | G9: 0 | H9: 0 | I9: 0 | K9: 0
A10: Road Structures | C10: 0 | D10: 0 | E10: 0 | F10: 0 | G10: 0 | H10: 0 | I10: 0 | K10: 0
A11: Road Furniture | C11: 0 | D11: 0 | E11: 0 | F11: 0 | G11: 0 | H11: 0 | I11: 0 | K11: 0
A12: Capital Spares | C12: 0 | D12: 0 | E12: 0 | F12: 0 | G12: 0 | H12: 0 | I12: 0 | K12: 0
A13: Storm water Infrastructure | C13: =SUM(C14:C16) -> 0 | D13: 0 | E13: 0 | F13: 0 | G13: 0 | H13: 0 | I13: 0 | K13: =SUM(K14:K16) -> 0
A14: Drainage Collection | C14: 0 | D14: 0 | E14: 0 | F14: 0 | G14: 0 | H14: 0 | I14: 0 | K14: 0
A15: Storm water Conveyance | C15: 0 | D15: 0 | E15: 0 | F15: 0 | G15: 0 | H15: 0 | I15: 0 | K15: 0
A16: Attenuation | C16: 0 | D16: 0 | E16: 0 | F16: 0 | G16: 0 | H16: 0 | I16: 0 | K16: 0
A17: Electrical Infrastructure | C17: =SUM(C18:C26) -> 0 | D17: 0 | E17: 0 | F17: 0 | G17: 0 | H17: 0 | I17: 0 | K17: =SUM(K18:K26) -> 0
A18: Power Plants | C18: 0 | D18: 0 | E18: 0 | F18: 0 | G18: 0 | H18: 0 | I18: 0 | K18: 0
A19: HV Substations | C19: 0 | D19: 0 | E19: 0 | F19: 0 | G19: 0 | H19: 0 | I19: 0 | K19: 0
A20: HV Switching Station | C20: 0 | D20: 0 | E20: 0 | F20: 0 | G20: 0 | H20: 0 | I20: 0 | K20: 0
A21: HV Transmission Conductors | C21: 0 | D21: 0 | E21: 0 | F21: 0 | G21: 0 | H21: 0 | I21: 0 | K21: 0
A22: MV Substations | C22: 0 | D22: 0 | E22: 0 | F22: 0 | G22: 0 | H22: 0 | I22: 0 | K22: 0
A23: MV Switching Stations | C23: 0 | D23: 0 | E23: 0 | F23: 0 | G23: 0 | H23: 0 | I23: 0 | K23: 0
A24: MV Networks | C24: 0 | D24: 0 | E24: 0 | F24: 0 | G24: 0 | H24: 0 | I24: 0 | K24: 0
A25: LV Networks | C25: 0 | D25: 0 | E25: 0 | F25: 0 | G25: 0 | H25: 0 | I25: 0 | K25: 0
A26: Capital Spares | C26: 0 | D26: 0 | E26: 0 | F26: 0 | G26: 0 | H26: 0 | I26: 0 | K26: 0
A27: Water Supply Infrastructure | C27: =SUM(C28:C37) -> 0 | D27: 0 | E27: 0 | F27: 0 | G27: 0 | H27: 0 | I27: 0 | K27: =SUM(K28:K37) -> 0
A28: Dams and Weirs | C28: 0 | D28: 0 | E28: 0 | F28: 0 | G28: 0 | H28: 0 | I28: 0 | K28: 0
A29: Boreholes | C29: 0 | D29: 0 | E29: 0 | F29: 0 | G29: 0 | H29: 0 | I29: 0 | K29: 0
A30: Reservoirs | C30: 0 | D30: 0 | E30: 0 | F30: 0 | G30: 0 | H30: 0 | I30: 0 | K30: 0
A31: Pump Stations | C31: 0 | D31: 0 | E31: 0 | F31: 0 | G31: 0 | H31: 0 | I31: 0 | K31: 0
A32: Water Treatment Works | C32: 0 | D32: 0 | E32: 0 | F32: 0 | G32: 0 | H32: 0 | I32: 0 | K32: 0
A33: Bulk Mains | C33: 0 | D33: 0 | E33: 0 | F33: 0 | G33: 0 | H33: 0 | I33: 0 | K33: 0
A34: Distribution | C34: 0 | D34: 0 | E34: 0 | F34: 0 | G34: 0 | H34: 0 | I34: 0 | K34: 0
A35: Distribution Points | C35: 0 | D35: 0 | E35: 0 | F35: 0 | G35: 0 | H35: 0 | I35: 0 | K35: 0
A36: PRV Stations | C36: 0 | D36: 0 | E36: 0 | F36: 0 | G36: 0 | H36: 0 | I36: 0 | K36: 0
A37: Capital Spares | C37: 0 | D37: 0 | E37: 0 | F37: 0 | G37: 0 | H37: 0 | I37: 0 | K37: 0
A38: Sanitation Infrastructure | C38: =SUM(C39:C44) -> 0 | D38: 0 | E38: 0 | F38: 0 | G38: 0 | H38: 0 | I38: 0 | K38: =SUM(K39:K44) -> 0
A39: Pump Station | C39: 0 | D39: 0 | E39: 0 | F39: 0 | G39: 0 | H39: 0 | I39: 0 | K39: 0
A40: Reticulation | C40: 0 | D40: 0 | E40: 0 | F40: 0 | G40: 0 | H40: 0 | I40: 0 | K40: 0
A41: Waste Water Treatment Works | C41: 0 | D41: 0 | E41: 0 | F41: 0 | G41: 0 | H41: 0 | I41: 0 | K41: 0
A42: Outfall Sewers | C42: 0 | D42: 0 | E42: 0 | F42: 0 | G42: 0 | H42: 0 | I42: 0 | K42: 0
A43: Toilet Facilities | C43: 0 | D43: 0 | E43: 0 | F43: 0 | G43: 0 | H43: 0 | I43: 0 | K43: 0
A44: Capital Spares | C44: 0 | D44: 0 | E44: 0 | F44: 0 | G44: 0 | H44: 0 | I44: 0 | K44: 0
A45: Solid Waste Infrastructure | C45: =SUM(C46:C52) -> 0 | D45: 0 | E45: 0 | F45: 0 | G45: 0 | H45: 0 | I45: 0 | K45: =SUM(K46:K52) -> 0
A46: Landfill Sites | C46: 0 | D46: 0 | E46: 0 | F46: 0 | G46: 0 | H46: 0 | I46: 0 | K46: 0
A47: Waste Transfer Stations | C47: 0 | D47: 0 | E47: 0 | F47: 0 | G47: 0 | H47: 0 | I47: 0 | K47: 0
A48: Waste Processing Facilities | C48: 0 | D48: 0 | E48: 0 | F48: 0 | G48: 0 | H48: 0 | I48: 0 | K48: 0
A49: Waste Drop-off Points | C49: 0 | D49: 0 | E49: 0 | F49: 0 | G49: 0 | H49: 0 | I49: 0 | K49: 0
A50: Waste Separation Facilities | C50: 0 | D50: 0 | E50: 0 | F50: 0 | G50: 0 | H50: 0 | I50: 0 | K50: 0
A51: Electricity Generation Facilities | C51: 0 | D51: 0 | E51: 0 | F51: 0 | G51: 0 | H51: 0 | I51: 0 | K51: 0
A52: Capital Spares | C52: 0 | D52: 0 | E52: 0 | F52: 0 | G52: 0 | H52: 0 | I52: 0 | K52: 0
A53: Rail Infrastructure | C53: =SUM(C54:C62) -> 0 | D53: 0 | E53: 0 | F53: 0 | G53: 0 | H53: 0 | I53: 0 | K53: =SUM(K54:K62) -> 0
A54: Rail Lines | C54: 0 | D54: 0 | E54: 0 | F54: 0 | G54: 0 | H54: 0 | I54: 0 | K54: 0
A55: Rail Structures | C55: 0 | D55: 0 | E55: 0 | F55: 0 | G55: 0 | H55: 0 | I55: 0 | K55: 0
A56: Rail Furniture | C56: 0 | D56: 0 | E56: 0 | F56: 0 | G56: 0 | H56: 0 | I56: 0 | K56: 0
A57: Drainage Collection | C57: 0 | D57: 0 | E57: 0 | F57: 0 | G57: 0 | H57: 0 | I57: 0 | K57: 0
A58: Storm water Conveyance | C58: 0 | D58: 0 | E58: 0 | F58: 0 | G58: 0 | H58: 0 | I58: 0 | K58: 0
A59: Attenuation | C59: 0 | D59: 0 | E59: 0 | F59: 0 | G59: 0 | H59: 0 | I59: 0 | K59: 0
A60: MV Substations | C60: 0 | D60: 0 | E60: 0 | F60: 0 | G60: 0 | H60: 0 | I60: 0 | K60: 0
A61: LV Networks | C61: 0 | D61: 0 | E61: 0 | F61: 0 | G61: 0 | H61: 0 | I61: 0 | K61: 0
A62: Capital Spares | C62: 0 | D62: 0 | E62: 0 | F62: 0 | G62: 0 | H62: 0 | I62: 0 | K62: 0
A63: Coastal Infrastructure | C63: =SUM(C64:C68) -> 0 | D63: 0 | E63: 0 | F63: 0 | G63: 0 | H63: 0 | I63: 0 | K63: =SUM(K64:K68) -> 0
A64: Sand Pumps | C64: 0 | D64: 0 | E64: 0 | F64: 0 | G64: 0 | H64: 0 | I64: 0 | K64: 0
A65: Piers | C65: 0 | D65: 0 | E65: 0 | F65: 0 | G65: 0 | H65: 0 | I65: 0 | K65: 0
A66: Revetments | C66: 0 | D66: 0 | E66: 0 | F66: 0 | G66: 0 | H66: 0 | I66: 0 | K66: 0
A67: Promenades | C67: 0 | D67: 0 | E67: 0 | F67: 0 | G67: 0 | H67: 0 | I67: 0 | K67: 0
A68: Capital Spares | C68: 0 | D68: 0 | E68: 0 | F68: 0 | G68: 0 | H68: 0 | I68: 0 | K68: 0
A69: Information and Communication Infrastructure | C69: =SUM(C70:C73) -> 0 | D69: 0 | E69: 0 | F69: 0 | G69: 0 | H69: 0 | I69: 0 | K69: =SUM(K70:K73) -> 0
A70: Data Centres | C70: 0 | D70: 0 | E70: 0 | F70: 0 | G70: 0 | H70: 0 | I70: 0 | K70: 0
A71: Core Layers | C71: 0 | D71: 0 | E71: 0 | F71: 0 | G71: 0 | H71: 0 | I71: 0 | K71: 0
A72: Distribution Layers | C72: 0 | D72: 0 | E72: 0 | F72: 0 | G72: 0 | H72: 0 | I72: 0 | K72: 0
A73: Capital Spares | C73: 0 | D73: 0 | E73: 0 | F73: 0 | G73: 0 | H73: 0 | I73: 0 | K73: 0
A75: Community Assets | C75: =+C76+C99 -> 1066420.01 | D75: 0 | E75: 0 | F75: 0 | G75: 0 | H75: 0 | I75: 0 | K75: =+K76+K99 -> 0
A76: Community Facilities | C76: =SUM(C77:C98) -> 1066420.01 | D76: 0 | E76: 0 | F76: 0 | G76: 0 | H76: 0 | I76: 0 | K76: =SUM(K77:K98) -> 0
A77: Halls | C77: 0 | D77: 0 | E77: 0 | F77: 0 | G77: 0 | H77: 0 | I77: 0 | K77: 0
A78: Centres | C78: 1066420.01 | D78: 0 | E78: 0 | F78: 0 | G78: 0 | H78: 0 | I78: 0 | K78: 0
A79: Crèches | C79: 0 | D79: 0 | E79: 0 | F79: 0 | G79: 0 | H79: 0 | I79: 0 | K79: 0
A80: Clinics/Care Centres | C80: 0 | D80: 0 | E80: 0 | F80: 0 | G80: 0 | H80: 0 | I80: 0 | K80: 0
A81: Fire/Ambulance Stations | C81: 0 | D81: 0 | E81: 0 | F81: 0 | G81: 0 | H81: 0 | I81: 0 | K81: 0
A82: Testing Stations | C82: 0 | D82: 0 | E82: 0 | F82: 0 | G82: 0 | H82: 0 | I82: 0 | K82: 0
A83: Museums | C83: 0 | D83: 0 | E83: 0 | F83: 0 | G83: 0 | H83: 0 | I83: 0 | K83: 0
A84: Galleries | C84: 0 | D84: 0 | E84: 0 | F84: 0 | G84: 0 | H84: 0 | I84: 0 | K84: 0
A85: Theatres | C85: 0 | D85: 0 | E85: 0 | F85: 0 | G85: 0 | H85: 0 | I85: 0 | K85: 0
A86: Libraries | C86: 0 | D86: 0 | E86: 0 | F86: 0 | G86: 0 | H86: 0 | I86: 0 | K86: 0
A87: Cemeteries/Crematoria | C87: 0 | D87: 0 | E87: 0 | F87: 0 | G87: 0 | H87: 0 | I87: 0 | K87: 0
A88: Police | C88: 0 | D88: 0 | E88: 0 | F88: 0 | G88: 0 | H88: 0 | I88: 0 | K88: 0
A89: Purls | C89: 0 | D89: 0 | E89: 0 | F89: 0 | G89: 0 | H89: 0 | I89: 0 | K89: 0
A90: Public Open Space | C90: 0 | D90: 0 | E90: 0 | F90: 0 | G90: 0 | H90: 0 | I90: 0 | K90: 0
A91: Nature Reserves | C91: 0 | D91: 0 | E91: 0 | F91: 0 | G91: 0 | H91: 0 | I91: 0 | K91: 0
A92: Public Ablution Facilities | C92: 0 | D92: 0 | E92: 0 | F92: 0 | G92: 0 | H92: 0 | I92: 0 | K92: 0
A93: Markets | C93: 0 | D93: 0 | E93: 0 | F93: 0 | G93: 0 | H93: 0 | I93: 0 | K93: 0
A94: Stalls | C94: 0 | D94: 0 | E94: 0 | F94: 0 | G94: 0 | H94: 0 | I94: 0 | K94: 0
A95: Abattoirs | C95: 0 | D95: 0 | E95: 0 | F95: 0 | G95: 0 | H95: 0 | I95: 0 | K95: 0
A96: Airports | C96: 0 | D96: 0 | E96: 0 | F96: 0 | G96: 0 | H96: 0 | I96: 0 | K96: 0
A97: Taxi Ranks/Bus Terminals | C97: 0 | D97: 0 | E97: 0 | F97: 0 | G97: 0 | H97: 0 | I97: 0 | K97: 0
A98: Capital Spares | C98: 0 | D98: 0 | E98: 0 | F98: 0 | G98: 0 | H98: 0 | I98: 0 | K98: 0
A99: Sport and Recreation Facilities | C99: =SUM(C100:C102) -> 0 | D99: 0 | E99: 0 | F99: 0 | G99: 0 | H99: 0 | I99: 0 | K99: =SUM(K100:K102) -> 0
A100: Indoor Facilities | C100: 0 | D100: 0 | E100: 0 | F100: 0 | G100: 0 | H100: 0 | I100: 0 | K100: 0
A101: Outdoor Facilities | C101: 0 | D101: 0 | E101: 0 | F101: 0 | G101: 0 | H101: 0 | I101: =H101-G101 -> 0 | J101: =IF(I101=0,"",I101/H101) ->  | K101: 0
A102: Capital Spares | C102: 0 | D102: 0 | E102: 0 | F102: 0 | G102: 0 | H102: 0 | I102: 0 | K102: 0
A103: Heritage assets | C103: =SUM(C104:C108) -> 0 | D103: 0 | E103: 0 | F103: 0 | G103: 0 | H103: 0 | I103: 0 | K103: =SUM(K104:K108) -> 0
A104: Monuments | C104: 0 | D104: 0 | E104: 0 | F104: 0 | G104: 0 | H104: 0 | I104: 0 | K104: 0
A105: Historic Buildings | C105: 0 | D105: 0 | E105: 0 | F105: 0 | G105: 0 | H105: 0 | I105: 0 | K105: 0
A106: Works of Art | C106: 0 | D106: 0 | E106: 0 | F106: 0 | G106: 0 | H106: 0 | I106: 0 | K106: 0
A107: Conservation Areas | C107: 0 | D107: 0 | E107: 0 | F107: 0 | G107: 0 | H107: 0 | I107: 0 | K107: 0
A108: Other Heritage | C108: 0 | D108: 0 | E108: 0 | F108: 0 | G108: 0 | H108: 0 | I108: 0 | K108: 0
I109: 0
A110: Investment properties | C110: =+C111+C114 -> 0 | D110: 0 | E110: 0 | F110: 0 | G110: 0 | H110: 0 | I110: 0 | K110: =+K111+K114 -> 0
A111: Revenue Generating | C111: =SUM(C112:C113) -> 0 | D111: 0 | E111: 0 | F111: 0 | G111: 0 | H111: 0 | I111: 0 | K111: =SUM(K112:K113) -> 0
A112: Improved Property | C112: 0 | D112: 0 | E112: 0 | F112: 0 | G112: 0 | H112: 0 | I112: 0 | K112: 0
A113: Unimproved Property | C113: 0 | D113: 0 | E113: 0 | F113: 0 | G113: 0 | H113: 0 | I113: 0 | K113: 0
A114: Non-revenue Generating | C114: =SUM(C115:C116) -> 0 | D114: 0 | E114: 0 | F114: 0 | G114: 0 | H114: 0 | I114: 0 | K114: =SUM(K115:K116) -> 0
A115: Improved Property | C115: 0 | D115: 0 | E115: 0 | F115: 0 | G115: 0 | H115: 0 | I115: 0 | K115: 0
A116: Unimproved Property | C116: 0 | D116: 0 | E116: 0 | F116: 0 | G116: 0 | H116: 0 | I116: =H116-G116 -> 0 | J116: =IF(I116=0,"",I116/H116) ->  | K116: 0
A117: Other assets | C117: =+C118+C130 -> 0 | D117: 0 | E117: 0 | F117: 0 | G117: 0 | H117: 0 | I117: 0 | K117: =+K118+K130 -> 0
A118: Operational Buildings | C118: =SUM(C119:C129) -> 0 | D118: 0 | E118: 0 | F118: 0 | G118: 0 | H118: 0 | I118: 0 | K118: =SUM(K119:K129) -> 0
A119: Municipal Offices | C119: 0 | D119: 0 | E119: 0 | F119: 0 | G119: 0 | H119: 0 | I119: 0 | K119: 0
A120: Pay/Enquiry Points | C120: 0 | D120: 0 | E120: 0 | F120: 0 | G120: 0 | H120: 0 | I120: 0 | K120: 0
A121: Building Plan Offices | C121: 0 | D121: 0 | E121: 0 | F121: 0 | G121: 0 | H121: 0 | I121: 0 | K121: 0
A122: Workshops | C122: 0 | D122: 0 | E122: 0 | F122: 0 | G122: 0 | H122: 0 | I122: 0 | K122: 0
A123: Yards | C123: 0 | D123: 0 | E123: 0 | F123: 0 | G123: 0 | H123: 0 | I123: 0 | K123: 0
A124: Stores | C124: 0 | D124: 0 | E124: 0 | F124: 0 | G124: 0 | H124: 0 | I124: 0 | K124: 0
A125: Laboratories | C125: 0 | D125: 0 | E125: 0 | F125: 0 | G125: 0 | H125: 0 | I125: 0 | K125: 0
A126: Training Centres | C126: 0 | D126: 0 | E126: 0 | F126: 0 | G126: 0 | H126: 0 | I126: 0 | K126: 0
A127: Manufacturing Plant | C127: 0 | D127: 0 | E127: 0 | F127: 0 | G127: 0 | H127: 0 | I127: 0 | K127: 0
A128: Depots | C128: 0 | D128: 0 | E128: 0 | F128: 0 | G128: 0 | H128: 0 | I128: 0 | K128: 0
A129: Capital Spares | C129: 0 | D129: 0 | E129: 0 | F129: 0 | G129: 0 | H129: 0 | I129: 0 | K129: 0
A130: Housing | C130: =SUM(C131:C133) -> 0 | D130: 0 | E130: 0 | F130: 0 | G130: 0 | H130: 0 | I130: 0 | K130: =SUM(K131:K133) -> 0
A131: Staff Housing | C131: 0 | D131: 0 | E131: 0 | F131: 0 | G131: 0 | H131: 0 | I131: 0 | K131: 0
A132: Social Housing | C132: 0 | D132: 0 | E132: 0 | F132: 0 | G132: 0 | H132: 0 | I132: 0 | K132: 0
A133: Capital Spares | C133: 0 | D133: 0 | E133: 0 | F133: 0 | G133: 0 | H133: 0 | I133: 0 | K133: 0
A135: Biological or Cultivated Assets | C135: =SUM(C136:C136) -> 0 | D135: 0 | E135: 0 | F135: 0 | G135: 0 | H135: 0 | I135: =H135-G135 -> 0 | K135: =SUM(K136) -> 0
A136: Biological or Cultivated Assets | C136: 0 | D136: 0 | E136: 0 | F136: 0 | G136: 0 | H136: 0 | I136: =H136-G136 -> 0 | K136: 0
J137: =IF(I137=0,"",I137/H137) -> 
A138: Intangible Assets | C138: =SUM(C139:C140) -> 0 | D138: 0 | E138: 0 | F138: 0 | G138: 0 | H138: 0 | I138: =H138-G138 -> 0 | K138: =SUM(K139:K140) -> 0
A139: Servitudes | C139: 0 | D139: 0 | E139: 0 | F139: 0 | G139: 0 | H139: 0 | I139: 0 | K139: 0
A140: Licences and Rights | C140: =SUM(C141:C146) -> 0 | D140: 0 | E140: 0 | F140: 0 | G140: 0 | H140: 0 | I140: 0 | K140: =SUM(K141:K146) -> 0
A141: Water Rights | C141: 0 | D141: 0 | E141: 0 | F141: 0 | G141: 0 | H141: 0 | I141: 0 | K141: 0
A142: Effluent Licenses | C142: 0 | D142: 0 | E142: 0 | F142: 0 | G142: 0 | H142: 0 | I142: 0 | K142: 0
A143: Solid Waste Licenses | C143: 0 | D143: 0 | E143: 0 | F143: 0 | G143: 0 | H143: 0 | I143: 0 | K143: 0
A144: Computer Software and Applications | C144: 0 | D144: 0 | E144: 0 | F144: 0 | G144: 0 | H144: 0 | I144: 0 | K144: 0
A145: Load Settlement Software Applications | C145: 0 | D145: 0 | E145: 0 | F145: 0 | G145: 0 | H145: 0 | I145: 0 | K145: 0
A146: Unspecified | C146: 0 | D146: 0 | E146: 0 | F146: 0 | G146: 0 | H146: 0 | I146: 0 | K146: 0
A148: Computer Equipment | C148: =SUM(C149:C149) -> 0 | D148: 0 | E148: 0 | F148: 0 | G148: 0 | H148: 0 | I148: =H148-G148 -> 0 | J148: =IF(I148=0,"",I148/H148) ->  | K148: =SUM(K149) -> 0
A149: Computer Equipment | C149: 0 | D149: 0 | E149: 0 | F149: 0 | G149: 0 | H149: 0 | I149: =H149-G149 -> 0 | J149: =IF(I149=0,"",I149/H149) ->  | K149: 0
A151: Furniture and Office Equipment | C151: =SUM(C152:C152) -> 1008704.98 | D151: 0 | E151: 0 | F151: 0 | G151: 0 | H151: 0 | I151: =H151-G151 -> 0 | J151: =IF(I151=0,"",I151/H151) ->  | K151: =SUM(K152) -> 0
A152: Furniture and Office Equipment | C152: 1008704.98 | D152: 0 | E152: 0 | F152: 0 | G152: 0 | H152: 0 | I152: =H152-G152 -> 0 | J152: =IF(I152=0,"",I152/H152) ->  | K152: 0
J153: =IF(I153=0,"",I153/H153) -> 
A154: Machinery and Equipment | C154: =SUM(C155:C155) -> 0 | D154: 0 | E154: 0 | F154: 0 | G154: 0 | H154: 0 | I154: =H154-G154 -> 0 | J154: =IF(I154=0,"",I154/H154) ->  | K154: =SUM(K155) -> 0
A155: Machinery and Equipment | C155: 0 | D155: 0 | E155: 0 | F155: 0 | G155: 0 | H155: 0 | I155: =H155-G155 -> 0 | J155: =IF(I155=0,"",I155/H155) ->  | K155: 0
A157: Transport Assets | C157: =SUM(C158:C158) -> 0 | D157: 0 | E157: 0 | F157: 0 | G157: 0 | H157: 0 | I157: =H157-G157 -> 0 | J157: =IF(I157=0,"",I157/H157) ->  | K157: =SUM(K158) -> 0
A158: Transport Assets | C158: 0 | D158: 0 | E158: 0 | F158: 0 | G158: 0 | H158: 0 | I158: =H158-G158 -> 0 | J158: =IF(I158=0,"",I158/H158) ->  | K158: 0
A160: Land | C160: =SUM(C161:C161) -> 0 | D160: 0 | E160: 0 | F160: 0 | G160: 0 | H160: 0 | I160: =H160-G160 -> 0 | J160: =IF(I160=0,"",I160/H160) ->  | K160: =SUM(K161) -> 0
A161: Land | C161: 0 | D161: 0 | E161: 0 | F161: 0 | G161: 0 | H161: 0 | I161: =H161-G161 -> 0 | J161: =IF(I161=0,"",I161/H161) ->  | K161: 0
J162: .
A163: Zoo's, Marine and Non-biological Animals | C163: =SUM(C164:C164) -> 0 | D163: 0 | E163: 0 | F163: 0 | G163: 0 | H163: 0 | I163: =H163-G163 -> 0 | J163: =IF(I163=0,"",I163/H163) ->  | K163: =SUM(K164) -> 0
A164: Zoo's, Marine and Non-biological Animals | C164: 0 | D164: 0 | E164: 0 | F164: 0 | G164: 0 | H164: 0 | I164: =H164-G164 -> 0 | J164: =IF(I164=0,"",I164/H164) ->  | K164: 0
J165: =IF(I165=0,"",I165/H165) -> 
A166: Total Capital Expenditure on renewal of existing assets | B166: 1 | C166: =C7+C75+C103+C110+C117+C135+C138+C148+C151+C154+C157+C160+C163 -> 2771124.99 | D166: 0 | E166: 0 | F166: 0 | G166: 0 | H166: 0 | I166: =H166-G166 -> 0 | J166: =IF(I166=0,"",I166/H166) ->  | K166: =K7+K75+K103+K110+K117+K135+K138+K148+K151+K154+K157+K160+K163 -> 0
A168: =head27a -> References
A169: 1. Total Capital Expenditure on new assets (SC13a) plus Total Capital Expenditure on renewal of existing assets (SC13b) plus Total Capital Expenditure on upgrading of existing assets (SC13e) must reconcile to total capital expenditure in Table C5
A171: check balance | C171: =C166+SC13a!C166+SC13e!C166-'C5-Capex'!C40 -> 125116411.7 | D171: =D166+SC13a!D166+SC13e!D166-'C5-Capex'!D40 -> 0 | E171: =E166+SC13a!E166+SC13e!E166-'C5-Capex'!E40 -> 0 | F171: =F166+SC13a!F166+SC13e!F166-'C5-Capex'!F40 -> 0.2400000021 | G171: =G166+SC13a!G166+SC13e!G166-'C5-Capex'!G40 -> 0.2399999984 | H171: =H166+SC13a!H166+SC13e!H166-'C5-Capex'!H40 -> 0.01333332807 | K171: =K166+SC13a!K166+SC13e!K166-'C5-Capex'!K40 -> 0

Sheet SC13c
A1: =muni& " - "&S71Sc& " - "&Head57 -> LIM331 Greater Giyani - Supporting Table SC13c Monthly Budget Statement - expenditure on repairs and maintenance by asset class - M04 October
A2: =desc -> Description | B2: =head27 -> Ref | C2: =Head1 -> 2018/19 | D2: =Head2 -> Budget Year 2019/20
C3: =Head5 -> Audited Outcome | D3: =Head6 -> Original Budget | E3: =Head7 -> Adjusted Budget | F3: =Head38 -> Monthly actual | G3: =Head39 -> YearTD actual | H3: =Head40 -> YearTD budget | I3: =Head41 -> YTD variance | J3: =Head41 -> YTD variance | K3: =Head8 -> Full Year Forecast
A4: R thousands | B4: 1 | J4: %
